{"text_format":"1","workbook":"xlsx","n_sheets":26,"sheets":["الرئيسية","تعليمات","اعدادات","اعدادات اللجان","لجان","جلوس","لجان ملاحق","رفع","شيت","شيت دور ثانى","شيت الناجحين","مساعد","شهادات نصف العام","شهادات آخر العام","شهادات الدور الثانى","كشف الملاحق","كشف الراسبين","باقون","النسبة","اوائل المدرسة","رصد","جودة","العملى","النهائية","سرى","احصائيات"],"not_rendered":{"charts":0,"images":2,"macros":1,"external_links":2,"defined_names":18,"comments":1,"pivot_tables":0},"unopened":[],"bounds":{"document_bytes":16777216,"sheet_cells":100000,"rows_first":2000,"rows_last":500,"rows_between":2000,"halvings":0,"cell_chars":16384,"cell_head_chars":4096},"cells_cut":0,"cells_raw":0,"read":"whole","date_system":"1900"}

{"sheet":"الرئيسية","index":0,"n_rows":9,"n_cols":11,"rows_kept":9,"cut":false,"hidden":false,"merged":[[4,4,4,5],[5,4,5,5],[6,4,6,5],[7,4,7,5],[8,4,8,5]]}
["بسم الله الرحمن الرحيم",null,null,null,null,null,null,null,null,"       كنترول شيت الصف الاول"]
[null,"ادارة  ","…....................",null,null,null,null,null,null,"       للعام الدراسى :"," 2019 / 2020"]
[null,"مدرسة","…...................."]
[null,null,null,null,null,null,null,null,null,"اضغط زر تعليمات للتعرف على طريقة الاستخدام"]
[null,"مدير إدارة المدرسة الاستاذ /"]
[null,"مدير  المدرسة الاستاذ …. /"]
[null,"رئيس الكنترول الاستاذ .... / "]
[null,"مسئول كنترول الاستاذ …. /"]
[null,"تاريخ حساب السن  ........  /",null,null,"2021-10-01"]

{"sheet":"تعليمات","index":1,"n_rows":99,"n_cols":12,"rows_kept":99,"cut":false,"hidden":false,"merged":[[0,11,1,14]]}
["بسم الله الرحمن الرحيم",null,null,null,null,null,"تعليمات و إرشادات",null,null,null,null,"كل الخلايا الملونة بها معادلات  و العبث بها بفقد البرنامج اهم مميزاته"]
["و الحمد لله رب العالمين و الصلاة و السلام على اشرف المرسلين  سيدنا محمد و على آله وصحبه وسلم"]
["اما بعد :"]
["الى اخوتى و احبتى العاملين في مجال الكنترول  بالمدارس التجارية نظام الثلاث سنوات"]
["اليكم الشيت كنترول للصف الاول التجارى "]
["بداية يمكنكم الاستغناء عن التعليمات الآتية اذا كان تعداد المدرسة صغير و لا تحتوى على شعب متعددة و سيعمل معك البرنامج فيما تبقى بمنتهى الكفاءة - كما اسلفت في تعليمات الصف الثانى"]
["وهذه ترتيبات و تعليمات الاستخدام : - ( عذرا فالتعليمات طويلة نوعا ما نظرا لاهميتها القصوى)"]
[]
[null,"المرحلة الأولى  :"]
["1 - البداية في ورقة الرئيسية ملء جميع البيانات الخاصة بالمحافظة و الإدارة التعليمية و اسم المدرسة  و العام الدراسى و تاريخ حساب سن الطالب اما باقى البيانات فهى اختيارية"]
["2 - الذهاب مباشرة الى الورقة  المسماة شيت  و إتمام البيانات التالية جميعها دون نقصان او زيادة  في الاعمدة المخصصة لها  قبل الشروع في اى عمل آخر  "]
[null,"ا - اسم الطالب",null,"ب - فصل الطالب",null,"ج - تاريخ الميلاد    ",null,"د - ديانة الطالب",null,"هـ -  النوع  ( بنين - بنات  و ليس  ذكر - انثى )"]
[null,null,null,"و - الفئة ( انتظام - خدمات )",null,null,"م - لا يتم تسجيل اى بيانات أخرى في الورقة  \" شيت\""]
[null,null,null,"ن - الحالة ( يكتفى بكلمة باقى للبنين - باقية للبنات و لاتوجد ضرورة لكلمة مستجد  -مستجدة)"]
["3 - الذهاب الى ورقة الاعدادات"]
[null,"ا - تم ترتيب الخطوات كما سوف ترى ( الخطوة الأولى - الثانية - الثالثة و هكذا ...... )  عليك اتباع الترتيب حتى  تحصل على نتائج جيدة"]
[]
[null,"*******        لا تقم بتسطير اى ورقة فالتسطير يتم تلقائيا"]
[]
[null,"الخطوة الأولى : "]
[null,"يمكنك التغيير بين المعايير المختلفة لاجراء عملية الفرز الشامل على اساسها ( بنين - بنات - انتظام - خدمات )  من الخلايا  E6  و  E7"]
[null," ضغط الزر \"اضغط للفرز الشامل\" و انتظر حتى تتم العملية بنجاح"]
[]
[]
[null,"الخطوة الثانية  :"]
[null,"في  الخلية F13  قم بكتابة الأرقام المتفق عليها  بالنسبة للفترة الصباحية و اترك الباقى للبرنامج"]
[null,"اضغط زر  \"  اضغط لتوزيع الفترات  \""]
[]
[null,"الخطوة الثالثة  :"]
[null,"اضغط الزر المكتوب عليه  : \"اضغط لتعبئة الجداول \""]
[null," املأ  العمود S و العمود Z بأول رقم جلوس بما تم الاتفاق عليه مع السادة المنوطين بالامر في السابق  و كذلك عدد اللجان المقترحة في العمود W و العمود AD حسب رؤية القائمين على هذا الامر امام كل شريحة"]
[null,"سيقوم البرنامج  بوضع رقم اول لجنة و رقم آخر لجنة في الاعمدة المخصصة لذلك"]
[null,"اعود و اكرر الحذر كل الحذر من الاقتراب من الاعمدة التي تحتوى معادلات"]
[null," الضغط على زر  : \"توزيع ارقام الجلوس على الشيت العام\"  و قد يستغرق وقتا بعض الشئ"]
[null,"سيقوم الكود بتوزيع ارقام الجلوس حسب الجداول السابقة بمنتهى الدقة"]
[null,"هنا ينتهى العمل بورقة الاعدادات و ان كان هناك أمور مرتبطة بها في الأوراق الأخرى و لكن دون الرجوع الى ورقة الاعدادات مرةاخرى . لذا الرجاء إخفاء هذه الورقة ( الاعدادات ) بعد نهاية الخطوة الرابعة"]
[null,"لا يمكن الحصول على اخطارات ارقام الجلوس في الورقة المسماة ارقام الجلوس الا بعد اجراء الخطوات السابقة"]
[]
[]
[null,"المرحلة الثانية    :"]
[null,"في الورقة المسماة   اعدادات اللجان"]
[null," اكتب أسماء الفصول  او  المقرات المتاحة لآداء التلاميذ الامتحان فيها ( الصباحية في العمود \"K\" - المسائية في العمود \"T\" ) و اترك الباقى للبرنامج"]
[null,"اذا اردت الاستفادة من كامل مزايا هذه الورقة عليك اختيار توزيع آلى من القائمة المنسدلة"]
[null,"في حالة اختيار توزيع يدوى من الخلية D3 او الخلية S3 لن يعمل الكود بهذه الخاصية لكل فترة على حدة الا الزر الثالث"]
[null,"اضغط زر توزيع  لجان الفترة الصباحية ثم زر توزيع لجان الفترة المسائية"]
[null,"اما قوائم اللجان فهى سهلة الاستخدام و لا تحتاج الى شرح يكفى الاختيار من القوائم المنسدلة  بين صباحى و مسائى -- وأرقام اللجان"]
[]
[]
[null,"المرحلة الثالثة   :"]
[null,"في الورقة \"شيت\"  قبل عملية الفرز يتم عمل الأرقام السرية بإحدى الطريقتين  : -"]
[null,"1 - وضع السرى يدويا كما خطط له من قبل القائمين على العمل في عمود السرى بالشيت مباشرة"]
[null,"2 - او الذهاب الى ورقة السرى كالآتى  :"]
[null,"ا -  الضغط أولا على زر اضغط لاستدعاء البيانات فيقوم البرنامج باستعاء جميع بيانات ارقم الجلوس "]
[null,"ب - ثم نقوم بتوزيع الأرقام السرية المقترحة يدويا في الجدول المقابل  ( يقبل السرى التنازلى )"]
[null,"ج -  بعد ذلك نقوم بالضغط على زر فرز سرى و بعد انتهاء عملية الفرز نقوم باخفاء الاعمد من A الى L  كما هو متبع  مع الشيتات"]
[null,"الان أصبحت الشيتات جاهزة لرصد الدرجات لاى فترة كانت"]
[null,"لا تنسى في عمود الحالة من كتابة ( باقى - باقية )   و لا داعى ل ( مستجد - مستجدة ) "]
[null,"في حالة وجود طلاب مسيحين يجب كتابة كلمة ( مسيحى - مسيحية )  لان ذلك  سيظهر في ورقة اللجان اثناء امتحان مادة التربية الدينية"]
[]
[]
[null,"المرحلة الرابعة  :"]
[null,"و هي تخص شهادات نصف العام و آخر العام "]
[]
[]
[null,"المرحلة الخامسة   :"]
[null," وهى الخاصة بأوائل الطلبة يمكنك التبديل  بين الفترات باستخدام القوائم المنسدلة"]
[null,"ينطبق هذا الامر على أوائل آخر العام "]
[null,"أوائل آخر العام للطلاب الناجحين فقط لذلك لن تحصل على نتيجة الا بعد عملية ترحيل الناجحين"]
[]
[]
[]
[null,"المرحلة السادسة  :"]
[null,"و هي تخص آخر العام"]
[null,"- ملحوظة هامة بالنسبة لشهاد ة  آخر العام و هي نادرة بالنسبة للطلاب الحاصلين على ملحق في مادة رغم درجاتهم اكبر من درجة النجاح و سترى اسم المادة في الخلية المخصصة لمواد الرسوب"]
[null,"و السبب هو عدم حصول الطالب على ربع الدرجة في امتحان آخر العام في هذه الحالة يجب على مسئول الكنترول وضع دائرة يدويا بالقلم الأحمر ( بالشهادة المطبوعة ) على درجة المادة و ذكر السبب في خلية مادة الرسوب"]
[null,"و هو ( عدم الحصول على ربع الدرجة )"]
[null,"- بالنسبة للورقة المسماة  \" رفع \" يمكن في هذه الورقة معرفة الأوراق المحتاجة الى درجات رفع يتم تحديدها في الورقة بالارقام السرية ( و رؤية الورقة على الطبيعة و تجربتها افضل من اى شرح  )"]
[null,"- يوجد أيضا ورقة تسمى \" رصد \" لمتابعة العدد الذى تم رصده سواء درجات اعمال سنة او درجات نصف العام او درجات آخر العام و متابعة الغياب أيضا"]
[null,"- توجد العديد من الأوراق التي يسهل التعامل معها و لها العديد من المزايا يستحسن التعرف عليها بأنفسكم"]
[]
[]
[null,"المرحلة السابعة  :"]
[null,"بالنسبة للدور الثانى "]
[null,"1 - بعد عملية الترحيل لا نفعل اى شيء  في شيت الملاحق الا بعد امتحان الدور الثانى فقط نقوم بكتابة درجة امتحان الدور الثانى في الخلية التي تعلو مجموع درجة مادة الرسوب"]
[null,"2 - يوجد شيت لاستدعاة طلاب الدور الثانى كل مادة على حدة و المواد المشتركة بين الشعب دفعة واحدة و يتم ترقيم الجلوس و المقار يدويا "]
[null," لان الطالب الواحد قد يكون له اكثر من رقم جلوس في حال تعدد مواد تخلفه"]
[null,"حسب رؤية القائمين على الامر فالبعض يفضل ان يمتحن الطالب في الدور الثانى بنفس رقم جلوس الدور الأول"]
[null,"3 - توجد شيت مخصص لادراج درجات الدور الثانى يسمى مساعد إدارة - مساعد تسويق ........... وهكذا لكل شعبة"]
[null,"4 - في هذا الشيت نقوم بالضغط على زر استدعاء مواد الرسوب فيمتلئ الشيت ببيانات الطلاب و بياناتهم"]
[null,"5 - في هذا الشيت يتم تبديل الدرجة الجديدة بدلا من الدرجة القديمة و هكذا لباقى مواد الرسوب لجميع طلاب الشعبة"]
[null,"و نفس الدرجة الجديدة توضع فوق درجة مجموع المادة في شيت الملاحق لتظهر شكلا عند طبع شيت الملاحق ( كما اسلفت في رقم 1 )"]
[null,"6 - بعد الانتهاء من جميع عمليات الرصد نضغط زر نتيجة الدور الثانى فسيظهر الطلاب الناجحون من الطلاب الراسبون سواء لهم حق الإعادة ام لا"]
[null,"7 - الضغط على زر ترحيل النتيجة لتظهر النتائج في شيت الدور الثانى الذى سوف يتم طبعه "]
[null,"8 - توجد ورقة خاصة لشهادات الدور الثانى كما يوجد كشف خاص للطلاب الراسبون "]
[]
[null,null,"هذا و الله ولى التوفيق"]
[null,null,null,"مستعد لاى استفسار على منتدى اوفيسنا او منتدى اكاديمية الصقر"]
[null,null,null,null,"و السلام عليكم ورحمته و بركاته"]
[null,null,null,null,null,null,"اخيكم / إبراهيم الحداد"]

{"sheet":"اعدادات","index":2,"n_rows":13,"n_cols":30,"rows_kept":13,"cut":false,"hidden":false,"merged":[[4,1,7,1],[5,13,6,13],[5,14,6,14],[5,15,6,15],[5,16,6,16],[4,2,4,4],[7,2,7,3],[8,2,8,3],[5,28,6,28],[5,29,6,29],[4,15,4,22],[4,23,4,29],[5,17,6,17],[5,18,6,18],[5,19,6,19],[5,20,6,20],[5,21,6,21],[5,27,6,27],[5,22,6,22],[5,23,6,23],[5,24,6,24],[5,25,6,25],[5,26,6,26]]}
[null,null,null,null,null,null,null,null,null,null,null,null,null,617]
[]
[null,null,"الخطوة الأولى  :  اعداد معايير الفرز  ثم اجراء عملية الفرز",null,null,null,null,null,null,null,null,null,null,null,null,null,null,null,null,null,null,null,null,null,null,"2 -","بعد تعبئة الجدول اضغط الزر التالى"]
[null,"1 -","اختر معايير الفرز التي تريدها ثم اضغط الزر المخصص لذلك",null,null,null,null,null,null,null,null,null,"الخطوة الثانية  :",null,"1 - اضغط الزر التالى :"]
[null,"أسس الفرز"," معايير الفرز",null,null,null,null,null,null,null,null,null,null,null,null,"اعدادات الفترة الصباحية",null,null,null,null,null,null,null,"اعدادات الفترة المسائية"]
[null,null,"المعيار الأول  :",null,"بنين",null,null,null,null,null,null,null,null,"م","النوع","الفئة","الفترة","عدد الشريحة","اول رقم جلوس","آخر رقم جلوس","من لجنة","الى لجنة","عدد اللجان","الفترة","عدد الشريحة","اول رقم جلوس","آخر رقم جلوس","من لجنة","الى لجنة","عدد اللجان"]
[null,null,"المعيار الثانى :",null,"دمج"]
[null,null,"العـــدد  :",null,120,null,null,null,null,null,null,null,null,1,"بنات","دمج","صباحى",null,null,{"$f":"IF(AND(R8>0,S8>0),R8+S8-1,\"\")","v":""},{"$f":"IF(W8>0,1,\"\")","v":""},{"$f":"IF(W8>0,SUM($W$8:W8),\"\")","v":""},null,"مسائى",null,null,{"$f":"IF(AND(Y8>0,Z8>0),Y8+Z8-1,\"\")","v":""},{"$f":"IF(AD8>0,1,\"\")","v":""},{"$f":"IF(AD8>0,SUM(AD8:$AD$8),\"\")","v":""}]
[null,null,"العــدد الكلى :",null,null,null,null,null,null,null,null,null,null,2,"بنين","دمج","صباحى",null,null,{"$f":"IF(AND(R9>0,S9>0),R9+S9-1,\"\")","v":""},{"$f":"IF(W9>0,SUM($W$8:W8)+1,\"\")","v":""},{"$f":"IF(W9>0,SUM($W$8:W9),\"\")","v":""},null,"مسائى",null,null,{"$f":"IF(AND(Y9>0,Z9>0),Y9+Z9-1,\"\")","v":""},{"$f":"IF(AD9>0,SUM(AD8:$AD$8)+1,\"\")","v":""},{"$f":"IF(AD9>0,SUM(AD$8:$AD9),\"\")","v":""}]
[null,null,null,null,null,null,null,null,null,null,null,null,null,3,null,null,null,0,null,"",{"$f":"IF(W10>0,SUM($W$8:W9)+1,\"\")","v":""},{"$f":"IF(W10>0,SUM($W$8:W10),\"\")","v":""},null,null,null,null,"",{"$f":"IF(AD10>0,SUM(AD$8:$AD9)+1,\"\")","v":""},{"$f":"IF(AD10>0,SUM(AD$8:$AD10),\"\")","v":""}]
[null,null,"2 -","قم بتعبئة خلية الصباحى ثم اضغط الزر التالى :",null,null,null,null,null,null,null,null,null,4,null,null,null,0,null,"",{"$f":"IF(W11>0,SUM($W$8:W10)+1,\"\")","v":""},{"$f":"IF(W11>0,SUM($W$8:W11),\"\")","v":""},null,null,null,null,"",{"$f":"IF(AD11>0,SUM(AD$8:$AD10)+1,\"\")","v":""},{"$f":"IF(AD11>0,SUM(AD$8:$AD11),\"\")","v":""}]
[null,null,null,null,"اجمالى","صباحى","مسائى"]
[null,null,null,null,null,null,{"$f":"IF(E13=\"\",\"\",E13-F13)","v":""},null,null,null,null,null,null,null,null,null,"وهكذا ينتهى العمل بهذه الورقة  و يجب اخفائها نهائيا لان التعامل معها مرة أخرى سيلزمكم إعادة الخطوات من جديد"]

{"sheet":"اعدادات اللجان","index":3,"n_rows":56,"n_cols":20,"rows_kept":56,"cut":false,"hidden":false,"merged":[[1,7,2,16],[4,4,4,9],[4,13,4,18],[0,0,4,1],[2,3,2,4],[2,18,2,19]]}
["حتى يتسنى لك الاستفادة من مميزات هذه الورقة ( آليا ) لابد من استيفاء جميع الخطوات في كل من الشيت العام  و ورقة الاعدادات او الاستخدام اليدوى فقط"]
[null,null,"اختر نوع التوزيع للفترة",null,null,null,null,"اعداد و توزيع اللجان على الفترتين",null,null,null,null,null,null,null,null,null,"اختر نوع التوزيع للفترة"]
[null,null,null,"توزيع آلى",null,null,null,null,null,null,null,null,null,null,null,null,null,null,"توزيع آلى"]
[]
[null,null,null,null,"لجان الفترة الصباحية",null,null,null,null,null,null,null,null,"لجان الفترة المسائية"]
[null,null,null,"لجنة","من","الى","العدد","الشعبة","النوع","القئة","لجان صباحى",null,"لجنة","من","الى","العدد","الصف","النوع","القئة","لجان صباحى"]
[null,null,null,1,null,null,null,null,null,null,"1/3",null,1,null,null,null,null,null,null,"11/2"]
[null,null,null,2,null,null,null,null,null,null,"2/3",null,2,null,null,null,null,null,null,"12/2"]
[null,null,null,3,null,null,null,null,null,null,"3/3",null,3,null,null,null,null,null,null,"1/1"]
[null,null,null,4,null,null,null,null,null,null,"4/3",null,4,null,null,null,null,null,null,"2/1"]
[null,null,null,5,null,null,null,null,null,null,"5/3",null,5,null,null,null,null,null,null,"3/1"]
[null,null,null,6,null,null,null,null,null,null,"6/3",null,6,null,null,null,null,null,null,"4/1"]
[null,null,null,7,null,null,null,null,null,null,"7/3",null,7,null,null,null,null,null,null,"5/1"]
[null,null,null,8,null,null,null,null,null,null,"8/3",null,8,null,null,null,null,null,null,"6/1"]
[null,null,null,9,null,null,null,null,null,null,"9/3",null,9,null,null,null,null,null,null,"7/1"]
[null,null,null,10,null,null,null,null,null,null,"10/3",null,10,null,null,null,null,null,null,"8/1"]
[null,null,null,11,null,null,null,null,null,null,"1/2",null,11,null,null,null,null,null,null,"9/1"]
[null,null,null,12,null,null,null,null,null,null,"2/2",null,12,null,null,null,null,null,null,"10/1"]
[null,null,null,13,null,null,null,null,null,null,"3/2",null,13]
[null,null,null,14,null,null,null,null,null,null,"4/2",null,14]
[null,null,null,15,null,null,null,null,null,null,"5/2",null,15]
[null,null,null,16,null,null,null,null,null,null,"6/2",null,16]
[null,null,null,17,null,null,null,null,null,null,"7/2",null,17]
[null,null,null,18,null,null,null,null,null,null,"8/2",null,18]
[null,null,null,19,null,null,null,null,null,null,"9/2",null,19]
[null,null,null,20,null,null,null,null,null,null,"10/2",null,20]
[null,null,null,21,null,null,null,null,null,null,null,null,21]
[null,null,null,22,null,null,null,null,null,null,null,null,22]
[null,null,null,23,null,null,null,null,null,null,null,null,23]
[null,null,null,24,null,null,null,null,null,null,null,null,24]
[null,null,null,25,null,null,null,null,null,null,null,null,25]
[null,null,null,26,null,null,null,null,null,null,null,null,26]
[null,null,null,27,null,null,null,null,null,null,null,null,27]
[null,null,null,28,null,null,null,null,null,null,null,null,28]
[null,null,null,29,null,null,null,null,null,null,null,null,29]
[null,null,null,30,null,null,null,null,null,null,null,null,30]
[null,null,null,31,null,null,null,null,null,null,null,null,31]
[null,null,null,32,null,null,null,null,null,null,null,null,32]
[null,null,null,33,null,null,null,null,null,null,null,null,33]
[null,null,null,34,null,null,null,null,null,null,null,null,34]
[null,null,null,35,null,null,null,null,null,null,null,null,35]
[null,null,null,36,null,null,null,null,null,null,null,null,36]
[null,null,null,37,null,null,null,null,null,null,null,null,37]
[null,null,null,38,null,null,null,null,null,null,null,null,38]
[null,null,null,39,null,null,null,null,null,null,null,null,39]
[null,null,null,40,null,null,null,null,null,null,null,null,40]
[null,null,null,41,null,null,null,null,null,null,null,null,41]
[null,null,null,42,null,null,null,null,null,null,null,null,42]
[null,null,null,43,null,null,null,null,null,null,null,null,43]
[null,null,null,44,null,null,null,null,null,null,null,null,44]
[null,null,null,45,null,null,null,null,null,null,null,null,45]
[null,null,null,46,null,null,null,null,null,null,null,null,46]
[null,null,null,47,null,null,null,null,null,null,null,null,47]
[null,null,null,48,null,null,null,null,null,null,null,null,48]
[null,null,null,49,null,null,null,null,null,null,null,null,49]
[null,null,null,50,null,null,null,null,null,null,null,null,50]

{"sheet":"لجان","index":4,"n_rows":35,"n_cols":16,"rows_kept":35,"cut":false,"hidden":false,"merged":[]}
[null,null,{"$f":"\" ادارة  \"&الرئيسية!$C$2","v":" ادارة  …...................."},null,null,"لجنة :",1,null,{"$f":"\" ادارة  \"&الرئيسية!$C$2","v":" ادارة  …...................."},null,null,"لجنة :",{"$f":"$G$1+1","v":2}]
[null,null,{"$f":"\"مدرسة  \"& الرئيسية!$C$3","v":"مدرسة  …...................."},null,null,"المقر :","",null,{"$f":"\"مدرسة  \"& الرئيسية!$C$3","v":"مدرسة  …...................."},null,null,"المقر :",""]
[null,null," الصف الأول -",null,null,"شعبة عامة",null,null," الصف الأول -",null,null,"شعبة عامة"]
[null,null,"من :",null,null,"الى :",null,null,"من :",null,null,"الى :"]
[null,null,"العدد :",null,{"$f":"\" للعام الدراسى\"&الرئيسية!$K$2","v":" للعام الدراسى 2019 / 2020"},"الفترة :",null,null,"العدد :",null,{"$f":"\" للعام الدراسى\"&الرئيسية!$K$2","v":" للعام الدراسى 2019 / 2020"},"الفترة :",null,null,null,"الفترة"]
[null,null,"م","جلوس","اسم الطالبة","الفصل","ملاحظات",null,"م","جلوس","اسم الطالبة","الفصل","ملاحظات",null,null,"صباحى"]
[]
[]
[]
[]
[]
[]
[]
[]
[]
[]
[]
[]
[]
[]
[]
[]
[]
[]
[]
[]
[]
[]
[]
[]
[]
[]
[]
[]
[null,null,"كنترول الصف الثانى",null,null,"رئيس الكنترول",null,null,"كنترول الصف الثانى",null,null,"رئيس الكنترول"]

{"sheet":"جلوس","index":5,"n_rows":32,"n_cols":18,"rows_kept":32,"cut":false,"hidden":false,"merged":[[30,3,30,5],[30,10,30,12],[15,3,15,5],[15,10,15,12],[20,3,20,5],[20,10,20,12],[25,3,25,5],[25,10,25,12],[1,9,1,10],[5,3,5,5],[5,10,5,12],[10,3,10,5],[10,10,10,12]]}
[null,null,"مدرسة كوم امبو التجارية بنات",null,null,null,null,null,null,null,null,null,null,51,null,"الورقة رقم  :",null,1]
[null,null,null,null,null,null,"ارقام جلوس الصف الاول  :",null,null,{"$f":"الرئيسية!$K$2","v":" 2019 / 2020"}]
[]
[null,null,"اخطار رقم جلوس",null,null,null,null,null,null,"اخطار رقم جلوس"]
[null,null,{"$f":"\"مدرسة  \"& الرئيسية!$C$3","v":"مدرسة  …...................."},null,null,null,"رقم الجلوس /",null,null,{"$f":"\"مدرسة  \"& الرئيسية!$C$3","v":"مدرسة  …...................."},null,null,null,"رقم الجلوس /"]
[null,null,"الاسم /",null,null,null,"رقم اللجنة /",null,null,"الاسم /",null,null,null,"رقم اللجنة /"]
[null,null,"الفصل /",null,null,null,"مقر اللجنة :",null,null,"الفصل /",null,null,null,"مقر اللجنة :"]
[]
[null,null,"اخطار رقم جلوس",null,null,null,null,null,null,"اخطار رقم جلوس"]
[null,null,{"$f":"\"مدرسة  \"& الرئيسية!$C$3","v":"مدرسة  …...................."},null,null,null,"رقم الجلوس /",null,null,{"$f":"\"مدرسة  \"& الرئيسية!$C$3","v":"مدرسة  …...................."},null,null,null,"رقم الجلوس /"]
[null,null,"الاسم /",null,null,null,"رقم اللجنة /",null,null,"الاسم /",null,null,null,"رقم اللجنة /"]
[null,null,"الفصل /",null,null,null,"مقر اللجنة :",null,null,"الفصل /",null,null,null,"مقر اللجنة :",null,null," "]
[]
[null,null,"اخطار رقم جلوس",null,null,null,null,null,null,"اخطار رقم جلوس"]
[null,null,{"$f":"\"مدرسة  \"& الرئيسية!$C$3","v":"مدرسة  …...................."},null,null,null,"رقم الجلوس /",null,null,{"$f":"\"مدرسة  \"& الرئيسية!$C$3","v":"مدرسة  …...................."},null,null,null,"رقم الجلوس /"]
[null,null,"الاسم /",null,null,null,"رقم اللجنة /",null,null,"الاسم /",null,null,null,"رقم اللجنة /"]
[null,null,"الفصل /",null,null,null,"مقر اللجنة :",null,null,"الفصل /",null,null,null,"مقر اللجنة :"]
[]
[null,null,"اخطار رقم جلوس",null,null,null,null,null,null,"اخطار رقم جلوس"]
[null,null,{"$f":"\"مدرسة  \"& الرئيسية!$C$3","v":"مدرسة  …...................."},null,null,null,"رقم الجلوس /",null,null,{"$f":"\"مدرسة  \"& الرئيسية!$C$3","v":"مدرسة  …...................."},null,null,null,"رقم الجلوس /"]
[null,null,"الاسم /",null,null,null,"رقم اللجنة /",null,null,"الاسم /",null,null,null,"رقم اللجنة /"]
[null,null,"الفصل /",null,null,null,"مقر اللجنة :",null,null,"الفصل /",null,null,null,"مقر اللجنة :"]
[]
[null,null,"اخطار رقم جلوس",null,null,null,null,null,null,"اخطار رقم جلوس"]
[null,null,{"$f":"\"مدرسة  \"& الرئيسية!$C$3","v":"مدرسة  …...................."},null,null,null,"رقم الجلوس /",null,null,{"$f":"\"مدرسة  \"& الرئيسية!$C$3","v":"مدرسة  …...................."},null,null,null,"رقم الجلوس /"]
[null,null,"الاسم /",null,null,null,"رقم اللجنة /",null,null,"الاسم /",null,null,null,"رقم اللجنة /"]
[null,null,"الفصل /",null,null,null,"مقر اللجنة :",null,null,"الفصل /",null,null,null,"مقر اللجنة :"]
[]
[null,null,"اخطار رقم جلوس",null,null,null,null,null,null,"اخطار رقم جلوس"]
[null,null,{"$f":"\"مدرسة  \"& الرئيسية!$C$3","v":"مدرسة  …...................."},null,null,null,"رقم الجلوس /",null,null,{"$f":"\"مدرسة  \"& الرئيسية!$C$3","v":"مدرسة  …...................."},null,null,null,"رقم الجلوس /"]
[null,null,"الاسم /",null,null,null,"رقم اللجنة /",null,null,"الاسم /",null,null,null,"رقم اللجنة /"]
[null,null,"الفصل /",null,null,null,"مقر اللجنة :",null,null,"الفصل /",null,null,null,"مقر اللجنة :"]

{"sheet":"لجان ملاحق","index":6,"n_rows":36,"n_cols":61,"rows_kept":36,"cut":false,"hidden":false,"merged":[[3,10,4,10],[3,9,4,9],[3,5,4,5],[3,6,4,6],[3,7,4,7],[3,8,4,8],[0,12,0,15],[1,13,1,14],[2,26,2,27],[2,32,2,33],[3,12,3,14]]}
[false,null,null,null,null,null,null,"اعدادات اللجان",null,null,null,null,"اختر المادة من القائمة اسفله",null,null,null,null,null,null,null,null,null,null,"ادارة ",{"$f":"[1]الرئيسية!$E1","v":"….................."},null,"لجنة رقم :",1,null,"ادارة",{"$f":"[1]الرئيسية!$E1","v":"….................."},null,"لجنة رقم :",{"$f":"IF($AB$1=\"\",\"\",$AB$1+1)","v":2},null,null,null,null,null,null,null,null,null,null,null,null,null,null,null,null,null,null,null,null,null,null,null,null,null,null,"لغة عربية"]
[null,null,null,null,null,null,"الاعداد لامتحان الدور الثانى كل مادة على حدة",null,null,null,"أولا   :","مــادة التخلف :",null,"لغة انجليزية",null,null,null,null,null,null,null,null,null,"مدرسة ",{"$f":"[1]الرئيسية!$E2","v":"….................."},null,"المقر :","",null,"مدرسة",{"$f":"[1]الرئيسية!$E2","v":"….................."},null,"المقر :","",null,null,null,null,null,null,null,null,null,null,null,null,null,null,null,null,null,null,null,null,null,null,null,null,null,null,"لغة انجليزية"]
[null,null,null,null,null,null,null,null,null,null,"ثانيا  :",null,null,null,null,null,null,null,null,null,null,null,null,"الصف الاول -",null,null,null,null,null,"الصف الاول -",null,null,null,null,null,null,null,null,null,null,null,null,null,null,null,null,null,null,null,null,null,null,null,null,null,null,null,null,null,null,"لغة فرنسية"]
[null,null,null,null,null,"م","رقم الجلوس","اسم الطلب","الشعبة","الديانة","النوع","ثالثا  :","توضع قبل كل امتحان يدويا",null,null,null,null,null,null,null,null,null,null,"من :",null,null,"الى :",null,null,"من :",null,null,"الى :",null,null,null,null,null,null,null,null,null,null,null,null,null,null,null,null,null,null,null,null,null,null,null,null,null,null,null,"رياضة عامة"]
[null,null,null,null,null,null,null,null,null,null,null,"الفئة","الجلوس الجديد","رقم اللجنة","مقر اللجنة",null,null,null,null,null,null,null,null,"العدد :",null,null,{"$f":"\"للعام الدراسى\"&\" \"&الرئيسية!$K$2","v":"للعام الدراسى  2019 / 2020"},null,null,"العدد :",null,null,{"$f":"\"للعام الدراسى\"&\" \"&الرئيسية!$K$2","v":"للعام الدراسى  2019 / 2020"},null,null,null,null,null,null,null,null,null,null,null,null,null,null,null,null,null,null,null,null,null,null,null,null,null,null,null,"حاسب ألى"]
[null,null,null,null,null,null,null,null,null,null,null,null,null,null,null,null,null,null,null,null,null,null,null,"مسلسل","جلوس","الاســـــــــــــــــــــــم","الشعبة","ملاحظات",null,"مسلسل","جلوس","الاســـــــــــــــــــــــم","الشعبة","ملاحظات",null,"رابعا  : عرض اللجان",null,null,null,null,null,null,null,null,null,null,null,null,null,null,null,null,null,null,null,null,null,null,null,null,"اقتصاد"]
[null,null,null,null,null,null,null,null,null,null,null,null,null,null,null,null,null,null,null,null,null,null,null,null,null,null,null,null,null,null,null,null,null,null,null,null,null,null,null,null,null,null,null,null,null,null,null,null,null,null,null,null,null,null,null,null,null,null,null,null,"سكرتارية عربية"]
[null,null,null,null,null,null,null,null,null,null,null,null,null,null,null,null,null,null,null,null,null,null,null,null,null,null,null,null,null,null,null,null,null,null,null,null,null,null,null,null,null,null,null,null,null,null,null,null,null,null,null,null,null,null,null,null,null,null,null,null,"سكرتارية اجنبية"]
[null,null,null,null,null,null,null,null,null,null,null,null,null,null,null,null,null,null,null,null,null,null,null,null,null,null,null,null,null,null,null,null,null,null,null,null,null,null,null,null,null,null,null,null,null,null,null,null,null,null,null,null,null,null,null,null,null,null,null,null,"ادارة اعمال"]
[null,null,null,null,null,null,null,null,null,null,null,null,null,null,null,null,null,null,null,null,null,null,null,null,null,null,null,null,null,null,null,null,null,null,null,null,null,null,null,null,null,null,null,null,null,null,null,null,null,null,null,null,null,null,null,null,null,null,null,null,"محاسبة مالية"]
[null,null,null,null,null,null,null,null,null,null,null,null,null,null,null,null,null,null,null,null,null,null,null,null,null,null,null,null,null,null,null,null,null,null,null,null,null,null,null,null,null,null,null,null,null,null,null,null,null,null,null,null,null,null,null,null,null,null,null,null,"تسويق"]
[null,null,null,null,null,null,null,null,null,null,null,null,null,null,null,null,null,null,null,null,null,null,null,null,null,null,null,null,null,null,null,null,null,null,null,null,null,null,null,null,null,null,null,null,null,null,null,null,null,null,null,null,null,null,null,null,null,null,null,null,"قانون تجارى"]
[null,null,null,null,null,null,null,null,null,null,null,null,null,null,null,null,null,null,null,null,null,null,null,null,null,null,null,null,null,null,null,null,null,null,null,null,null,null,null,null,null,null,null,null,null,null,null,null,null,null,null,null,null,null,null,null,null,null,null,null,"جغرافيا"]
[null,null,null,null,null,null,null,null,null,null,null,null,null,null,null,null,null,null,null,null,null,null,null,null,null,null,null,null,null,null,null,null,null,null,null,null,null,null,null,null,null,null,null,null,null,null,null,null,null,null,null,null,null,null,null,null,null,null,null,null,"مجموع كلى"]
[null,null,null,null,null,null,null,null,null,null,null,null,null,null,null,null,null,null,null,null,null,null,null,null,null,null,null,null,null,null,null,null,null,null,null,null,null,null,null,null,null,null,null,null,null,null,null,null,null,null,null,null,null,null,null,null,null,null,null,null,"تربية دينية"]
[null,null,null,null,null,null,null,null,null,null,null,null,null,null,null,null,null,null,null,null,null,null,null,null,null,null,null,null,null,null,null,null,null,null,null,null,null,null,null,null,null,null,null,null,null,null,null,null,null,null,null,null,null,null,null,null,null,null,null,null,"تربية وطنية"]
[]
[]
[]
[]
[]
[]
[]
[]
[]
[]
[]
[]
[]
[]
[]
[]
[]
[]
[]
[null,null,null,null,null,null,null,null,null,null,null,null,null,null,null,null,null,null,null,null,null,null,null,"كنترول الصف الثانى",null,null,"رئيس الكنترول",null,null,"كنترول الصف الثانى",null,null,"رئيس الكنترول"]

{"sheet":"رفع","index":7,"n_rows":23,"n_cols":34,"rows_kept":23,"cut":false,"hidden":false,"merged":[[4,7,5,7],[4,0,5,1],[4,3,5,3],[4,4,5,4],[4,5,5,5],[4,6,5,6],[1,32,2,33],[4,32,5,32],[4,33,5,33],[0,14,0,15],[1,10,1,11],[2,10,2,11]]}
[null,null,"خاص برفع دراجات مواد الصف الاول",null,null,null,null,null,null,null,"معايير البحث",null,null,null,"عدد الاوراق"]
[null,null,null,null,null,null,null,null,null,null," اختر المادة        :",null,"لغة انجليزية ",null,{"$f":"MAX(D7:D23)","v":0},"ورقــــة",null,null,null,null,null,null,null,null,null,null,null,null,null,null,null,null,"المواد"]
[null,null,null,null,null,null,null,null,null,null,"الدرجة المطلوب رفعها  :",null,3]
[null,null,null,"بيانات الأوراق المحتاجة الى الرفع"]
["ملحوظة : \nيمكنك إخفاء عمود رقم الجلوس ان  كان\nهذا من ضروريات السرية التامة",null,null,"مسلسل","رقم الجلوس","رقم سرى","الدرجة","عدد مواد الرسوب",null,null,null,null,null,null,null,null,null,null,null,null,null,null,null,null,null,null,null,null,null,null,null,null,"المواد","عمود المادة"]
[]
[null,null,null,null,null,null,null,null,null,null,null,null,null,null,null,null,null,null,null,null,null,null,null,null,null,null,null,null,null,null,null,null,"لغة عربية ",17]
[null,null,null,null,null,null,null,null,null,null,null,null,null,null,null,null,null,null,null,null,null,null,null,null,null,null,null,null,null,null,null,null,"لغة انجليزية ",21]
[null,null,null,null,null,null,null,null,null,null,null,null,null,null,null,null,null,null,null,null,null,null,null,null,null,null,null,null,null,null,null,null,"لغة فرنسية",25]
[null,null,null,null,null,null,null,null,null,null,null,null,null,null,null,null,null,null,null,null,null,null,null,null,null,null,null,null,null,null,null,null,"رياضة عامة ",29]
[null,null,null,null,null,null,null,null,null,null,null,null,null,null,null,null,null,null,null,null,null,null,null,null,null,null,null,null,null,null,null,null,"حاسب ألى  تحريرى",36]
[null,null,null,null,null,null,null,null,null,null,null,null,null,null,null,null,null,null,null,null,null,null,null,null,null,null,null,null,null,null,null,null,"حاسب ألى  عملى",37]
[null,null,null,null,null,null,null,null,null,null,null,null,null,null,null,null,null,null,null,null,null,null,null,null,null,null,null,null,null,null,null,null,"اقتصاد",42]
[null,null,null,null,null,null,null,null,null,null,null,null,null,null,null,null,null,null,null,null,null,null,null,null,null,null,null,null,null,null,null,null,"سكرتارية عربية",46]
[null,null,null,null,null,null,null,null,null,null,null,null,null,null,null,null,null,null,null,null,null,null,null,null,null,null,null,null,null,null,null,null,"سكرتارية اجنبية",50]
[null,null,null,null,null,null,null,null,null,null,null,null,null,null,null,null,null,null,null,null,null,null,null,null,null,null,null,null,null,null,null,null,"ادارة اعمال",54]
[null,null,null,null,null,null,null,null,null,null,null,null,null,null,null,null,null,null,null,null,null,null,null,null,null,null,null,null,null,null,null,null,"محاسبة مالية ",58]
[null,null,null,null,null,null,null,null,null,null,null,null,null,null,null,null,null,null,null,null,null,null,null,null,null,null,null,null,null,null,null,null,"تسويق",62]
[null,null,null,null,null,null,null,null,null,null,null,null,null,null,null,null,null,null,null,null,null,null,null,null,null,null,null,null,null,null,null,null,"قانون تجارى",66]
[null,null,null,null,null,null,null,null,null,null,null,null,null,null,null,null,null,null,null,null,null,null,null,null,null,null,null,null,null,null,null,null,"جغرافيا",70]
[null,null,null,null,null,null,null,null,null,null,null,null,null,null,null,null,null,null,null,null,null,null,null,null,null,null,null,null,null,null,null,null,"تربية دينية",76]
[null,null,null,null,null,null,null,null,null,null,null,null,null,null,null,null,null,null,null,null,null,null,null,null,null,null,null,null,null,null,null,null,"تربية قومية",80]
[null,null,null,null,null,null,null,null,null,null,null,null,null,null,null,null,null,null,null,null,null,null,null,null,null,null,null,null,null,null,null,null,"مجموع",72]

{"sheet":"شيت","index":8,"n_rows":702,"n_cols":108,"rows_kept":702,"cut":false,"hidden":false,"merged":[[7,106,8,106],[7,107,8,107],[4,106,6,106],[4,107,6,107],[5,39,6,39],[4,83,8,83],[4,84,8,84],[5,2,8,2],[4,1,4,11],[5,1,8,1],[5,3,8,3],[5,4,8,4],[5,7,8,7],[5,8,8,8],[5,9,8,9],[5,10,8,10],[5,11,8,11],[5,41,6,41],[5,76,6,76],[5,77,6,77],[5,78,6,78],[5,79,6,79],[5,74,6,74],[5,75,6,75],[4,70,6,70],[4,66,4,69],[4,62,4,65],[4,58,4,61],[5,60,6,60],[5,61,6,61],[5,62,6,62],[5,65,6,65],[5,64,6,64],[5,66,6,66],[5,67,6,67],[5,68,6,68],[5,69,6,69],[5,63,6,63],[5,29,6,29],[5,30,6,30],[5,31,6,31],[5,32,6,32],[5,47,6,47],[5,25,6,25],[5,26,6,26],[5,54,6,54],[5,55,6,55],[5,45,6,45],[5,46,6,46],[5,27,6,27],[5,28,6,28],[5,48,6,48],[5,49,6,49],[5,50,6,50],[5,51,6,51],[5,52,6,52],[5,53,6,53],[5,33,5,34],[5,35,5,36],[5,37,5,38],[5,40,6,40],[4,105,8,105],[4,90,8,90],[4,91,8,91],[4,92,8,92],[4,100,8,100],[4,97,8,97],[4,98,8,98],[4,71,6,71],[4,76,4,79],[4,72,4,75],[4,80,8,80],[4,81,8,81],[4,82,8,82],[5,72,6,72],[4,104,8,104],[4,96,8,96],[4,101,8,101],[4,99,8,99],[4,102,8,102],[4,94,8,94],[4,93,8,93],[4,95,8,95],[4,103,8,103],[5,73,6,73],[4,0,8,0],[4,12,6,12],[4,13,4,16],[5,13,6,13],[5,14,6,14],[5,15,6,15],[5,16,6,16],[5,23,6,23],[5,24,6,24],[5,6,7,6],[5,5,8,5],[1,56,1,61],[1,50,1,55],[5,17,6,17],[5,18,6,18],[5,19,6,19],[5,20,6,20],[5,21,6,21],[5,22,6,22],[5,42,6,42],[5,43,6,43],[5,44,6,44],[4,42,4,45],[4,54,4,57],[5,56,6,56],[5,57,6,57],[5,58,6,58],[5,59,6,59],[4,17,4,20],[4,21,4,24],[4,29,4,32],[4,46,4,49],[4,50,4,53],[4,25,4,28],[4,33,4,41]]}
[null,null,null,null,null,null,null,null,null,null,null,null,null,null,{"$f":"الرئيسية!$B$2&\"\"&الرئيسية!$C$2","v":"ادارة  …...................."},null,null,null,null,null,null,null,null,null,null,null,null,null,null,null,null,null,null,null,null,null,null,null,null,null,null,null,null,null,null,null,null,null,null,null,9.1]
[null,null,null,null,null,null,null,null,null,null,null,null,null,null,{"$f":"الرئيسية!$B$3&\" \"&الرئيسية!$C$3","v":"مدرسة …...................."},null,null,null,null,null,null,null,null,null,null,null,null,null,null,null,null,null,null,null,null,null,null,null,null,null,null,null,null,null,null,null,null,null,null,null,"للعام الدراسى ",null,null,null,null,null,{"$f":"الرئيسية!$K$2","v":" 2019 / 2020"}]
[]
[]
["مسلسل","بيانات أساسية",null,null,null,null,null,null,null,null,null,null,"سرى","لغة عربية",null,null,null,"لغة انجليزية",null,null,null,"لغة فرنسية",null,null,null,"جغرافيا",null,null,null,"رياضة عامة",null,null,null,"حاسب آلى",null,null,null,null,null,null,null,null,"اقتصاد",null,null,null,"سكرتارية عربية",null,null,null,"سكرتارية اجنبية",null,null,null,"ادارة اعمال",null,null,null,"محاسبة مالية",null,null,null,"تسويق",null,null,null,"قانون تجارى",null,null,null,"مجموع نصف العام","مجموع كلى","تربية دينية",null,null,null,"تربية قومية",null,null,null,"النتيجة","مواد الرسوب","عدد المواد","رقم اللجنة","مقر اللجنة",null,null,null,null,null,"لغة عربية","لغة انجليزية","لغة فرنسية","جغرافيا","رياضة عامة","حاسب ألى","اقتصاد","سكرتارية عربية","سكرتارية اجنبية","ادارة اعمال","محاسبة مالية","تسويق","قانون تجارى","مجموع كلى","تربية دينية","تربية وطنية","مواد لا تستوجب الرسوب","مواد الرسوب"]
[null,"جلوس","اسم الطالب","الفصل","الرقم القومى","تاريخ ميلاد الطالب"," سن الطالب في","الديانة","النوع","الفئة","الفترة","الحــــالة",null,"اعمال السنة","نصف العام","آخر العام","المجموع","اعمال السنة","نصف العام","آخر العام","المجموع","اعمال السنة","نصف العام","آخر العام","المجموع","اعمال السنة","نصف العام","آخر العام","المجموع","اعمال السنة","نصف العام","آخر العام","المجموع","اعمال السنة",null,"نصف العام",null,"آخر العام",null,"مج تحريرى"," مج عملى","مج حاسب","اعمال السنة","نصف العام","آخر العام","المجموع","اعمال السنة","نصف العام","آخر العام","المجموع","اعمال السنة","نصف العام","آخر العام","المجموع","اعمال السنة","نصف العام","آخر العام","المجموع","اعمال السنة","نصف العام","آخر العام","المجموع","اعمال السنة","نصف العام","آخر العام","المجموع","اعمال السنة","نصف العام","آخر العام","المجموع",null,null,"اعمال السنة","نصف العام","آخر العام","المجموع","اعمال السنة","نصف العام","آخر العام","المجموع"]
[null,null,null,null,null,null,null,null,null,null,null,null,null,null,null,null,null,null,null,null,null,null,null,null,null,null,null,null,null,null,null,null,null,"تحريرى","عملى","تحريرى","عملى","تحريرى","عملى"]
[null,null,null,null,null,null,null,null,null,null,null,null,"عظمى",10,20,20,50,10,20,20,50,6,12,12,30,8,16,16,40,6,12,12,30,6,4,12,8,12,8,30,20,50,10,20,20,50,10,20,20,50,10,20,20,50,10,20,20,50,10,20,20,50,10,20,20,50,10,20,20,50,240,600,4,8,8,20,4,8,8,20,null,null,null,null,null,null,null,null,null,null,null,null,null,null,null,null,null,null,null,null,null,null,null,null,null,null,"دين و وطنية","باقى المواد"]
[null,null,null,null,null,null,{"$f":"الرئيسية!$E$9","v":"2021-10-01"},null,null,null,null,null,"صغرى",0,0,5,25,0,0,5,25,0,0,3,9,0,0,4,20,0,0,3,15,0,0,0,0,3,2,15,10,25,0,0,5,25,0,0,5,20,0,0,5,25,0,0,5,25,0,0,5,25,0,0,5,25,0,0,5,25,0,300,0,0,2,10,0,0,2,10]
[null,null,null,null,null,null,null,null,null,null,null,null,null,null,null,null,{"$f":"IF(P10=\"غ\",\"غ\",SUM(N10,O10,P10))","v":0},null,null,null,{"$f":"IF(T10=\"غ\",\"غ\",SUM(R10,S10,T10))","v":0},null,null,null,{"$f":"IF(X10=\"غ\",\"غ\",SUM(V10,W10,X10))","v":0},null,null,null,{"$f":"IF(AB10=\"غ\",\"غ\",SUM(Z10,AA10,AB10))","v":0},null,null,null,{"$f":"IF(AF10=\"غ\",\"غ\",SUM(AD10,AE10,AF10))","v":0},null,null,null,null,null,null,{"$f":"IF(AL10=\"غ\",\"غ\",SUM(AH10,AJ10,AL10))","v":0},{"$f":"IF(AM10=\"غ\",\"غ\",SUM(AI10,AK10,AM10))","v":0},{"$f":"IF(OR(AN10=\"غ\",AO10=\"غ\"),\"غ\",SUM(AN10,AO10))","v":0},null,null,null,{"$f":"IF(AS10=\"غ\",\"غ\",SUM(AQ10,AR10,AS10))","v":0},null,null,null,{"$f":"IF(AW10=\"غ\",\"غ\",SUM(AU10,AV10,AW10))","v":0},null,null,null,{"$f":"IF(BA10=\"غ\",\"غ\",SUM(AY10,AZ10,BA10))","v":0},null,null,null,{"$f":"IF(BE10=\"غ\",\"غ\",SUM(BC10,BD10,BE10))","v":0},null,null,null,{"$f":"IF(BI10=\"غ\",\"غ\",SUM(BG10,BH10,BI10))","v":0},null,null,null,{"$f":"IF(BM10=\"غ\",\"غ\",SUM(BK10,BL10,BM10))","v":0},null,null,null,{"$f":"IF(BQ10=\"غ\",\"غ\",SUM(BO10,BP10,BQ10))","v":0},{"$f":"IF(C10=\"\",\"\",SUM(O10,S10,W10,AE10,AR10,AV10,AZ10,BD10,BH10,BL10,BP10,AA10,AJ10,AK10))","v":""},{"$f":"SUM(Q10,U10,Y10,AG10,AT10,AX10,BB10,BF10,BJ10,BN10,BR10,AC10,AP10)","v":0},null,null,null,{"$f":"IF(BW10=\"غ\",\"غ\",SUM(BU10,BV10,BW10))","v":0},null,null,null,{"$f":"IF(CA10=\"غ\",\"غ\",SUM(BY10,BZ10,CA10))","v":0},{"$f":"IF(I10=\"\",\"\",IF(I10=\"بنات\",IF(CE10=0,\"ناجحة\",IF(DD10>2,\"راسبة\",\"دورثان\")),IF(I10=\"بنين\",IF(CE10=0,\"ناجح\",IF(DD10>2,\"راسب\",\"دورثان\")))))","v":""},{"$f":"IF(C10=\"\",\"\",IF(AND($L10=\"باقية\",$CC10=\"راسبة\"),\"وليس لها حق الاعادة\",IF(AND($L10<>\"باقية\",$CC10=\"راسبة\"),\"و  لها حق الاعادة\",IF(AND($L10=\"باقى\",$CC10=\"راسب\"),\"وليس له حق الاعادة\",IF(AND($L10<>\"باقى\",$CC10=\"راسب\"),\"و  له حق الاعادة\",IF($CC10=\"ناجحة\",\"و منقولة للصف الثانى\",IF($CC10=\"ناجح\",\"و منقول للصف الثانى\",IF($CC10=\"دورثان\",\"فى : \"&CONCATENATE($CM10,$CN10,$CO10,$CQ10,$CR10,$CS10,$CT10,$CU10,$CV10,$CW10,$CX10,$CY10,$CP10,$CZ10,$DA10,$DB10)))))))))","v":""},{"$f":"IF(C10=\"\",\"\",$DC10+$DD10)","v":""},null,null,null,null,null,null,null,{"$f":"IF(C10=\"\",\"\",IF(OR(P10<$P$9,P10=\"غ\",Q10<$Q$9),CM$5&\" - \",\"\"))","v":""},{"$f":"IF(C10=\"\",\"\",IF(OR(T10<$T$9,T10=\"غ\",U10<$U$9),CN$5&\" - \",\"\"))","v":""},{"$f":"IF(C10=\"\",\"\",IF(OR(X10<$X$9,X10=\"غ\",Y10<$Y$9),CO$5&\" - \",\"\"))","v":""},{"$f":"IF(C10=\"\",\"\",IF(OR(AB10<$AB$9,AB10=\"غ\",AC10<$AC$9),CP$5&\" - \",\"\"))","v":""},{"$f":"IF(C10=\"\",\"\",IF(OR(AF10<$AF$9,AF10=\"غ\",AG10<$AG$9),CQ$5&\" - \",\"\"))","v":""},{"$f":"IF(C10=\"\",\"\",IF(OR(AL10<$AL$9,AM10<$AM$9,AN10<$AN$9,AN10=\"غ\",AO10<$AO$9,AO10=\"غ\"),CR$5&\" - \",\"\"))","v":""},{"$f":"IF(C10=\"\",\"\",IF(OR(AS10<$AS$9,AS10=\"غ\",AT10<$AT$9),CS$5&\" - \",\"\"))","v":""},{"$f":"IF(C10=\"\",\"\",IF(OR(AW10<$AW$9,AW10=\"غ\",AX10<$AX$9),CT$5&\" - \",\"\"))","v":""},{"$f":"IF(C10=\"\",\"\",IF(OR(BA10<$BA$9,BA10=\"غ\",BB10<$BB$9),CU$5&\" - \",\"\"))","v":""},{"$f":"IF(C10=\"\",\"\",IF(OR(BE10<$BE$9,BE10=\"غ\",BF10<$BF$9),CV$5&\" - \",\"\"))","v":""},{"$f":"IF(C10=\"\",\"\",IF(OR(BI10<$BI$9,BI10=\"غ\",BJ10<$BJ$9),CW$5&\" - \",\"\"))","v":""},{"$f":"IF(C10=\"\",\"\",IF(OR(BM10<$BM$9,BM10=\"غ\",BN10<$BN$9),CX$5&\" - \",\"\"))","v":""},{"$f":"IF(C10=\"\",\"\",IF(OR(BQ10<$BQ$9,BQ10=\"غ\",BR10<$BR$9),CY$5&\" - \",\"\"))","v":""},{"$f":"IF(C10=\"\",\"\",IF(BT10<$BT$9,CZ$5&\" - \",\"\"))","v":""},{"$f":"IF(C10=\"\",\"\",IF(OR(BW10<$BW$9,BW10=\"غ\",BX10<$BX$9),DA$5,\"\"))","v":""},{"$f":"IF(C10=\"\",\"\",IF(OR(CA10<$CA$9,CA10=\"غ\",CB10<$CB$9),DB$5,\"\"))","v":""},{"$f":"COUNTIF($CZ10:$DB10,\"?*\")","v":0},{"$f":"COUNTIF($CM10:$CY10,\"?*\")","v":0}]
[null,null,null,null,null,null,null,null,null,null,null,null,null,null,null,null,0,null,null,null,0,null,null,null,0,null,null,null,0,null,null,null,0,null,null,null,null,null,null,0,0,0,null,null,null,0,null,null,null,0,null,null,null,0,null,null,null,0,null,null,null,0,null,null,null,0,null,null,null,0,"",0,null,null,null,0,null,null,null,0,"","","",null,null,null,null,null,null,null,"","","","","","","","","","","","","","","","",0,0]
[null,null,null,null,null,null,null,null,null,null,null,null,null,null,null,null,0,null,null,null,0,null,null,null,0,null,null,null,0,null,null,null,0,null,null,null,null,null,null,0,0,0,null,null,null,0,null,null,null,0,null,null,null,0,null,null,null,0,null,null,null,0,null,null,null,0,null,null,null,0,"",0,null,null,null,0,null,null,null,0,"","","",null,null,null,null,null,null,null,"","","","","","","","","","","","","","","","",0,0]
[null,null,null,null,null,null,null,null,null,null,null,null,null,null,null,null,0,null,null,null,0,null,null,null,0,null,null,null,0,null,null,null,0,null,null,null,null,null,null,0,0,0,null,null,null,0,null,null,null,0,null,null,null,0,null,null,null,0,null,null,null,0,null,null,null,0,null,null,null,0,"",0,null,null,null,0,null,null,null,0,"","","",null,null,null,null,null,null,null,"","","","","","","","","","","","","","","","",0,0]
[null,null,null,null,null,null,null,null,null,null,null,null,null,null,null,null,0,null,null,null,0,null,null,null,0,null,null,null,0,null,null,null,0,null,null,null,null,null,null,0,0,0,null,null,null,0,null,null,null,0,null,null,null,0,null,null,null,0,null,null,null,0,null,null,null,0,null,null,null,0,"",0,null,null,null,0,null,null,null,0,"","","",null,null,null,null,null,null,null,"","","","","","","","","","","","","","","","",0,0]
[null,null,null,null,null,null,null,null,null,null,null,null,null,null,null,null,0,null,null,null,0,null,null,null,0,null,null,null,0,null,null,null,0,null,null,null,null,null,null,0,0,0,null,null,null,0,null,null,null,0,null,null,null,0,null,null,null,0,null,null,null,0,null,null,null,0,null,null,null,0,"",0,null,null,null,0,null,null,null,0,"","","",null,null,null,null,null,null,null,"","","","","","","","","","","","","","","","",0,0]
[null,null,null,null,null,null,null,null,null,null,null,null,null,null,null,null,0,null,null,null,0,null,null,null,0,null,null,null,0,null,null,null,0,null,null,null,null,null,null,0,0,0,null,null,null,0,null,null,null,0,null,null,null,0,null,null,null,0,null,null,null,0,null,null,null,0,null,null,null,0,"",0,null,null,null,0,null,null,null,0,"","","",null,null,null,null,null,null,null,"","","","","","","","","","","","","","","","",0,0]
[null,null,null,null,null,null,null,null,null,null,null,null,null,null,null,null,0,null,null,null,0,null,null,null,0,null,null,null,0,null,null,null,0,null,null,null,null,null,null,0,0,0,null,null,null,0,null,null,null,0,null,null,null,0,null,null,null,0,null,null,null,0,null,null,null,0,null,null,null,0,"",0,null,null,null,0,null,null,null,0,"","","",null,null,null,null,null,null,null,"","","","","","","","","","","","","","","","",0,0]
[null,null,null,null,null,null,null,null,null,null,null,null,null,null,null,null,0,null,null,null,0,null,null,null,0,null,null,null,0,null,null,null,0,null,null,null,null,null,null,0,0,0,null,null,null,0,null,null,null,0,null,null,null,0,null,null,null,0,null,null,null,0,null,null,null,0,null,null,null,0,"",0,null,null,null,0,null,null,null,0,"","","",null,null,null,null,null,null,null,"","","","","","","","","","","","","","","","",0,0]
[null,null,null,null,null,null,null,null,null,null,null,null,null,null,null,null,0,null,null,null,0,null,null,null,0,null,null,null,0,null,null,null,0,null,null,null,null,null,null,0,0,0,null,null,null,0,null,null,null,0,null,null,null,0,null,null,null,0,null,null,null,0,null,null,null,0,null,null,null,0,"",0,null,null,null,0,null,null,null,0,"","","",null,null,null,null,null,null,null,"","","","","","","","","","","","","","","","",0,0]
[null,null,null,null,null,null,null,null,null,null,null,null,null,null,null,null,0,null,null,null,0,null,null,null,0,null,null,null,0,null,null,null,0,null,null,null,null,null,null,0,0,0,null,null,null,0,null,null,null,0,null,null,null,0,null,null,null,0,null,null,null,0,null,null,null,0,null,null,null,0,"",0,null,null,null,0,null,null,null,0,"","","",null,null,null,null,null,null,null,"","","","","","","","","","","","","","","","",0,0]
[null,null,null,null,null,null,null,null,null,null,null,null,null,null,null,null,0,null,null,null,0,null,null,null,0,null,null,null,0,null,null,null,0,null,null,null,null,null,null,0,0,0,null,null,null,0,null,null,null,0,null,null,null,0,null,null,null,0,null,null,null,0,null,null,null,0,null,null,null,0,"",0,null,null,null,0,null,null,null,0,"","","",null,null,null,null,null,null,null,"","","","","","","","","","","","","","","","",0,0]
[null,null,null,null,null,null,null,null,null,null,null,null,null,null,null,null,0,null,null,null,0,null,null,null,0,null,null,null,0,null,null,null,0,null,null,null,null,null,null,0,0,0,null,null,null,0,null,null,null,0,null,null,null,0,null,null,null,0,null,null,null,0,null,null,null,0,null,null,null,0,"",0,null,null,null,0,null,null,null,0,"","","",null,null,null,null,null,null,null,"","","","","","","","","","","","","","","","",0,0]
[null,null,null,null,null,null,null,null,null,null,null,null,null,null,null,null,0,null,null,null,0,null,null,null,0,null,null,null,0,null,null,null,0,null,null,null,null,null,null,0,0,0,null,null,null,0,null,null,null,0,null,null,null,0,null,null,null,0,null,null,null,0,null,null,null,0,null,null,null,0,"",0,null,null,null,0,null,null,null,0,"","","",null,null,null,null,null,null,null,"","","","","","","","","","","","","","","","",0,0]
[null,null,null,null,null,null,null,null,null,null,null,null,null,null,null,null,0,null,null,null,0,null,null,null,0,null,null,null,0,null,null,null,0,null,null,null,null,null,null,0,0,0,null,null,null,0,null,null,null,0,null,null,null,0,null,null,null,0,null,null,null,0,null,null,null,0,null,null,null,0,"",0,null,null,null,0,null,null,null,0,"","","",null,null,null,null,null,null,null,"","","","","","","","","","","","","","","","",0,0]
[null,null,null,null,null,null,null,null,null,null,null,null,null,null,null,null,0,null,null,null,0,null,null,null,0,null,null,null,0,null,null,null,0,null,null,null,null,null,null,0,0,0,null,null,null,0,null,null,null,0,null,null,null,0,null,null,null,0,null,null,null,0,null,null,null,0,null,null,null,0,"",0,null,null,null,0,null,null,null,0,"","","",null,null,null,null,null,null,null,"","","","","","","","","","","","","","","","",0,0]
[null,null,null,null,null,null,null,null,null,null,null,null,null,null,null,null,0,null,null,null,0,null,null,null,0,null,null,null,0,null,null,null,0,null,null,null,null,null,null,0,0,0,null,null,null,0,null,null,null,0,null,null,null,0,null,null,null,0,null,null,null,0,null,null,null,0,null,null,null,0,"",0,null,null,null,0,null,null,null,0,"","","",null,null,null,null,null,null,null,"","","","","","","","","","","","","","","","",0,0]
[null,null,null,null,null,null,null,null,null,null,null,null,null,null,null,null,0,null,null,null,0,null,null,null,0,null,null,null,0,null,null,null,0,null,null,null,null,null,null,0,0,0,null,null,null,0,null,null,null,0,null,null,null,0,null,null,null,0,null,null,null,0,null,null,null,0,null,null,null,0,"",0,null,null,null,0,null,null,null,0,"","","",null,null,null,null,null,null,null,"","","","","","","","","","","","","","","","",0,0]
[null,null,null,null,null,null,null,null,null,null,null,null,null,null,null,null,0,null,null,null,0,null,null,null,0,null,null,null,0,null,null,null,0,null,null,null,null,null,null,0,0,0,null,null,null,0,null,null,null,0,null,null,null,0,null,null,null,0,null,null,null,0,null,null,null,0,null,null,null,0,"",0,null,null,null,0,null,null,null,0,"","","",null,null,null,null,null,null,null,"","","","","","","","","","","","","","","","",0,0]
[null,null,null,null,null,null,null,null,null,null,null,null,null,null,null,null,0,null,null,null,0,null,null,null,0,null,null,null,0,null,null,null,0,null,null,null,null,null,null,0,0,0,null,null,null,0,null,null,null,0,null,null,null,0,null,null,null,0,null,null,null,0,null,null,null,0,null,null,null,0,"",0,null,null,null,0,null,null,null,0,"","","",null,null,null,null,null,null,null,"","","","","","","","","","","","","","","","",0,0]
[null,null,null,null,null,null,null,null,null,null,null,null,null,null,null,null,0,null,null,null,0,null,null,null,0,null,null,null,0,null,null,null,0,null,null,null,null,null,null,0,0,0,null,null,null,0,null,null,null,0,null,null,null,0,null,null,null,0,null,null,null,0,null,null,null,0,null,null,null,0,"",0,null,null,null,0,null,null,null,0,"","","",null,null,null,null,null,null,null,"","","","","","","","","","","","","","","","",0,0]
[null,null,null,null,null,null,null,null,null,null,null,null,null,null,null,null,0,null,null,null,0,null,null,null,0,null,null,null,0,null,null,null,0,null,null,null,null,null,null,0,0,0,null,null,null,0,null,null,null,0,null,null,null,0,null,null,null,0,null,null,null,0,null,null,null,0,null,null,null,0,"",0,null,null,null,0,null,null,null,0,"","","",null,null,null,null,null,null,null,"","","","","","","","","","","","","","","","",0,0]
[null,null,null,null,null,null,null,null,null,null,null,null,null,null,null,null,0,null,null,null,0,null,null,null,0,null,null,null,0,null,null,null,0,null,null,null,null,null,null,0,0,0,null,null,null,0,null,null,null,0,null,null,null,0,null,null,null,0,null,null,null,0,null,null,null,0,null,null,null,0,"",0,null,null,null,0,null,null,null,0,"","","",null,null,null,null,null,null,null,"","","","","","","","","","","","","","","","",0,0]
[null,null,null,null,null,null,null,null,null,null,null,null,null,null,null,null,0,null,null,null,0,null,null,null,0,null,null,null,0,null,null,null,0,null,null,null,null,null,null,0,0,0,null,null,null,0,null,null,null,0,null,null,null,0,null,null,null,0,null,null,null,0,null,null,null,0,null,null,null,0,"",0,null,null,null,0,null,null,null,0,"","","",null,null,null,null,null,null,null,"","","","","","","","","","","","","","","","",0,0]
[null,null,null,null,null,null,null,null,null,null,null,null,null,null,null,null,0,null,null,null,0,null,null,null,0,null,null,null,0,null,null,null,0,null,null,null,null,null,null,0,0,0,null,null,null,0,null,null,null,0,null,null,null,0,null,null,null,0,null,null,null,0,null,null,null,0,null,null,null,0,"",0,null,null,null,0,null,null,null,0,"","","",null,null,null,null,null,null,null,"","","","","","","","","","","","","","","","",0,0]
[null,null,null,null,null,null,null,null,null,null,null,null,null,null,null,null,0,null,null,null,0,null,null,null,0,null,null,null,0,null,null,null,0,null,null,null,null,null,null,0,0,0,null,null,null,0,null,null,null,0,null,null,null,0,null,null,null,0,null,null,null,0,null,null,null,0,null,null,null,0,"",0,null,null,null,0,null,null,null,0,"","","",null,null,null,null,null,null,null,"","","","","","","","","","","","","","","","",0,0]
[null,null,null,null,null,null,null,null,null,null,null,null,null,null,null,null,0,null,null,null,0,null,null,null,0,null,null,null,0,null,null,null,0,null,null,null,null,null,null,0,0,0,null,null,null,0,null,null,null,0,null,null,null,0,null,null,null,0,null,null,null,0,null,null,null,0,null,null,null,0,"",0,null,null,null,0,null,null,null,0,"","","",null,null,null,null,null,null,null,"","","","","","","","","","","","","","","","",0,0]
[null,null,null,null,null,null,null,null,null,null,null,null,null,null,null,null,0,null,null,null,0,null,null,null,0,null,null,null,0,null,null,null,0,null,null,null,null,null,null,0,0,0,null,null,null,0,null,null,null,0,null,null,null,0,null,null,null,0,null,null,null,0,null,null,null,0,null,null,null,0,"",0,null,null,null,0,null,null,null,0,"","","",null,null,null,null,null,null,null,"","","","","","","","","","","","","","","","",0,0]
[null,null,null,null,null,null,null,null,null,null,null,null,null,null,null,null,0,null,null,null,0,null,null,null,0,null,null,null,0,null,null,null,0,null,null,null,null,null,null,0,0,0,null,null,null,0,null,null,null,0,null,null,null,0,null,null,null,0,null,null,null,0,null,null,null,0,null,null,null,0,"",0,null,null,null,0,null,null,null,0,"","","",null,null,null,null,null,null,null,"","","","","","","","","","","","","","","","",0,0]
[null,null,null,null,null,null,null,null,null,null,null,null,null,null,null,null,0,null,null,null,0,null,null,null,0,null,null,null,0,null,null,null,0,null,null,null,null,null,null,0,0,0,null,null,null,0,null,null,null,0,null,null,null,0,null,null,null,0,null,null,null,0,null,null,null,0,null,null,null,0,"",0,null,null,null,0,null,null,null,0,"","","",null,null,null,null,null,null,null,"","","","","","","","","","","","","","","","",0,0]
[null,null,null,null,null,null,null,null,null,null,null,null,null,null,null,null,0,null,null,null,0,null,null,null,0,null,null,null,0,null,null,null,0,null,null,null,null,null,null,0,0,0,null,null,null,0,null,null,null,0,null,null,null,0,null,null,null,0,null,null,null,0,null,null,null,0,null,null,null,0,"",0,null,null,null,0,null,null,null,0,"","","",null,null,null,null,null,null,null,"","","","","","","","","","","","","","","","",0,0]
[null,null,null,null,null,null,null,null,null,null,null,null,null,null,null,null,0,null,null,null,0,null,null,null,0,null,null,null,0,null,null,null,0,null,null,null,null,null,null,0,0,0,null,null,null,0,null,null,null,0,null,null,null,0,null,null,null,0,null,null,null,0,null,null,null,0,null,null,null,0,"",0,null,null,null,0,null,null,null,0,"","","",null,null,null,null,null,null,null,"","","","","","","","","","","","","","","","",0,0]
[null,null,null,null,null,null,null,null,null,null,null,null,null,null,null,null,0,null,null,null,0,null,null,null,0,null,null,null,0,null,null,null,0,null,null,null,null,null,null,0,0,0,null,null,null,0,null,null,null,0,null,null,null,0,null,null,null,0,null,null,null,0,null,null,null,0,null,null,null,0,"",0,null,null,null,0,null,null,null,0,"","","",null,null,null,null,null,null,null,"","","","","","","","","","","","","","","","",0,0]
[null,null,null,null,null,null,null,null,null,null,null,null,null,null,null,null,0,null,null,null,0,null,null,null,0,null,null,null,0,null,null,null,0,null,null,null,null,null,null,0,0,0,null,null,null,0,null,null,null,0,null,null,null,0,null,null,null,0,null,null,null,0,null,null,null,0,null,null,null,0,"",0,null,null,null,0,null,null,null,0,"","","",null,null,null,null,null,null,null,"","","","","","","","","","","","","","","","",0,0]
[null,null,null,null,null,null,null,null,null,null,null,null,null,null,null,null,0,null,null,null,0,null,null,null,0,null,null,null,0,null,null,null,0,null,null,null,null,null,null,0,0,0,null,null,null,0,null,null,null,0,null,null,null,0,null,null,null,0,null,null,null,0,null,null,null,0,null,null,null,0,"",0,null,null,null,0,null,null,null,0,"","","",null,null,null,null,null,null,null,"","","","","","","","","","","","","","","","",0,0]
[null,null,null,null,null,null,null,null,null,null,null,null,null,null,null,null,0,null,null,null,0,null,null,null,0,null,null,null,0,null,null,null,0,null,null,null,null,null,null,0,0,0,null,null,null,0,null,null,null,0,null,null,null,0,null,null,null,0,null,null,null,0,null,null,null,0,null,null,null,0,"",0,null,null,null,0,null,null,null,0,"","","",null,null,null,null,null,null,null,"","","","","","","","","","","","","","","","",0,0]
[null,null,null,null,null,null,null,null,null,null,null,null,null,null,null,null,0,null,null,null,0,null,null,null,0,null,null,null,0,null,null,null,0,null,null,null,null,null,null,0,0,0,null,null,null,0,null,null,null,0,null,null,null,0,null,null,null,0,null,null,null,0,null,null,null,0,null,null,null,0,"",0,null,null,null,0,null,null,null,0,"","","",null,null,null,null,null,null,null,"","","","","","","","","","","","","","","","",0,0]
[null,null,null,null,null,null,null,null,null,null,null,null,null,null,null,null,0,null,null,null,0,null,null,null,0,null,null,null,0,null,null,null,0,null,null,null,null,null,null,0,0,0,null,null,null,0,null,null,null,0,null,null,null,0,null,null,null,0,null,null,null,0,null,null,null,0,null,null,null,0,"",0,null,null,null,0,null,null,null,0,"","","",null,null,null,null,null,null,null,"","","","","","","","","","","","","","","","",0,0]
[null,null,null,null,null,null,null,null,null,null,null,null,null,null,null,null,0,null,null,null,0,null,null,null,0,null,null,null,0,null,null,null,0,null,null,null,null,null,null,0,0,0,null,null,null,0,null,null,null,0,null,null,null,0,null,null,null,0,null,null,null,0,null,null,null,0,null,null,null,0,"",0,null,null,null,0,null,null,null,0,"","","",null,null,null,null,null,null,null,"","","","","","","","","","","","","","","","",0,0]
[null,null,null,null,null,null,null,null,null,null,null,null,null,null,null,null,0,null,null,null,0,null,null,null,0,null,null,null,0,null,null,null,0,null,null,null,null,null,null,0,0,0,null,null,null,0,null,null,null,0,null,null,null,0,null,null,null,0,null,null,null,0,null,null,null,0,null,null,null,0,"",0,null,null,null,0,null,null,null,0,"","","",null,null,null,null,null,null,null,"","","","","","","","","","","","","","","","",0,0]
[null,null,null,null,null,null,null,null,null,null,null,null,null,null,null,null,0,null,null,null,0,null,null,null,0,null,null,null,0,null,null,null,0,null,null,null,null,null,null,0,0,0,null,null,null,0,null,null,null,0,null,null,null,0,null,null,null,0,null,null,null,0,null,null,null,0,null,null,null,0,"",0,null,null,null,0,null,null,null,0,"","","",null,null,null,null,null,null,null,"","","","","","","","","","","","","","","","",0,0]
[null,null,null,null,null,null,null,null,null,null,null,null,null,null,null,null,0,null,null,null,0,null,null,null,0,null,null,null,0,null,null,null,0,null,null,null,null,null,null,0,0,0,null,null,null,0,null,null,null,0,null,null,null,0,null,null,null,0,null,null,null,0,null,null,null,0,null,null,null,0,"",0,null,null,null,0,null,null,null,0,"","","",null,null,null,null,null,null,null,"","","","","","","","","","","","","","","","",0,0]
[null,null,null,null,null,null,null,null,null,null,null,null,null,null,null,null,0,null,null,null,0,null,null,null,0,null,null,null,0,null,null,null,0,null,null,null,null,null,null,0,0,0,null,null,null,0,null,null,null,0,null,null,null,0,null,null,null,0,null,null,null,0,null,null,null,0,null,null,null,0,"",0,null,null,null,0,null,null,null,0,"","","",null,null,null,null,null,null,null,"","","","","","","","","","","","","","","","",0,0]
[null,null,null,null,null,null,null,null,null,null,null,null,null,null,null,null,0,null,null,null,0,null,null,null,0,null,null,null,0,null,null,null,0,null,null,null,null,null,null,0,0,0,null,null,null,0,null,null,null,0,null,null,null,0,null,null,null,0,null,null,null,0,null,null,null,0,null,null,null,0,"",0,null,null,null,0,null,null,null,0,"","","",null,null,null,null,null,null,null,"","","","","","","","","","","","","","","","",0,0]
[null,null,null,null,null,null,null,null,null,null,null,null,null,null,null,null,0,null,null,null,0,null,null,null,0,null,null,null,0,null,null,null,0,null,null,null,null,null,null,0,0,0,null,null,null,0,null,null,null,0,null,null,null,0,null,null,null,0,null,null,null,0,null,null,null,0,null,null,null,0,"",0,null,null,null,0,null,null,null,0,"","","",null,null,null,null,null,null,null,"","","","","","","","","","","","","","","","",0,0]
[null,null,null,null,null,null,null,null,null,null,null,null,null,null,null,null,0,null,null,null,0,null,null,null,0,null,null,null,0,null,null,null,0,null,null,null,null,null,null,0,0,0,null,null,null,0,null,null,null,0,null,null,null,0,null,null,null,0,null,null,null,0,null,null,null,0,null,null,null,0,"",0,null,null,null,0,null,null,null,0,"","","",null,null,null,null,null,null,null,"","","","","","","","","","","","","","","","",0,0]
[null,null,null,null,null,null,null,null,null,null,null,null,null,null,null,null,0,null,null,null,0,null,null,null,0,null,null,null,0,null,null,null,0,null,null,null,null,null,null,0,0,0,null,null,null,0,null,null,null,0,null,null,null,0,null,null,null,0,null,null,null,0,null,null,null,0,null,null,null,0,"",0,null,null,null,0,null,null,null,0,"","","",null,null,null,null,null,null,null,"","","","","","","","","","","","","","","","",0,0]
[null,null,null,null,null,null,null,null,null,null,null,null,null,null,null,null,0,null,null,null,0,null,null,null,0,null,null,null,0,null,null,null,0,null,null,null,null,null,null,0,0,0,null,null,null,0,null,null,null,0,null,null,null,0,null,null,null,0,null,null,null,0,null,null,null,0,null,null,null,0,"",0,null,null,null,0,null,null,null,0,"","","",null,null,null,null,null,null,null,"","","","","","","","","","","","","","","","",0,0]
[null,null,null,null,null,null,null,null,null,null,null,null,null,null,null,null,0,null,null,null,0,null,null,null,0,null,null,null,0,null,null,null,0,null,null,null,null,null,null,0,0,0,null,null,null,0,null,null,null,0,null,null,null,0,null,null,null,0,null,null,null,0,null,null,null,0,null,null,null,0,"",0,null,null,null,0,null,null,null,0,"","","",null,null,null,null,null,null,null,"","","","","","","","","","","","","","","","",0,0]
[null,null,null,null,null,null,null,null,null,null,null,null,null,null,null,null,0,null,null,null,0,null,null,null,0,null,null,null,0,null,null,null,0,null,null,null,null,null,null,0,0,0,null,null,null,0,null,null,null,0,null,null,null,0,null,null,null,0,null,null,null,0,null,null,null,0,null,null,null,0,"",0,null,null,null,0,null,null,null,0,"","","",null,null,null,null,null,null,null,"","","","","","","","","","","","","","","","",0,0]
[null,null,null,null,null,null,null,null,null,null,null,null,null,null,null,null,0,null,null,null,0,null,null,null,0,null,null,null,0,null,null,null,0,null,null,null,null,null,null,0,0,0,null,null,null,0,null,null,null,0,null,null,null,0,null,null,null,0,null,null,null,0,null,null,null,0,null,null,null,0,"",0,null,null,null,0,null,null,null,0,"","","",null,null,null,null,null,null,null,"","","","","","","","","","","","","","","","",0,0]
[null,null,null,null,null,null,null,null,null,null,null,null,null,null,null,null,0,null,null,null,0,null,null,null,0,null,null,null,0,null,null,null,0,null,null,null,null,null,null,0,0,0,null,null,null,0,null,null,null,0,null,null,null,0,null,null,null,0,null,null,null,0,null,null,null,0,null,null,null,0,"",0,null,null,null,0,null,null,null,0,"","","",null,null,null,null,null,null,null,"","","","","","","","","","","","","","","","",0,0]
[null,null,null,null,null,null,null,null,null,null,null,null,null,null,null,null,0,null,null,null,0,null,null,null,0,null,null,null,0,null,null,null,0,null,null,null,null,null,null,0,0,0,null,null,null,0,null,null,null,0,null,null,null,0,null,null,null,0,null,null,null,0,null,null,null,0,null,null,null,0,"",0,null,null,null,0,null,null,null,0,"","","",null,null,null,null,null,null,null,"","","","","","","","","","","","","","","","",0,0]
[null,null,null,null,null,null,null,null,null,null,null,null,null,null,null,null,0,null,null,null,0,null,null,null,0,null,null,null,0,null,null,null,0,null,null,null,null,null,null,0,0,0,null,null,null,0,null,null,null,0,null,null,null,0,null,null,null,0,null,null,null,0,null,null,null,0,null,null,null,0,"",0,null,null,null,0,null,null,null,0,"","","",null,null,null,null,null,null,null,"","","","","","","","","","","","","","","","",0,0]
[null,null,null,null,null,null,null,null,null,null,null,null,null,null,null,null,0,null,null,null,0,null,null,null,0,null,null,null,0,null,null,null,0,null,null,null,null,null,null,0,0,0,null,null,null,0,null,null,null,0,null,null,null,0,null,null,null,0,null,null,null,0,null,null,null,0,null,null,null,0,"",0,null,null,null,0,null,null,null,0,"","","",null,null,null,null,null,null,null,"","","","","","","","","","","","","","","","",0,0]
[null,null,null,null,null,null,null,null,null,null,null,null,null,null,null,null,0,null,null,null,0,null,null,null,0,null,null,null,0,null,null,null,0,null,null,null,null,null,null,0,0,0,null,null,null,0,null,null,null,0,null,null,null,0,null,null,null,0,null,null,null,0,null,null,null,0,null,null,null,0,"",0,null,null,null,0,null,null,null,0,"","","",null,null,null,null,null,null,null,"","","","","","","","","","","","","","","","",0,0]
[null,null,null,null,null,null,null,null,null,null,null,null,null,null,null,null,0,null,null,null,0,null,null,null,0,null,null,null,0,null,null,null,0,null,null,null,null,null,null,0,0,0,null,null,null,0,null,null,null,0,null,null,null,0,null,null,null,0,null,null,null,0,null,null,null,0,null,null,null,0,"",0,null,null,null,0,null,null,null,0,"","","",null,null,null,null,null,null,null,"","","","","","","","","","","","","","","","",0,0]
[null,null,null,null,null,null,null,null,null,null,null,null,null,null,null,null,0,null,null,null,0,null,null,null,0,null,null,null,0,null,null,null,0,null,null,null,null,null,null,0,0,0,null,null,null,0,null,null,null,0,null,null,null,0,null,null,null,0,null,null,null,0,null,null,null,0,null,null,null,0,"",0,null,null,null,0,null,null,null,0,"","","",null,null,null,null,null,null,null,"","","","","","","","","","","","","","","","",0,0]
[null,null,null,null,null,null,null,null,null,null,null,null,null,null,null,null,0,null,null,null,0,null,null,null,0,null,null,null,0,null,null,null,0,null,null,null,null,null,null,0,0,0,null,null,null,0,null,null,null,0,null,null,null,0,null,null,null,0,null,null,null,0,null,null,null,0,null,null,null,0,"",0,null,null,null,0,null,null,null,0,"","","",null,null,null,null,null,null,null,"","","","","","","","","","","","","","","","",0,0]
[null,null,null,null,null,null,null,null,null,null,null,null,null,null,null,null,0,null,null,null,0,null,null,null,0,null,null,null,0,null,null,null,0,null,null,null,null,null,null,0,0,0,null,null,null,0,null,null,null,0,null,null,null,0,null,null,null,0,null,null,null,0,null,null,null,0,null,null,null,0,"",0,null,null,null,0,null,null,null,0,"","","",null,null,null,null,null,null,null,"","","","","","","","","","","","","","","","",0,0]
[null,null,null,null,null,null,null,null,null,null,null,null,null,null,null,null,0,null,null,null,0,null,null,null,0,null,null,null,0,null,null,null,0,null,null,null,null,null,null,0,0,0,null,null,null,0,null,null,null,0,null,null,null,0,null,null,null,0,null,null,null,0,null,null,null,0,null,null,null,0,"",0,null,null,null,0,null,null,null,0,"","","",null,null,null,null,null,null,null,"","","","","","","","","","","","","","","","",0,0]
[null,null,null,null,null,null,null,null,null,null,null,null,null,null,null,null,0,null,null,null,0,null,null,null,0,null,null,null,0,null,null,null,0,null,null,null,null,null,null,0,0,0,null,null,null,0,null,null,null,0,null,null,null,0,null,null,null,0,null,null,null,0,null,null,null,0,null,null,null,0,"",0,null,null,null,0,null,null,null,0,"","","",null,null,null,null,null,null,null,"","","","","","","","","","","","","","","","",0,0]
[null,null,null,null,null,null,null,null,null,null,null,null,null,null,null,null,0,null,null,null,0,null,null,null,0,null,null,null,0,null,null,null,0,null,null,null,null,null,null,0,0,0,null,null,null,0,null,null,null,0,null,null,null,0,null,null,null,0,null,null,null,0,null,null,null,0,null,null,null,0,"",0,null,null,null,0,null,null,null,0,"","","",null,null,null,null,null,null,null,"","","","","","","","","","","","","","","","",0,0]
[null,null,null,null,null,null,null,null,null,null,null,null,null,null,null,null,0,null,null,null,0,null,null,null,0,null,null,null,0,null,null,null,0,null,null,null,null,null,null,0,0,0,null,null,null,0,null,null,null,0,null,null,null,0,null,null,null,0,null,null,null,0,null,null,null,0,null,null,null,0,"",0,null,null,null,0,null,null,null,0,"","","",null,null,null,null,null,null,null,"","","","","","","","","","","","","","","","",0,0]
[null,null,null,null,null,null,null,null,null,null,null,null,null,null,null,null,{"$f":"IF(P74=\"غ\",\"غ\",SUM(N74,O74,P74))","v":0},null,null,null,{"$f":"IF(T74=\"غ\",\"غ\",SUM(R74,S74,T74))","v":0},null,null,null,{"$f":"IF(X74=\"غ\",\"غ\",SUM(V74,W74,X74))","v":0},null,null,null,{"$f":"IF(AB74=\"غ\",\"غ\",SUM(Z74,AA74,AB74))","v":0},null,null,null,{"$f":"IF(AF74=\"غ\",\"غ\",SUM(AD74,AE74,AF74))","v":0},null,null,null,null,null,null,{"$f":"IF(AL74=\"غ\",\"غ\",SUM(AH74,AJ74,AL74))","v":0},{"$f":"IF(AM74=\"غ\",\"غ\",SUM(AI74,AK74,AM74))","v":0},{"$f":"IF(OR(AN74=\"غ\",AO74=\"غ\"),\"غ\",SUM(AN74,AO74))","v":0},null,null,null,{"$f":"IF(AS74=\"غ\",\"غ\",SUM(AQ74,AR74,AS74))","v":0},null,null,null,{"$f":"IF(AW74=\"غ\",\"غ\",SUM(AU74,AV74,AW74))","v":0},null,null,null,{"$f":"IF(BA74=\"غ\",\"غ\",SUM(AY74,AZ74,BA74))","v":0},null,null,null,{"$f":"IF(BE74=\"غ\",\"غ\",SUM(BC74,BD74,BE74))","v":0},null,null,null,{"$f":"IF(BI74=\"غ\",\"غ\",SUM(BG74,BH74,BI74))","v":0},null,null,null,{"$f":"IF(BM74=\"غ\",\"غ\",SUM(BK74,BL74,BM74))","v":0},null,null,null,{"$f":"IF(BQ74=\"غ\",\"غ\",SUM(BO74,BP74,BQ74))","v":0},{"$f":"IF(C74=\"\",\"\",SUM(O74,S74,W74,AE74,AR74,AV74,AZ74,BD74,BH74,BL74,BP74,AA74,AJ74,AK74))","v":""},{"$f":"SUM(Q74,U74,Y74,AG74,AT74,AX74,BB74,BF74,BJ74,BN74,BR74,AC74,AP74)","v":0},null,null,null,{"$f":"IF(BW74=\"غ\",\"غ\",SUM(BU74,BV74,BW74))","v":0},null,null,null,{"$f":"IF(CA74=\"غ\",\"غ\",SUM(BY74,BZ74,CA74))","v":0},{"$f":"IF(I74=\"\",\"\",IF(I74=\"بنات\",IF(CE74=0,\"ناجحة\",IF(DD74>2,\"راسبة\",\"دورثان\")),IF(I74=\"بنين\",IF(CE74=0,\"ناجح\",IF(DD74>2,\"راسب\",\"دورثان\")))))","v":""},{"$f":"IF(C74=\"\",\"\",IF(AND($L74=\"باقية\",$CC74=\"راسبة\"),\"وليس لها حق الاعادة\",IF(AND($L74<>\"باقية\",$CC74=\"راسبة\"),\"و  لها حق الاعادة\",IF(AND($L74=\"باقى\",$CC74=\"راسب\"),\"وليس له حق الاعادة\",IF(AND($L74<>\"باقى\",$CC74=\"راسب\"),\"و  له حق الاعادة\",IF($CC74=\"ناجحة\",\"و منقولة للصف الثانى\",IF($CC74=\"ناجح\",\"و منقول للصف الثانى\",IF($CC74=\"دورثان\",\"فى : \"&CONCATENATE($CM74,$CN74,$CO74,$CQ74,$CR74,$CS74,$CT74,$CU74,$CV74,$CW74,$CX74,$CY74,$CP74,$CZ74,$DA74,$DB74)))))))))","v":""},{"$f":"IF(C74=\"\",\"\",$DC74+$DD74)","v":""},null,null,null,null,null,null,null,{"$f":"IF(C74=\"\",\"\",IF(OR(P74<$P$9,P74=\"غ\",Q74<$Q$9),CM$5&\" - \",\"\"))","v":""},{"$f":"IF(C74=\"\",\"\",IF(OR(T74<$T$9,T74=\"غ\",U74<$U$9),CN$5&\" - \",\"\"))","v":""},{"$f":"IF(C74=\"\",\"\",IF(OR(X74<$X$9,X74=\"غ\",Y74<$Y$9),CO$5&\" - \",\"\"))","v":""},{"$f":"IF(C74=\"\",\"\",IF(OR(AB74<$AB$9,AB74=\"غ\",AC74<$AC$9),CP$5&\" - \",\"\"))","v":""},{"$f":"IF(C74=\"\",\"\",IF(OR(AF74<$AF$9,AF74=\"غ\",AG74<$AG$9),CQ$5&\" - \",\"\"))","v":""},{"$f":"IF(C74=\"\",\"\",IF(OR(AL74<$AL$9,AM74<$AM$9,AN74<$AN$9,AN74=\"غ\",AO74<$AO$9,AO74=\"غ\"),CR$5&\" - \",\"\"))","v":""},{"$f":"IF(C74=\"\",\"\",IF(OR(AS74<$AS$9,AS74=\"غ\",AT74<$AT$9),CS$5&\" - \",\"\"))","v":""},{"$f":"IF(C74=\"\",\"\",IF(OR(AW74<$AW$9,AW74=\"غ\",AX74<$AX$9),CT$5&\" - \",\"\"))","v":""},{"$f":"IF(C74=\"\",\"\",IF(OR(BA74<$BA$9,BA74=\"غ\",BB74<$BB$9),CU$5&\" - \",\"\"))","v":""},{"$f":"IF(C74=\"\",\"\",IF(OR(BE74<$BE$9,BE74=\"غ\",BF74<$BF$9),CV$5&\" - \",\"\"))","v":""},{"$f":"IF(C74=\"\",\"\",IF(OR(BI74<$BI$9,BI74=\"غ\",BJ74<$BJ$9),CW$5&\" - \",\"\"))","v":""},{"$f":"IF(C74=\"\",\"\",IF(OR(BM74<$BM$9,BM74=\"غ\",BN74<$BN$9),CX$5&\" - \",\"\"))","v":""},{"$f":"IF(C74=\"\",\"\",IF(OR(BQ74<$BQ$9,BQ74=\"غ\",BR74<$BR$9),CY$5&\" - \",\"\"))","v":""},{"$f":"IF(C74=\"\",\"\",IF(BT74<$BT$9,CZ$5&\" - \",\"\"))","v":""},{"$f":"IF(C74=\"\",\"\",IF(OR(BW74<$BW$9,BW74=\"غ\",BX74<$BX$9),DA$5,\"\"))","v":""},{"$f":"IF(C74=\"\",\"\",IF(OR(CA74<$CA$9,CA74=\"غ\",CB74<$CB$9),DB$5,\"\"))","v":""},{"$f":"COUNTIF($CZ74:$DB74,\"?*\")","v":0},{"$f":"COUNTIF($CM74:$CY74,\"?*\")","v":0}]
[null,null,null,null,null,null,null,null,null,null,null,null,null,null,null,null,0,null,null,null,0,null,null,null,0,null,null,null,0,null,null,null,0,null,null,null,null,null,null,0,0,0,null,null,null,0,null,null,null,0,null,null,null,0,null,null,null,0,null,null,null,0,null,null,null,0,null,null,null,0,"",0,null,null,null,0,null,null,null,0,"","","",null,null,null,null,null,null,null,"","","","","","","","","","","","","","","","",0,0]
[null,null,null,null,null,null,null,null,null,null,null,null,null,null,null,null,0,null,null,null,0,null,null,null,0,null,null,null,0,null,null,null,0,null,null,null,null,null,null,0,0,0,null,null,null,0,null,null,null,0,null,null,null,0,null,null,null,0,null,null,null,0,null,null,null,0,null,null,null,0,"",0,null,null,null,0,null,null,null,0,"","","",null,null,null,null,null,null,null,"","","","","","","","","","","","","","","","",0,0]
[null,null,null,null,null,null,null,null,null,null,null,null,null,null,null,null,0,null,null,null,0,null,null,null,0,null,null,null,0,null,null,null,0,null,null,null,null,null,null,0,0,0,null,null,null,0,null,null,null,0,null,null,null,0,null,null,null,0,null,null,null,0,null,null,null,0,null,null,null,0,"",0,null,null,null,0,null,null,null,0,"","","",null,null,null,null,null,null,null,"","","","","","","","","","","","","","","","",0,0]
[null,null,null,null,null,null,null,null,null,null,null,null,null,null,null,null,0,null,null,null,0,null,null,null,0,null,null,null,0,null,null,null,0,null,null,null,null,null,null,0,0,0,null,null,null,0,null,null,null,0,null,null,null,0,null,null,null,0,null,null,null,0,null,null,null,0,null,null,null,0,"",0,null,null,null,0,null,null,null,0,"","","",null,null,null,null,null,null,null,"","","","","","","","","","","","","","","","",0,0]
[null,null,null,null,null,null,null,null,null,null,null,null,null,null,null,null,0,null,null,null,0,null,null,null,0,null,null,null,0,null,null,null,0,null,null,null,null,null,null,0,0,0,null,null,null,0,null,null,null,0,null,null,null,0,null,null,null,0,null,null,null,0,null,null,null,0,null,null,null,0,"",0,null,null,null,0,null,null,null,0,"","","",null,null,null,null,null,null,null,"","","","","","","","","","","","","","","","",0,0]
[null,null,null,null,null,null,null,null,null,null,null,null,null,null,null,null,0,null,null,null,0,null,null,null,0,null,null,null,0,null,null,null,0,null,null,null,null,null,null,0,0,0,null,null,null,0,null,null,null,0,null,null,null,0,null,null,null,0,null,null,null,0,null,null,null,0,null,null,null,0,"",0,null,null,null,0,null,null,null,0,"","","",null,null,null,null,null,null,null,"","","","","","","","","","","","","","","","",0,0]
[null,null,null,null,null,null,null,null,null,null,null,null,null,null,null,null,0,null,null,null,0,null,null,null,0,null,null,null,0,null,null,null,0,null,null,null,null,null,null,0,0,0,null,null,null,0,null,null,null,0,null,null,null,0,null,null,null,0,null,null,null,0,null,null,null,0,null,null,null,0,"",0,null,null,null,0,null,null,null,0,"","","",null,null,null,null,null,null,null,"","","","","","","","","","","","","","","","",0,0]
[null,null,null,null,null,null,null,null,null,null,null,null,null,null,null,null,0,null,null,null,0,null,null,null,0,null,null,null,0,null,null,null,0,null,null,null,null,null,null,0,0,0,null,null,null,0,null,null,null,0,null,null,null,0,null,null,null,0,null,null,null,0,null,null,null,0,null,null,null,0,"",0,null,null,null,0,null,null,null,0,"","","",null,null,null,null,null,null,null,"","","","","","","","","","","","","","","","",0,0]
[null,null,null,null,null,null,null,null,null,null,null,null,null,null,null,null,0,null,null,null,0,null,null,null,0,null,null,null,0,null,null,null,0,null,null,null,null,null,null,0,0,0,null,null,null,0,null,null,null,0,null,null,null,0,null,null,null,0,null,null,null,0,null,null,null,0,null,null,null,0,"",0,null,null,null,0,null,null,null,0,"","","",null,null,null,null,null,null,null,"","","","","","","","","","","","","","","","",0,0]
[null,null,null,null,null,null,null,null,null,null,null,null,null,null,null,null,0,null,null,null,0,null,null,null,0,null,null,null,0,null,null,null,0,null,null,null,null,null,null,0,0,0,null,null,null,0,null,null,null,0,null,null,null,0,null,null,null,0,null,null,null,0,null,null,null,0,null,null,null,0,"",0,null,null,null,0,null,null,null,0,"","","",null,null,null,null,null,null,null,"","","","","","","","","","","","","","","","",0,0]
[null,null,null,null,null,null,null,null,null,null,null,null,null,null,null,null,0,null,null,null,0,null,null,null,0,null,null,null,0,null,null,null,0,null,null,null,null,null,null,0,0,0,null,null,null,0,null,null,null,0,null,null,null,0,null,null,null,0,null,null,null,0,null,null,null,0,null,null,null,0,"",0,null,null,null,0,null,null,null,0,"","","",null,null,null,null,null,null,null,"","","","","","","","","","","","","","","","",0,0]
[null,null,null,null,null,null,null,null,null,null,null,null,null,null,null,null,0,null,null,null,0,null,null,null,0,null,null,null,0,null,null,null,0,null,null,null,null,null,null,0,0,0,null,null,null,0,null,null,null,0,null,null,null,0,null,null,null,0,null,null,null,0,null,null,null,0,null,null,null,0,"",0,null,null,null,0,null,null,null,0,"","","",null,null,null,null,null,null,null,"","","","","","","","","","","","","","","","",0,0]
[null,null,null,null,null,null,null,null,null,null,null,null,null,null,null,null,0,null,null,null,0,null,null,null,0,null,null,null,0,null,null,null,0,null,null,null,null,null,null,0,0,0,null,null,null,0,null,null,null,0,null,null,null,0,null,null,null,0,null,null,null,0,null,null,null,0,null,null,null,0,"",0,null,null,null,0,null,null,null,0,"","","",null,null,null,null,null,null,null,"","","","","","","","","","","","","","","","",0,0]
[null,null,null,null,null,null,null,null,null,null,null,null,null,null,null,null,0,null,null,null,0,null,null,null,0,null,null,null,0,null,null,null,0,null,null,null,null,null,null,0,0,0,null,null,null,0,null,null,null,0,null,null,null,0,null,null,null,0,null,null,null,0,null,null,null,0,null,null,null,0,"",0,null,null,null,0,null,null,null,0,"","","",null,null,null,null,null,null,null,"","","","","","","","","","","","","","","","",0,0]
[null,null,null,null,null,null,null,null,null,null,null,null,null,null,null,null,0,null,null,null,0,null,null,null,0,null,null,null,0,null,null,null,0,null,null,null,null,null,null,0,0,0,null,null,null,0,null,null,null,0,null,null,null,0,null,null,null,0,null,null,null,0,null,null,null,0,null,null,null,0,"",0,null,null,null,0,null,null,null,0,"","","",null,null,null,null,null,null,null,"","","","","","","","","","","","","","","","",0,0]
[null,null,null,null,null,null,null,null,null,null,null,null,null,null,null,null,0,null,null,null,0,null,null,null,0,null,null,null,0,null,null,null,0,null,null,null,null,null,null,0,0,0,null,null,null,0,null,null,null,0,null,null,null,0,null,null,null,0,null,null,null,0,null,null,null,0,null,null,null,0,"",0,null,null,null,0,null,null,null,0,"","","",null,null,null,null,null,null,null,"","","","","","","","","","","","","","","","",0,0]
[null,null,null,null,null,null,null,null,null,null,null,null,null,null,null,null,0,null,null,null,0,null,null,null,0,null,null,null,0,null,null,null,0,null,null,null,null,null,null,0,0,0,null,null,null,0,null,null,null,0,null,null,null,0,null,null,null,0,null,null,null,0,null,null,null,0,null,null,null,0,"",0,null,null,null,0,null,null,null,0,"","","",null,null,null,null,null,null,null,"","","","","","","","","","","","","","","","",0,0]
[null,null,null,null,null,null,null,null,null,null,null,null,null,null,null,null,0,null,null,null,0,null,null,null,0,null,null,null,0,null,null,null,0,null,null,null,null,null,null,0,0,0,null,null,null,0,null,null,null,0,null,null,null,0,null,null,null,0,null,null,null,0,null,null,null,0,null,null,null,0,"",0,null,null,null,0,null,null,null,0,"","","",null,null,null,null,null,null,null,"","","","","","","","","","","","","","","","",0,0]
[null,null,null,null,null,null,null,null,null,null,null,null,null,null,null,null,0,null,null,null,0,null,null,null,0,null,null,null,0,null,null,null,0,null,null,null,null,null,null,0,0,0,null,null,null,0,null,null,null,0,null,null,null,0,null,null,null,0,null,null,null,0,null,null,null,0,null,null,null,0,"",0,null,null,null,0,null,null,null,0,"","","",null,null,null,null,null,null,null,"","","","","","","","","","","","","","","","",0,0]
[null,null,null,null,null,null,null,null,null,null,null,null,null,null,null,null,0,null,null,null,0,null,null,null,0,null,null,null,0,null,null,null,0,null,null,null,null,null,null,0,0,0,null,null,null,0,null,null,null,0,null,null,null,0,null,null,null,0,null,null,null,0,null,null,null,0,null,null,null,0,"",0,null,null,null,0,null,null,null,0,"","","",null,null,null,null,null,null,null,"","","","","","","","","","","","","","","","",0,0]
[null,null,null,null,null,null,null,null,null,null,null,null,null,null,null,null,0,null,null,null,0,null,null,null,0,null,null,null,0,null,null,null,0,null,null,null,null,null,null,0,0,0,null,null,null,0,null,null,null,0,null,null,null,0,null,null,null,0,null,null,null,0,null,null,null,0,null,null,null,0,"",0,null,null,null,0,null,null,null,0,"","","",null,null,null,null,null,null,null,"","","","","","","","","","","","","","","","",0,0]
[null,null,null,null,null,null,null,null,null,null,null,null,null,null,null,null,0,null,null,null,0,null,null,null,0,null,null,null,0,null,null,null,0,null,null,null,null,null,null,0,0,0,null,null,null,0,null,null,null,0,null,null,null,0,null,null,null,0,null,null,null,0,null,null,null,0,null,null,null,0,"",0,null,null,null,0,null,null,null,0,"","","",null,null,null,null,null,null,null,"","","","","","","","","","","","","","","","",0,0]
[null,null,null,null,null,null,null,null,null,null,null,null,null,null,null,null,0,null,null,null,0,null,null,null,0,null,null,null,0,null,null,null,0,null,null,null,null,null,null,0,0,0,null,null,null,0,null,null,null,0,null,null,null,0,null,null,null,0,null,null,null,0,null,null,null,0,null,null,null,0,"",0,null,null,null,0,null,null,null,0,"","","",null,null,null,null,null,null,null,"","","","","","","","","","","","","","","","",0,0]
[null,null,null,null,null,null,null,null,null,null,null,null,null,null,null,null,0,null,null,null,0,null,null,null,0,null,null,null,0,null,null,null,0,null,null,null,null,null,null,0,0,0,null,null,null,0,null,null,null,0,null,null,null,0,null,null,null,0,null,null,null,0,null,null,null,0,null,null,null,0,"",0,null,null,null,0,null,null,null,0,"","","",null,null,null,null,null,null,null,"","","","","","","","","","","","","","","","",0,0]
[null,null,null,null,null,null,null,null,null,null,null,null,null,null,null,null,0,null,null,null,0,null,null,null,0,null,null,null,0,null,null,null,0,null,null,null,null,null,null,0,0,0,null,null,null,0,null,null,null,0,null,null,null,0,null,null,null,0,null,null,null,0,null,null,null,0,null,null,null,0,"",0,null,null,null,0,null,null,null,0,"","","",null,null,null,null,null,null,null,"","","","","","","","","","","","","","","","",0,0]
[null,null,null,null,null,null,null,null,null,null,null,null,null,null,null,null,0,null,null,null,0,null,null,null,0,null,null,null,0,null,null,null,0,null,null,null,null,null,null,0,0,0,null,null,null,0,null,null,null,0,null,null,null,0,null,null,null,0,null,null,null,0,null,null,null,0,null,null,null,0,"",0,null,null,null,0,null,null,null,0,"","","",null,null,null,null,null,null,null,"","","","","","","","","","","","","","","","",0,0]
[null,null,null,null,null,null,null,null,null,null,null,null,null,null,null,null,0,null,null,null,0,null,null,null,0,null,null,null,0,null,null,null,0,null,null,null,null,null,null,0,0,0,null,null,null,0,null,null,null,0,null,null,null,0,null,null,null,0,null,null,null,0,null,null,null,0,null,null,null,0,"",0,null,null,null,0,null,null,null,0,"","","",null,null,null,null,null,null,null,"","","","","","","","","","","","","","","","",0,0]
[null,null,null,null,null,null,null,null,null,null,null,null,null,null,null,null,0,null,null,null,0,null,null,null,0,null,null,null,0,null,null,null,0,null,null,null,null,null,null,0,0,0,null,null,null,0,null,null,null,0,null,null,null,0,null,null,null,0,null,null,null,0,null,null,null,0,null,null,null,0,"",0,null,null,null,0,null,null,null,0,"","","",null,null,null,null,null,null,null,"","","","","","","","","","","","","","","","",0,0]
[null,null,null,null,null,null,null,null,null,null,null,null,null,null,null,null,0,null,null,null,0,null,null,null,0,null,null,null,0,null,null,null,0,null,null,null,null,null,null,0,0,0,null,null,null,0,null,null,null,0,null,null,null,0,null,null,null,0,null,null,null,0,null,null,null,0,null,null,null,0,"",0,null,null,null,0,null,null,null,0,"","","",null,null,null,null,null,null,null,"","","","","","","","","","","","","","","","",0,0]
[null,null,null,null,null,null,null,null,null,null,null,null,null,null,null,null,0,null,null,null,0,null,null,null,0,null,null,null,0,null,null,null,0,null,null,null,null,null,null,0,0,0,null,null,null,0,null,null,null,0,null,null,null,0,null,null,null,0,null,null,null,0,null,null,null,0,null,null,null,0,"",0,null,null,null,0,null,null,null,0,"","","",null,null,null,null,null,null,null,"","","","","","","","","","","","","","","","",0,0]
[null,null,null,null,null,null,null,null,null,null,null,null,null,null,null,null,0,null,null,null,0,null,null,null,0,null,null,null,0,null,null,null,0,null,null,null,null,null,null,0,0,0,null,null,null,0,null,null,null,0,null,null,null,0,null,null,null,0,null,null,null,0,null,null,null,0,null,null,null,0,"",0,null,null,null,0,null,null,null,0,"","","",null,null,null,null,null,null,null,"","","","","","","","","","","","","","","","",0,0]
[null,null,null,null,null,null,null,null,null,null,null,null,null,null,null,null,0,null,null,null,0,null,null,null,0,null,null,null,0,null,null,null,0,null,null,null,null,null,null,0,0,0,null,null,null,0,null,null,null,0,null,null,null,0,null,null,null,0,null,null,null,0,null,null,null,0,null,null,null,0,"",0,null,null,null,0,null,null,null,0,"","","",null,null,null,null,null,null,null,"","","","","","","","","","","","","","","","",0,0]
[null,null,null,null,null,null,null,null,null,null,null,null,null,null,null,null,0,null,null,null,0,null,null,null,0,null,null,null,0,null,null,null,0,null,null,null,null,null,null,0,0,0,null,null,null,0,null,null,null,0,null,null,null,0,null,null,null,0,null,null,null,0,null,null,null,0,null,null,null,0,"",0,null,null,null,0,null,null,null,0,"","","",null,null,null,null,null,null,null,"","","","","","","","","","","","","","","","",0,0]
[null,null,null,null,null,null,null,null,null,null,null,null,null,null,null,null,0,null,null,null,0,null,null,null,0,null,null,null,0,null,null,null,0,null,null,null,null,null,null,0,0,0,null,null,null,0,null,null,null,0,null,null,null,0,null,null,null,0,null,null,null,0,null,null,null,0,null,null,null,0,"",0,null,null,null,0,null,null,null,0,"","","",null,null,null,null,null,null,null,"","","","","","","","","","","","","","","","",0,0]
[null,null,null,null,null,null,null,null,null,null,null,null,null,null,null,null,0,null,null,null,0,null,null,null,0,null,null,null,0,null,null,null,0,null,null,null,null,null,null,0,0,0,null,null,null,0,null,null,null,0,null,null,null,0,null,null,null,0,null,null,null,0,null,null,null,0,null,null,null,0,"",0,null,null,null,0,null,null,null,0,"","","",null,null,null,null,null,null,null,"","","","","","","","","","","","","","","","",0,0]
[null,null,null,null,null,null,null,null,null,null,null,null,null,null,null,null,0,null,null,null,0,null,null,null,0,null,null,null,0,null,null,null,0,null,null,null,null,null,null,0,0,0,null,null,null,0,null,null,null,0,null,null,null,0,null,null,null,0,null,null,null,0,null,null,null,0,null,null,null,0,"",0,null,null,null,0,null,null,null,0,"","","",null,null,null,null,null,null,null,"","","","","","","","","","","","","","","","",0,0]
[null,null,null,null,null,null,null,null,null,null,null,null,null,null,null,null,0,null,null,null,0,null,null,null,0,null,null,null,0,null,null,null,0,null,null,null,null,null,null,0,0,0,null,null,null,0,null,null,null,0,null,null,null,0,null,null,null,0,null,null,null,0,null,null,null,0,null,null,null,0,"",0,null,null,null,0,null,null,null,0,"","","",null,null,null,null,null,null,null,"","","","","","","","","","","","","","","","",0,0]
[null,null,null,null,null,null,null,null,null,null,null,null,null,null,null,null,0,null,null,null,0,null,null,null,0,null,null,null,0,null,null,null,0,null,null,null,null,null,null,0,0,0,null,null,null,0,null,null,null,0,null,null,null,0,null,null,null,0,null,null,null,0,null,null,null,0,null,null,null,0,"",0,null,null,null,0,null,null,null,0,"","","",null,null,null,null,null,null,null,"","","","","","","","","","","","","","","","",0,0]
[null,null,null,null,null,null,null,null,null,null,null,null,null,null,null,null,0,null,null,null,0,null,null,null,0,null,null,null,0,null,null,null,0,null,null,null,null,null,null,0,0,0,null,null,null,0,null,null,null,0,null,null,null,0,null,null,null,0,null,null,null,0,null,null,null,0,null,null,null,0,"",0,null,null,null,0,null,null,null,0,"","","",null,null,null,null,null,null,null,"","","","","","","","","","","","","","","","",0,0]
[null,null,null,null,null,null,null,null,null,null,null,null,null,null,null,null,0,null,null,null,0,null,null,null,0,null,null,null,0,null,null,null,0,null,null,null,null,null,null,0,0,0,null,null,null,0,null,null,null,0,null,null,null,0,null,null,null,0,null,null,null,0,null,null,null,0,null,null,null,0,"",0,null,null,null,0,null,null,null,0,"","","",null,null,null,null,null,null,null,"","","","","","","","","","","","","","","","",0,0]
[null,null,null,null,null,null,null,null,null,null,null,null,null,null,null,null,0,null,null,null,0,null,null,null,0,null,null,null,0,null,null,null,0,null,null,null,null,null,null,0,0,0,null,null,null,0,null,null,null,0,null,null,null,0,null,null,null,0,null,null,null,0,null,null,null,0,null,null,null,0,"",0,null,null,null,0,null,null,null,0,"","","",null,null,null,null,null,null,null,"","","","","","","","","","","","","","","","",0,0]
[null,null,null,null,null,null,null,null,null,null,null,null,null,null,null,null,0,null,null,null,0,null,null,null,0,null,null,null,0,null,null,null,0,null,null,null,null,null,null,0,0,0,null,null,null,0,null,null,null,0,null,null,null,0,null,null,null,0,null,null,null,0,null,null,null,0,null,null,null,0,"",0,null,null,null,0,null,null,null,0,"","","",null,null,null,null,null,null,null,"","","","","","","","","","","","","","","","",0,0]
[null,null,null,null,null,null,null,null,null,null,null,null,null,null,null,null,0,null,null,null,0,null,null,null,0,null,null,null,0,null,null,null,0,null,null,null,null,null,null,0,0,0,null,null,null,0,null,null,null,0,null,null,null,0,null,null,null,0,null,null,null,0,null,null,null,0,null,null,null,0,"",0,null,null,null,0,null,null,null,0,"","","",null,null,null,null,null,null,null,"","","","","","","","","","","","","","","","",0,0]
[null,null,null,null,null,null,null,null,null,null,null,null,null,null,null,null,0,null,null,null,0,null,null,null,0,null,null,null,0,null,null,null,0,null,null,null,null,null,null,0,0,0,null,null,null,0,null,null,null,0,null,null,null,0,null,null,null,0,null,null,null,0,null,null,null,0,null,null,null,0,"",0,null,null,null,0,null,null,null,0,"","","",null,null,null,null,null,null,null,"","","","","","","","","","","","","","","","",0,0]
[null,null,null,null,null,null,null,null,null,null,null,null,null,null,null,null,0,null,null,null,0,null,null,null,0,null,null,null,0,null,null,null,0,null,null,null,null,null,null,0,0,0,null,null,null,0,null,null,null,0,null,null,null,0,null,null,null,0,null,null,null,0,null,null,null,0,null,null,null,0,"",0,null,null,null,0,null,null,null,0,"","","",null,null,null,null,null,null,null,"","","","","","","","","","","","","","","","",0,0]
[null,null,null,null,null,null,null,null,null,null,null,null,null,null,null,null,0,null,null,null,0,null,null,null,0,null,null,null,0,null,null,null,0,null,null,null,null,null,null,0,0,0,null,null,null,0,null,null,null,0,null,null,null,0,null,null,null,0,null,null,null,0,null,null,null,0,null,null,null,0,"",0,null,null,null,0,null,null,null,0,"","","",null,null,null,null,null,null,null,"","","","","","","","","","","","","","","","",0,0]
[null,null,null,null,null,null,null,null,null,null,null,null,null,null,null,null,0,null,null,null,0,null,null,null,0,null,null,null,0,null,null,null,0,null,null,null,null,null,null,0,0,0,null,null,null,0,null,null,null,0,null,null,null,0,null,null,null,0,null,null,null,0,null,null,null,0,null,null,null,0,"",0,null,null,null,0,null,null,null,0,"","","",null,null,null,null,null,null,null,"","","","","","","","","","","","","","","","",0,0]
[null,null,null,null,null,null,null,null,null,null,null,null,null,null,null,null,0,null,null,null,0,null,null,null,0,null,null,null,0,null,null,null,0,null,null,null,null,null,null,0,0,0,null,null,null,0,null,null,null,0,null,null,null,0,null,null,null,0,null,null,null,0,null,null,null,0,null,null,null,0,"",0,null,null,null,0,null,null,null,0,"","","",null,null,null,null,null,null,null,"","","","","","","","","","","","","","","","",0,0]
[null,null,null,null,null,null,null,null,null,null,null,null,null,null,null,null,0,null,null,null,0,null,null,null,0,null,null,null,0,null,null,null,0,null,null,null,null,null,null,0,0,0,null,null,null,0,null,null,null,0,null,null,null,0,null,null,null,0,null,null,null,0,null,null,null,0,null,null,null,0,"",0,null,null,null,0,null,null,null,0,"","","",null,null,null,null,null,null,null,"","","","","","","","","","","","","","","","",0,0]
[null,null,null,null,null,null,null,null,null,null,null,null,null,null,null,null,0,null,null,null,0,null,null,null,0,null,null,null,0,null,null,null,0,null,null,null,null,null,null,0,0,0,null,null,null,0,null,null,null,0,null,null,null,0,null,null,null,0,null,null,null,0,null,null,null,0,null,null,null,0,"",0,null,null,null,0,null,null,null,0,"","","",null,null,null,null,null,null,null,"","","","","","","","","","","","","","","","",0,0]
[null,null,null,null,null,null,null,null,null,null,null,null,null,null,null,null,0,null,null,null,0,null,null,null,0,null,null,null,0,null,null,null,0,null,null,null,null,null,null,0,0,0,null,null,null,0,null,null,null,0,null,null,null,0,null,null,null,0,null,null,null,0,null,null,null,0,null,null,null,0,"",0,null,null,null,0,null,null,null,0,"","","",null,null,null,null,null,null,null,"","","","","","","","","","","","","","","","",0,0]
[null,null,null,null,null,null,null,null,null,null,null,null,null,null,null,null,0,null,null,null,0,null,null,null,0,null,null,null,0,null,null,null,0,null,null,null,null,null,null,0,0,0,null,null,null,0,null,null,null,0,null,null,null,0,null,null,null,0,null,null,null,0,null,null,null,0,null,null,null,0,"",0,null,null,null,0,null,null,null,0,"","","",null,null,null,null,null,null,null,"","","","","","","","","","","","","","","","",0,0]
[null,null,null,null,null,null,null,null,null,null,null,null,null,null,null,null,0,null,null,null,0,null,null,null,0,null,null,null,0,null,null,null,0,null,null,null,null,null,null,0,0,0,null,null,null,0,null,null,null,0,null,null,null,0,null,null,null,0,null,null,null,0,null,null,null,0,null,null,null,0,"",0,null,null,null,0,null,null,null,0,"","","",null,null,null,null,null,null,null,"","","","","","","","","","","","","","","","",0,0]
[null,null,null,null,null,null,null,null,null,null,null,null,null,null,null,null,0,null,null,null,0,null,null,null,0,null,null,null,0,null,null,null,0,null,null,null,null,null,null,0,0,0,null,null,null,0,null,null,null,0,null,null,null,0,null,null,null,0,null,null,null,0,null,null,null,0,null,null,null,0,"",0,null,null,null,0,null,null,null,0,"","","",null,null,null,null,null,null,null,"","","","","","","","","","","","","","","","",0,0]
[null,null,null,null,null,null,null,null,null,null,null,null,null,null,null,null,0,null,null,null,0,null,null,null,0,null,null,null,0,null,null,null,0,null,null,null,null,null,null,0,0,0,null,null,null,0,null,null,null,0,null,null,null,0,null,null,null,0,null,null,null,0,null,null,null,0,null,null,null,0,"",0,null,null,null,0,null,null,null,0,"","","",null,null,null,null,null,null,null,"","","","","","","","","","","","","","","","",0,0]
[null,null,null,null,null,null,null,null,null,null,null,null,null,null,null,null,0,null,null,null,0,null,null,null,0,null,null,null,0,null,null,null,0,null,null,null,null,null,null,0,0,0,null,null,null,0,null,null,null,0,null,null,null,0,null,null,null,0,null,null,null,0,null,null,null,0,null,null,null,0,"",0,null,null,null,0,null,null,null,0,"","","",null,null,null,null,null,null,null,"","","","","","","","","","","","","","","","",0,0]
[null,null,null,null,null,null,null,null,null,null,null,null,null,null,null,null,0,null,null,null,0,null,null,null,0,null,null,null,0,null,null,null,0,null,null,null,null,null,null,0,0,0,null,null,null,0,null,null,null,0,null,null,null,0,null,null,null,0,null,null,null,0,null,null,null,0,null,null,null,0,"",0,null,null,null,0,null,null,null,0,"","","",null,null,null,null,null,null,null,"","","","","","","","","","","","","","","","",0,0]
[null,null,null,null,null,null,null,null,null,null,null,null,null,null,null,null,0,null,null,null,0,null,null,null,0,null,null,null,0,null,null,null,0,null,null,null,null,null,null,0,0,0,null,null,null,0,null,null,null,0,null,null,null,0,null,null,null,0,null,null,null,0,null,null,null,0,null,null,null,0,"",0,null,null,null,0,null,null,null,0,"","","",null,null,null,null,null,null,null,"","","","","","","","","","","","","","","","",0,0]
[null,null,null,null,null,null,null,null,null,null,null,null,null,null,null,null,0,null,null,null,0,null,null,null,0,null,null,null,0,null,null,null,0,null,null,null,null,null,null,0,0,0,null,null,null,0,null,null,null,0,null,null,null,0,null,null,null,0,null,null,null,0,null,null,null,0,null,null,null,0,"",0,null,null,null,0,null,null,null,0,"","","",null,null,null,null,null,null,null,"","","","","","","","","","","","","","","","",0,0]
[null,null,null,null,null,null,null,null,null,null,null,null,null,null,null,null,0,null,null,null,0,null,null,null,0,null,null,null,0,null,null,null,0,null,null,null,null,null,null,0,0,0,null,null,null,0,null,null,null,0,null,null,null,0,null,null,null,0,null,null,null,0,null,null,null,0,null,null,null,0,"",0,null,null,null,0,null,null,null,0,"","","",null,null,null,null,null,null,null,"","","","","","","","","","","","","","","","",0,0]
[null,null,null,null,null,null,null,null,null,null,null,null,null,null,null,null,0,null,null,null,0,null,null,null,0,null,null,null,0,null,null,null,0,null,null,null,null,null,null,0,0,0,null,null,null,0,null,null,null,0,null,null,null,0,null,null,null,0,null,null,null,0,null,null,null,0,null,null,null,0,"",0,null,null,null,0,null,null,null,0,"","","",null,null,null,null,null,null,null,"","","","","","","","","","","","","","","","",0,0]
[null,null,null,null,null,null,null,null,null,null,null,null,null,null,null,null,0,null,null,null,0,null,null,null,0,null,null,null,0,null,null,null,0,null,null,null,null,null,null,0,0,0,null,null,null,0,null,null,null,0,null,null,null,0,null,null,null,0,null,null,null,0,null,null,null,0,null,null,null,0,"",0,null,null,null,0,null,null,null,0,"","","",null,null,null,null,null,null,null,"","","","","","","","","","","","","","","","",0,0]
[null,null,null,null,null,null,null,null,null,null,null,null,null,null,null,null,0,null,null,null,0,null,null,null,0,null,null,null,0,null,null,null,0,null,null,null,null,null,null,0,0,0,null,null,null,0,null,null,null,0,null,null,null,0,null,null,null,0,null,null,null,0,null,null,null,0,null,null,null,0,"",0,null,null,null,0,null,null,null,0,"","","",null,null,null,null,null,null,null,"","","","","","","","","","","","","","","","",0,0]
[null,null,null,null,null,null,null,null,null,null,null,null,null,null,null,null,{"$f":"IF(P138=\"غ\",\"غ\",SUM(N138,O138,P138))","v":0},null,null,null,{"$f":"IF(T138=\"غ\",\"غ\",SUM(R138,S138,T138))","v":0},null,null,null,{"$f":"IF(X138=\"غ\",\"غ\",SUM(V138,W138,X138))","v":0},null,null,null,{"$f":"IF(AB138=\"غ\",\"غ\",SUM(Z138,AA138,AB138))","v":0},null,null,null,{"$f":"IF(AF138=\"غ\",\"غ\",SUM(AD138,AE138,AF138))","v":0},null,null,null,null,null,null,{"$f":"IF(AL138=\"غ\",\"غ\",SUM(AH138,AJ138,AL138))","v":0},{"$f":"IF(AM138=\"غ\",\"غ\",SUM(AI138,AK138,AM138))","v":0},{"$f":"IF(OR(AN138=\"غ\",AO138=\"غ\"),\"غ\",SUM(AN138,AO138))","v":0},null,null,null,{"$f":"IF(AS138=\"غ\",\"غ\",SUM(AQ138,AR138,AS138))","v":0},null,null,null,{"$f":"IF(AW138=\"غ\",\"غ\",SUM(AU138,AV138,AW138))","v":0},null,null,null,{"$f":"IF(BA138=\"غ\",\"غ\",SUM(AY138,AZ138,BA138))","v":0},null,null,null,{"$f":"IF(BE138=\"غ\",\"غ\",SUM(BC138,BD138,BE138))","v":0},null,null,null,{"$f":"IF(BI138=\"غ\",\"غ\",SUM(BG138,BH138,BI138))","v":0},null,null,null,{"$f":"IF(BM138=\"غ\",\"غ\",SUM(BK138,BL138,BM138))","v":0},null,null,null,{"$f":"IF(BQ138=\"غ\",\"غ\",SUM(BO138,BP138,BQ138))","v":0},{"$f":"IF(C138=\"\",\"\",SUM(O138,S138,W138,AE138,AR138,AV138,AZ138,BD138,BH138,BL138,BP138,AA138,AJ138,AK138))","v":""},{"$f":"SUM(Q138,U138,Y138,AG138,AT138,AX138,BB138,BF138,BJ138,BN138,BR138,AC138,AP138)","v":0},null,null,null,{"$f":"IF(BW138=\"غ\",\"غ\",SUM(BU138,BV138,BW138))","v":0},null,null,null,{"$f":"IF(CA138=\"غ\",\"غ\",SUM(BY138,BZ138,CA138))","v":0},{"$f":"IF(I138=\"\",\"\",IF(I138=\"بنات\",IF(CE138=0,\"ناجحة\",IF(DD138>2,\"راسبة\",\"دورثان\")),IF(I138=\"بنين\",IF(CE138=0,\"ناجح\",IF(DD138>2,\"راسب\",\"دورثان\")))))","v":""},{"$f":"IF(C138=\"\",\"\",IF(AND($L138=\"باقية\",$CC138=\"راسبة\"),\"وليس لها حق الاعادة\",IF(AND($L138<>\"باقية\",$CC138=\"راسبة\"),\"و  لها حق الاعادة\",IF(AND($L138=\"باقى\",$CC138=\"راسب\"),\"وليس له حق الاعادة\",IF(AND($L138<>\"باقى\",$CC138=\"راسب\"),\"و  له حق الاعادة\",IF($CC138=\"ناجحة\",\"و منقولة للصف الثانى\",IF($CC138=\"ناجح\",\"و منقول للصف الثانى\",IF($CC138=\"دورثان\",\"فى : \"&CONCATENATE($CM138,$CN138,$CO138,$CQ138,$CR138,$CS138,$CT138,$CU138,$CV138,$CW138,$CX138,$CY138,$CP138,$CZ138,$DA138,$DB138)))))))))","v":""},{"$f":"IF(C138=\"\",\"\",$DC138+$DD138)","v":""},null,null,null,null,null,null,null,{"$f":"IF(C138=\"\",\"\",IF(OR(P138<$P$9,P138=\"غ\",Q138<$Q$9),CM$5&\" - \",\"\"))","v":""},{"$f":"IF(C138=\"\",\"\",IF(OR(T138<$T$9,T138=\"غ\",U138<$U$9),CN$5&\" - \",\"\"))","v":""},{"$f":"IF(C138=\"\",\"\",IF(OR(X138<$X$9,X138=\"غ\",Y138<$Y$9),CO$5&\" - \",\"\"))","v":""},{"$f":"IF(C138=\"\",\"\",IF(OR(AB138<$AB$9,AB138=\"غ\",AC138<$AC$9),CP$5&\" - \",\"\"))","v":""},{"$f":"IF(C138=\"\",\"\",IF(OR(AF138<$AF$9,AF138=\"غ\",AG138<$AG$9),CQ$5&\" - \",\"\"))","v":""},{"$f":"IF(C138=\"\",\"\",IF(OR(AL138<$AL$9,AM138<$AM$9,AN138<$AN$9,AN138=\"غ\",AO138<$AO$9,AO138=\"غ\"),CR$5&\" - \",\"\"))","v":""},{"$f":"IF(C138=\"\",\"\",IF(OR(AS138<$AS$9,AS138=\"غ\",AT138<$AT$9),CS$5&\" - \",\"\"))","v":""},{"$f":"IF(C138=\"\",\"\",IF(OR(AW138<$AW$9,AW138=\"غ\",AX138<$AX$9),CT$5&\" - \",\"\"))","v":""},{"$f":"IF(C138=\"\",\"\",IF(OR(BA138<$BA$9,BA138=\"غ\",BB138<$BB$9),CU$5&\" - \",\"\"))","v":""},{"$f":"IF(C138=\"\",\"\",IF(OR(BE138<$BE$9,BE138=\"غ\",BF138<$BF$9),CV$5&\" - \",\"\"))","v":""},{"$f":"IF(C138=\"\",\"\",IF(OR(BI138<$BI$9,BI138=\"غ\",BJ138<$BJ$9),CW$5&\" - \",\"\"))","v":""},{"$f":"IF(C138=\"\",\"\",IF(OR(BM138<$BM$9,BM138=\"غ\",BN138<$BN$9),CX$5&\" - \",\"\"))","v":""},{"$f":"IF(C138=\"\",\"\",IF(OR(BQ138<$BQ$9,BQ138=\"غ\",BR138<$BR$9),CY$5&\" - \",\"\"))","v":""},{"$f":"IF(C138=\"\",\"\",IF(BT138<$BT$9,CZ$5&\" - \",\"\"))","v":""},{"$f":"IF(C138=\"\",\"\",IF(OR(BW138<$BW$9,BW138=\"غ\",BX138<$BX$9),DA$5,\"\"))","v":""},{"$f":"IF(C138=\"\",\"\",IF(OR(CA138<$CA$9,CA138=\"غ\",CB138<$CB$9),DB$5,\"\"))","v":""},{"$f":"COUNTIF($CZ138:$DB138,\"?*\")","v":0},{"$f":"COUNTIF($CM138:$CY138,\"?*\")","v":0}]
[null,null,null,null,null,null,null,null,null,null,null,null,null,null,null,null,0,null,null,null,0,null,null,null,0,null,null,null,0,null,null,null,0,null,null,null,null,null,null,0,0,0,null,null,null,0,null,null,null,0,null,null,null,0,null,null,null,0,null,null,null,0,null,null,null,0,null,null,null,0,"",0,null,null,null,0,null,null,null,0,"","","",null,null,null,null,null,null,null,"","","","","","","","","","","","","","","","",0,0]
[null,null,null,null,null,null,null,null,null,null,null,null,null,null,null,null,0,null,null,null,0,null,null,null,0,null,null,null,0,null,null,null,0,null,null,null,null,null,null,0,0,0,null,null,null,0,null,null,null,0,null,null,null,0,null,null,null,0,null,null,null,0,null,null,null,0,null,null,null,0,"",0,null,null,null,0,null,null,null,0,"","","",null,null,null,null,null,null,null,"","","","","","","","","","","","","","","","",0,0]
[null,null,null,null,null,null,null,null,null,null,null,null,null,null,null,null,0,null,null,null,0,null,null,null,0,null,null,null,0,null,null,null,0,null,null,null,null,null,null,0,0,0,null,null,null,0,null,null,null,0,null,null,null,0,null,null,null,0,null,null,null,0,null,null,null,0,null,null,null,0,"",0,null,null,null,0,null,null,null,0,"","","",null,null,null,null,null,null,null,"","","","","","","","","","","","","","","","",0,0]
[null,null,null,null,null,null,null,null,null,null,null,null,null,null,null,null,0,null,null,null,0,null,null,null,0,null,null,null,0,null,null,null,0,null,null,null,null,null,null,0,0,0,null,null,null,0,null,null,null,0,null,null,null,0,null,null,null,0,null,null,null,0,null,null,null,0,null,null,null,0,"",0,null,null,null,0,null,null,null,0,"","","",null,null,null,null,null,null,null,"","","","","","","","","","","","","","","","",0,0]
[null,null,null,null,null,null,null,null,null,null,null,null,null,null,null,null,0,null,null,null,0,null,null,null,0,null,null,null,0,null,null,null,0,null,null,null,null,null,null,0,0,0,null,null,null,0,null,null,null,0,null,null,null,0,null,null,null,0,null,null,null,0,null,null,null,0,null,null,null,0,"",0,null,null,null,0,null,null,null,0,"","","",null,null,null,null,null,null,null,"","","","","","","","","","","","","","","","",0,0]
[null,null,null,null,null,null,null,null,null,null,null,null,null,null,null,null,0,null,null,null,0,null,null,null,0,null,null,null,0,null,null,null,0,null,null,null,null,null,null,0,0,0,null,null,null,0,null,null,null,0,null,null,null,0,null,null,null,0,null,null,null,0,null,null,null,0,null,null,null,0,"",0,null,null,null,0,null,null,null,0,"","","",null,null,null,null,null,null,null,"","","","","","","","","","","","","","","","",0,0]
[null,null,null,null,null,null,null,null,null,null,null,null,null,null,null,null,0,null,null,null,0,null,null,null,0,null,null,null,0,null,null,null,0,null,null,null,null,null,null,0,0,0,null,null,null,0,null,null,null,0,null,null,null,0,null,null,null,0,null,null,null,0,null,null,null,0,null,null,null,0,"",0,null,null,null,0,null,null,null,0,"","","",null,null,null,null,null,null,null,"","","","","","","","","","","","","","","","",0,0]
[null,null,null,null,null,null,null,null,null,null,null,null,null,null,null,null,0,null,null,null,0,null,null,null,0,null,null,null,0,null,null,null,0,null,null,null,null,null,null,0,0,0,null,null,null,0,null,null,null,0,null,null,null,0,null,null,null,0,null,null,null,0,null,null,null,0,null,null,null,0,"",0,null,null,null,0,null,null,null,0,"","","",null,null,null,null,null,null,null,"","","","","","","","","","","","","","","","",0,0]
[null,null,null,null,null,null,null,null,null,null,null,null,null,null,null,null,0,null,null,null,0,null,null,null,0,null,null,null,0,null,null,null,0,null,null,null,null,null,null,0,0,0,null,null,null,0,null,null,null,0,null,null,null,0,null,null,null,0,null,null,null,0,null,null,null,0,null,null,null,0,"",0,null,null,null,0,null,null,null,0,"","","",null,null,null,null,null,null,null,"","","","","","","","","","","","","","","","",0,0]
[null,null,null,null,null,null,null,null,null,null,null,null,null,null,null,null,0,null,null,null,0,null,null,null,0,null,null,null,0,null,null,null,0,null,null,null,null,null,null,0,0,0,null,null,null,0,null,null,null,0,null,null,null,0,null,null,null,0,null,null,null,0,null,null,null,0,null,null,null,0,"",0,null,null,null,0,null,null,null,0,"","","",null,null,null,null,null,null,null,"","","","","","","","","","","","","","","","",0,0]
[null,null,null,null,null,null,null,null,null,null,null,null,null,null,null,null,0,null,null,null,0,null,null,null,0,null,null,null,0,null,null,null,0,null,null,null,null,null,null,0,0,0,null,null,null,0,null,null,null,0,null,null,null,0,null,null,null,0,null,null,null,0,null,null,null,0,null,null,null,0,"",0,null,null,null,0,null,null,null,0,"","","",null,null,null,null,null,null,null,"","","","","","","","","","","","","","","","",0,0]
[null,null,null,null,null,null,null,null,null,null,null,null,null,null,null,null,0,null,null,null,0,null,null,null,0,null,null,null,0,null,null,null,0,null,null,null,null,null,null,0,0,0,null,null,null,0,null,null,null,0,null,null,null,0,null,null,null,0,null,null,null,0,null,null,null,0,null,null,null,0,"",0,null,null,null,0,null,null,null,0,"","","",null,null,null,null,null,null,null,"","","","","","","","","","","","","","","","",0,0]
[null,null,null,null,null,null,null,null,null,null,null,null,null,null,null,null,0,null,null,null,0,null,null,null,0,null,null,null,0,null,null,null,0,null,null,null,null,null,null,0,0,0,null,null,null,0,null,null,null,0,null,null,null,0,null,null,null,0,null,null,null,0,null,null,null,0,null,null,null,0,"",0,null,null,null,0,null,null,null,0,"","","",null,null,null,null,null,null,null,"","","","","","","","","","","","","","","","",0,0]
[null,null,null,null,null,null,null,null,null,null,null,null,null,null,null,null,0,null,null,null,0,null,null,null,0,null,null,null,0,null,null,null,0,null,null,null,null,null,null,0,0,0,null,null,null,0,null,null,null,0,null,null,null,0,null,null,null,0,null,null,null,0,null,null,null,0,null,null,null,0,"",0,null,null,null,0,null,null,null,0,"","","",null,null,null,null,null,null,null,"","","","","","","","","","","","","","","","",0,0]
[null,null,null,null,null,null,null,null,null,null,null,null,null,null,null,null,0,null,null,null,0,null,null,null,0,null,null,null,0,null,null,null,0,null,null,null,null,null,null,0,0,0,null,null,null,0,null,null,null,0,null,null,null,0,null,null,null,0,null,null,null,0,null,null,null,0,null,null,null,0,"",0,null,null,null,0,null,null,null,0,"","","",null,null,null,null,null,null,null,"","","","","","","","","","","","","","","","",0,0]
[null,null,null,null,null,null,null,null,null,null,null,null,null,null,null,null,0,null,null,null,0,null,null,null,0,null,null,null,0,null,null,null,0,null,null,null,null,null,null,0,0,0,null,null,null,0,null,null,null,0,null,null,null,0,null,null,null,0,null,null,null,0,null,null,null,0,null,null,null,0,"",0,null,null,null,0,null,null,null,0,"","","",null,null,null,null,null,null,null,"","","","","","","","","","","","","","","","",0,0]
[null,null,null,null,null,null,null,null,null,null,null,null,null,null,null,null,0,null,null,null,0,null,null,null,0,null,null,null,0,null,null,null,0,null,null,null,null,null,null,0,0,0,null,null,null,0,null,null,null,0,null,null,null,0,null,null,null,0,null,null,null,0,null,null,null,0,null,null,null,0,"",0,null,null,null,0,null,null,null,0,"","","",null,null,null,null,null,null,null,"","","","","","","","","","","","","","","","",0,0]
[null,null,null,null,null,null,null,null,null,null,null,null,null,null,null,null,0,null,null,null,0,null,null,null,0,null,null,null,0,null,null,null,0,null,null,null,null,null,null,0,0,0,null,null,null,0,null,null,null,0,null,null,null,0,null,null,null,0,null,null,null,0,null,null,null,0,null,null,null,0,"",0,null,null,null,0,null,null,null,0,"","","",null,null,null,null,null,null,null,"","","","","","","","","","","","","","","","",0,0]
[null,null,null,null,null,null,null,null,null,null,null,null,null,null,null,null,0,null,null,null,0,null,null,null,0,null,null,null,0,null,null,null,0,null,null,null,null,null,null,0,0,0,null,null,null,0,null,null,null,0,null,null,null,0,null,null,null,0,null,null,null,0,null,null,null,0,null,null,null,0,"",0,null,null,null,0,null,null,null,0,"","","",null,null,null,null,null,null,null,"","","","","","","","","","","","","","","","",0,0]
[null,null,null,null,null,null,null,null,null,null,null,null,null,null,null,null,0,null,null,null,0,null,null,null,0,null,null,null,0,null,null,null,0,null,null,null,null,null,null,0,0,0,null,null,null,0,null,null,null,0,null,null,null,0,null,null,null,0,null,null,null,0,null,null,null,0,null,null,null,0,"",0,null,null,null,0,null,null,null,0,"","","",null,null,null,null,null,null,null,"","","","","","","","","","","","","","","","",0,0]
[null,null,null,null,null,null,null,null,null,null,null,null,null,null,null,null,0,null,null,null,0,null,null,null,0,null,null,null,0,null,null,null,0,null,null,null,null,null,null,0,0,0,null,null,null,0,null,null,null,0,null,null,null,0,null,null,null,0,null,null,null,0,null,null,null,0,null,null,null,0,"",0,null,null,null,0,null,null,null,0,"","","",null,null,null,null,null,null,null,"","","","","","","","","","","","","","","","",0,0]
[null,null,null,null,null,null,null,null,null,null,null,null,null,null,null,null,0,null,null,null,0,null,null,null,0,null,null,null,0,null,null,null,0,null,null,null,null,null,null,0,0,0,null,null,null,0,null,null,null,0,null,null,null,0,null,null,null,0,null,null,null,0,null,null,null,0,null,null,null,0,"",0,null,null,null,0,null,null,null,0,"","","",null,null,null,null,null,null,null,"","","","","","","","","","","","","","","","",0,0]
[null,null,null,null,null,null,null,null,null,null,null,null,null,null,null,null,0,null,null,null,0,null,null,null,0,null,null,null,0,null,null,null,0,null,null,null,null,null,null,0,0,0,null,null,null,0,null,null,null,0,null,null,null,0,null,null,null,0,null,null,null,0,null,null,null,0,null,null,null,0,"",0,null,null,null,0,null,null,null,0,"","","",null,null,null,null,null,null,null,"","","","","","","","","","","","","","","","",0,0]
[null,null,null,null,null,null,null,null,null,null,null,null,null,null,null,null,0,null,null,null,0,null,null,null,0,null,null,null,0,null,null,null,0,null,null,null,null,null,null,0,0,0,null,null,null,0,null,null,null,0,null,null,null,0,null,null,null,0,null,null,null,0,null,null,null,0,null,null,null,0,"",0,null,null,null,0,null,null,null,0,"","","",null,null,null,null,null,null,null,"","","","","","","","","","","","","","","","",0,0]
[null,null,null,null,null,null,null,null,null,null,null,null,null,null,null,null,0,null,null,null,0,null,null,null,0,null,null,null,0,null,null,null,0,null,null,null,null,null,null,0,0,0,null,null,null,0,null,null,null,0,null,null,null,0,null,null,null,0,null,null,null,0,null,null,null,0,null,null,null,0,"",0,null,null,null,0,null,null,null,0,"","","",null,null,null,null,null,null,null,"","","","","","","","","","","","","","","","",0,0]
[null,null,null,null,null,null,null,null,null,null,null,null,null,null,null,null,0,null,null,null,0,null,null,null,0,null,null,null,0,null,null,null,0,null,null,null,null,null,null,0,0,0,null,null,null,0,null,null,null,0,null,null,null,0,null,null,null,0,null,null,null,0,null,null,null,0,null,null,null,0,"",0,null,null,null,0,null,null,null,0,"","","",null,null,null,null,null,null,null,"","","","","","","","","","","","","","","","",0,0]
[null,null,null,null,null,null,null,null,null,null,null,null,null,null,null,null,0,null,null,null,0,null,null,null,0,null,null,null,0,null,null,null,0,null,null,null,null,null,null,0,0,0,null,null,null,0,null,null,null,0,null,null,null,0,null,null,null,0,null,null,null,0,null,null,null,0,null,null,null,0,"",0,null,null,null,0,null,null,null,0,"","","",null,null,null,null,null,null,null,"","","","","","","","","","","","","","","","",0,0]
[null,null,null,null,null,null,null,null,null,null,null,null,null,null,null,null,0,null,null,null,0,null,null,null,0,null,null,null,0,null,null,null,0,null,null,null,null,null,null,0,0,0,null,null,null,0,null,null,null,0,null,null,null,0,null,null,null,0,null,null,null,0,null,null,null,0,null,null,null,0,"",0,null,null,null,0,null,null,null,0,"","","",null,null,null,null,null,null,null,"","","","","","","","","","","","","","","","",0,0]
[null,null,null,null,null,null,null,null,null,null,null,null,null,null,null,null,0,null,null,null,0,null,null,null,0,null,null,null,0,null,null,null,0,null,null,null,null,null,null,0,0,0,null,null,null,0,null,null,null,0,null,null,null,0,null,null,null,0,null,null,null,0,null,null,null,0,null,null,null,0,"",0,null,null,null,0,null,null,null,0,"","","",null,null,null,null,null,null,null,"","","","","","","","","","","","","","","","",0,0]
[null,null,null,null,null,null,null,null,null,null,null,null,null,null,null,null,0,null,null,null,0,null,null,null,0,null,null,null,0,null,null,null,0,null,null,null,null,null,null,0,0,0,null,null,null,0,null,null,null,0,null,null,null,0,null,null,null,0,null,null,null,0,null,null,null,0,null,null,null,0,"",0,null,null,null,0,null,null,null,0,"","","",null,null,null,null,null,null,null,"","","","","","","","","","","","","","","","",0,0]
[null,null,null,null,null,null,null,null,null,null,null,null,null,null,null,null,0,null,null,null,0,null,null,null,0,null,null,null,0,null,null,null,0,null,null,null,null,null,null,0,0,0,null,null,null,0,null,null,null,0,null,null,null,0,null,null,null,0,null,null,null,0,null,null,null,0,null,null,null,0,"",0,null,null,null,0,null,null,null,0,"","","",null,null,null,null,null,null,null,"","","","","","","","","","","","","","","","",0,0]
[null,null,null,null,null,null,null,null,null,null,null,null,null,null,null,null,0,null,null,null,0,null,null,null,0,null,null,null,0,null,null,null,0,null,null,null,null,null,null,0,0,0,null,null,null,0,null,null,null,0,null,null,null,0,null,null,null,0,null,null,null,0,null,null,null,0,null,null,null,0,"",0,null,null,null,0,null,null,null,0,"","","",null,null,null,null,null,null,null,"","","","","","","","","","","","","","","","",0,0]
[null,null,null,null,null,null,null,null,null,null,null,null,null,null,null,null,0,null,null,null,0,null,null,null,0,null,null,null,0,null,null,null,0,null,null,null,null,null,null,0,0,0,null,null,null,0,null,null,null,0,null,null,null,0,null,null,null,0,null,null,null,0,null,null,null,0,null,null,null,0,"",0,null,null,null,0,null,null,null,0,"","","",null,null,null,null,null,null,null,"","","","","","","","","","","","","","","","",0,0]
[null,null,null,null,null,null,null,null,null,null,null,null,null,null,null,null,0,null,null,null,0,null,null,null,0,null,null,null,0,null,null,null,0,null,null,null,null,null,null,0,0,0,null,null,null,0,null,null,null,0,null,null,null,0,null,null,null,0,null,null,null,0,null,null,null,0,null,null,null,0,"",0,null,null,null,0,null,null,null,0,"","","",null,null,null,null,null,null,null,"","","","","","","","","","","","","","","","",0,0]
[null,null,null,null,null,null,null,null,null,null,null,null,null,null,null,null,0,null,null,null,0,null,null,null,0,null,null,null,0,null,null,null,0,null,null,null,null,null,null,0,0,0,null,null,null,0,null,null,null,0,null,null,null,0,null,null,null,0,null,null,null,0,null,null,null,0,null,null,null,0,"",0,null,null,null,0,null,null,null,0,"","","",null,null,null,null,null,null,null,"","","","","","","","","","","","","","","","",0,0]
[null,null,null,null,null,null,null,null,null,null,null,null,null,null,null,null,0,null,null,null,0,null,null,null,0,null,null,null,0,null,null,null,0,null,null,null,null,null,null,0,0,0,null,null,null,0,null,null,null,0,null,null,null,0,null,null,null,0,null,null,null,0,null,null,null,0,null,null,null,0,"",0,null,null,null,0,null,null,null,0,"","","",null,null,null,null,null,null,null,"","","","","","","","","","","","","","","","",0,0]
[null,null,null,null,null,null,null,null,null,null,null,null,null,null,null,null,0,null,null,null,0,null,null,null,0,null,null,null,0,null,null,null,0,null,null,null,null,null,null,0,0,0,null,null,null,0,null,null,null,0,null,null,null,0,null,null,null,0,null,null,null,0,null,null,null,0,null,null,null,0,"",0,null,null,null,0,null,null,null,0,"","","",null,null,null,null,null,null,null,"","","","","","","","","","","","","","","","",0,0]
[null,null,null,null,null,null,null,null,null,null,null,null,null,null,null,null,0,null,null,null,0,null,null,null,0,null,null,null,0,null,null,null,0,null,null,null,null,null,null,0,0,0,null,null,null,0,null,null,null,0,null,null,null,0,null,null,null,0,null,null,null,0,null,null,null,0,null,null,null,0,"",0,null,null,null,0,null,null,null,0,"","","",null,null,null,null,null,null,null,"","","","","","","","","","","","","","","","",0,0]
[null,null,null,null,null,null,null,null,null,null,null,null,null,null,null,null,0,null,null,null,0,null,null,null,0,null,null,null,0,null,null,null,0,null,null,null,null,null,null,0,0,0,null,null,null,0,null,null,null,0,null,null,null,0,null,null,null,0,null,null,null,0,null,null,null,0,null,null,null,0,"",0,null,null,null,0,null,null,null,0,"","","",null,null,null,null,null,null,null,"","","","","","","","","","","","","","","","",0,0]
[null,null,null,null,null,null,null,null,null,null,null,null,null,null,null,null,0,null,null,null,0,null,null,null,0,null,null,null,0,null,null,null,0,null,null,null,null,null,null,0,0,0,null,null,null,0,null,null,null,0,null,null,null,0,null,null,null,0,null,null,null,0,null,null,null,0,null,null,null,0,"",0,null,null,null,0,null,null,null,0,"","","",null,null,null,null,null,null,null,"","","","","","","","","","","","","","","","",0,0]
[null,null,null,null,null,null,null,null,null,null,null,null,null,null,null,null,0,null,null,null,0,null,null,null,0,null,null,null,0,null,null,null,0,null,null,null,null,null,null,0,0,0,null,null,null,0,null,null,null,0,null,null,null,0,null,null,null,0,null,null,null,0,null,null,null,0,null,null,null,0,"",0,null,null,null,0,null,null,null,0,"","","",null,null,null,null,null,null,null,"","","","","","","","","","","","","","","","",0,0]
[null,null,null,null,null,null,null,null,null,null,null,null,null,null,null,null,0,null,null,null,0,null,null,null,0,null,null,null,0,null,null,null,0,null,null,null,null,null,null,0,0,0,null,null,null,0,null,null,null,0,null,null,null,0,null,null,null,0,null,null,null,0,null,null,null,0,null,null,null,0,"",0,null,null,null,0,null,null,null,0,"","","",null,null,null,null,null,null,null,"","","","","","","","","","","","","","","","",0,0]
[null,null,null,null,null,null,null,null,null,null,null,null,null,null,null,null,0,null,null,null,0,null,null,null,0,null,null,null,0,null,null,null,0,null,null,null,null,null,null,0,0,0,null,null,null,0,null,null,null,0,null,null,null,0,null,null,null,0,null,null,null,0,null,null,null,0,null,null,null,0,"",0,null,null,null,0,null,null,null,0,"","","",null,null,null,null,null,null,null,"","","","","","","","","","","","","","","","",0,0]
[null,null,null,null,null,null,null,null,null,null,null,null,null,null,null,null,0,null,null,null,0,null,null,null,0,null,null,null,0,null,null,null,0,null,null,null,null,null,null,0,0,0,null,null,null,0,null,null,null,0,null,null,null,0,null,null,null,0,null,null,null,0,null,null,null,0,null,null,null,0,"",0,null,null,null,0,null,null,null,0,"","","",null,null,null,null,null,null,null,"","","","","","","","","","","","","","","","",0,0]
[null,null,null,null,null,null,null,null,null,null,null,null,null,null,null,null,0,null,null,null,0,null,null,null,0,null,null,null,0,null,null,null,0,null,null,null,null,null,null,0,0,0,null,null,null,0,null,null,null,0,null,null,null,0,null,null,null,0,null,null,null,0,null,null,null,0,null,null,null,0,"",0,null,null,null,0,null,null,null,0,"","","",null,null,null,null,null,null,null,"","","","","","","","","","","","","","","","",0,0]
[null,null,null,null,null,null,null,null,null,null,null,null,null,null,null,null,0,null,null,null,0,null,null,null,0,null,null,null,0,null,null,null,0,null,null,null,null,null,null,0,0,0,null,null,null,0,null,null,null,0,null,null,null,0,null,null,null,0,null,null,null,0,null,null,null,0,null,null,null,0,"",0,null,null,null,0,null,null,null,0,"","","",null,null,null,null,null,null,null,"","","","","","","","","","","","","","","","",0,0]
[null,null,null,null,null,null,null,null,null,null,null,null,null,null,null,null,0,null,null,null,0,null,null,null,0,null,null,null,0,null,null,null,0,null,null,null,null,null,null,0,0,0,null,null,null,0,null,null,null,0,null,null,null,0,null,null,null,0,null,null,null,0,null,null,null,0,null,null,null,0,"",0,null,null,null,0,null,null,null,0,"","","",null,null,null,null,null,null,null,"","","","","","","","","","","","","","","","",0,0]
[null,null,null,null,null,null,null,null,null,null,null,null,null,null,null,null,0,null,null,null,0,null,null,null,0,null,null,null,0,null,null,null,0,null,null,null,null,null,null,0,0,0,null,null,null,0,null,null,null,0,null,null,null,0,null,null,null,0,null,null,null,0,null,null,null,0,null,null,null,0,"",0,null,null,null,0,null,null,null,0,"","","",null,null,null,null,null,null,null,"","","","","","","","","","","","","","","","",0,0]
[null,null,null,null,null,null,null,null,null,null,null,null,null,null,null,null,0,null,null,null,0,null,null,null,0,null,null,null,0,null,null,null,0,null,null,null,null,null,null,0,0,0,null,null,null,0,null,null,null,0,null,null,null,0,null,null,null,0,null,null,null,0,null,null,null,0,null,null,null,0,"",0,null,null,null,0,null,null,null,0,"","","",null,null,null,null,null,null,null,"","","","","","","","","","","","","","","","",0,0]
[null,null,null,null,null,null,null,null,null,null,null,null,null,null,null,null,0,null,null,null,0,null,null,null,0,null,null,null,0,null,null,null,0,null,null,null,null,null,null,0,0,0,null,null,null,0,null,null,null,0,null,null,null,0,null,null,null,0,null,null,null,0,null,null,null,0,null,null,null,0,"",0,null,null,null,0,null,null,null,0,"","","",null,null,null,null,null,null,null,"","","","","","","","","","","","","","","","",0,0]
[null,null,null,null,null,null,null,null,null,null,null,null,null,null,null,null,0,null,null,null,0,null,null,null,0,null,null,null,0,null,null,null,0,null,null,null,null,null,null,0,0,0,null,null,null,0,null,null,null,0,null,null,null,0,null,null,null,0,null,null,null,0,null,null,null,0,null,null,null,0,"",0,null,null,null,0,null,null,null,0,"","","",null,null,null,null,null,null,null,"","","","","","","","","","","","","","","","",0,0]
[null,null,null,null,null,null,null,null,null,null,null,null,null,null,null,null,0,null,null,null,0,null,null,null,0,null,null,null,0,null,null,null,0,null,null,null,null,null,null,0,0,0,null,null,null,0,null,null,null,0,null,null,null,0,null,null,null,0,null,null,null,0,null,null,null,0,null,null,null,0,"",0,null,null,null,0,null,null,null,0,"","","",null,null,null,null,null,null,null,"","","","","","","","","","","","","","","","",0,0]
[null,null,null,null,null,null,null,null,null,null,null,null,null,null,null,null,0,null,null,null,0,null,null,null,0,null,null,null,0,null,null,null,0,null,null,null,null,null,null,0,0,0,null,null,null,0,null,null,null,0,null,null,null,0,null,null,null,0,null,null,null,0,null,null,null,0,null,null,null,0,"",0,null,null,null,0,null,null,null,0,"","","",null,null,null,null,null,null,null,"","","","","","","","","","","","","","","","",0,0]
[null,null,null,null,null,null,null,null,null,null,null,null,null,null,null,null,0,null,null,null,0,null,null,null,0,null,null,null,0,null,null,null,0,null,null,null,null,null,null,0,0,0,null,null,null,0,null,null,null,0,null,null,null,0,null,null,null,0,null,null,null,0,null,null,null,0,null,null,null,0,"",0,null,null,null,0,null,null,null,0,"","","",null,null,null,null,null,null,null,"","","","","","","","","","","","","","","","",0,0]
[null,null,null,null,null,null,null,null,null,null,null,null,null,null,null,null,0,null,null,null,0,null,null,null,0,null,null,null,0,null,null,null,0,null,null,null,null,null,null,0,0,0,null,null,null,0,null,null,null,0,null,null,null,0,null,null,null,0,null,null,null,0,null,null,null,0,null,null,null,0,"",0,null,null,null,0,null,null,null,0,"","","",null,null,null,null,null,null,null,"","","","","","","","","","","","","","","","",0,0]
[null,null,null,null,null,null,null,null,null,null,null,null,null,null,null,null,0,null,null,null,0,null,null,null,0,null,null,null,0,null,null,null,0,null,null,null,null,null,null,0,0,0,null,null,null,0,null,null,null,0,null,null,null,0,null,null,null,0,null,null,null,0,null,null,null,0,null,null,null,0,"",0,null,null,null,0,null,null,null,0,"","","",null,null,null,null,null,null,null,"","","","","","","","","","","","","","","","",0,0]
[null,null,null,null,null,null,null,null,null,null,null,null,null,null,null,null,0,null,null,null,0,null,null,null,0,null,null,null,0,null,null,null,0,null,null,null,null,null,null,0,0,0,null,null,null,0,null,null,null,0,null,null,null,0,null,null,null,0,null,null,null,0,null,null,null,0,null,null,null,0,"",0,null,null,null,0,null,null,null,0,"","","",null,null,null,null,null,null,null,"","","","","","","","","","","","","","","","",0,0]
[null,null,null,null,null,null,null,null,null,null,null,null,null,null,null,null,0,null,null,null,0,null,null,null,0,null,null,null,0,null,null,null,0,null,null,null,null,null,null,0,0,0,null,null,null,0,null,null,null,0,null,null,null,0,null,null,null,0,null,null,null,0,null,null,null,0,null,null,null,0,"",0,null,null,null,0,null,null,null,0,"","","",null,null,null,null,null,null,null,"","","","","","","","","","","","","","","","",0,0]
[null,null,null,null,null,null,null,null,null,null,null,null,null,null,null,null,0,null,null,null,0,null,null,null,0,null,null,null,0,null,null,null,0,null,null,null,null,null,null,0,0,0,null,null,null,0,null,null,null,0,null,null,null,0,null,null,null,0,null,null,null,0,null,null,null,0,null,null,null,0,"",0,null,null,null,0,null,null,null,0,"","","",null,null,null,null,null,null,null,"","","","","","","","","","","","","","","","",0,0]
[null,null,null,null,null,null,null,null,null,null,null,null,null,null,null,null,0,null,null,null,0,null,null,null,0,null,null,null,0,null,null,null,0,null,null,null,null,null,null,0,0,0,null,null,null,0,null,null,null,0,null,null,null,0,null,null,null,0,null,null,null,0,null,null,null,0,null,null,null,0,"",0,null,null,null,0,null,null,null,0,"","","",null,null,null,null,null,null,null,"","","","","","","","","","","","","","","","",0,0]
[null,null,null,null,null,null,null,null,null,null,null,null,null,null,null,null,0,null,null,null,0,null,null,null,0,null,null,null,0,null,null,null,0,null,null,null,null,null,null,0,0,0,null,null,null,0,null,null,null,0,null,null,null,0,null,null,null,0,null,null,null,0,null,null,null,0,null,null,null,0,"",0,null,null,null,0,null,null,null,0,"","","",null,null,null,null,null,null,null,"","","","","","","","","","","","","","","","",0,0]
[null,null,null,null,null,null,null,null,null,null,null,null,null,null,null,null,0,null,null,null,0,null,null,null,0,null,null,null,0,null,null,null,0,null,null,null,null,null,null,0,0,0,null,null,null,0,null,null,null,0,null,null,null,0,null,null,null,0,null,null,null,0,null,null,null,0,null,null,null,0,"",0,null,null,null,0,null,null,null,0,"","","",null,null,null,null,null,null,null,"","","","","","","","","","","","","","","","",0,0]
[null,null,null,null,null,null,null,null,null,null,null,null,null,null,null,null,0,null,null,null,0,null,null,null,0,null,null,null,0,null,null,null,0,null,null,null,null,null,null,0,0,0,null,null,null,0,null,null,null,0,null,null,null,0,null,null,null,0,null,null,null,0,null,null,null,0,null,null,null,0,"",0,null,null,null,0,null,null,null,0,"","","",null,null,null,null,null,null,null,"","","","","","","","","","","","","","","","",0,0]
[null,null,null,null,null,null,null,null,null,null,null,null,null,null,null,null,{"$f":"IF(P202=\"غ\",\"غ\",SUM(N202,O202,P202))","v":0},null,null,null,{"$f":"IF(T202=\"غ\",\"غ\",SUM(R202,S202,T202))","v":0},null,null,null,{"$f":"IF(X202=\"غ\",\"غ\",SUM(V202,W202,X202))","v":0},null,null,null,{"$f":"IF(AB202=\"غ\",\"غ\",SUM(Z202,AA202,AB202))","v":0},null,null,null,{"$f":"IF(AF202=\"غ\",\"غ\",SUM(AD202,AE202,AF202))","v":0},null,null,null,null,null,null,{"$f":"IF(AL202=\"غ\",\"غ\",SUM(AH202,AJ202,AL202))","v":0},{"$f":"IF(AM202=\"غ\",\"غ\",SUM(AI202,AK202,AM202))","v":0},{"$f":"IF(OR(AN202=\"غ\",AO202=\"غ\"),\"غ\",SUM(AN202,AO202))","v":0},null,null,null,{"$f":"IF(AS202=\"غ\",\"غ\",SUM(AQ202,AR202,AS202))","v":0},null,null,null,{"$f":"IF(AW202=\"غ\",\"غ\",SUM(AU202,AV202,AW202))","v":0},null,null,null,{"$f":"IF(BA202=\"غ\",\"غ\",SUM(AY202,AZ202,BA202))","v":0},null,null,null,{"$f":"IF(BE202=\"غ\",\"غ\",SUM(BC202,BD202,BE202))","v":0},null,null,null,{"$f":"IF(BI202=\"غ\",\"غ\",SUM(BG202,BH202,BI202))","v":0},null,null,null,{"$f":"IF(BM202=\"غ\",\"غ\",SUM(BK202,BL202,BM202))","v":0},null,null,null,{"$f":"IF(BQ202=\"غ\",\"غ\",SUM(BO202,BP202,BQ202))","v":0},{"$f":"IF(C202=\"\",\"\",SUM(O202,S202,W202,AE202,AR202,AV202,AZ202,BD202,BH202,BL202,BP202,AA202,AJ202,AK202))","v":""},{"$f":"SUM(Q202,U202,Y202,AG202,AT202,AX202,BB202,BF202,BJ202,BN202,BR202,AC202,AP202)","v":0},null,null,null,{"$f":"IF(BW202=\"غ\",\"غ\",SUM(BU202,BV202,BW202))","v":0},null,null,null,{"$f":"IF(CA202=\"غ\",\"غ\",SUM(BY202,BZ202,CA202))","v":0},{"$f":"IF(I202=\"\",\"\",IF(I202=\"بنات\",IF(CE202=0,\"ناجحة\",IF(DD202>2,\"راسبة\",\"دورثان\")),IF(I202=\"بنين\",IF(CE202=0,\"ناجح\",IF(DD202>2,\"راسب\",\"دورثان\")))))","v":""},{"$f":"IF(C202=\"\",\"\",IF(AND($L202=\"باقية\",$CC202=\"راسبة\"),\"وليس لها حق الاعادة\",IF(AND($L202<>\"باقية\",$CC202=\"راسبة\"),\"و  لها حق الاعادة\",IF(AND($L202=\"باقى\",$CC202=\"راسب\"),\"وليس له حق الاعادة\",IF(AND($L202<>\"باقى\",$CC202=\"راسب\"),\"و  له حق الاعادة\",IF($CC202=\"ناجحة\",\"و منقولة للصف الثانى\",IF($CC202=\"ناجح\",\"و منقول للصف الثانى\",IF($CC202=\"دورثان\",\"فى : \"&CONCATENATE($CM202,$CN202,$CO202,$CQ202,$CR202,$CS202,$CT202,$CU202,$CV202,$CW202,$CX202,$CY202,$CP202,$CZ202,$DA202,$DB202)))))))))","v":""},{"$f":"IF(C202=\"\",\"\",$DC202+$DD202)","v":""},null,null,null,null,null,null,null,{"$f":"IF(C202=\"\",\"\",IF(OR(P202<$P$9,P202=\"غ\",Q202<$Q$9),CM$5&\" - \",\"\"))","v":""},{"$f":"IF(C202=\"\",\"\",IF(OR(T202<$T$9,T202=\"غ\",U202<$U$9),CN$5&\" - \",\"\"))","v":""},{"$f":"IF(C202=\"\",\"\",IF(OR(X202<$X$9,X202=\"غ\",Y202<$Y$9),CO$5&\" - \",\"\"))","v":""},{"$f":"IF(C202=\"\",\"\",IF(OR(AB202<$AB$9,AB202=\"غ\",AC202<$AC$9),CP$5&\" - \",\"\"))","v":""},{"$f":"IF(C202=\"\",\"\",IF(OR(AF202<$AF$9,AF202=\"غ\",AG202<$AG$9),CQ$5&\" - \",\"\"))","v":""},{"$f":"IF(C202=\"\",\"\",IF(OR(AL202<$AL$9,AM202<$AM$9,AN202<$AN$9,AN202=\"غ\",AO202<$AO$9,AO202=\"غ\"),CR$5&\" - \",\"\"))","v":""},{"$f":"IF(C202=\"\",\"\",IF(OR(AS202<$AS$9,AS202=\"غ\",AT202<$AT$9),CS$5&\" - \",\"\"))","v":""},{"$f":"IF(C202=\"\",\"\",IF(OR(AW202<$AW$9,AW202=\"غ\",AX202<$AX$9),CT$5&\" - \",\"\"))","v":""},{"$f":"IF(C202=\"\",\"\",IF(OR(BA202<$BA$9,BA202=\"غ\",BB202<$BB$9),CU$5&\" - \",\"\"))","v":""},{"$f":"IF(C202=\"\",\"\",IF(OR(BE202<$BE$9,BE202=\"غ\",BF202<$BF$9),CV$5&\" - \",\"\"))","v":""},{"$f":"IF(C202=\"\",\"\",IF(OR(BI202<$BI$9,BI202=\"غ\",BJ202<$BJ$9),CW$5&\" - \",\"\"))","v":""},{"$f":"IF(C202=\"\",\"\",IF(OR(BM202<$BM$9,BM202=\"غ\",BN202<$BN$9),CX$5&\" - \",\"\"))","v":""},{"$f":"IF(C202=\"\",\"\",IF(OR(BQ202<$BQ$9,BQ202=\"غ\",BR202<$BR$9),CY$5&\" - \",\"\"))","v":""},{"$f":"IF(C202=\"\",\"\",IF(BT202<$BT$9,CZ$5&\" - \",\"\"))","v":""},{"$f":"IF(C202=\"\",\"\",IF(OR(BW202<$BW$9,BW202=\"غ\",BX202<$BX$9),DA$5,\"\"))","v":""},{"$f":"IF(C202=\"\",\"\",IF(OR(CA202<$CA$9,CA202=\"غ\",CB202<$CB$9),DB$5,\"\"))","v":""},{"$f":"COUNTIF($CZ202:$DB202,\"?*\")","v":0},{"$f":"COUNTIF($CM202:$CY202,\"?*\")","v":0}]
[null,null,null,null,null,null,null,null,null,null,null,null,null,null,null,null,0,null,null,null,0,null,null,null,0,null,null,null,0,null,null,null,0,null,null,null,null,null,null,0,0,0,null,null,null,0,null,null,null,0,null,null,null,0,null,null,null,0,null,null,null,0,null,null,null,0,null,null,null,0,"",0,null,null,null,0,null,null,null,0,"","","",null,null,null,null,null,null,null,"","","","","","","","","","","","","","","","",0,0]
[null,null,null,null,null,null,null,null,null,null,null,null,null,null,null,null,0,null,null,null,0,null,null,null,0,null,null,null,0,null,null,null,0,null,null,null,null,null,null,0,0,0,null,null,null,0,null,null,null,0,null,null,null,0,null,null,null,0,null,null,null,0,null,null,null,0,null,null,null,0,"",0,null,null,null,0,null,null,null,0,"","","",null,null,null,null,null,null,null,"","","","","","","","","","","","","","","","",0,0]
[null,null,null,null,null,null,null,null,null,null,null,null,null,null,null,null,0,null,null,null,0,null,null,null,0,null,null,null,0,null,null,null,0,null,null,null,null,null,null,0,0,0,null,null,null,0,null,null,null,0,null,null,null,0,null,null,null,0,null,null,null,0,null,null,null,0,null,null,null,0,"",0,null,null,null,0,null,null,null,0,"","","",null,null,null,null,null,null,null,"","","","","","","","","","","","","","","","",0,0]
[null,null,null,null,null,null,null,null,null,null,null,null,null,null,null,null,0,null,null,null,0,null,null,null,0,null,null,null,0,null,null,null,0,null,null,null,null,null,null,0,0,0,null,null,null,0,null,null,null,0,null,null,null,0,null,null,null,0,null,null,null,0,null,null,null,0,null,null,null,0,"",0,null,null,null,0,null,null,null,0,"","","",null,null,null,null,null,null,null,"","","","","","","","","","","","","","","","",0,0]
[null,null,null,null,null,null,null,null,null,null,null,null,null,null,null,null,0,null,null,null,0,null,null,null,0,null,null,null,0,null,null,null,0,null,null,null,null,null,null,0,0,0,null,null,null,0,null,null,null,0,null,null,null,0,null,null,null,0,null,null,null,0,null,null,null,0,null,null,null,0,"",0,null,null,null,0,null,null,null,0,"","","",null,null,null,null,null,null,null,"","","","","","","","","","","","","","","","",0,0]
[null,null,null,null,null,null,null,null,null,null,null,null,null,null,null,null,0,null,null,null,0,null,null,null,0,null,null,null,0,null,null,null,0,null,null,null,null,null,null,0,0,0,null,null,null,0,null,null,null,0,null,null,null,0,null,null,null,0,null,null,null,0,null,null,null,0,null,null,null,0,"",0,null,null,null,0,null,null,null,0,"","","",null,null,null,null,null,null,null,"","","","","","","","","","","","","","","","",0,0]
[null,null,null,null,null,null,null,null,null,null,null,null,null,null,null,null,0,null,null,null,0,null,null,null,0,null,null,null,0,null,null,null,0,null,null,null,null,null,null,0,0,0,null,null,null,0,null,null,null,0,null,null,null,0,null,null,null,0,null,null,null,0,null,null,null,0,null,null,null,0,"",0,null,null,null,0,null,null,null,0,"","","",null,null,null,null,null,null,null,"","","","","","","","","","","","","","","","",0,0]
[null,null,null,null,null,null,null,null,null,null,null,null,null,null,null,null,0,null,null,null,0,null,null,null,0,null,null,null,0,null,null,null,0,null,null,null,null,null,null,0,0,0,null,null,null,0,null,null,null,0,null,null,null,0,null,null,null,0,null,null,null,0,null,null,null,0,null,null,null,0,"",0,null,null,null,0,null,null,null,0,"","","",null,null,null,null,null,null,null,"","","","","","","","","","","","","","","","",0,0]
[null,null,null,null,null,null,null,null,null,null,null,null,null,null,null,null,0,null,null,null,0,null,null,null,0,null,null,null,0,null,null,null,0,null,null,null,null,null,null,0,0,0,null,null,null,0,null,null,null,0,null,null,null,0,null,null,null,0,null,null,null,0,null,null,null,0,null,null,null,0,"",0,null,null,null,0,null,null,null,0,"","","",null,null,null,null,null,null,null,"","","","","","","","","","","","","","","","",0,0]
[null,null,null,null,null,null,null,null,null,null,null,null,null,null,null,null,0,null,null,null,0,null,null,null,0,null,null,null,0,null,null,null,0,null,null,null,null,null,null,0,0,0,null,null,null,0,null,null,null,0,null,null,null,0,null,null,null,0,null,null,null,0,null,null,null,0,null,null,null,0,"",0,null,null,null,0,null,null,null,0,"","","",null,null,null,null,null,null,null,"","","","","","","","","","","","","","","","",0,0]
[null,null,null,null,null,null,null,null,null,null,null,null,null,null,null,null,0,null,null,null,0,null,null,null,0,null,null,null,0,null,null,null,0,null,null,null,null,null,null,0,0,0,null,null,null,0,null,null,null,0,null,null,null,0,null,null,null,0,null,null,null,0,null,null,null,0,null,null,null,0,"",0,null,null,null,0,null,null,null,0,"","","",null,null,null,null,null,null,null,"","","","","","","","","","","","","","","","",0,0]
[null,null,null,null,null,null,null,null,null,null,null,null,null,null,null,null,0,null,null,null,0,null,null,null,0,null,null,null,0,null,null,null,0,null,null,null,null,null,null,0,0,0,null,null,null,0,null,null,null,0,null,null,null,0,null,null,null,0,null,null,null,0,null,null,null,0,null,null,null,0,"",0,null,null,null,0,null,null,null,0,"","","",null,null,null,null,null,null,null,"","","","","","","","","","","","","","","","",0,0]
[null,null,null,null,null,null,null,null,null,null,null,null,null,null,null,null,0,null,null,null,0,null,null,null,0,null,null,null,0,null,null,null,0,null,null,null,null,null,null,0,0,0,null,null,null,0,null,null,null,0,null,null,null,0,null,null,null,0,null,null,null,0,null,null,null,0,null,null,null,0,"",0,null,null,null,0,null,null,null,0,"","","",null,null,null,null,null,null,null,"","","","","","","","","","","","","","","","",0,0]
[null,null,null,null,null,null,null,null,null,null,null,null,null,null,null,null,0,null,null,null,0,null,null,null,0,null,null,null,0,null,null,null,0,null,null,null,null,null,null,0,0,0,null,null,null,0,null,null,null,0,null,null,null,0,null,null,null,0,null,null,null,0,null,null,null,0,null,null,null,0,"",0,null,null,null,0,null,null,null,0,"","","",null,null,null,null,null,null,null,"","","","","","","","","","","","","","","","",0,0]
[null,null,null,null,null,null,null,null,null,null,null,null,null,null,null,null,0,null,null,null,0,null,null,null,0,null,null,null,0,null,null,null,0,null,null,null,null,null,null,0,0,0,null,null,null,0,null,null,null,0,null,null,null,0,null,null,null,0,null,null,null,0,null,null,null,0,null,null,null,0,"",0,null,null,null,0,null,null,null,0,"","","",null,null,null,null,null,null,null,"","","","","","","","","","","","","","","","",0,0]
[null,null,null,null,null,null,null,null,null,null,null,null,null,null,null,null,0,null,null,null,0,null,null,null,0,null,null,null,0,null,null,null,0,null,null,null,null,null,null,0,0,0,null,null,null,0,null,null,null,0,null,null,null,0,null,null,null,0,null,null,null,0,null,null,null,0,null,null,null,0,"",0,null,null,null,0,null,null,null,0,"","","",null,null,null,null,null,null,null,"","","","","","","","","","","","","","","","",0,0]
[null,null,null,null,null,null,null,null,null,null,null,null,null,null,null,null,0,null,null,null,0,null,null,null,0,null,null,null,0,null,null,null,0,null,null,null,null,null,null,0,0,0,null,null,null,0,null,null,null,0,null,null,null,0,null,null,null,0,null,null,null,0,null,null,null,0,null,null,null,0,"",0,null,null,null,0,null,null,null,0,"","","",null,null,null,null,null,null,null,"","","","","","","","","","","","","","","","",0,0]
[null,null,null,null,null,null,null,null,null,null,null,null,null,null,null,null,0,null,null,null,0,null,null,null,0,null,null,null,0,null,null,null,0,null,null,null,null,null,null,0,0,0,null,null,null,0,null,null,null,0,null,null,null,0,null,null,null,0,null,null,null,0,null,null,null,0,null,null,null,0,"",0,null,null,null,0,null,null,null,0,"","","",null,null,null,null,null,null,null,"","","","","","","","","","","","","","","","",0,0]
[null,null,null,null,null,null,null,null,null,null,null,null,null,null,null,null,0,null,null,null,0,null,null,null,0,null,null,null,0,null,null,null,0,null,null,null,null,null,null,0,0,0,null,null,null,0,null,null,null,0,null,null,null,0,null,null,null,0,null,null,null,0,null,null,null,0,null,null,null,0,"",0,null,null,null,0,null,null,null,0,"","","",null,null,null,null,null,null,null,"","","","","","","","","","","","","","","","",0,0]
[null,null,null,null,null,null,null,null,null,null,null,null,null,null,null,null,0,null,null,null,0,null,null,null,0,null,null,null,0,null,null,null,0,null,null,null,null,null,null,0,0,0,null,null,null,0,null,null,null,0,null,null,null,0,null,null,null,0,null,null,null,0,null,null,null,0,null,null,null,0,"",0,null,null,null,0,null,null,null,0,"","","",null,null,null,null,null,null,null,"","","","","","","","","","","","","","","","",0,0]
[null,null,null,null,null,null,null,null,null,null,null,null,null,null,null,null,0,null,null,null,0,null,null,null,0,null,null,null,0,null,null,null,0,null,null,null,null,null,null,0,0,0,null,null,null,0,null,null,null,0,null,null,null,0,null,null,null,0,null,null,null,0,null,null,null,0,null,null,null,0,"",0,null,null,null,0,null,null,null,0,"","","",null,null,null,null,null,null,null,"","","","","","","","","","","","","","","","",0,0]
[null,null,null,null,null,null,null,null,null,null,null,null,null,null,null,null,0,null,null,null,0,null,null,null,0,null,null,null,0,null,null,null,0,null,null,null,null,null,null,0,0,0,null,null,null,0,null,null,null,0,null,null,null,0,null,null,null,0,null,null,null,0,null,null,null,0,null,null,null,0,"",0,null,null,null,0,null,null,null,0,"","","",null,null,null,null,null,null,null,"","","","","","","","","","","","","","","","",0,0]
[null,null,null,null,null,null,null,null,null,null,null,null,null,null,null,null,0,null,null,null,0,null,null,null,0,null,null,null,0,null,null,null,0,null,null,null,null,null,null,0,0,0,null,null,null,0,null,null,null,0,null,null,null,0,null,null,null,0,null,null,null,0,null,null,null,0,null,null,null,0,"",0,null,null,null,0,null,null,null,0,"","","",null,null,null,null,null,null,null,"","","","","","","","","","","","","","","","",0,0]
[null,null,null,null,null,null,null,null,null,null,null,null,null,null,null,null,0,null,null,null,0,null,null,null,0,null,null,null,0,null,null,null,0,null,null,null,null,null,null,0,0,0,null,null,null,0,null,null,null,0,null,null,null,0,null,null,null,0,null,null,null,0,null,null,null,0,null,null,null,0,"",0,null,null,null,0,null,null,null,0,"","","",null,null,null,null,null,null,null,"","","","","","","","","","","","","","","","",0,0]
[null,null,null,null,null,null,null,null,null,null,null,null,null,null,null,null,0,null,null,null,0,null,null,null,0,null,null,null,0,null,null,null,0,null,null,null,null,null,null,0,0,0,null,null,null,0,null,null,null,0,null,null,null,0,null,null,null,0,null,null,null,0,null,null,null,0,null,null,null,0,"",0,null,null,null,0,null,null,null,0,"","","",null,null,null,null,null,null,null,"","","","","","","","","","","","","","","","",0,0]
[null,null,null,null,null,null,null,null,null,null,null,null,null,null,null,null,0,null,null,null,0,null,null,null,0,null,null,null,0,null,null,null,0,null,null,null,null,null,null,0,0,0,null,null,null,0,null,null,null,0,null,null,null,0,null,null,null,0,null,null,null,0,null,null,null,0,null,null,null,0,"",0,null,null,null,0,null,null,null,0,"","","",null,null,null,null,null,null,null,"","","","","","","","","","","","","","","","",0,0]
[null,null,null,null,null,null,null,null,null,null,null,null,null,null,null,null,0,null,null,null,0,null,null,null,0,null,null,null,0,null,null,null,0,null,null,null,null,null,null,0,0,0,null,null,null,0,null,null,null,0,null,null,null,0,null,null,null,0,null,null,null,0,null,null,null,0,null,null,null,0,"",0,null,null,null,0,null,null,null,0,"","","",null,null,null,null,null,null,null,"","","","","","","","","","","","","","","","",0,0]
[null,null,null,null,null,null,null,null,null,null,null,null,null,null,null,null,0,null,null,null,0,null,null,null,0,null,null,null,0,null,null,null,0,null,null,null,null,null,null,0,0,0,null,null,null,0,null,null,null,0,null,null,null,0,null,null,null,0,null,null,null,0,null,null,null,0,null,null,null,0,"",0,null,null,null,0,null,null,null,0,"","","",null,null,null,null,null,null,null,"","","","","","","","","","","","","","","","",0,0]
[null,null,null,null,null,null,null,null,null,null,null,null,null,null,null,null,0,null,null,null,0,null,null,null,0,null,null,null,0,null,null,null,0,null,null,null,null,null,null,0,0,0,null,null,null,0,null,null,null,0,null,null,null,0,null,null,null,0,null,null,null,0,null,null,null,0,null,null,null,0,"",0,null,null,null,0,null,null,null,0,"","","",null,null,null,null,null,null,null,"","","","","","","","","","","","","","","","",0,0]
[null,null,null,null,null,null,null,null,null,null,null,null,null,null,null,null,0,null,null,null,0,null,null,null,0,null,null,null,0,null,null,null,0,null,null,null,null,null,null,0,0,0,null,null,null,0,null,null,null,0,null,null,null,0,null,null,null,0,null,null,null,0,null,null,null,0,null,null,null,0,"",0,null,null,null,0,null,null,null,0,"","","",null,null,null,null,null,null,null,"","","","","","","","","","","","","","","","",0,0]
[null,null,null,null,null,null,null,null,null,null,null,null,null,null,null,null,0,null,null,null,0,null,null,null,0,null,null,null,0,null,null,null,0,null,null,null,null,null,null,0,0,0,null,null,null,0,null,null,null,0,null,null,null,0,null,null,null,0,null,null,null,0,null,null,null,0,null,null,null,0,"",0,null,null,null,0,null,null,null,0,"","","",null,null,null,null,null,null,null,"","","","","","","","","","","","","","","","",0,0]
[null,null,null,null,null,null,null,null,null,null,null,null,null,null,null,null,0,null,null,null,0,null,null,null,0,null,null,null,0,null,null,null,0,null,null,null,null,null,null,0,0,0,null,null,null,0,null,null,null,0,null,null,null,0,null,null,null,0,null,null,null,0,null,null,null,0,null,null,null,0,"",0,null,null,null,0,null,null,null,0,"","","",null,null,null,null,null,null,null,"","","","","","","","","","","","","","","","",0,0]
[null,null,null,null,null,null,null,null,null,null,null,null,null,null,null,null,0,null,null,null,0,null,null,null,0,null,null,null,0,null,null,null,0,null,null,null,null,null,null,0,0,0,null,null,null,0,null,null,null,0,null,null,null,0,null,null,null,0,null,null,null,0,null,null,null,0,null,null,null,0,"",0,null,null,null,0,null,null,null,0,"","","",null,null,null,null,null,null,null,"","","","","","","","","","","","","","","","",0,0]
[null,null,null,null,null,null,null,null,null,null,null,null,null,null,null,null,0,null,null,null,0,null,null,null,0,null,null,null,0,null,null,null,0,null,null,null,null,null,null,0,0,0,null,null,null,0,null,null,null,0,null,null,null,0,null,null,null,0,null,null,null,0,null,null,null,0,null,null,null,0,"",0,null,null,null,0,null,null,null,0,"","","",null,null,null,null,null,null,null,"","","","","","","","","","","","","","","","",0,0]
[null,null,null,null,null,null,null,null,null,null,null,null,null,null,null,null,0,null,null,null,0,null,null,null,0,null,null,null,0,null,null,null,0,null,null,null,null,null,null,0,0,0,null,null,null,0,null,null,null,0,null,null,null,0,null,null,null,0,null,null,null,0,null,null,null,0,null,null,null,0,"",0,null,null,null,0,null,null,null,0,"","","",null,null,null,null,null,null,null,"","","","","","","","","","","","","","","","",0,0]
[null,null,null,null,null,null,null,null,null,null,null,null,null,null,null,null,0,null,null,null,0,null,null,null,0,null,null,null,0,null,null,null,0,null,null,null,null,null,null,0,0,0,null,null,null,0,null,null,null,0,null,null,null,0,null,null,null,0,null,null,null,0,null,null,null,0,null,null,null,0,"",0,null,null,null,0,null,null,null,0,"","","",null,null,null,null,null,null,null,"","","","","","","","","","","","","","","","",0,0]
[null,null,null,null,null,null,null,null,null,null,null,null,null,null,null,null,0,null,null,null,0,null,null,null,0,null,null,null,0,null,null,null,0,null,null,null,null,null,null,0,0,0,null,null,null,0,null,null,null,0,null,null,null,0,null,null,null,0,null,null,null,0,null,null,null,0,null,null,null,0,"",0,null,null,null,0,null,null,null,0,"","","",null,null,null,null,null,null,null,"","","","","","","","","","","","","","","","",0,0]
[null,null,null,null,null,null,null,null,null,null,null,null,null,null,null,null,0,null,null,null,0,null,null,null,0,null,null,null,0,null,null,null,0,null,null,null,null,null,null,0,0,0,null,null,null,0,null,null,null,0,null,null,null,0,null,null,null,0,null,null,null,0,null,null,null,0,null,null,null,0,"",0,null,null,null,0,null,null,null,0,"","","",null,null,null,null,null,null,null,"","","","","","","","","","","","","","","","",0,0]
[null,null,null,null,null,null,null,null,null,null,null,null,null,null,null,null,0,null,null,null,0,null,null,null,0,null,null,null,0,null,null,null,0,null,null,null,null,null,null,0,0,0,null,null,null,0,null,null,null,0,null,null,null,0,null,null,null,0,null,null,null,0,null,null,null,0,null,null,null,0,"",0,null,null,null,0,null,null,null,0,"","","",null,null,null,null,null,null,null,"","","","","","","","","","","","","","","","",0,0]
[null,null,null,null,null,null,null,null,null,null,null,null,null,null,null,null,0,null,null,null,0,null,null,null,0,null,null,null,0,null,null,null,0,null,null,null,null,null,null,0,0,0,null,null,null,0,null,null,null,0,null,null,null,0,null,null,null,0,null,null,null,0,null,null,null,0,null,null,null,0,"",0,null,null,null,0,null,null,null,0,"","","",null,null,null,null,null,null,null,"","","","","","","","","","","","","","","","",0,0]
[null,null,null,null,null,null,null,null,null,null,null,null,null,null,null,null,0,null,null,null,0,null,null,null,0,null,null,null,0,null,null,null,0,null,null,null,null,null,null,0,0,0,null,null,null,0,null,null,null,0,null,null,null,0,null,null,null,0,null,null,null,0,null,null,null,0,null,null,null,0,"",0,null,null,null,0,null,null,null,0,"","","",null,null,null,null,null,null,null,"","","","","","","","","","","","","","","","",0,0]
[null,null,null,null,null,null,null,null,null,null,null,null,null,null,null,null,0,null,null,null,0,null,null,null,0,null,null,null,0,null,null,null,0,null,null,null,null,null,null,0,0,0,null,null,null,0,null,null,null,0,null,null,null,0,null,null,null,0,null,null,null,0,null,null,null,0,null,null,null,0,"",0,null,null,null,0,null,null,null,0,"","","",null,null,null,null,null,null,null,"","","","","","","","","","","","","","","","",0,0]
[null,null,null,null,null,null,null,null,null,null,null,null,null,null,null,null,0,null,null,null,0,null,null,null,0,null,null,null,0,null,null,null,0,null,null,null,null,null,null,0,0,0,null,null,null,0,null,null,null,0,null,null,null,0,null,null,null,0,null,null,null,0,null,null,null,0,null,null,null,0,"",0,null,null,null,0,null,null,null,0,"","","",null,null,null,null,null,null,null,"","","","","","","","","","","","","","","","",0,0]
[null,null,null,null,null,null,null,null,null,null,null,null,null,null,null,null,0,null,null,null,0,null,null,null,0,null,null,null,0,null,null,null,0,null,null,null,null,null,null,0,0,0,null,null,null,0,null,null,null,0,null,null,null,0,null,null,null,0,null,null,null,0,null,null,null,0,null,null,null,0,"",0,null,null,null,0,null,null,null,0,"","","",null,null,null,null,null,null,null,"","","","","","","","","","","","","","","","",0,0]
[null,null,null,null,null,null,null,null,null,null,null,null,null,null,null,null,0,null,null,null,0,null,null,null,0,null,null,null,0,null,null,null,0,null,null,null,null,null,null,0,0,0,null,null,null,0,null,null,null,0,null,null,null,0,null,null,null,0,null,null,null,0,null,null,null,0,null,null,null,0,"",0,null,null,null,0,null,null,null,0,"","","",null,null,null,null,null,null,null,"","","","","","","","","","","","","","","","",0,0]
[null,null,null,null,null,null,null,null,null,null,null,null,null,null,null,null,0,null,null,null,0,null,null,null,0,null,null,null,0,null,null,null,0,null,null,null,null,null,null,0,0,0,null,null,null,0,null,null,null,0,null,null,null,0,null,null,null,0,null,null,null,0,null,null,null,0,null,null,null,0,"",0,null,null,null,0,null,null,null,0,"","","",null,null,null,null,null,null,null,"","","","","","","","","","","","","","","","",0,0]
[null,null,null,null,null,null,null,null,null,null,null,null,null,null,null,null,0,null,null,null,0,null,null,null,0,null,null,null,0,null,null,null,0,null,null,null,null,null,null,0,0,0,null,null,null,0,null,null,null,0,null,null,null,0,null,null,null,0,null,null,null,0,null,null,null,0,null,null,null,0,"",0,null,null,null,0,null,null,null,0,"","","",null,null,null,null,null,null,null,"","","","","","","","","","","","","","","","",0,0]
[null,null,null,null,null,null,null,null,null,null,null,null,null,null,null,null,0,null,null,null,0,null,null,null,0,null,null,null,0,null,null,null,0,null,null,null,null,null,null,0,0,0,null,null,null,0,null,null,null,0,null,null,null,0,null,null,null,0,null,null,null,0,null,null,null,0,null,null,null,0,"",0,null,null,null,0,null,null,null,0,"","","",null,null,null,null,null,null,null,"","","","","","","","","","","","","","","","",0,0]
[null,null,null,null,null,null,null,null,null,null,null,null,null,null,null,null,0,null,null,null,0,null,null,null,0,null,null,null,0,null,null,null,0,null,null,null,null,null,null,0,0,0,null,null,null,0,null,null,null,0,null,null,null,0,null,null,null,0,null,null,null,0,null,null,null,0,null,null,null,0,"",0,null,null,null,0,null,null,null,0,"","","",null,null,null,null,null,null,null,"","","","","","","","","","","","","","","","",0,0]
[null,null,null,null,null,null,null,null,null,null,null,null,null,null,null,null,0,null,null,null,0,null,null,null,0,null,null,null,0,null,null,null,0,null,null,null,null,null,null,0,0,0,null,null,null,0,null,null,null,0,null,null,null,0,null,null,null,0,null,null,null,0,null,null,null,0,null,null,null,0,"",0,null,null,null,0,null,null,null,0,"","","",null,null,null,null,null,null,null,"","","","","","","","","","","","","","","","",0,0]
[null,null,null,null,null,null,null,null,null,null,null,null,null,null,null,null,0,null,null,null,0,null,null,null,0,null,null,null,0,null,null,null,0,null,null,null,null,null,null,0,0,0,null,null,null,0,null,null,null,0,null,null,null,0,null,null,null,0,null,null,null,0,null,null,null,0,null,null,null,0,"",0,null,null,null,0,null,null,null,0,"","","",null,null,null,null,null,null,null,"","","","","","","","","","","","","","","","",0,0]
[null,null,null,null,null,null,null,null,null,null,null,null,null,null,null,null,0,null,null,null,0,null,null,null,0,null,null,null,0,null,null,null,0,null,null,null,null,null,null,0,0,0,null,null,null,0,null,null,null,0,null,null,null,0,null,null,null,0,null,null,null,0,null,null,null,0,null,null,null,0,"",0,null,null,null,0,null,null,null,0,"","","",null,null,null,null,null,null,null,"","","","","","","","","","","","","","","","",0,0]
[null,null,null,null,null,null,null,null,null,null,null,null,null,null,null,null,0,null,null,null,0,null,null,null,0,null,null,null,0,null,null,null,0,null,null,null,null,null,null,0,0,0,null,null,null,0,null,null,null,0,null,null,null,0,null,null,null,0,null,null,null,0,null,null,null,0,null,null,null,0,"",0,null,null,null,0,null,null,null,0,"","","",null,null,null,null,null,null,null,"","","","","","","","","","","","","","","","",0,0]
[null,null,null,null,null,null,null,null,null,null,null,null,null,null,null,null,0,null,null,null,0,null,null,null,0,null,null,null,0,null,null,null,0,null,null,null,null,null,null,0,0,0,null,null,null,0,null,null,null,0,null,null,null,0,null,null,null,0,null,null,null,0,null,null,null,0,null,null,null,0,"",0,null,null,null,0,null,null,null,0,"","","",null,null,null,null,null,null,null,"","","","","","","","","","","","","","","","",0,0]
[null,null,null,null,null,null,null,null,null,null,null,null,null,null,null,null,0,null,null,null,0,null,null,null,0,null,null,null,0,null,null,null,0,null,null,null,null,null,null,0,0,0,null,null,null,0,null,null,null,0,null,null,null,0,null,null,null,0,null,null,null,0,null,null,null,0,null,null,null,0,"",0,null,null,null,0,null,null,null,0,"","","",null,null,null,null,null,null,null,"","","","","","","","","","","","","","","","",0,0]
[null,null,null,null,null,null,null,null,null,null,null,null,null,null,null,null,0,null,null,null,0,null,null,null,0,null,null,null,0,null,null,null,0,null,null,null,null,null,null,0,0,0,null,null,null,0,null,null,null,0,null,null,null,0,null,null,null,0,null,null,null,0,null,null,null,0,null,null,null,0,"",0,null,null,null,0,null,null,null,0,"","","",null,null,null,null,null,null,null,"","","","","","","","","","","","","","","","",0,0]
[null,null,null,null,null,null,null,null,null,null,null,null,null,null,null,null,0,null,null,null,0,null,null,null,0,null,null,null,0,null,null,null,0,null,null,null,null,null,null,0,0,0,null,null,null,0,null,null,null,0,null,null,null,0,null,null,null,0,null,null,null,0,null,null,null,0,null,null,null,0,"",0,null,null,null,0,null,null,null,0,"","","",null,null,null,null,null,null,null,"","","","","","","","","","","","","","","","",0,0]
[null,null,null,null,null,null,null,null,null,null,null,null,null,null,null,null,0,null,null,null,0,null,null,null,0,null,null,null,0,null,null,null,0,null,null,null,null,null,null,0,0,0,null,null,null,0,null,null,null,0,null,null,null,0,null,null,null,0,null,null,null,0,null,null,null,0,null,null,null,0,"",0,null,null,null,0,null,null,null,0,"","","",null,null,null,null,null,null,null,"","","","","","","","","","","","","","","","",0,0]
[null,null,null,null,null,null,null,null,null,null,null,null,null,null,null,null,0,null,null,null,0,null,null,null,0,null,null,null,0,null,null,null,0,null,null,null,null,null,null,0,0,0,null,null,null,0,null,null,null,0,null,null,null,0,null,null,null,0,null,null,null,0,null,null,null,0,null,null,null,0,"",0,null,null,null,0,null,null,null,0,"","","",null,null,null,null,null,null,null,"","","","","","","","","","","","","","","","",0,0]
[null,null,null,null,null,null,null,null,null,null,null,null,null,null,null,null,0,null,null,null,0,null,null,null,0,null,null,null,0,null,null,null,0,null,null,null,null,null,null,0,0,0,null,null,null,0,null,null,null,0,null,null,null,0,null,null,null,0,null,null,null,0,null,null,null,0,null,null,null,0,"",0,null,null,null,0,null,null,null,0,"","","",null,null,null,null,null,null,null,"","","","","","","","","","","","","","","","",0,0]
[null,null,null,null,null,null,null,null,null,null,null,null,null,null,null,null,0,null,null,null,0,null,null,null,0,null,null,null,0,null,null,null,0,null,null,null,null,null,null,0,0,0,null,null,null,0,null,null,null,0,null,null,null,0,null,null,null,0,null,null,null,0,null,null,null,0,null,null,null,0,"",0,null,null,null,0,null,null,null,0,"","","",null,null,null,null,null,null,null,"","","","","","","","","","","","","","","","",0,0]
[null,null,null,null,null,null,null,null,null,null,null,null,null,null,null,null,0,null,null,null,0,null,null,null,0,null,null,null,0,null,null,null,0,null,null,null,null,null,null,0,0,0,null,null,null,0,null,null,null,0,null,null,null,0,null,null,null,0,null,null,null,0,null,null,null,0,null,null,null,0,"",0,null,null,null,0,null,null,null,0,"","","",null,null,null,null,null,null,null,"","","","","","","","","","","","","","","","",0,0]
[null,null,null,null,null,null,null,null,null,null,null,null,null,null,null,null,0,null,null,null,0,null,null,null,0,null,null,null,0,null,null,null,0,null,null,null,null,null,null,0,0,0,null,null,null,0,null,null,null,0,null,null,null,0,null,null,null,0,null,null,null,0,null,null,null,0,null,null,null,0,"",0,null,null,null,0,null,null,null,0,"","","",null,null,null,null,null,null,null,"","","","","","","","","","","","","","","","",0,0]
[null,null,null,null,null,null,null,null,null,null,null,null,null,null,null,null,{"$f":"IF(P266=\"غ\",\"غ\",SUM(N266,O266,P266))","v":0},null,null,null,{"$f":"IF(T266=\"غ\",\"غ\",SUM(R266,S266,T266))","v":0},null,null,null,{"$f":"IF(X266=\"غ\",\"غ\",SUM(V266,W266,X266))","v":0},null,null,null,{"$f":"IF(AB266=\"غ\",\"غ\",SUM(Z266,AA266,AB266))","v":0},null,null,null,{"$f":"IF(AF266=\"غ\",\"غ\",SUM(AD266,AE266,AF266))","v":0},null,null,null,null,null,null,{"$f":"IF(AL266=\"غ\",\"غ\",SUM(AH266,AJ266,AL266))","v":0},{"$f":"IF(AM266=\"غ\",\"غ\",SUM(AI266,AK266,AM266))","v":0},{"$f":"IF(OR(AN266=\"غ\",AO266=\"غ\"),\"غ\",SUM(AN266,AO266))","v":0},null,null,null,{"$f":"IF(AS266=\"غ\",\"غ\",SUM(AQ266,AR266,AS266))","v":0},null,null,null,{"$f":"IF(AW266=\"غ\",\"غ\",SUM(AU266,AV266,AW266))","v":0},null,null,null,{"$f":"IF(BA266=\"غ\",\"غ\",SUM(AY266,AZ266,BA266))","v":0},null,null,null,{"$f":"IF(BE266=\"غ\",\"غ\",SUM(BC266,BD266,BE266))","v":0},null,null,null,{"$f":"IF(BI266=\"غ\",\"غ\",SUM(BG266,BH266,BI266))","v":0},null,null,null,{"$f":"IF(BM266=\"غ\",\"غ\",SUM(BK266,BL266,BM266))","v":0},null,null,null,{"$f":"IF(BQ266=\"غ\",\"غ\",SUM(BO266,BP266,BQ266))","v":0},{"$f":"IF(C266=\"\",\"\",SUM(O266,S266,W266,AE266,AR266,AV266,AZ266,BD266,BH266,BL266,BP266,AA266,AJ266,AK266))","v":""},{"$f":"SUM(Q266,U266,Y266,AG266,AT266,AX266,BB266,BF266,BJ266,BN266,BR266,AC266,AP266)","v":0},null,null,null,{"$f":"IF(BW266=\"غ\",\"غ\",SUM(BU266,BV266,BW266))","v":0},null,null,null,{"$f":"IF(CA266=\"غ\",\"غ\",SUM(BY266,BZ266,CA266))","v":0},{"$f":"IF(I266=\"\",\"\",IF(I266=\"بنات\",IF(CE266=0,\"ناجحة\",IF(DD266>2,\"راسبة\",\"دورثان\")),IF(I266=\"بنين\",IF(CE266=0,\"ناجح\",IF(DD266>2,\"راسب\",\"دورثان\")))))","v":""},{"$f":"IF(C266=\"\",\"\",IF(AND($L266=\"باقية\",$CC266=\"راسبة\"),\"وليس لها حق الاعادة\",IF(AND($L266<>\"باقية\",$CC266=\"راسبة\"),\"و  لها حق الاعادة\",IF(AND($L266=\"باقى\",$CC266=\"راسب\"),\"وليس له حق الاعادة\",IF(AND($L266<>\"باقى\",$CC266=\"راسب\"),\"و  له حق الاعادة\",IF($CC266=\"ناجحة\",\"و منقولة للصف الثانى\",IF($CC266=\"ناجح\",\"و منقول للصف الثانى\",IF($CC266=\"دورثان\",\"فى : \"&CONCATENATE($CM266,$CN266,$CO266,$CQ266,$CR266,$CS266,$CT266,$CU266,$CV266,$CW266,$CX266,$CY266,$CP266,$CZ266,$DA266,$DB266)))))))))","v":""},{"$f":"IF(C266=\"\",\"\",$DC266+$DD266)","v":""},null,null,null,null,null,null,null,{"$f":"IF(C266=\"\",\"\",IF(OR(P266<$P$9,P266=\"غ\",Q266<$Q$9),CM$5&\" - \",\"\"))","v":""},{"$f":"IF(C266=\"\",\"\",IF(OR(T266<$T$9,T266=\"غ\",U266<$U$9),CN$5&\" - \",\"\"))","v":""},{"$f":"IF(C266=\"\",\"\",IF(OR(X266<$X$9,X266=\"غ\",Y266<$Y$9),CO$5&\" - \",\"\"))","v":""},{"$f":"IF(C266=\"\",\"\",IF(OR(AB266<$AB$9,AB266=\"غ\",AC266<$AC$9),CP$5&\" - \",\"\"))","v":""},{"$f":"IF(C266=\"\",\"\",IF(OR(AF266<$AF$9,AF266=\"غ\",AG266<$AG$9),CQ$5&\" - \",\"\"))","v":""},{"$f":"IF(C266=\"\",\"\",IF(OR(AL266<$AL$9,AM266<$AM$9,AN266<$AN$9,AN266=\"غ\",AO266<$AO$9,AO266=\"غ\"),CR$5&\" - \",\"\"))","v":""},{"$f":"IF(C266=\"\",\"\",IF(OR(AS266<$AS$9,AS266=\"غ\",AT266<$AT$9),CS$5&\" - \",\"\"))","v":""},{"$f":"IF(C266=\"\",\"\",IF(OR(AW266<$AW$9,AW266=\"غ\",AX266<$AX$9),CT$5&\" - \",\"\"))","v":""},{"$f":"IF(C266=\"\",\"\",IF(OR(BA266<$BA$9,BA266=\"غ\",BB266<$BB$9),CU$5&\" - \",\"\"))","v":""},{"$f":"IF(C266=\"\",\"\",IF(OR(BE266<$BE$9,BE266=\"غ\",BF266<$BF$9),CV$5&\" - \",\"\"))","v":""},{"$f":"IF(C266=\"\",\"\",IF(OR(BI266<$BI$9,BI266=\"غ\",BJ266<$BJ$9),CW$5&\" - \",\"\"))","v":""},{"$f":"IF(C266=\"\",\"\",IF(OR(BM266<$BM$9,BM266=\"غ\",BN266<$BN$9),CX$5&\" - \",\"\"))","v":""},{"$f":"IF(C266=\"\",\"\",IF(OR(BQ266<$BQ$9,BQ266=\"غ\",BR266<$BR$9),CY$5&\" - \",\"\"))","v":""},{"$f":"IF(C266=\"\",\"\",IF(BT266<$BT$9,CZ$5&\" - \",\"\"))","v":""},{"$f":"IF(C266=\"\",\"\",IF(OR(BW266<$BW$9,BW266=\"غ\",BX266<$BX$9),DA$5,\"\"))","v":""},{"$f":"IF(C266=\"\",\"\",IF(OR(CA266<$CA$9,CA266=\"غ\",CB266<$CB$9),DB$5,\"\"))","v":""},{"$f":"COUNTIF($CZ266:$DB266,\"?*\")","v":0},{"$f":"COUNTIF($CM266:$CY266,\"?*\")","v":0}]
[null,null,null,null,null,null,null,null,null,null,null,null,null,null,null,null,0,null,null,null,0,null,null,null,0,null,null,null,0,null,null,null,0,null,null,null,null,null,null,0,0,0,null,null,null,0,null,null,null,0,null,null,null,0,null,null,null,0,null,null,null,0,null,null,null,0,null,null,null,0,"",0,null,null,null,0,null,null,null,0,"","","",null,null,null,null,null,null,null,"","","","","","","","","","","","","","","","",0,0]
[null,null,null,null,null,null,null,null,null,null,null,null,null,null,null,null,0,null,null,null,0,null,null,null,0,null,null,null,0,null,null,null,0,null,null,null,null,null,null,0,0,0,null,null,null,0,null,null,null,0,null,null,null,0,null,null,null,0,null,null,null,0,null,null,null,0,null,null,null,0,"",0,null,null,null,0,null,null,null,0,"","","",null,null,null,null,null,null,null,"","","","","","","","","","","","","","","","",0,0]
[null,null,null,null,null,null,null,null,null,null,null,null,null,null,null,null,0,null,null,null,0,null,null,null,0,null,null,null,0,null,null,null,0,null,null,null,null,null,null,0,0,0,null,null,null,0,null,null,null,0,null,null,null,0,null,null,null,0,null,null,null,0,null,null,null,0,null,null,null,0,"",0,null,null,null,0,null,null,null,0,"","","",null,null,null,null,null,null,null,"","","","","","","","","","","","","","","","",0,0]
[null,null,null,null,null,null,null,null,null,null,null,null,null,null,null,null,0,null,null,null,0,null,null,null,0,null,null,null,0,null,null,null,0,null,null,null,null,null,null,0,0,0,null,null,null,0,null,null,null,0,null,null,null,0,null,null,null,0,null,null,null,0,null,null,null,0,null,null,null,0,"",0,null,null,null,0,null,null,null,0,"","","",null,null,null,null,null,null,null,"","","","","","","","","","","","","","","","",0,0]
[null,null,null,null,null,null,null,null,null,null,null,null,null,null,null,null,0,null,null,null,0,null,null,null,0,null,null,null,0,null,null,null,0,null,null,null,null,null,null,0,0,0,null,null,null,0,null,null,null,0,null,null,null,0,null,null,null,0,null,null,null,0,null,null,null,0,null,null,null,0,"",0,null,null,null,0,null,null,null,0,"","","",null,null,null,null,null,null,null,"","","","","","","","","","","","","","","","",0,0]
[null,null,null,null,null,null,null,null,null,null,null,null,null,null,null,null,0,null,null,null,0,null,null,null,0,null,null,null,0,null,null,null,0,null,null,null,null,null,null,0,0,0,null,null,null,0,null,null,null,0,null,null,null,0,null,null,null,0,null,null,null,0,null,null,null,0,null,null,null,0,"",0,null,null,null,0,null,null,null,0,"","","",null,null,null,null,null,null,null,"","","","","","","","","","","","","","","","",0,0]
[null,null,null,null,null,null,null,null,null,null,null,null,null,null,null,null,0,null,null,null,0,null,null,null,0,null,null,null,0,null,null,null,0,null,null,null,null,null,null,0,0,0,null,null,null,0,null,null,null,0,null,null,null,0,null,null,null,0,null,null,null,0,null,null,null,0,null,null,null,0,"",0,null,null,null,0,null,null,null,0,"","","",null,null,null,null,null,null,null,"","","","","","","","","","","","","","","","",0,0]
[null,null,null,null,null,null,null,null,null,null,null,null,null,null,null,null,0,null,null,null,0,null,null,null,0,null,null,null,0,null,null,null,0,null,null,null,null,null,null,0,0,0,null,null,null,0,null,null,null,0,null,null,null,0,null,null,null,0,null,null,null,0,null,null,null,0,null,null,null,0,"",0,null,null,null,0,null,null,null,0,"","","",null,null,null,null,null,null,null,"","","","","","","","","","","","","","","","",0,0]
[null,null,null,null,null,null,null,null,null,null,null,null,null,null,null,null,0,null,null,null,0,null,null,null,0,null,null,null,0,null,null,null,0,null,null,null,null,null,null,0,0,0,null,null,null,0,null,null,null,0,null,null,null,0,null,null,null,0,null,null,null,0,null,null,null,0,null,null,null,0,"",0,null,null,null,0,null,null,null,0,"","","",null,null,null,null,null,null,null,"","","","","","","","","","","","","","","","",0,0]
[null,null,null,null,null,null,null,null,null,null,null,null,null,null,null,null,0,null,null,null,0,null,null,null,0,null,null,null,0,null,null,null,0,null,null,null,null,null,null,0,0,0,null,null,null,0,null,null,null,0,null,null,null,0,null,null,null,0,null,null,null,0,null,null,null,0,null,null,null,0,"",0,null,null,null,0,null,null,null,0,"","","",null,null,null,null,null,null,null,"","","","","","","","","","","","","","","","",0,0]
[null,null,null,null,null,null,null,null,null,null,null,null,null,null,null,null,0,null,null,null,0,null,null,null,0,null,null,null,0,null,null,null,0,null,null,null,null,null,null,0,0,0,null,null,null,0,null,null,null,0,null,null,null,0,null,null,null,0,null,null,null,0,null,null,null,0,null,null,null,0,"",0,null,null,null,0,null,null,null,0,"","","",null,null,null,null,null,null,null,"","","","","","","","","","","","","","","","",0,0]
[null,null,null,null,null,null,null,null,null,null,null,null,null,null,null,null,0,null,null,null,0,null,null,null,0,null,null,null,0,null,null,null,0,null,null,null,null,null,null,0,0,0,null,null,null,0,null,null,null,0,null,null,null,0,null,null,null,0,null,null,null,0,null,null,null,0,null,null,null,0,"",0,null,null,null,0,null,null,null,0,"","","",null,null,null,null,null,null,null,"","","","","","","","","","","","","","","","",0,0]
[null,null,null,null,null,null,null,null,null,null,null,null,null,null,null,null,0,null,null,null,0,null,null,null,0,null,null,null,0,null,null,null,0,null,null,null,null,null,null,0,0,0,null,null,null,0,null,null,null,0,null,null,null,0,null,null,null,0,null,null,null,0,null,null,null,0,null,null,null,0,"",0,null,null,null,0,null,null,null,0,"","","",null,null,null,null,null,null,null,"","","","","","","","","","","","","","","","",0,0]
[null,null,null,null,null,null,null,null,null,null,null,null,null,null,null,null,0,null,null,null,0,null,null,null,0,null,null,null,0,null,null,null,0,null,null,null,null,null,null,0,0,0,null,null,null,0,null,null,null,0,null,null,null,0,null,null,null,0,null,null,null,0,null,null,null,0,null,null,null,0,"",0,null,null,null,0,null,null,null,0,"","","",null,null,null,null,null,null,null,"","","","","","","","","","","","","","","","",0,0]
[null,null,null,null,null,null,null,null,null,null,null,null,null,null,null,null,0,null,null,null,0,null,null,null,0,null,null,null,0,null,null,null,0,null,null,null,null,null,null,0,0,0,null,null,null,0,null,null,null,0,null,null,null,0,null,null,null,0,null,null,null,0,null,null,null,0,null,null,null,0,"",0,null,null,null,0,null,null,null,0,"","","",null,null,null,null,null,null,null,"","","","","","","","","","","","","","","","",0,0]
[null,null,null,null,null,null,null,null,null,null,null,null,null,null,null,null,0,null,null,null,0,null,null,null,0,null,null,null,0,null,null,null,0,null,null,null,null,null,null,0,0,0,null,null,null,0,null,null,null,0,null,null,null,0,null,null,null,0,null,null,null,0,null,null,null,0,null,null,null,0,"",0,null,null,null,0,null,null,null,0,"","","",null,null,null,null,null,null,null,"","","","","","","","","","","","","","","","",0,0]
[null,null,null,null,null,null,null,null,null,null,null,null,null,null,null,null,0,null,null,null,0,null,null,null,0,null,null,null,0,null,null,null,0,null,null,null,null,null,null,0,0,0,null,null,null,0,null,null,null,0,null,null,null,0,null,null,null,0,null,null,null,0,null,null,null,0,null,null,null,0,"",0,null,null,null,0,null,null,null,0,"","","",null,null,null,null,null,null,null,"","","","","","","","","","","","","","","","",0,0]
[null,null,null,null,null,null,null,null,null,null,null,null,null,null,null,null,0,null,null,null,0,null,null,null,0,null,null,null,0,null,null,null,0,null,null,null,null,null,null,0,0,0,null,null,null,0,null,null,null,0,null,null,null,0,null,null,null,0,null,null,null,0,null,null,null,0,null,null,null,0,"",0,null,null,null,0,null,null,null,0,"","","",null,null,null,null,null,null,null,"","","","","","","","","","","","","","","","",0,0]
[null,null,null,null,null,null,null,null,null,null,null,null,null,null,null,null,0,null,null,null,0,null,null,null,0,null,null,null,0,null,null,null,0,null,null,null,null,null,null,0,0,0,null,null,null,0,null,null,null,0,null,null,null,0,null,null,null,0,null,null,null,0,null,null,null,0,null,null,null,0,"",0,null,null,null,0,null,null,null,0,"","","",null,null,null,null,null,null,null,"","","","","","","","","","","","","","","","",0,0]
[null,null,null,null,null,null,null,null,null,null,null,null,null,null,null,null,0,null,null,null,0,null,null,null,0,null,null,null,0,null,null,null,0,null,null,null,null,null,null,0,0,0,null,null,null,0,null,null,null,0,null,null,null,0,null,null,null,0,null,null,null,0,null,null,null,0,null,null,null,0,"",0,null,null,null,0,null,null,null,0,"","","",null,null,null,null,null,null,null,"","","","","","","","","","","","","","","","",0,0]
[null,null,null,null,null,null,null,null,null,null,null,null,null,null,null,null,0,null,null,null,0,null,null,null,0,null,null,null,0,null,null,null,0,null,null,null,null,null,null,0,0,0,null,null,null,0,null,null,null,0,null,null,null,0,null,null,null,0,null,null,null,0,null,null,null,0,null,null,null,0,"",0,null,null,null,0,null,null,null,0,"","","",null,null,null,null,null,null,null,"","","","","","","","","","","","","","","","",0,0]
[null,null,null,null,null,null,null,null,null,null,null,null,null,null,null,null,0,null,null,null,0,null,null,null,0,null,null,null,0,null,null,null,0,null,null,null,null,null,null,0,0,0,null,null,null,0,null,null,null,0,null,null,null,0,null,null,null,0,null,null,null,0,null,null,null,0,null,null,null,0,"",0,null,null,null,0,null,null,null,0,"","","",null,null,null,null,null,null,null,"","","","","","","","","","","","","","","","",0,0]
[null,null,null,null,null,null,null,null,null,null,null,null,null,null,null,null,0,null,null,null,0,null,null,null,0,null,null,null,0,null,null,null,0,null,null,null,null,null,null,0,0,0,null,null,null,0,null,null,null,0,null,null,null,0,null,null,null,0,null,null,null,0,null,null,null,0,null,null,null,0,"",0,null,null,null,0,null,null,null,0,"","","",null,null,null,null,null,null,null,"","","","","","","","","","","","","","","","",0,0]
[null,null,null,null,null,null,null,null,null,null,null,null,null,null,null,null,0,null,null,null,0,null,null,null,0,null,null,null,0,null,null,null,0,null,null,null,null,null,null,0,0,0,null,null,null,0,null,null,null,0,null,null,null,0,null,null,null,0,null,null,null,0,null,null,null,0,null,null,null,0,"",0,null,null,null,0,null,null,null,0,"","","",null,null,null,null,null,null,null,"","","","","","","","","","","","","","","","",0,0]
[null,null,null,null,null,null,null,null,null,null,null,null,null,null,null,null,0,null,null,null,0,null,null,null,0,null,null,null,0,null,null,null,0,null,null,null,null,null,null,0,0,0,null,null,null,0,null,null,null,0,null,null,null,0,null,null,null,0,null,null,null,0,null,null,null,0,null,null,null,0,"",0,null,null,null,0,null,null,null,0,"","","",null,null,null,null,null,null,null,"","","","","","","","","","","","","","","","",0,0]
[null,null,null,null,null,null,null,null,null,null,null,null,null,null,null,null,0,null,null,null,0,null,null,null,0,null,null,null,0,null,null,null,0,null,null,null,null,null,null,0,0,0,null,null,null,0,null,null,null,0,null,null,null,0,null,null,null,0,null,null,null,0,null,null,null,0,null,null,null,0,"",0,null,null,null,0,null,null,null,0,"","","",null,null,null,null,null,null,null,"","","","","","","","","","","","","","","","",0,0]
[null,null,null,null,null,null,null,null,null,null,null,null,null,null,null,null,0,null,null,null,0,null,null,null,0,null,null,null,0,null,null,null,0,null,null,null,null,null,null,0,0,0,null,null,null,0,null,null,null,0,null,null,null,0,null,null,null,0,null,null,null,0,null,null,null,0,null,null,null,0,"",0,null,null,null,0,null,null,null,0,"","","",null,null,null,null,null,null,null,"","","","","","","","","","","","","","","","",0,0]
[null,null,null,null,null,null,null,null,null,null,null,null,null,null,null,null,0,null,null,null,0,null,null,null,0,null,null,null,0,null,null,null,0,null,null,null,null,null,null,0,0,0,null,null,null,0,null,null,null,0,null,null,null,0,null,null,null,0,null,null,null,0,null,null,null,0,null,null,null,0,"",0,null,null,null,0,null,null,null,0,"","","",null,null,null,null,null,null,null,"","","","","","","","","","","","","","","","",0,0]
[null,null,null,null,null,null,null,null,null,null,null,null,null,null,null,null,0,null,null,null,0,null,null,null,0,null,null,null,0,null,null,null,0,null,null,null,null,null,null,0,0,0,null,null,null,0,null,null,null,0,null,null,null,0,null,null,null,0,null,null,null,0,null,null,null,0,null,null,null,0,"",0,null,null,null,0,null,null,null,0,"","","",null,null,null,null,null,null,null,"","","","","","","","","","","","","","","","",0,0]
[null,null,null,null,null,null,null,null,null,null,null,null,null,null,null,null,0,null,null,null,0,null,null,null,0,null,null,null,0,null,null,null,0,null,null,null,null,null,null,0,0,0,null,null,null,0,null,null,null,0,null,null,null,0,null,null,null,0,null,null,null,0,null,null,null,0,null,null,null,0,"",0,null,null,null,0,null,null,null,0,"","","",null,null,null,null,null,null,null,"","","","","","","","","","","","","","","","",0,0]
[null,null,null,null,null,null,null,null,null,null,null,null,null,null,null,null,0,null,null,null,0,null,null,null,0,null,null,null,0,null,null,null,0,null,null,null,null,null,null,0,0,0,null,null,null,0,null,null,null,0,null,null,null,0,null,null,null,0,null,null,null,0,null,null,null,0,null,null,null,0,"",0,null,null,null,0,null,null,null,0,"","","",null,null,null,null,null,null,null,"","","","","","","","","","","","","","","","",0,0]
[null,null,null,null,null,null,null,null,null,null,null,null,null,null,null,null,0,null,null,null,0,null,null,null,0,null,null,null,0,null,null,null,0,null,null,null,null,null,null,0,0,0,null,null,null,0,null,null,null,0,null,null,null,0,null,null,null,0,null,null,null,0,null,null,null,0,null,null,null,0,"",0,null,null,null,0,null,null,null,0,"","","",null,null,null,null,null,null,null,"","","","","","","","","","","","","","","","",0,0]
[null,null,null,null,null,null,null,null,null,null,null,null,null,null,null,null,0,null,null,null,0,null,null,null,0,null,null,null,0,null,null,null,0,null,null,null,null,null,null,0,0,0,null,null,null,0,null,null,null,0,null,null,null,0,null,null,null,0,null,null,null,0,null,null,null,0,null,null,null,0,"",0,null,null,null,0,null,null,null,0,"","","",null,null,null,null,null,null,null,"","","","","","","","","","","","","","","","",0,0]
[null,null,null,null,null,null,null,null,null,null,null,null,null,null,null,null,0,null,null,null,0,null,null,null,0,null,null,null,0,null,null,null,0,null,null,null,null,null,null,0,0,0,null,null,null,0,null,null,null,0,null,null,null,0,null,null,null,0,null,null,null,0,null,null,null,0,null,null,null,0,"",0,null,null,null,0,null,null,null,0,"","","",null,null,null,null,null,null,null,"","","","","","","","","","","","","","","","",0,0]
[null,null,null,null,null,null,null,null,null,null,null,null,null,null,null,null,0,null,null,null,0,null,null,null,0,null,null,null,0,null,null,null,0,null,null,null,null,null,null,0,0,0,null,null,null,0,null,null,null,0,null,null,null,0,null,null,null,0,null,null,null,0,null,null,null,0,null,null,null,0,"",0,null,null,null,0,null,null,null,0,"","","",null,null,null,null,null,null,null,"","","","","","","","","","","","","","","","",0,0]
[null,null,null,null,null,null,null,null,null,null,null,null,null,null,null,null,0,null,null,null,0,null,null,null,0,null,null,null,0,null,null,null,0,null,null,null,null,null,null,0,0,0,null,null,null,0,null,null,null,0,null,null,null,0,null,null,null,0,null,null,null,0,null,null,null,0,null,null,null,0,"",0,null,null,null,0,null,null,null,0,"","","",null,null,null,null,null,null,null,"","","","","","","","","","","","","","","","",0,0]
[null,null,null,null,null,null,null,null,null,null,null,null,null,null,null,null,0,null,null,null,0,null,null,null,0,null,null,null,0,null,null,null,0,null,null,null,null,null,null,0,0,0,null,null,null,0,null,null,null,0,null,null,null,0,null,null,null,0,null,null,null,0,null,null,null,0,null,null,null,0,"",0,null,null,null,0,null,null,null,0,"","","",null,null,null,null,null,null,null,"","","","","","","","","","","","","","","","",0,0]
[null,null,null,null,null,null,null,null,null,null,null,null,null,null,null,null,0,null,null,null,0,null,null,null,0,null,null,null,0,null,null,null,0,null,null,null,null,null,null,0,0,0,null,null,null,0,null,null,null,0,null,null,null,0,null,null,null,0,null,null,null,0,null,null,null,0,null,null,null,0,"",0,null,null,null,0,null,null,null,0,"","","",null,null,null,null,null,null,null,"","","","","","","","","","","","","","","","",0,0]
[null,null,null,null,null,null,null,null,null,null,null,null,null,null,null,null,0,null,null,null,0,null,null,null,0,null,null,null,0,null,null,null,0,null,null,null,null,null,null,0,0,0,null,null,null,0,null,null,null,0,null,null,null,0,null,null,null,0,null,null,null,0,null,null,null,0,null,null,null,0,"",0,null,null,null,0,null,null,null,0,"","","",null,null,null,null,null,null,null,"","","","","","","","","","","","","","","","",0,0]
[null,null,null,null,null,null,null,null,null,null,null,null,null,null,null,null,0,null,null,null,0,null,null,null,0,null,null,null,0,null,null,null,0,null,null,null,null,null,null,0,0,0,null,null,null,0,null,null,null,0,null,null,null,0,null,null,null,0,null,null,null,0,null,null,null,0,null,null,null,0,"",0,null,null,null,0,null,null,null,0,"","","",null,null,null,null,null,null,null,"","","","","","","","","","","","","","","","",0,0]
[null,null,null,null,null,null,null,null,null,null,null,null,null,null,null,null,0,null,null,null,0,null,null,null,0,null,null,null,0,null,null,null,0,null,null,null,null,null,null,0,0,0,null,null,null,0,null,null,null,0,null,null,null,0,null,null,null,0,null,null,null,0,null,null,null,0,null,null,null,0,"",0,null,null,null,0,null,null,null,0,"","","",null,null,null,null,null,null,null,"","","","","","","","","","","","","","","","",0,0]
[null,null,null,null,null,null,null,null,null,null,null,null,null,null,null,null,0,null,null,null,0,null,null,null,0,null,null,null,0,null,null,null,0,null,null,null,null,null,null,0,0,0,null,null,null,0,null,null,null,0,null,null,null,0,null,null,null,0,null,null,null,0,null,null,null,0,null,null,null,0,"",0,null,null,null,0,null,null,null,0,"","","",null,null,null,null,null,null,null,"","","","","","","","","","","","","","","","",0,0]
[null,null,null,null,null,null,null,null,null,null,null,null,null,null,null,null,0,null,null,null,0,null,null,null,0,null,null,null,0,null,null,null,0,null,null,null,null,null,null,0,0,0,null,null,null,0,null,null,null,0,null,null,null,0,null,null,null,0,null,null,null,0,null,null,null,0,null,null,null,0,"",0,null,null,null,0,null,null,null,0,"","","",null,null,null,null,null,null,null,"","","","","","","","","","","","","","","","",0,0]
[null,null,null,null,null,null,null,null,null,null,null,null,null,null,null,null,0,null,null,null,0,null,null,null,0,null,null,null,0,null,null,null,0,null,null,null,null,null,null,0,0,0,null,null,null,0,null,null,null,0,null,null,null,0,null,null,null,0,null,null,null,0,null,null,null,0,null,null,null,0,"",0,null,null,null,0,null,null,null,0,"","","",null,null,null,null,null,null,null,"","","","","","","","","","","","","","","","",0,0]
[null,null,null,null,null,null,null,null,null,null,null,null,null,null,null,null,0,null,null,null,0,null,null,null,0,null,null,null,0,null,null,null,0,null,null,null,null,null,null,0,0,0,null,null,null,0,null,null,null,0,null,null,null,0,null,null,null,0,null,null,null,0,null,null,null,0,null,null,null,0,"",0,null,null,null,0,null,null,null,0,"","","",null,null,null,null,null,null,null,"","","","","","","","","","","","","","","","",0,0]
[null,null,null,null,null,null,null,null,null,null,null,null,null,null,null,null,0,null,null,null,0,null,null,null,0,null,null,null,0,null,null,null,0,null,null,null,null,null,null,0,0,0,null,null,null,0,null,null,null,0,null,null,null,0,null,null,null,0,null,null,null,0,null,null,null,0,null,null,null,0,"",0,null,null,null,0,null,null,null,0,"","","",null,null,null,null,null,null,null,"","","","","","","","","","","","","","","","",0,0]
[null,null,null,null,null,null,null,null,null,null,null,null,null,null,null,null,0,null,null,null,0,null,null,null,0,null,null,null,0,null,null,null,0,null,null,null,null,null,null,0,0,0,null,null,null,0,null,null,null,0,null,null,null,0,null,null,null,0,null,null,null,0,null,null,null,0,null,null,null,0,"",0,null,null,null,0,null,null,null,0,"","","",null,null,null,null,null,null,null,"","","","","","","","","","","","","","","","",0,0]
[null,null,null,null,null,null,null,null,null,null,null,null,null,null,null,null,0,null,null,null,0,null,null,null,0,null,null,null,0,null,null,null,0,null,null,null,null,null,null,0,0,0,null,null,null,0,null,null,null,0,null,null,null,0,null,null,null,0,null,null,null,0,null,null,null,0,null,null,null,0,"",0,null,null,null,0,null,null,null,0,"","","",null,null,null,null,null,null,null,"","","","","","","","","","","","","","","","",0,0]
[null,null,null,null,null,null,null,null,null,null,null,null,null,null,null,null,0,null,null,null,0,null,null,null,0,null,null,null,0,null,null,null,0,null,null,null,null,null,null,0,0,0,null,null,null,0,null,null,null,0,null,null,null,0,null,null,null,0,null,null,null,0,null,null,null,0,null,null,null,0,"",0,null,null,null,0,null,null,null,0,"","","",null,null,null,null,null,null,null,"","","","","","","","","","","","","","","","",0,0]
[null,null,null,null,null,null,null,null,null,null,null,null,null,null,null,null,0,null,null,null,0,null,null,null,0,null,null,null,0,null,null,null,0,null,null,null,null,null,null,0,0,0,null,null,null,0,null,null,null,0,null,null,null,0,null,null,null,0,null,null,null,0,null,null,null,0,null,null,null,0,"",0,null,null,null,0,null,null,null,0,"","","",null,null,null,null,null,null,null,"","","","","","","","","","","","","","","","",0,0]
[null,null,null,null,null,null,null,null,null,null,null,null,null,null,null,null,0,null,null,null,0,null,null,null,0,null,null,null,0,null,null,null,0,null,null,null,null,null,null,0,0,0,null,null,null,0,null,null,null,0,null,null,null,0,null,null,null,0,null,null,null,0,null,null,null,0,null,null,null,0,"",0,null,null,null,0,null,null,null,0,"","","",null,null,null,null,null,null,null,"","","","","","","","","","","","","","","","",0,0]
[null,null,null,null,null,null,null,null,null,null,null,null,null,null,null,null,0,null,null,null,0,null,null,null,0,null,null,null,0,null,null,null,0,null,null,null,null,null,null,0,0,0,null,null,null,0,null,null,null,0,null,null,null,0,null,null,null,0,null,null,null,0,null,null,null,0,null,null,null,0,"",0,null,null,null,0,null,null,null,0,"","","",null,null,null,null,null,null,null,"","","","","","","","","","","","","","","","",0,0]
[null,null,null,null,null,null,null,null,null,null,null,null,null,null,null,null,0,null,null,null,0,null,null,null,0,null,null,null,0,null,null,null,0,null,null,null,null,null,null,0,0,0,null,null,null,0,null,null,null,0,null,null,null,0,null,null,null,0,null,null,null,0,null,null,null,0,null,null,null,0,"",0,null,null,null,0,null,null,null,0,"","","",null,null,null,null,null,null,null,"","","","","","","","","","","","","","","","",0,0]
[null,null,null,null,null,null,null,null,null,null,null,null,null,null,null,null,0,null,null,null,0,null,null,null,0,null,null,null,0,null,null,null,0,null,null,null,null,null,null,0,0,0,null,null,null,0,null,null,null,0,null,null,null,0,null,null,null,0,null,null,null,0,null,null,null,0,null,null,null,0,"",0,null,null,null,0,null,null,null,0,"","","",null,null,null,null,null,null,null,"","","","","","","","","","","","","","","","",0,0]
[null,null,null,null,null,null,null,null,null,null,null,null,null,null,null,null,0,null,null,null,0,null,null,null,0,null,null,null,0,null,null,null,0,null,null,null,null,null,null,0,0,0,null,null,null,0,null,null,null,0,null,null,null,0,null,null,null,0,null,null,null,0,null,null,null,0,null,null,null,0,"",0,null,null,null,0,null,null,null,0,"","","",null,null,null,null,null,null,null,"","","","","","","","","","","","","","","","",0,0]
[null,null,null,null,null,null,null,null,null,null,null,null,null,null,null,null,0,null,null,null,0,null,null,null,0,null,null,null,0,null,null,null,0,null,null,null,null,null,null,0,0,0,null,null,null,0,null,null,null,0,null,null,null,0,null,null,null,0,null,null,null,0,null,null,null,0,null,null,null,0,"",0,null,null,null,0,null,null,null,0,"","","",null,null,null,null,null,null,null,"","","","","","","","","","","","","","","","",0,0]
[null,null,null,null,null,null,null,null,null,null,null,null,null,null,null,null,0,null,null,null,0,null,null,null,0,null,null,null,0,null,null,null,0,null,null,null,null,null,null,0,0,0,null,null,null,0,null,null,null,0,null,null,null,0,null,null,null,0,null,null,null,0,null,null,null,0,null,null,null,0,"",0,null,null,null,0,null,null,null,0,"","","",null,null,null,null,null,null,null,"","","","","","","","","","","","","","","","",0,0]
[null,null,null,null,null,null,null,null,null,null,null,null,null,null,null,null,0,null,null,null,0,null,null,null,0,null,null,null,0,null,null,null,0,null,null,null,null,null,null,0,0,0,null,null,null,0,null,null,null,0,null,null,null,0,null,null,null,0,null,null,null,0,null,null,null,0,null,null,null,0,"",0,null,null,null,0,null,null,null,0,"","","",null,null,null,null,null,null,null,"","","","","","","","","","","","","","","","",0,0]
[null,null,null,null,null,null,null,null,null,null,null,null,null,null,null,null,0,null,null,null,0,null,null,null,0,null,null,null,0,null,null,null,0,null,null,null,null,null,null,0,0,0,null,null,null,0,null,null,null,0,null,null,null,0,null,null,null,0,null,null,null,0,null,null,null,0,null,null,null,0,"",0,null,null,null,0,null,null,null,0,"","","",null,null,null,null,null,null,null,"","","","","","","","","","","","","","","","",0,0]
[null,null,null,null,null,null,null,null,null,null,null,null,null,null,null,null,0,null,null,null,0,null,null,null,0,null,null,null,0,null,null,null,0,null,null,null,null,null,null,0,0,0,null,null,null,0,null,null,null,0,null,null,null,0,null,null,null,0,null,null,null,0,null,null,null,0,null,null,null,0,"",0,null,null,null,0,null,null,null,0,"","","",null,null,null,null,null,null,null,"","","","","","","","","","","","","","","","",0,0]
[null,null,null,null,null,null,null,null,null,null,null,null,null,null,null,null,0,null,null,null,0,null,null,null,0,null,null,null,0,null,null,null,0,null,null,null,null,null,null,0,0,0,null,null,null,0,null,null,null,0,null,null,null,0,null,null,null,0,null,null,null,0,null,null,null,0,null,null,null,0,"",0,null,null,null,0,null,null,null,0,"","","",null,null,null,null,null,null,null,"","","","","","","","","","","","","","","","",0,0]
[null,null,null,null,null,null,null,null,null,null,null,null,null,null,null,null,0,null,null,null,0,null,null,null,0,null,null,null,0,null,null,null,0,null,null,null,null,null,null,0,0,0,null,null,null,0,null,null,null,0,null,null,null,0,null,null,null,0,null,null,null,0,null,null,null,0,null,null,null,0,"",0,null,null,null,0,null,null,null,0,"","","",null,null,null,null,null,null,null,"","","","","","","","","","","","","","","","",0,0]
[null,null,null,null,null,null,null,null,null,null,null,null,null,null,null,null,0,null,null,null,0,null,null,null,0,null,null,null,0,null,null,null,0,null,null,null,null,null,null,0,0,0,null,null,null,0,null,null,null,0,null,null,null,0,null,null,null,0,null,null,null,0,null,null,null,0,null,null,null,0,"",0,null,null,null,0,null,null,null,0,"","","",null,null,null,null,null,null,null,"","","","","","","","","","","","","","","","",0,0]
[null,null,null,null,null,null,null,null,null,null,null,null,null,null,null,null,{"$f":"IF(P330=\"غ\",\"غ\",SUM(N330,O330,P330))","v":0},null,null,null,{"$f":"IF(T330=\"غ\",\"غ\",SUM(R330,S330,T330))","v":0},null,null,null,{"$f":"IF(X330=\"غ\",\"غ\",SUM(V330,W330,X330))","v":0},null,null,null,{"$f":"IF(AB330=\"غ\",\"غ\",SUM(Z330,AA330,AB330))","v":0},null,null,null,{"$f":"IF(AF330=\"غ\",\"غ\",SUM(AD330,AE330,AF330))","v":0},null,null,null,null,null,null,{"$f":"IF(AL330=\"غ\",\"غ\",SUM(AH330,AJ330,AL330))","v":0},{"$f":"IF(AM330=\"غ\",\"غ\",SUM(AI330,AK330,AM330))","v":0},{"$f":"IF(OR(AN330=\"غ\",AO330=\"غ\"),\"غ\",SUM(AN330,AO330))","v":0},null,null,null,{"$f":"IF(AS330=\"غ\",\"غ\",SUM(AQ330,AR330,AS330))","v":0},null,null,null,{"$f":"IF(AW330=\"غ\",\"غ\",SUM(AU330,AV330,AW330))","v":0},null,null,null,{"$f":"IF(BA330=\"غ\",\"غ\",SUM(AY330,AZ330,BA330))","v":0},null,null,null,{"$f":"IF(BE330=\"غ\",\"غ\",SUM(BC330,BD330,BE330))","v":0},null,null,null,{"$f":"IF(BI330=\"غ\",\"غ\",SUM(BG330,BH330,BI330))","v":0},null,null,null,{"$f":"IF(BM330=\"غ\",\"غ\",SUM(BK330,BL330,BM330))","v":0},null,null,null,{"$f":"IF(BQ330=\"غ\",\"غ\",SUM(BO330,BP330,BQ330))","v":0},{"$f":"IF(C330=\"\",\"\",SUM(O330,S330,W330,AE330,AR330,AV330,AZ330,BD330,BH330,BL330,BP330,AA330,AJ330,AK330))","v":""},{"$f":"SUM(Q330,U330,Y330,AG330,AT330,AX330,BB330,BF330,BJ330,BN330,BR330,AC330,AP330)","v":0},null,null,null,{"$f":"IF(BW330=\"غ\",\"غ\",SUM(BU330,BV330,BW330))","v":0},null,null,null,{"$f":"IF(CA330=\"غ\",\"غ\",SUM(BY330,BZ330,CA330))","v":0},{"$f":"IF(I330=\"\",\"\",IF(I330=\"بنات\",IF(CE330=0,\"ناجحة\",IF(DD330>2,\"راسبة\",\"دورثان\")),IF(I330=\"بنين\",IF(CE330=0,\"ناجح\",IF(DD330>2,\"راسب\",\"دورثان\")))))","v":""},{"$f":"IF(C330=\"\",\"\",IF(AND($L330=\"باقية\",$CC330=\"راسبة\"),\"وليس لها حق الاعادة\",IF(AND($L330<>\"باقية\",$CC330=\"راسبة\"),\"و  لها حق الاعادة\",IF(AND($L330=\"باقى\",$CC330=\"راسب\"),\"وليس له حق الاعادة\",IF(AND($L330<>\"باقى\",$CC330=\"راسب\"),\"و  له حق الاعادة\",IF($CC330=\"ناجحة\",\"و منقولة للصف الثانى\",IF($CC330=\"ناجح\",\"و منقول للصف الثانى\",IF($CC330=\"دورثان\",\"فى : \"&CONCATENATE($CM330,$CN330,$CO330,$CQ330,$CR330,$CS330,$CT330,$CU330,$CV330,$CW330,$CX330,$CY330,$CP330,$CZ330,$DA330,$DB330)))))))))","v":""},{"$f":"IF(C330=\"\",\"\",$DC330+$DD330)","v":""},null,null,null,null,null,null,null,{"$f":"IF(C330=\"\",\"\",IF(OR(P330<$P$9,P330=\"غ\",Q330<$Q$9),CM$5&\" - \",\"\"))","v":""},{"$f":"IF(C330=\"\",\"\",IF(OR(T330<$T$9,T330=\"غ\",U330<$U$9),CN$5&\" - \",\"\"))","v":""},{"$f":"IF(C330=\"\",\"\",IF(OR(X330<$X$9,X330=\"غ\",Y330<$Y$9),CO$5&\" - \",\"\"))","v":""},{"$f":"IF(C330=\"\",\"\",IF(OR(AB330<$AB$9,AB330=\"غ\",AC330<$AC$9),CP$5&\" - \",\"\"))","v":""},{"$f":"IF(C330=\"\",\"\",IF(OR(AF330<$AF$9,AF330=\"غ\",AG330<$AG$9),CQ$5&\" - \",\"\"))","v":""},{"$f":"IF(C330=\"\",\"\",IF(OR(AL330<$AL$9,AM330<$AM$9,AN330<$AN$9,AN330=\"غ\",AO330<$AO$9,AO330=\"غ\"),CR$5&\" - \",\"\"))","v":""},{"$f":"IF(C330=\"\",\"\",IF(OR(AS330<$AS$9,AS330=\"غ\",AT330<$AT$9),CS$5&\" - \",\"\"))","v":""},{"$f":"IF(C330=\"\",\"\",IF(OR(AW330<$AW$9,AW330=\"غ\",AX330<$AX$9),CT$5&\" - \",\"\"))","v":""},{"$f":"IF(C330=\"\",\"\",IF(OR(BA330<$BA$9,BA330=\"غ\",BB330<$BB$9),CU$5&\" - \",\"\"))","v":""},{"$f":"IF(C330=\"\",\"\",IF(OR(BE330<$BE$9,BE330=\"غ\",BF330<$BF$9),CV$5&\" - \",\"\"))","v":""},{"$f":"IF(C330=\"\",\"\",IF(OR(BI330<$BI$9,BI330=\"غ\",BJ330<$BJ$9),CW$5&\" - \",\"\"))","v":""},{"$f":"IF(C330=\"\",\"\",IF(OR(BM330<$BM$9,BM330=\"غ\",BN330<$BN$9),CX$5&\" - \",\"\"))","v":""},{"$f":"IF(C330=\"\",\"\",IF(OR(BQ330<$BQ$9,BQ330=\"غ\",BR330<$BR$9),CY$5&\" - \",\"\"))","v":""},{"$f":"IF(C330=\"\",\"\",IF(BT330<$BT$9,CZ$5&\" - \",\"\"))","v":""},{"$f":"IF(C330=\"\",\"\",IF(OR(BW330<$BW$9,BW330=\"غ\",BX330<$BX$9),DA$5,\"\"))","v":""},{"$f":"IF(C330=\"\",\"\",IF(OR(CA330<$CA$9,CA330=\"غ\",CB330<$CB$9),DB$5,\"\"))","v":""},{"$f":"COUNTIF($CZ330:$DB330,\"?*\")","v":0},{"$f":"COUNTIF($CM330:$CY330,\"?*\")","v":0}]
[null,null,null,null,null,null,null,null,null,null,null,null,null,null,null,null,0,null,null,null,0,null,null,null,0,null,null,null,0,null,null,null,0,null,null,null,null,null,null,0,0,0,null,null,null,0,null,null,null,0,null,null,null,0,null,null,null,0,null,null,null,0,null,null,null,0,null,null,null,0,"",0,null,null,null,0,null,null,null,{"$f":"IF(CA331=\"غ\",\"غ\",SUM(BY331,BZ331,CA331))","v":0},"","","",null,null,null,null,null,null,null,"","","","","","","","","","","","","","","","",0,0]
[null,null,null,null,null,null,null,null,null,null,null,null,null,null,null,null,0,null,null,null,0,null,null,null,0,null,null,null,0,null,null,null,0,null,null,null,null,null,null,0,0,0,null,null,null,0,null,null,null,0,null,null,null,0,null,null,null,0,null,null,null,0,null,null,null,0,null,null,null,0,"",0,null,null,null,0,null,null,null,0,"","","",null,null,null,null,null,null,null,"","","","","","","","","","","","","","","","",0,0]
[null,null,null,null,null,null,null,null,null,null,null,null,null,null,null,null,0,null,null,null,0,null,null,null,0,null,null,null,0,null,null,null,0,null,null,null,null,null,null,0,0,0,null,null,null,0,null,null,null,0,null,null,null,0,null,null,null,0,null,null,null,0,null,null,null,0,null,null,null,0,"",0,null,null,null,0,null,null,null,0,"","","",null,null,null,null,null,null,null,"","","","","","","","","","","","","","","","",0,0]
[null,null,null,null,null,null,null,null,null,null,null,null,null,null,null,null,0,null,null,null,0,null,null,null,0,null,null,null,0,null,null,null,0,null,null,null,null,null,null,0,0,0,null,null,null,0,null,null,null,0,null,null,null,0,null,null,null,0,null,null,null,0,null,null,null,0,null,null,null,0,"",0,null,null,null,0,null,null,null,0,"","","",null,null,null,null,null,null,null,"","","","","","","","","","","","","","","","",0,0]
[null,null,null,null,null,null,null,null,null,null,null,null,null,null,null,null,0,null,null,null,0,null,null,null,0,null,null,null,0,null,null,null,0,null,null,null,null,null,null,0,0,0,null,null,null,0,null,null,null,0,null,null,null,0,null,null,null,0,null,null,null,0,null,null,null,0,null,null,null,0,"",0,null,null,null,0,null,null,null,0,"","","",null,null,null,null,null,null,null,"","","","","","","","","","","","","","","","",0,0]
[null,null,null,null,null,null,null,null,null,null,null,null,null,null,null,null,0,null,null,null,0,null,null,null,0,null,null,null,0,null,null,null,0,null,null,null,null,null,null,0,0,0,null,null,null,0,null,null,null,0,null,null,null,0,null,null,null,0,null,null,null,0,null,null,null,0,null,null,null,0,"",0,null,null,null,0,null,null,null,0,"","","",null,null,null,null,null,null,null,"","","","","","","","","","","","","","","","",0,0]
[null,null,null,null,null,null,null,null,null,null,null,null,null,null,null,null,0,null,null,null,0,null,null,null,0,null,null,null,0,null,null,null,0,null,null,null,null,null,null,0,0,0,null,null,null,0,null,null,null,0,null,null,null,0,null,null,null,0,null,null,null,0,null,null,null,0,null,null,null,0,"",0,null,null,null,0,null,null,null,0,"","","",null,null,null,null,null,null,null,"","","","","","","","","","","","","","","","",0,0]
[null,null,null,null,null,null,null,null,null,null,null,null,null,null,null,null,0,null,null,null,0,null,null,null,0,null,null,null,0,null,null,null,0,null,null,null,null,null,null,0,0,0,null,null,null,0,null,null,null,0,null,null,null,0,null,null,null,0,null,null,null,0,null,null,null,0,null,null,null,0,"",0,null,null,null,0,null,null,null,0,"","","",null,null,null,null,null,null,null,"","","","","","","","","","","","","","","","",0,0]
[null,null,null,null,null,null,null,null,null,null,null,null,null,null,null,null,0,null,null,null,0,null,null,null,0,null,null,null,0,null,null,null,0,null,null,null,null,null,null,0,0,0,null,null,null,0,null,null,null,0,null,null,null,0,null,null,null,0,null,null,null,0,null,null,null,0,null,null,null,0,"",0,null,null,null,0,null,null,null,0,"","","",null,null,null,null,null,null,null,"","","","","","","","","","","","","","","","",0,0]
[null,null,null,null,null,null,null,null,null,null,null,null,null,null,null,null,0,null,null,null,0,null,null,null,0,null,null,null,0,null,null,null,0,null,null,null,null,null,null,0,0,0,null,null,null,0,null,null,null,0,null,null,null,0,null,null,null,0,null,null,null,0,null,null,null,0,null,null,null,0,"",0,null,null,null,0,null,null,null,0,"","","",null,null,null,null,null,null,null,"","","","","","","","","","","","","","","","",0,0]
[null,null,null,null,null,null,null,null,null,null,null,null,null,null,null,null,0,null,null,null,0,null,null,null,0,null,null,null,0,null,null,null,0,null,null,null,null,null,null,0,0,0,null,null,null,0,null,null,null,0,null,null,null,0,null,null,null,0,null,null,null,0,null,null,null,0,null,null,null,0,"",0,null,null,null,0,null,null,null,0,"","","",null,null,null,null,null,null,null,"","","","","","","","","","","","","","","","",0,0]
[null,null,null,null,null,null,null,null,null,null,null,null,null,null,null,null,0,null,null,null,0,null,null,null,0,null,null,null,0,null,null,null,0,null,null,null,null,null,null,0,0,0,null,null,null,0,null,null,null,0,null,null,null,0,null,null,null,0,null,null,null,0,null,null,null,0,null,null,null,0,"",0,null,null,null,0,null,null,null,0,"","","",null,null,null,null,null,null,null,"","","","","","","","","","","","","","","","",0,0]
[null,null,null,null,null,null,null,null,null,null,null,null,null,null,null,null,0,null,null,null,0,null,null,null,0,null,null,null,0,null,null,null,0,null,null,null,null,null,null,0,0,0,null,null,null,0,null,null,null,0,null,null,null,0,null,null,null,0,null,null,null,0,null,null,null,0,null,null,null,0,"",0,null,null,null,0,null,null,null,0,"","","",null,null,null,null,null,null,null,"","","","","","","","","","","","","","","","",0,0]
[null,null,null,null,null,null,null,null,null,null,null,null,null,null,null,null,0,null,null,null,0,null,null,null,0,null,null,null,0,null,null,null,0,null,null,null,null,null,null,0,0,0,null,null,null,0,null,null,null,0,null,null,null,0,null,null,null,0,null,null,null,0,null,null,null,0,null,null,null,0,"",0,null,null,null,0,null,null,null,0,"","","",null,null,null,null,null,null,null,"","","","","","","","","","","","","","","","",0,0]
[null,null,null,null,null,null,null,null,null,null,null,null,null,null,null,null,0,null,null,null,0,null,null,null,0,null,null,null,0,null,null,null,0,null,null,null,null,null,null,0,0,0,null,null,null,0,null,null,null,0,null,null,null,0,null,null,null,0,null,null,null,0,null,null,null,0,null,null,null,0,"",0,null,null,null,0,null,null,null,0,"","","",null,null,null,null,null,null,null,"","","","","","","","","","","","","","","","",0,0]
[null,null,null,null,null,null,null,null,null,null,null,null,null,null,null,null,0,null,null,null,0,null,null,null,0,null,null,null,0,null,null,null,0,null,null,null,null,null,null,0,0,0,null,null,null,0,null,null,null,0,null,null,null,0,null,null,null,0,null,null,null,0,null,null,null,0,null,null,null,0,"",0,null,null,null,0,null,null,null,0,"","","",null,null,null,null,null,null,null,"","","","","","","","","","","","","","","","",0,0]
[null,null,null,null,null,null,null,null,null,null,null,null,null,null,null,null,0,null,null,null,0,null,null,null,0,null,null,null,0,null,null,null,0,null,null,null,null,null,null,0,0,0,null,null,null,0,null,null,null,0,null,null,null,0,null,null,null,0,null,null,null,0,null,null,null,0,null,null,null,0,"",0,null,null,null,0,null,null,null,0,"","","",null,null,null,null,null,null,null,"","","","","","","","","","","","","","","","",0,0]
[null,null,null,null,null,null,null,null,null,null,null,null,null,null,null,null,0,null,null,null,0,null,null,null,0,null,null,null,0,null,null,null,0,null,null,null,null,null,null,0,0,0,null,null,null,0,null,null,null,0,null,null,null,0,null,null,null,0,null,null,null,0,null,null,null,0,null,null,null,0,"",0,null,null,null,0,null,null,null,0,"","","",null,null,null,null,null,null,null,"","","","","","","","","","","","","","","","",0,0]
[null,null,null,null,null,null,null,null,null,null,null,null,null,null,null,null,0,null,null,null,0,null,null,null,0,null,null,null,0,null,null,null,0,null,null,null,null,null,null,0,0,0,null,null,null,0,null,null,null,0,null,null,null,0,null,null,null,0,null,null,null,0,null,null,null,0,null,null,null,0,"",0,null,null,null,0,null,null,null,0,"","","",null,null,null,null,null,null,null,"","","","","","","","","","","","","","","","",0,0]
[null,null,null,null,null,null,null,null,null,null,null,null,null,null,null,null,0,null,null,null,0,null,null,null,0,null,null,null,0,null,null,null,0,null,null,null,null,null,null,0,0,0,null,null,null,0,null,null,null,0,null,null,null,0,null,null,null,0,null,null,null,0,null,null,null,0,null,null,null,0,"",0,null,null,null,0,null,null,null,0,"","","",null,null,null,null,null,null,null,"","","","","","","","","","","","","","","","",0,0]
[null,null,null,null,null,null,null,null,null,null,null,null,null,null,null,null,0,null,null,null,0,null,null,null,0,null,null,null,0,null,null,null,0,null,null,null,null,null,null,0,0,0,null,null,null,0,null,null,null,0,null,null,null,0,null,null,null,0,null,null,null,0,null,null,null,0,null,null,null,0,"",0,null,null,null,0,null,null,null,0,"","","",null,null,null,null,null,null,null,"","","","","","","","","","","","","","","","",0,0]
[null,null,null,null,null,null,null,null,null,null,null,null,null,null,null,null,0,null,null,null,0,null,null,null,0,null,null,null,0,null,null,null,0,null,null,null,null,null,null,0,0,0,null,null,null,0,null,null,null,0,null,null,null,0,null,null,null,0,null,null,null,0,null,null,null,0,null,null,null,0,"",0,null,null,null,0,null,null,null,0,"","","",null,null,null,null,null,null,null,"","","","","","","","","","","","","","","","",0,0]
[null,null,null,null,null,null,null,null,null,null,null,null,null,null,null,null,0,null,null,null,0,null,null,null,0,null,null,null,0,null,null,null,0,null,null,null,null,null,null,0,0,0,null,null,null,0,null,null,null,0,null,null,null,0,null,null,null,0,null,null,null,0,null,null,null,0,null,null,null,0,"",0,null,null,null,0,null,null,null,0,"","","",null,null,null,null,null,null,null,"","","","","","","","","","","","","","","","",0,0]
[null,null,null,null,null,null,null,null,null,null,null,null,null,null,null,null,0,null,null,null,0,null,null,null,0,null,null,null,0,null,null,null,0,null,null,null,null,null,null,0,0,0,null,null,null,0,null,null,null,0,null,null,null,0,null,null,null,0,null,null,null,0,null,null,null,0,null,null,null,0,"",0,null,null,null,0,null,null,null,0,"","","",null,null,null,null,null,null,null,"","","","","","","","","","","","","","","","",0,0]
[null,null,null,null,null,null,null,null,null,null,null,null,null,null,null,null,0,null,null,null,0,null,null,null,0,null,null,null,0,null,null,null,0,null,null,null,null,null,null,0,0,0,null,null,null,0,null,null,null,0,null,null,null,0,null,null,null,0,null,null,null,0,null,null,null,0,null,null,null,0,"",0,null,null,null,0,null,null,null,0,"","","",null,null,null,null,null,null,null,"","","","","","","","","","","","","","","","",0,0]
[null,null,null,null,null,null,null,null,null,null,null,null,null,null,null,null,0,null,null,null,0,null,null,null,0,null,null,null,0,null,null,null,0,null,null,null,null,null,null,0,0,0,null,null,null,0,null,null,null,0,null,null,null,0,null,null,null,0,null,null,null,0,null,null,null,0,null,null,null,0,"",0,null,null,null,0,null,null,null,0,"","","",null,null,null,null,null,null,null,"","","","","","","","","","","","","","","","",0,0]
[null,null,null,null,null,null,null,null,null,null,null,null,null,null,null,null,0,null,null,null,0,null,null,null,0,null,null,null,0,null,null,null,0,null,null,null,null,null,null,0,0,0,null,null,null,0,null,null,null,0,null,null,null,0,null,null,null,0,null,null,null,0,null,null,null,0,null,null,null,0,"",0,null,null,null,0,null,null,null,0,"","","",null,null,null,null,null,null,null,"","","","","","","","","","","","","","","","",0,0]
[null,null,null,null,null,null,null,null,null,null,null,null,null,null,null,null,0,null,null,null,0,null,null,null,0,null,null,null,0,null,null,null,0,null,null,null,null,null,null,0,0,0,null,null,null,0,null,null,null,0,null,null,null,0,null,null,null,0,null,null,null,0,null,null,null,0,null,null,null,0,"",0,null,null,null,0,null,null,null,0,"","","",null,null,null,null,null,null,null,"","","","","","","","","","","","","","","","",0,0]
[null,null,null,null,null,null,null,null,null,null,null,null,null,null,null,null,0,null,null,null,0,null,null,null,0,null,null,null,0,null,null,null,0,null,null,null,null,null,null,0,0,0,null,null,null,0,null,null,null,0,null,null,null,0,null,null,null,0,null,null,null,0,null,null,null,0,null,null,null,0,"",0,null,null,null,0,null,null,null,0,"","","",null,null,null,null,null,null,null,"","","","","","","","","","","","","","","","",0,0]
[null,null,null,null,null,null,null,null,null,null,null,null,null,null,null,null,0,null,null,null,0,null,null,null,0,null,null,null,0,null,null,null,0,null,null,null,null,null,null,0,0,0,null,null,null,0,null,null,null,0,null,null,null,0,null,null,null,0,null,null,null,0,null,null,null,0,null,null,null,0,"",0,null,null,null,0,null,null,null,0,"","","",null,null,null,null,null,null,null,"","","","","","","","","","","","","","","","",0,0]
[null,null,null,null,null,null,null,null,null,null,null,null,null,null,null,null,0,null,null,null,0,null,null,null,0,null,null,null,0,null,null,null,0,null,null,null,null,null,null,0,0,0,null,null,null,0,null,null,null,0,null,null,null,0,null,null,null,0,null,null,null,0,null,null,null,0,null,null,null,0,"",0,null,null,null,0,null,null,null,0,"","","",null,null,null,null,null,null,null,"","","","","","","","","","","","","","","","",0,0]
[null,null,null,null,null,null,null,null,null,null,null,null,null,null,null,null,0,null,null,null,0,null,null,null,0,null,null,null,0,null,null,null,0,null,null,null,null,null,null,0,0,0,null,null,null,0,null,null,null,0,null,null,null,0,null,null,null,0,null,null,null,0,null,null,null,0,null,null,null,0,"",0,null,null,null,0,null,null,null,0,"","","",null,null,null,null,null,null,null,"","","","","","","","","","","","","","","","",0,0]
[null,null,null,null,null,null,null,null,null,null,null,null,null,null,null,null,0,null,null,null,0,null,null,null,0,null,null,null,0,null,null,null,0,null,null,null,null,null,null,0,0,0,null,null,null,0,null,null,null,0,null,null,null,0,null,null,null,0,null,null,null,0,null,null,null,0,null,null,null,0,"",0,null,null,null,0,null,null,null,0,"","","",null,null,null,null,null,null,null,"","","","","","","","","","","","","","","","",0,0]
[null,null,null,null,null,null,null,null,null,null,null,null,null,null,null,null,0,null,null,null,0,null,null,null,0,null,null,null,0,null,null,null,0,null,null,null,null,null,null,0,0,0,null,null,null,0,null,null,null,0,null,null,null,0,null,null,null,0,null,null,null,0,null,null,null,0,null,null,null,0,"",0,null,null,null,0,null,null,null,0,"","","",null,null,null,null,null,null,null,"","","","","","","","","","","","","","","","",0,0]
[null,null,null,null,null,null,null,null,null,null,null,null,null,null,null,null,0,null,null,null,0,null,null,null,0,null,null,null,0,null,null,null,0,null,null,null,null,null,null,0,0,0,null,null,null,0,null,null,null,0,null,null,null,0,null,null,null,0,null,null,null,0,null,null,null,0,null,null,null,0,"",0,null,null,null,0,null,null,null,0,"","","",null,null,null,null,null,null,null,"","","","","","","","","","","","","","","","",0,0]
[null,null,null,null,null,null,null,null,null,null,null,null,null,null,null,null,0,null,null,null,0,null,null,null,0,null,null,null,0,null,null,null,0,null,null,null,null,null,null,0,0,0,null,null,null,0,null,null,null,0,null,null,null,0,null,null,null,0,null,null,null,0,null,null,null,0,null,null,null,0,"",0,null,null,null,0,null,null,null,0,"","","",null,null,null,null,null,null,null,"","","","","","","","","","","","","","","","",0,0]
[null,null,null,null,null,null,null,null,null,null,null,null,null,null,null,null,0,null,null,null,0,null,null,null,0,null,null,null,0,null,null,null,0,null,null,null,null,null,null,0,0,0,null,null,null,0,null,null,null,0,null,null,null,0,null,null,null,0,null,null,null,0,null,null,null,0,null,null,null,0,"",0,null,null,null,0,null,null,null,0,"","","",null,null,null,null,null,null,null,"","","","","","","","","","","","","","","","",0,0]
[null,null,null,null,null,null,null,null,null,null,null,null,null,null,null,null,0,null,null,null,0,null,null,null,0,null,null,null,0,null,null,null,0,null,null,null,null,null,null,0,0,0,null,null,null,0,null,null,null,0,null,null,null,0,null,null,null,0,null,null,null,0,null,null,null,0,null,null,null,0,"",0,null,null,null,0,null,null,null,0,"","","",null,null,null,null,null,null,null,"","","","","","","","","","","","","","","","",0,0]
[null,null,null,null,null,null,null,null,null,null,null,null,null,null,null,null,0,null,null,null,0,null,null,null,0,null,null,null,0,null,null,null,0,null,null,null,null,null,null,0,0,0,null,null,null,0,null,null,null,0,null,null,null,0,null,null,null,0,null,null,null,0,null,null,null,0,null,null,null,0,"",0,null,null,null,0,null,null,null,0,"","","",null,null,null,null,null,null,null,"","","","","","","","","","","","","","","","",0,0]
[null,null,null,null,null,null,null,null,null,null,null,null,null,null,null,null,0,null,null,null,0,null,null,null,0,null,null,null,0,null,null,null,0,null,null,null,null,null,null,0,0,0,null,null,null,0,null,null,null,0,null,null,null,0,null,null,null,0,null,null,null,0,null,null,null,0,null,null,null,0,"",0,null,null,null,0,null,null,null,0,"","","",null,null,null,null,null,null,null,"","","","","","","","","","","","","","","","",0,0]
[null,null,null,null,null,null,null,null,null,null,null,null,null,null,null,null,0,null,null,null,0,null,null,null,0,null,null,null,0,null,null,null,0,null,null,null,null,null,null,0,0,0,null,null,null,0,null,null,null,0,null,null,null,0,null,null,null,0,null,null,null,0,null,null,null,0,null,null,null,0,"",0,null,null,null,0,null,null,null,0,"","","",null,null,null,null,null,null,null,"","","","","","","","","","","","","","","","",0,0]
[null,null,null,null,null,null,null,null,null,null,null,null,null,null,null,null,0,null,null,null,0,null,null,null,0,null,null,null,0,null,null,null,0,null,null,null,null,null,null,0,0,0,null,null,null,0,null,null,null,0,null,null,null,0,null,null,null,0,null,null,null,0,null,null,null,0,null,null,null,0,"",0,null,null,null,0,null,null,null,0,"","","",null,null,null,null,null,null,null,"","","","","","","","","","","","","","","","",0,0]
[null,null,null,null,null,null,null,null,null,null,null,null,null,null,null,null,0,null,null,null,0,null,null,null,0,null,null,null,0,null,null,null,0,null,null,null,null,null,null,0,0,0,null,null,null,0,null,null,null,0,null,null,null,0,null,null,null,0,null,null,null,0,null,null,null,0,null,null,null,0,"",0,null,null,null,0,null,null,null,0,"","","",null,null,null,null,null,null,null,"","","","","","","","","","","","","","","","",0,0]
[null,null,null,null,null,null,null,null,null,null,null,null,null,null,null,null,0,null,null,null,0,null,null,null,0,null,null,null,0,null,null,null,0,null,null,null,null,null,null,0,0,0,null,null,null,0,null,null,null,0,null,null,null,0,null,null,null,0,null,null,null,0,null,null,null,0,null,null,null,0,"",0,null,null,null,0,null,null,null,0,"","","",null,null,null,null,null,null,null,"","","","","","","","","","","","","","","","",0,0]
[null,null,null,null,null,null,null,null,null,null,null,null,null,null,null,null,0,null,null,null,0,null,null,null,0,null,null,null,0,null,null,null,0,null,null,null,null,null,null,0,0,0,null,null,null,0,null,null,null,0,null,null,null,0,null,null,null,0,null,null,null,0,null,null,null,0,null,null,null,0,"",0,null,null,null,0,null,null,null,0,"","","",null,null,null,null,null,null,null,"","","","","","","","","","","","","","","","",0,0]
[null,null,null,null,null,null,null,null,null,null,null,null,null,null,null,null,0,null,null,null,0,null,null,null,0,null,null,null,0,null,null,null,0,null,null,null,null,null,null,0,0,0,null,null,null,0,null,null,null,0,null,null,null,0,null,null,null,0,null,null,null,0,null,null,null,0,null,null,null,0,"",0,null,null,null,0,null,null,null,0,"","","",null,null,null,null,null,null,null,"","","","","","","","","","","","","","","","",0,0]
[null,null,null,null,null,null,null,null,null,null,null,null,null,null,null,null,0,null,null,null,0,null,null,null,0,null,null,null,0,null,null,null,0,null,null,null,null,null,null,0,0,0,null,null,null,0,null,null,null,0,null,null,null,0,null,null,null,0,null,null,null,0,null,null,null,0,null,null,null,0,"",0,null,null,null,0,null,null,null,0,"","","",null,null,null,null,null,null,null,"","","","","","","","","","","","","","","","",0,0]
[null,null,null,null,null,null,null,null,null,null,null,null,null,null,null,null,0,null,null,null,0,null,null,null,0,null,null,null,0,null,null,null,0,null,null,null,null,null,null,0,0,0,null,null,null,0,null,null,null,0,null,null,null,0,null,null,null,0,null,null,null,0,null,null,null,0,null,null,null,0,"",0,null,null,null,0,null,null,null,0,"","","",null,null,null,null,null,null,null,"","","","","","","","","","","","","","","","",0,0]
[null,null,null,null,null,null,null,null,null,null,null,null,null,null,null,null,0,null,null,null,0,null,null,null,0,null,null,null,0,null,null,null,0,null,null,null,null,null,null,0,0,0,null,null,null,0,null,null,null,0,null,null,null,0,null,null,null,0,null,null,null,0,null,null,null,0,null,null,null,0,"",0,null,null,null,0,null,null,null,0,"","","",null,null,null,null,null,null,null,"","","","","","","","","","","","","","","","",0,0]
[null,null,null,null,null,null,null,null,null,null,null,null,null,null,null,null,0,null,null,null,0,null,null,null,0,null,null,null,0,null,null,null,0,null,null,null,null,null,null,0,0,0,null,null,null,0,null,null,null,0,null,null,null,0,null,null,null,0,null,null,null,0,null,null,null,0,null,null,null,0,"",0,null,null,null,0,null,null,null,0,"","","",null,null,null,null,null,null,null,"","","","","","","","","","","","","","","","",0,0]
[null,null,null,null,null,null,null,null,null,null,null,null,null,null,null,null,0,null,null,null,0,null,null,null,0,null,null,null,0,null,null,null,0,null,null,null,null,null,null,0,0,0,null,null,null,0,null,null,null,0,null,null,null,0,null,null,null,0,null,null,null,0,null,null,null,0,null,null,null,0,"",0,null,null,null,0,null,null,null,0,"","","",null,null,null,null,null,null,null,"","","","","","","","","","","","","","","","",0,0]
[null,null,null,null,null,null,null,null,null,null,null,null,null,null,null,null,0,null,null,null,0,null,null,null,0,null,null,null,0,null,null,null,0,null,null,null,null,null,null,0,0,0,null,null,null,0,null,null,null,0,null,null,null,0,null,null,null,0,null,null,null,0,null,null,null,0,null,null,null,0,"",0,null,null,null,0,null,null,null,0,"","","",null,null,null,null,null,null,null,"","","","","","","","","","","","","","","","",0,0]
[null,null,null,null,null,null,null,null,null,null,null,null,null,null,null,null,0,null,null,null,0,null,null,null,0,null,null,null,0,null,null,null,0,null,null,null,null,null,null,0,0,0,null,null,null,0,null,null,null,0,null,null,null,0,null,null,null,0,null,null,null,0,null,null,null,0,null,null,null,0,"",0,null,null,null,0,null,null,null,0,"","","",null,null,null,null,null,null,null,"","","","","","","","","","","","","","","","",0,0]
[null,null,null,null,null,null,null,null,null,null,null,null,null,null,null,null,0,null,null,null,0,null,null,null,0,null,null,null,0,null,null,null,0,null,null,null,null,null,null,0,0,0,null,null,null,0,null,null,null,0,null,null,null,0,null,null,null,0,null,null,null,0,null,null,null,0,null,null,null,0,"",0,null,null,null,0,null,null,null,0,"","","",null,null,null,null,null,null,null,"","","","","","","","","","","","","","","","",0,0]
[null,null,null,null,null,null,null,null,null,null,null,null,null,null,null,null,0,null,null,null,0,null,null,null,0,null,null,null,0,null,null,null,0,null,null,null,null,null,null,0,0,0,null,null,null,0,null,null,null,0,null,null,null,0,null,null,null,0,null,null,null,0,null,null,null,0,null,null,null,0,"",0,null,null,null,0,null,null,null,0,"","","",null,null,null,null,null,null,null,"","","","","","","","","","","","","","","","",0,0]
[null,null,null,null,null,null,null,null,null,null,null,null,null,null,null,null,0,null,null,null,0,null,null,null,0,null,null,null,0,null,null,null,0,null,null,null,null,null,null,0,0,0,null,null,null,0,null,null,null,0,null,null,null,0,null,null,null,0,null,null,null,0,null,null,null,0,null,null,null,0,"",0,null,null,null,0,null,null,null,0,"","","",null,null,null,null,null,null,null,"","","","","","","","","","","","","","","","",0,0]
[null,null,null,null,null,null,null,null,null,null,null,null,null,null,null,null,0,null,null,null,0,null,null,null,0,null,null,null,0,null,null,null,0,null,null,null,null,null,null,0,0,0,null,null,null,0,null,null,null,0,null,null,null,0,null,null,null,0,null,null,null,0,null,null,null,0,null,null,null,0,"",0,null,null,null,0,null,null,null,0,"","","",null,null,null,null,null,null,null,"","","","","","","","","","","","","","","","",0,0]
[null,null,null,null,null,null,null,null,null,null,null,null,null,null,null,null,0,null,null,null,0,null,null,null,0,null,null,null,0,null,null,null,0,null,null,null,null,null,null,0,0,0,null,null,null,0,null,null,null,0,null,null,null,0,null,null,null,0,null,null,null,0,null,null,null,0,null,null,null,0,"",0,null,null,null,0,null,null,null,0,"","","",null,null,null,null,null,null,null,"","","","","","","","","","","","","","","","",0,0]
[null,null,null,null,null,null,null,null,null,null,null,null,null,null,null,null,0,null,null,null,0,null,null,null,0,null,null,null,0,null,null,null,0,null,null,null,null,null,null,0,0,0,null,null,null,0,null,null,null,0,null,null,null,0,null,null,null,0,null,null,null,0,null,null,null,0,null,null,null,0,"",0,null,null,null,0,null,null,null,0,"","","",null,null,null,null,null,null,null,"","","","","","","","","","","","","","","","",0,0]
[null,null,null,null,null,null,null,null,null,null,null,null,null,null,null,null,0,null,null,null,0,null,null,null,0,null,null,null,0,null,null,null,0,null,null,null,null,null,null,0,0,0,null,null,null,0,null,null,null,0,null,null,null,0,null,null,null,0,null,null,null,0,null,null,null,0,null,null,null,0,"",0,null,null,null,0,null,null,null,0,"","","",null,null,null,null,null,null,null,"","","","","","","","","","","","","","","","",0,0]
[null,null,null,null,null,null,null,null,null,null,null,null,null,null,null,null,0,null,null,null,0,null,null,null,0,null,null,null,0,null,null,null,0,null,null,null,null,null,null,0,0,0,null,null,null,0,null,null,null,0,null,null,null,0,null,null,null,0,null,null,null,0,null,null,null,0,null,null,null,0,"",0,null,null,null,0,null,null,null,0,"","","",null,null,null,null,null,null,null,"","","","","","","","","","","","","","","","",0,0]
[null,null,null,null,null,null,null,null,null,null,null,null,null,null,null,null,0,null,null,null,0,null,null,null,0,null,null,null,0,null,null,null,0,null,null,null,null,null,null,0,0,0,null,null,null,0,null,null,null,0,null,null,null,0,null,null,null,0,null,null,null,0,null,null,null,0,null,null,null,0,"",0,null,null,null,0,null,null,null,0,"","","",null,null,null,null,null,null,null,"","","","","","","","","","","","","","","","",0,0]
[null,null,null,null,null,null,null,null,null,null,null,null,null,null,null,null,0,null,null,null,0,null,null,null,0,null,null,null,0,null,null,null,0,null,null,null,null,null,null,0,0,0,null,null,null,0,null,null,null,0,null,null,null,0,null,null,null,0,null,null,null,0,null,null,null,0,null,null,null,0,"",0,null,null,null,0,null,null,null,0,"","","",null,null,null,null,null,null,null,"","","","","","","","","","","","","","","","",0,0]
[null,null,null,null,null,null,null,null,null,null,null,null,null,null,null,null,{"$f":"IF(P394=\"غ\",\"غ\",SUM(N394,O394,P394))","v":0},null,null,null,{"$f":"IF(T394=\"غ\",\"غ\",SUM(R394,S394,T394))","v":0},null,null,null,{"$f":"IF(X394=\"غ\",\"غ\",SUM(V394,W394,X394))","v":0},null,null,null,{"$f":"IF(AB394=\"غ\",\"غ\",SUM(Z394,AA394,AB394))","v":0},null,null,null,{"$f":"IF(AF394=\"غ\",\"غ\",SUM(AD394,AE394,AF394))","v":0},null,null,null,null,null,null,{"$f":"IF(AL394=\"غ\",\"غ\",SUM(AH394,AJ394,AL394))","v":0},{"$f":"IF(AM394=\"غ\",\"غ\",SUM(AI394,AK394,AM394))","v":0},{"$f":"IF(OR(AN394=\"غ\",AO394=\"غ\"),\"غ\",SUM(AN394,AO394))","v":0},null,null,null,{"$f":"IF(AS394=\"غ\",\"غ\",SUM(AQ394,AR394,AS394))","v":0},null,null,null,{"$f":"IF(AW394=\"غ\",\"غ\",SUM(AU394,AV394,AW394))","v":0},null,null,null,{"$f":"IF(BA394=\"غ\",\"غ\",SUM(AY394,AZ394,BA394))","v":0},null,null,null,{"$f":"IF(BE394=\"غ\",\"غ\",SUM(BC394,BD394,BE394))","v":0},null,null,null,{"$f":"IF(BI394=\"غ\",\"غ\",SUM(BG394,BH394,BI394))","v":0},null,null,null,{"$f":"IF(BM394=\"غ\",\"غ\",SUM(BK394,BL394,BM394))","v":0},null,null,null,{"$f":"IF(BQ394=\"غ\",\"غ\",SUM(BO394,BP394,BQ394))","v":0},{"$f":"IF(C394=\"\",\"\",SUM(O394,S394,W394,AE394,AR394,AV394,AZ394,BD394,BH394,BL394,BP394,AA394,AJ394,AK394))","v":""},{"$f":"SUM(Q394,U394,Y394,AG394,AT394,AX394,BB394,BF394,BJ394,BN394,BR394,AC394,AP394)","v":0},null,null,null,{"$f":"IF(BW394=\"غ\",\"غ\",SUM(BU394,BV394,BW394))","v":0},null,null,null,0,{"$f":"IF(I394=\"\",\"\",IF(I394=\"بنات\",IF(CE394=0,\"ناجحة\",IF(DD394>2,\"راسبة\",\"دورثان\")),IF(I394=\"بنين\",IF(CE394=0,\"ناجح\",IF(DD394>2,\"راسب\",\"دورثان\")))))","v":""},{"$f":"IF(C394=\"\",\"\",IF(AND($L394=\"باقية\",$CC394=\"راسبة\"),\"وليس لها حق الاعادة\",IF(AND($L394<>\"باقية\",$CC394=\"راسبة\"),\"و  لها حق الاعادة\",IF(AND($L394=\"باقى\",$CC394=\"راسب\"),\"وليس له حق الاعادة\",IF(AND($L394<>\"باقى\",$CC394=\"راسب\"),\"و  له حق الاعادة\",IF($CC394=\"ناجحة\",\"و منقولة للصف الثانى\",IF($CC394=\"ناجح\",\"و منقول للصف الثانى\",IF($CC394=\"دورثان\",\"فى : \"&CONCATENATE($CM394,$CN394,$CO394,$CQ394,$CR394,$CS394,$CT394,$CU394,$CV394,$CW394,$CX394,$CY394,$CP394,$CZ394,$DA394,$DB394)))))))))","v":""},{"$f":"IF(C394=\"\",\"\",$DC394+$DD394)","v":""},null,null,null,null,null,null,null,{"$f":"IF(C394=\"\",\"\",IF(OR(P394<$P$9,P394=\"غ\",Q394<$Q$9),CM$5&\" - \",\"\"))","v":""},{"$f":"IF(C394=\"\",\"\",IF(OR(T394<$T$9,T394=\"غ\",U394<$U$9),CN$5&\" - \",\"\"))","v":""},{"$f":"IF(C394=\"\",\"\",IF(OR(X394<$X$9,X394=\"غ\",Y394<$Y$9),CO$5&\" - \",\"\"))","v":""},{"$f":"IF(C394=\"\",\"\",IF(OR(AB394<$AB$9,AB394=\"غ\",AC394<$AC$9),CP$5&\" - \",\"\"))","v":""},{"$f":"IF(C394=\"\",\"\",IF(OR(AF394<$AF$9,AF394=\"غ\",AG394<$AG$9),CQ$5&\" - \",\"\"))","v":""},{"$f":"IF(C394=\"\",\"\",IF(OR(AL394<$AL$9,AM394<$AM$9,AN394<$AN$9,AN394=\"غ\",AO394<$AO$9,AO394=\"غ\"),CR$5&\" - \",\"\"))","v":""},{"$f":"IF(C394=\"\",\"\",IF(OR(AS394<$AS$9,AS394=\"غ\",AT394<$AT$9),CS$5&\" - \",\"\"))","v":""},{"$f":"IF(C394=\"\",\"\",IF(OR(AW394<$AW$9,AW394=\"غ\",AX394<$AX$9),CT$5&\" - \",\"\"))","v":""},{"$f":"IF(C394=\"\",\"\",IF(OR(BA394<$BA$9,BA394=\"غ\",BB394<$BB$9),CU$5&\" - \",\"\"))","v":""},{"$f":"IF(C394=\"\",\"\",IF(OR(BE394<$BE$9,BE394=\"غ\",BF394<$BF$9),CV$5&\" - \",\"\"))","v":""},{"$f":"IF(C394=\"\",\"\",IF(OR(BI394<$BI$9,BI394=\"غ\",BJ394<$BJ$9),CW$5&\" - \",\"\"))","v":""},{"$f":"IF(C394=\"\",\"\",IF(OR(BM394<$BM$9,BM394=\"غ\",BN394<$BN$9),CX$5&\" - \",\"\"))","v":""},{"$f":"IF(C394=\"\",\"\",IF(OR(BQ394<$BQ$9,BQ394=\"غ\",BR394<$BR$9),CY$5&\" - \",\"\"))","v":""},{"$f":"IF(C394=\"\",\"\",IF(BT394<$BT$9,CZ$5&\" - \",\"\"))","v":""},{"$f":"IF(C394=\"\",\"\",IF(OR(BW394<$BW$9,BW394=\"غ\",BX394<$BX$9),DA$5,\"\"))","v":""},{"$f":"IF(C394=\"\",\"\",IF(OR(CA394<$CA$9,CA394=\"غ\",CB394<$CB$9),DB$5,\"\"))","v":""},{"$f":"COUNTIF($CZ394:$DB394,\"?*\")","v":0},{"$f":"COUNTIF($CM394:$CY394,\"?*\")","v":0}]
[null,null,null,null,null,null,null,null,null,null,null,null,null,null,null,null,0,null,null,null,0,null,null,null,0,null,null,null,0,null,null,null,0,null,null,null,null,null,null,0,0,0,null,null,null,0,null,null,null,0,null,null,null,0,null,null,null,0,null,null,null,0,null,null,null,0,null,null,null,0,"",0,null,null,null,0,null,null,null,{"$f":"IF(CA395=\"غ\",\"غ\",SUM(BY395,BZ395,CA395))","v":0},"","","",null,null,null,null,null,null,null,"","","","","","","","","","","","","","","","",0,0]
[null,null,null,null,null,null,null,null,null,null,null,null,null,null,null,null,0,null,null,null,0,null,null,null,0,null,null,null,0,null,null,null,0,null,null,null,null,null,null,0,0,0,null,null,null,0,null,null,null,0,null,null,null,0,null,null,null,0,null,null,null,0,null,null,null,0,null,null,null,0,"",0,null,null,null,0,null,null,null,0,"","","",null,null,null,null,null,null,null,"","","","","","","","","","","","","","","","",0,0]
[null,null,null,null,null,null,null,null,null,null,null,null,null,null,null,null,0,null,null,null,0,null,null,null,0,null,null,null,0,null,null,null,0,null,null,null,null,null,null,0,0,0,null,null,null,0,null,null,null,0,null,null,null,0,null,null,null,0,null,null,null,0,null,null,null,0,null,null,null,0,"",0,null,null,null,0,null,null,null,0,"","","",null,null,null,null,null,null,null,"","","","","","","","","","","","","","","","",0,0]
[null,null,null,null,null,null,null,null,null,null,null,null,null,null,null,null,0,null,null,null,0,null,null,null,0,null,null,null,0,null,null,null,0,null,null,null,null,null,null,0,0,0,null,null,null,0,null,null,null,0,null,null,null,0,null,null,null,0,null,null,null,0,null,null,null,0,null,null,null,0,"",0,null,null,null,0,null,null,null,0,"","","",null,null,null,null,null,null,null,"","","","","","","","","","","","","","","","",0,0]
[null,null,null,null,null,null,null,null,null,null,null,null,null,null,null,null,0,null,null,null,0,null,null,null,0,null,null,null,0,null,null,null,0,null,null,null,null,null,null,0,0,0,null,null,null,0,null,null,null,0,null,null,null,0,null,null,null,0,null,null,null,0,null,null,null,0,null,null,null,0,"",0,null,null,null,0,null,null,null,0,"","","",null,null,null,null,null,null,null,"","","","","","","","","","","","","","","","",0,0]
[null,null,null,null,null,null,null,null,null,null,null,null,null,null,null,null,0,null,null,null,0,null,null,null,0,null,null,null,0,null,null,null,0,null,null,null,null,null,null,0,0,0,null,null,null,0,null,null,null,0,null,null,null,0,null,null,null,0,null,null,null,0,null,null,null,0,null,null,null,0,"",0,null,null,null,0,null,null,null,0,"","","",null,null,null,null,null,null,null,"","","","","","","","","","","","","","","","",0,0]
[null,null,null,null,null,null,null,null,null,null,null,null,null,null,null,null,0,null,null,null,0,null,null,null,0,null,null,null,0,null,null,null,0,null,null,null,null,null,null,0,0,0,null,null,null,0,null,null,null,0,null,null,null,0,null,null,null,0,null,null,null,0,null,null,null,0,null,null,null,0,"",0,null,null,null,0,null,null,null,0,"","","",null,null,null,null,null,null,null,"","","","","","","","","","","","","","","","",0,0]
[null,null,null,null,null,null,null,null,null,null,null,null,null,null,null,null,0,null,null,null,0,null,null,null,0,null,null,null,0,null,null,null,0,null,null,null,null,null,null,0,0,0,null,null,null,0,null,null,null,0,null,null,null,0,null,null,null,0,null,null,null,0,null,null,null,0,null,null,null,0,"",0,null,null,null,0,null,null,null,0,"","","",null,null,null,null,null,null,null,"","","","","","","","","","","","","","","","",0,0]
[null,null,null,null,null,null,null,null,null,null,null,null,null,null,null,null,0,null,null,null,0,null,null,null,0,null,null,null,0,null,null,null,0,null,null,null,null,null,null,0,0,0,null,null,null,0,null,null,null,0,null,null,null,0,null,null,null,0,null,null,null,0,null,null,null,0,null,null,null,0,"",0,null,null,null,0,null,null,null,0,"","","",null,null,null,null,null,null,null,"","","","","","","","","","","","","","","","",0,0]
[null,null,null,null,null,null,null,null,null,null,null,null,null,null,null,null,0,null,null,null,0,null,null,null,0,null,null,null,0,null,null,null,0,null,null,null,null,null,null,0,0,0,null,null,null,0,null,null,null,0,null,null,null,0,null,null,null,0,null,null,null,0,null,null,null,0,null,null,null,0,"",0,null,null,null,0,null,null,null,0,"","","",null,null,null,null,null,null,null,"","","","","","","","","","","","","","","","",0,0]
[null,null,null,null,null,null,null,null,null,null,null,null,null,null,null,null,0,null,null,null,0,null,null,null,0,null,null,null,0,null,null,null,0,null,null,null,null,null,null,0,0,0,null,null,null,0,null,null,null,0,null,null,null,0,null,null,null,0,null,null,null,0,null,null,null,0,null,null,null,0,"",0,null,null,null,0,null,null,null,0,"","","",null,null,null,null,null,null,null,"","","","","","","","","","","","","","","","",0,0]
[null,null,null,null,null,null,null,null,null,null,null,null,null,null,null,null,0,null,null,null,0,null,null,null,0,null,null,null,0,null,null,null,0,null,null,null,null,null,null,0,0,0,null,null,null,0,null,null,null,0,null,null,null,0,null,null,null,0,null,null,null,0,null,null,null,0,null,null,null,0,"",0,null,null,null,0,null,null,null,0,"","","",null,null,null,null,null,null,null,"","","","","","","","","","","","","","","","",0,0]
[null,null,null,null,null,null,null,null,null,null,null,null,null,null,null,null,0,null,null,null,0,null,null,null,0,null,null,null,0,null,null,null,0,null,null,null,null,null,null,0,0,0,null,null,null,0,null,null,null,0,null,null,null,0,null,null,null,0,null,null,null,0,null,null,null,0,null,null,null,0,"",0,null,null,null,0,null,null,null,0,"","","",null,null,null,null,null,null,null,"","","","","","","","","","","","","","","","",0,0]
[null,null,null,null,null,null,null,null,null,null,null,null,null,null,null,null,0,null,null,null,0,null,null,null,0,null,null,null,0,null,null,null,0,null,null,null,null,null,null,0,0,0,null,null,null,0,null,null,null,0,null,null,null,0,null,null,null,0,null,null,null,0,null,null,null,0,null,null,null,0,"",0,null,null,null,0,null,null,null,0,"","","",null,null,null,null,null,null,null,"","","","","","","","","","","","","","","","",0,0]
[null,null,null,null,null,null,null,null,null,null,null,null,null,null,null,null,0,null,null,null,0,null,null,null,0,null,null,null,0,null,null,null,0,null,null,null,null,null,null,0,0,0,null,null,null,0,null,null,null,0,null,null,null,0,null,null,null,0,null,null,null,0,null,null,null,0,null,null,null,0,"",0,null,null,null,0,null,null,null,0,"","","",null,null,null,null,null,null,null,"","","","","","","","","","","","","","","","",0,0]
[null,null,null,null,null,null,null,null,null,null,null,null,null,null,null,null,0,null,null,null,0,null,null,null,0,null,null,null,0,null,null,null,0,null,null,null,null,null,null,0,0,0,null,null,null,0,null,null,null,0,null,null,null,0,null,null,null,0,null,null,null,0,null,null,null,0,null,null,null,0,"",0,null,null,null,0,null,null,null,0,"","","",null,null,null,null,null,null,null,"","","","","","","","","","","","","","","","",0,0]
[null,null,null,null,null,null,null,null,null,null,null,null,null,null,null,null,0,null,null,null,0,null,null,null,0,null,null,null,0,null,null,null,0,null,null,null,null,null,null,0,0,0,null,null,null,0,null,null,null,0,null,null,null,0,null,null,null,0,null,null,null,0,null,null,null,0,null,null,null,0,"",0,null,null,null,0,null,null,null,0,"","","",null,null,null,null,null,null,null,"","","","","","","","","","","","","","","","",0,0]
[null,null,null,null,null,null,null,null,null,null,null,null,null,null,null,null,0,null,null,null,0,null,null,null,0,null,null,null,0,null,null,null,0,null,null,null,null,null,null,0,0,0,null,null,null,0,null,null,null,0,null,null,null,0,null,null,null,0,null,null,null,0,null,null,null,0,null,null,null,0,"",0,null,null,null,0,null,null,null,0,"","","",null,null,null,null,null,null,null,"","","","","","","","","","","","","","","","",0,0]
[null,null,null,null,null,null,null,null,null,null,null,null,null,null,null,null,0,null,null,null,0,null,null,null,0,null,null,null,0,null,null,null,0,null,null,null,null,null,null,0,0,0,null,null,null,0,null,null,null,0,null,null,null,0,null,null,null,0,null,null,null,0,null,null,null,0,null,null,null,0,"",0,null,null,null,0,null,null,null,0,"","","",null,null,null,null,null,null,null,"","","","","","","","","","","","","","","","",0,0]
[null,null,null,null,null,null,null,null,null,null,null,null,null,null,null,null,0,null,null,null,0,null,null,null,0,null,null,null,0,null,null,null,0,null,null,null,null,null,null,0,0,0,null,null,null,0,null,null,null,0,null,null,null,0,null,null,null,0,null,null,null,0,null,null,null,0,null,null,null,0,"",0,null,null,null,0,null,null,null,0,"","","",null,null,null,null,null,null,null,"","","","","","","","","","","","","","","","",0,0]
[null,null,null,null,null,null,null,null,null,null,null,null,null,null,null,null,0,null,null,null,0,null,null,null,0,null,null,null,0,null,null,null,0,null,null,null,null,null,null,0,0,0,null,null,null,0,null,null,null,0,null,null,null,0,null,null,null,0,null,null,null,0,null,null,null,0,null,null,null,0,"",0,null,null,null,0,null,null,null,0,"","","",null,null,null,null,null,null,null,"","","","","","","","","","","","","","","","",0,0]
[null,null,null,null,null,null,null,null,null,null,null,null,null,null,null,null,0,null,null,null,0,null,null,null,0,null,null,null,0,null,null,null,0,null,null,null,null,null,null,0,0,0,null,null,null,0,null,null,null,0,null,null,null,0,null,null,null,0,null,null,null,0,null,null,null,0,null,null,null,0,"",0,null,null,null,0,null,null,null,0,"","","",null,null,null,null,null,null,null,"","","","","","","","","","","","","","","","",0,0]
[null,null,null,null,null,null,null,null,null,null,null,null,null,null,null,null,0,null,null,null,0,null,null,null,0,null,null,null,0,null,null,null,0,null,null,null,null,null,null,0,0,0,null,null,null,0,null,null,null,0,null,null,null,0,null,null,null,0,null,null,null,0,null,null,null,0,null,null,null,0,"",0,null,null,null,0,null,null,null,0,"","","",null,null,null,null,null,null,null,"","","","","","","","","","","","","","","","",0,0]
[null,null,null,null,null,null,null,null,null,null,null,null,null,null,null,null,0,null,null,null,0,null,null,null,0,null,null,null,0,null,null,null,0,null,null,null,null,null,null,0,0,0,null,null,null,0,null,null,null,0,null,null,null,0,null,null,null,0,null,null,null,0,null,null,null,0,null,null,null,0,"",0,null,null,null,0,null,null,null,0,"","","",null,null,null,null,null,null,null,"","","","","","","","","","","","","","","","",0,0]
[null,null,null,null,null,null,null,null,null,null,null,null,null,null,null,null,0,null,null,null,0,null,null,null,0,null,null,null,0,null,null,null,0,null,null,null,null,null,null,0,0,0,null,null,null,0,null,null,null,0,null,null,null,0,null,null,null,0,null,null,null,0,null,null,null,0,null,null,null,0,"",0,null,null,null,0,null,null,null,0,"","","",null,null,null,null,null,null,null,"","","","","","","","","","","","","","","","",0,0]
[null,null,null,null,null,null,null,null,null,null,null,null,null,null,null,null,0,null,null,null,0,null,null,null,0,null,null,null,0,null,null,null,0,null,null,null,null,null,null,0,0,0,null,null,null,0,null,null,null,0,null,null,null,0,null,null,null,0,null,null,null,0,null,null,null,0,null,null,null,0,"",0,null,null,null,0,null,null,null,0,"","","",null,null,null,null,null,null,null,"","","","","","","","","","","","","","","","",0,0]
[null,null,null,null,null,null,null,null,null,null,null,null,null,null,null,null,0,null,null,null,0,null,null,null,0,null,null,null,0,null,null,null,0,null,null,null,null,null,null,0,0,0,null,null,null,0,null,null,null,0,null,null,null,0,null,null,null,0,null,null,null,0,null,null,null,0,null,null,null,0,"",0,null,null,null,0,null,null,null,0,"","","",null,null,null,null,null,null,null,"","","","","","","","","","","","","","","","",0,0]
[null,null,null,null,null,null,null,null,null,null,null,null,null,null,null,null,0,null,null,null,0,null,null,null,0,null,null,null,0,null,null,null,0,null,null,null,null,null,null,0,0,0,null,null,null,0,null,null,null,0,null,null,null,0,null,null,null,0,null,null,null,0,null,null,null,0,null,null,null,0,"",0,null,null,null,0,null,null,null,0,"","","",null,null,null,null,null,null,null,"","","","","","","","","","","","","","","","",0,0]
[null,null,null,null,null,null,null,null,null,null,null,null,null,null,null,null,0,null,null,null,0,null,null,null,0,null,null,null,0,null,null,null,0,null,null,null,null,null,null,0,0,0,null,null,null,0,null,null,null,0,null,null,null,0,null,null,null,0,null,null,null,0,null,null,null,0,null,null,null,0,"",0,null,null,null,0,null,null,null,0,"","","",null,null,null,null,null,null,null,"","","","","","","","","","","","","","","","",0,0]
[null,null,null,null,null,null,null,null,null,null,null,null,null,null,null,null,0,null,null,null,0,null,null,null,0,null,null,null,0,null,null,null,0,null,null,null,null,null,null,0,0,0,null,null,null,0,null,null,null,0,null,null,null,0,null,null,null,0,null,null,null,0,null,null,null,0,null,null,null,0,"",0,null,null,null,0,null,null,null,0,"","","",null,null,null,null,null,null,null,"","","","","","","","","","","","","","","","",0,0]
[null,null,null,null,null,null,null,null,null,null,null,null,null,null,null,null,0,null,null,null,0,null,null,null,0,null,null,null,0,null,null,null,0,null,null,null,null,null,null,0,0,0,null,null,null,0,null,null,null,0,null,null,null,0,null,null,null,0,null,null,null,0,null,null,null,0,null,null,null,0,"",0,null,null,null,0,null,null,null,0,"","","",null,null,null,null,null,null,null,"","","","","","","","","","","","","","","","",0,0]
[null,null,null,null,null,null,null,null,null,null,null,null,null,null,null,null,0,null,null,null,0,null,null,null,0,null,null,null,0,null,null,null,0,null,null,null,null,null,null,0,0,0,null,null,null,0,null,null,null,0,null,null,null,0,null,null,null,0,null,null,null,0,null,null,null,0,null,null,null,0,"",0,null,null,null,0,null,null,null,0,"","","",null,null,null,null,null,null,null,"","","","","","","","","","","","","","","","",0,0]
[null,null,null,null,null,null,null,null,null,null,null,null,null,null,null,null,0,null,null,null,0,null,null,null,0,null,null,null,0,null,null,null,0,null,null,null,null,null,null,0,0,0,null,null,null,0,null,null,null,0,null,null,null,0,null,null,null,0,null,null,null,0,null,null,null,0,null,null,null,0,"",0,null,null,null,0,null,null,null,0,"","","",null,null,null,null,null,null,null,"","","","","","","","","","","","","","","","",0,0]
[null,null,null,null,null,null,null,null,null,null,null,null,null,null,null,null,0,null,null,null,0,null,null,null,0,null,null,null,0,null,null,null,0,null,null,null,null,null,null,0,0,0,null,null,null,0,null,null,null,0,null,null,null,0,null,null,null,0,null,null,null,0,null,null,null,0,null,null,null,0,"",0,null,null,null,0,null,null,null,0,"","","",null,null,null,null,null,null,null,"","","","","","","","","","","","","","","","",0,0]
[null,null,null,null,null,null,null,null,null,null,null,null,null,null,null,null,0,null,null,null,0,null,null,null,0,null,null,null,0,null,null,null,0,null,null,null,null,null,null,0,0,0,null,null,null,0,null,null,null,0,null,null,null,0,null,null,null,0,null,null,null,0,null,null,null,0,null,null,null,0,"",0,null,null,null,0,null,null,null,0,"","","",null,null,null,null,null,null,null,"","","","","","","","","","","","","","","","",0,0]
[null,null,null,null,null,null,null,null,null,null,null,null,null,null,null,null,0,null,null,null,0,null,null,null,0,null,null,null,0,null,null,null,0,null,null,null,null,null,null,0,0,0,null,null,null,0,null,null,null,0,null,null,null,0,null,null,null,0,null,null,null,0,null,null,null,0,null,null,null,0,"",0,null,null,null,0,null,null,null,0,"","","",null,null,null,null,null,null,null,"","","","","","","","","","","","","","","","",0,0]
[null,null,null,null,null,null,null,null,null,null,null,null,null,null,null,null,0,null,null,null,0,null,null,null,0,null,null,null,0,null,null,null,0,null,null,null,null,null,null,0,0,0,null,null,null,0,null,null,null,0,null,null,null,0,null,null,null,0,null,null,null,0,null,null,null,0,null,null,null,0,"",0,null,null,null,0,null,null,null,0,"","","",null,null,null,null,null,null,null,"","","","","","","","","","","","","","","","",0,0]
[null,null,null,null,null,null,null,null,null,null,null,null,null,null,null,null,0,null,null,null,0,null,null,null,0,null,null,null,0,null,null,null,0,null,null,null,null,null,null,0,0,0,null,null,null,0,null,null,null,0,null,null,null,0,null,null,null,0,null,null,null,0,null,null,null,0,null,null,null,0,"",0,null,null,null,0,null,null,null,0,"","","",null,null,null,null,null,null,null,"","","","","","","","","","","","","","","","",0,0]
[null,null,null,null,null,null,null,null,null,null,null,null,null,null,null,null,0,null,null,null,0,null,null,null,0,null,null,null,0,null,null,null,0,null,null,null,null,null,null,0,0,0,null,null,null,0,null,null,null,0,null,null,null,0,null,null,null,0,null,null,null,0,null,null,null,0,null,null,null,0,"",0,null,null,null,0,null,null,null,0,"","","",null,null,null,null,null,null,null,"","","","","","","","","","","","","","","","",0,0]
[null,null,null,null,null,null,null,null,null,null,null,null,null,null,null,null,0,null,null,null,0,null,null,null,0,null,null,null,0,null,null,null,0,null,null,null,null,null,null,0,0,0,null,null,null,0,null,null,null,0,null,null,null,0,null,null,null,0,null,null,null,0,null,null,null,0,null,null,null,0,"",0,null,null,null,0,null,null,null,0,"","","",null,null,null,null,null,null,null,"","","","","","","","","","","","","","","","",0,0]
[null,null,null,null,null,null,null,null,null,null,null,null,null,null,null,null,0,null,null,null,0,null,null,null,0,null,null,null,0,null,null,null,0,null,null,null,null,null,null,0,0,0,null,null,null,0,null,null,null,0,null,null,null,0,null,null,null,0,null,null,null,0,null,null,null,0,null,null,null,0,"",0,null,null,null,0,null,null,null,0,"","","",null,null,null,null,null,null,null,"","","","","","","","","","","","","","","","",0,0]
[null,null,null,null,null,null,null,null,null,null,null,null,null,null,null,null,0,null,null,null,0,null,null,null,0,null,null,null,0,null,null,null,0,null,null,null,null,null,null,0,0,0,null,null,null,0,null,null,null,0,null,null,null,0,null,null,null,0,null,null,null,0,null,null,null,0,null,null,null,0,"",0,null,null,null,0,null,null,null,0,"","","",null,null,null,null,null,null,null,"","","","","","","","","","","","","","","","",0,0]
[null,null,null,null,null,null,null,null,null,null,null,null,null,null,null,null,0,null,null,null,0,null,null,null,0,null,null,null,0,null,null,null,0,null,null,null,null,null,null,0,0,0,null,null,null,0,null,null,null,0,null,null,null,0,null,null,null,0,null,null,null,0,null,null,null,0,null,null,null,0,"",0,null,null,null,0,null,null,null,0,"","","",null,null,null,null,null,null,null,"","","","","","","","","","","","","","","","",0,0]
[null,null,null,null,null,null,null,null,null,null,null,null,null,null,null,null,0,null,null,null,0,null,null,null,0,null,null,null,0,null,null,null,0,null,null,null,null,null,null,0,0,0,null,null,null,0,null,null,null,0,null,null,null,0,null,null,null,0,null,null,null,0,null,null,null,0,null,null,null,0,"",0,null,null,null,0,null,null,null,0,"","","",null,null,null,null,null,null,null,"","","","","","","","","","","","","","","","",0,0]
[null,null,null,null,null,null,null,null,null,null,null,null,null,null,null,null,0,null,null,null,0,null,null,null,0,null,null,null,0,null,null,null,0,null,null,null,null,null,null,0,0,0,null,null,null,0,null,null,null,0,null,null,null,0,null,null,null,0,null,null,null,0,null,null,null,0,null,null,null,0,"",0,null,null,null,0,null,null,null,0,"","","",null,null,null,null,null,null,null,"","","","","","","","","","","","","","","","",0,0]
[null,null,null,null,null,null,null,null,null,null,null,null,null,null,null,null,0,null,null,null,0,null,null,null,0,null,null,null,0,null,null,null,0,null,null,null,null,null,null,0,0,0,null,null,null,0,null,null,null,0,null,null,null,0,null,null,null,0,null,null,null,0,null,null,null,0,null,null,null,0,"",0,null,null,null,0,null,null,null,0,"","","",null,null,null,null,null,null,null,"","","","","","","","","","","","","","","","",0,0]
[null,null,null,null,null,null,null,null,null,null,null,null,null,null,null,null,0,null,null,null,0,null,null,null,0,null,null,null,0,null,null,null,0,null,null,null,null,null,null,0,0,0,null,null,null,0,null,null,null,0,null,null,null,0,null,null,null,0,null,null,null,0,null,null,null,0,null,null,null,0,"",0,null,null,null,0,null,null,null,0,"","","",null,null,null,null,null,null,null,"","","","","","","","","","","","","","","","",0,0]
[null,null,null,null,null,null,null,null,null,null,null,null,null,null,null,null,0,null,null,null,0,null,null,null,0,null,null,null,0,null,null,null,0,null,null,null,null,null,null,0,0,0,null,null,null,0,null,null,null,0,null,null,null,0,null,null,null,0,null,null,null,0,null,null,null,0,null,null,null,0,"",0,null,null,null,0,null,null,null,0,"","","",null,null,null,null,null,null,null,"","","","","","","","","","","","","","","","",0,0]
[null,null,null,null,null,null,null,null,null,null,null,null,null,null,null,null,0,null,null,null,0,null,null,null,0,null,null,null,0,null,null,null,0,null,null,null,null,null,null,0,0,0,null,null,null,0,null,null,null,0,null,null,null,0,null,null,null,0,null,null,null,0,null,null,null,0,null,null,null,0,"",0,null,null,null,0,null,null,null,0,"","","",null,null,null,null,null,null,null,"","","","","","","","","","","","","","","","",0,0]
[null,null,null,null,null,null,null,null,null,null,null,null,null,null,null,null,0,null,null,null,0,null,null,null,0,null,null,null,0,null,null,null,0,null,null,null,null,null,null,0,0,0,null,null,null,0,null,null,null,0,null,null,null,0,null,null,null,0,null,null,null,0,null,null,null,0,null,null,null,0,"",0,null,null,null,0,null,null,null,0,"","","",null,null,null,null,null,null,null,"","","","","","","","","","","","","","","","",0,0]
[null,null,null,null,null,null,null,null,null,null,null,null,null,null,null,null,0,null,null,null,0,null,null,null,0,null,null,null,0,null,null,null,0,null,null,null,null,null,null,0,0,0,null,null,null,0,null,null,null,0,null,null,null,0,null,null,null,0,null,null,null,0,null,null,null,0,null,null,null,0,"",0,null,null,null,0,null,null,null,0,"","","",null,null,null,null,null,null,null,"","","","","","","","","","","","","","","","",0,0]
[null,null,null,null,null,null,null,null,null,null,null,null,null,null,null,null,0,null,null,null,0,null,null,null,0,null,null,null,0,null,null,null,0,null,null,null,null,null,null,0,0,0,null,null,null,0,null,null,null,0,null,null,null,0,null,null,null,0,null,null,null,0,null,null,null,0,null,null,null,0,"",0,null,null,null,0,null,null,null,0,"","","",null,null,null,null,null,null,null,"","","","","","","","","","","","","","","","",0,0]
[null,null,null,null,null,null,null,null,null,null,null,null,null,null,null,null,0,null,null,null,0,null,null,null,0,null,null,null,0,null,null,null,0,null,null,null,null,null,null,0,0,0,null,null,null,0,null,null,null,0,null,null,null,0,null,null,null,0,null,null,null,0,null,null,null,0,null,null,null,0,"",0,null,null,null,0,null,null,null,0,"","","",null,null,null,null,null,null,null,"","","","","","","","","","","","","","","","",0,0]
[null,null,null,null,null,null,null,null,null,null,null,null,null,null,null,null,0,null,null,null,0,null,null,null,0,null,null,null,0,null,null,null,0,null,null,null,null,null,null,0,0,0,null,null,null,0,null,null,null,0,null,null,null,0,null,null,null,0,null,null,null,0,null,null,null,0,null,null,null,0,"",0,null,null,null,0,null,null,null,0,"","","",null,null,null,null,null,null,null,"","","","","","","","","","","","","","","","",0,0]
[null,null,null,null,null,null,null,null,null,null,null,null,null,null,null,null,0,null,null,null,0,null,null,null,0,null,null,null,0,null,null,null,0,null,null,null,null,null,null,0,0,0,null,null,null,0,null,null,null,0,null,null,null,0,null,null,null,0,null,null,null,0,null,null,null,0,null,null,null,0,"",0,null,null,null,0,null,null,null,0,"","","",null,null,null,null,null,null,null,"","","","","","","","","","","","","","","","",0,0]
[null,null,null,null,null,null,null,null,null,null,null,null,null,null,null,null,0,null,null,null,0,null,null,null,0,null,null,null,0,null,null,null,0,null,null,null,null,null,null,0,0,0,null,null,null,0,null,null,null,0,null,null,null,0,null,null,null,0,null,null,null,0,null,null,null,0,null,null,null,0,"",0,null,null,null,0,null,null,null,0,"","","",null,null,null,null,null,null,null,"","","","","","","","","","","","","","","","",0,0]
[null,null,null,null,null,null,null,null,null,null,null,null,null,null,null,null,0,null,null,null,0,null,null,null,0,null,null,null,0,null,null,null,0,null,null,null,null,null,null,0,0,0,null,null,null,0,null,null,null,0,null,null,null,0,null,null,null,0,null,null,null,0,null,null,null,0,null,null,null,0,"",0,null,null,null,0,null,null,null,0,"","","",null,null,null,null,null,null,null,"","","","","","","","","","","","","","","","",0,0]
[null,null,null,null,null,null,null,null,null,null,null,null,null,null,null,null,0,null,null,null,0,null,null,null,0,null,null,null,0,null,null,null,0,null,null,null,null,null,null,0,0,0,null,null,null,0,null,null,null,0,null,null,null,0,null,null,null,0,null,null,null,0,null,null,null,0,null,null,null,0,"",0,null,null,null,0,null,null,null,0,"","","",null,null,null,null,null,null,null,"","","","","","","","","","","","","","","","",0,0]
[null,null,null,null,null,null,null,null,null,null,null,null,null,null,null,null,0,null,null,null,0,null,null,null,0,null,null,null,0,null,null,null,0,null,null,null,null,null,null,0,0,0,null,null,null,0,null,null,null,0,null,null,null,0,null,null,null,0,null,null,null,0,null,null,null,0,null,null,null,0,"",0,null,null,null,0,null,null,null,0,"","","",null,null,null,null,null,null,null,"","","","","","","","","","","","","","","","",0,0]
[null,null,null,null,null,null,null,null,null,null,null,null,null,null,null,null,0,null,null,null,0,null,null,null,0,null,null,null,0,null,null,null,0,null,null,null,null,null,null,0,0,0,null,null,null,0,null,null,null,0,null,null,null,0,null,null,null,0,null,null,null,0,null,null,null,0,null,null,null,0,"",0,null,null,null,0,null,null,null,0,"","","",null,null,null,null,null,null,null,"","","","","","","","","","","","","","","","",0,0]
[null,null,null,null,null,null,null,null,null,null,null,null,null,null,null,null,0,null,null,null,0,null,null,null,0,null,null,null,0,null,null,null,0,null,null,null,null,null,null,0,0,0,null,null,null,0,null,null,null,0,null,null,null,0,null,null,null,0,null,null,null,0,null,null,null,0,null,null,null,0,"",0,null,null,null,0,null,null,null,0,"","","",null,null,null,null,null,null,null,"","","","","","","","","","","","","","","","",0,0]
[null,null,null,null,null,null,null,null,null,null,null,null,null,null,null,null,0,null,null,null,0,null,null,null,0,null,null,null,0,null,null,null,0,null,null,null,null,null,null,0,0,0,null,null,null,0,null,null,null,0,null,null,null,0,null,null,null,0,null,null,null,0,null,null,null,0,null,null,null,0,"",0,null,null,null,0,null,null,null,0,"","","",null,null,null,null,null,null,null,"","","","","","","","","","","","","","","","",0,0]
[null,null,null,null,null,null,null,null,null,null,null,null,null,null,null,null,0,null,null,null,0,null,null,null,0,null,null,null,0,null,null,null,0,null,null,null,null,null,null,0,0,0,null,null,null,0,null,null,null,0,null,null,null,0,null,null,null,0,null,null,null,0,null,null,null,0,null,null,null,0,"",0,null,null,null,0,null,null,null,0,"","","",null,null,null,null,null,null,null,"","","","","","","","","","","","","","","","",0,0]
[null,null,null,null,null,null,null,null,null,null,null,null,null,null,null,null,{"$f":"IF(P458=\"غ\",\"غ\",SUM(N458,O458,P458))","v":0},null,null,null,{"$f":"IF(T458=\"غ\",\"غ\",SUM(R458,S458,T458))","v":0},null,null,null,{"$f":"IF(X458=\"غ\",\"غ\",SUM(V458,W458,X458))","v":0},null,null,null,{"$f":"IF(AB458=\"غ\",\"غ\",SUM(Z458,AA458,AB458))","v":0},null,null,null,{"$f":"IF(AF458=\"غ\",\"غ\",SUM(AD458,AE458,AF458))","v":0},null,null,null,null,null,null,{"$f":"IF(AL458=\"غ\",\"غ\",SUM(AH458,AJ458,AL458))","v":0},{"$f":"IF(AM458=\"غ\",\"غ\",SUM(AI458,AK458,AM458))","v":0},{"$f":"IF(OR(AN458=\"غ\",AO458=\"غ\"),\"غ\",SUM(AN458,AO458))","v":0},null,null,null,{"$f":"IF(AS458=\"غ\",\"غ\",SUM(AQ458,AR458,AS458))","v":0},null,null,null,{"$f":"IF(AW458=\"غ\",\"غ\",SUM(AU458,AV458,AW458))","v":0},null,null,null,{"$f":"IF(BA458=\"غ\",\"غ\",SUM(AY458,AZ458,BA458))","v":0},null,null,null,{"$f":"IF(BE458=\"غ\",\"غ\",SUM(BC458,BD458,BE458))","v":0},null,null,null,{"$f":"IF(BI458=\"غ\",\"غ\",SUM(BG458,BH458,BI458))","v":0},null,null,null,{"$f":"IF(BM458=\"غ\",\"غ\",SUM(BK458,BL458,BM458))","v":0},null,null,null,{"$f":"IF(BQ458=\"غ\",\"غ\",SUM(BO458,BP458,BQ458))","v":0},{"$f":"IF(C458=\"\",\"\",SUM(O458,S458,W458,AE458,AR458,AV458,AZ458,BD458,BH458,BL458,BP458,AA458,AJ458,AK458))","v":""},{"$f":"SUM(Q458,U458,Y458,AG458,AT458,AX458,BB458,BF458,BJ458,BN458,BR458,AC458,AP458)","v":0},null,null,null,{"$f":"IF(BW458=\"غ\",\"غ\",SUM(BU458,BV458,BW458))","v":0},null,null,null,0,{"$f":"IF(I458=\"\",\"\",IF(I458=\"بنات\",IF(CE458=0,\"ناجحة\",IF(DD458>2,\"راسبة\",\"دورثان\")),IF(I458=\"بنين\",IF(CE458=0,\"ناجح\",IF(DD458>2,\"راسب\",\"دورثان\")))))","v":""},{"$f":"IF(C458=\"\",\"\",IF(AND($L458=\"باقية\",$CC458=\"راسبة\"),\"وليس لها حق الاعادة\",IF(AND($L458<>\"باقية\",$CC458=\"راسبة\"),\"و  لها حق الاعادة\",IF(AND($L458=\"باقى\",$CC458=\"راسب\"),\"وليس له حق الاعادة\",IF(AND($L458<>\"باقى\",$CC458=\"راسب\"),\"و  له حق الاعادة\",IF($CC458=\"ناجحة\",\"و منقولة للصف الثانى\",IF($CC458=\"ناجح\",\"و منقول للصف الثانى\",IF($CC458=\"دورثان\",\"فى : \"&CONCATENATE($CM458,$CN458,$CO458,$CQ458,$CR458,$CS458,$CT458,$CU458,$CV458,$CW458,$CX458,$CY458,$CP458,$CZ458,$DA458,$DB458)))))))))","v":""},{"$f":"IF(C458=\"\",\"\",$DC458+$DD458)","v":""},null,null,null,null,null,null,null,{"$f":"IF(C458=\"\",\"\",IF(OR(P458<$P$9,P458=\"غ\",Q458<$Q$9),CM$5&\" - \",\"\"))","v":""},{"$f":"IF(C458=\"\",\"\",IF(OR(T458<$T$9,T458=\"غ\",U458<$U$9),CN$5&\" - \",\"\"))","v":""},{"$f":"IF(C458=\"\",\"\",IF(OR(X458<$X$9,X458=\"غ\",Y458<$Y$9),CO$5&\" - \",\"\"))","v":""},{"$f":"IF(C458=\"\",\"\",IF(OR(AB458<$AB$9,AB458=\"غ\",AC458<$AC$9),CP$5&\" - \",\"\"))","v":""},{"$f":"IF(C458=\"\",\"\",IF(OR(AF458<$AF$9,AF458=\"غ\",AG458<$AG$9),CQ$5&\" - \",\"\"))","v":""},{"$f":"IF(C458=\"\",\"\",IF(OR(AL458<$AL$9,AM458<$AM$9,AN458<$AN$9,AN458=\"غ\",AO458<$AO$9,AO458=\"غ\"),CR$5&\" - \",\"\"))","v":""},{"$f":"IF(C458=\"\",\"\",IF(OR(AS458<$AS$9,AS458=\"غ\",AT458<$AT$9),CS$5&\" - \",\"\"))","v":""},{"$f":"IF(C458=\"\",\"\",IF(OR(AW458<$AW$9,AW458=\"غ\",AX458<$AX$9),CT$5&\" - \",\"\"))","v":""},{"$f":"IF(C458=\"\",\"\",IF(OR(BA458<$BA$9,BA458=\"غ\",BB458<$BB$9),CU$5&\" - \",\"\"))","v":""},{"$f":"IF(C458=\"\",\"\",IF(OR(BE458<$BE$9,BE458=\"غ\",BF458<$BF$9),CV$5&\" - \",\"\"))","v":""},{"$f":"IF(C458=\"\",\"\",IF(OR(BI458<$BI$9,BI458=\"غ\",BJ458<$BJ$9),CW$5&\" - \",\"\"))","v":""},{"$f":"IF(C458=\"\",\"\",IF(OR(BM458<$BM$9,BM458=\"غ\",BN458<$BN$9),CX$5&\" - \",\"\"))","v":""},{"$f":"IF(C458=\"\",\"\",IF(OR(BQ458<$BQ$9,BQ458=\"غ\",BR458<$BR$9),CY$5&\" - \",\"\"))","v":""},{"$f":"IF(C458=\"\",\"\",IF(BT458<$BT$9,CZ$5&\" - \",\"\"))","v":""},{"$f":"IF(C458=\"\",\"\",IF(OR(BW458<$BW$9,BW458=\"غ\",BX458<$BX$9),DA$5,\"\"))","v":""},{"$f":"IF(C458=\"\",\"\",IF(OR(CA458<$CA$9,CA458=\"غ\",CB458<$CB$9),DB$5,\"\"))","v":""},{"$f":"COUNTIF($CZ458:$DB458,\"?*\")","v":0},{"$f":"COUNTIF($CM458:$CY458,\"?*\")","v":0}]
[null,null,null,null,null,null,null,null,null,null,null,null,null,null,null,null,0,null,null,null,0,null,null,null,0,null,null,null,0,null,null,null,0,null,null,null,null,null,null,0,0,0,null,null,null,0,null,null,null,0,null,null,null,0,null,null,null,0,null,null,null,0,null,null,null,0,null,null,null,0,"",0,null,null,null,0,null,null,null,{"$f":"IF(CA459=\"غ\",\"غ\",SUM(BY459,BZ459,CA459))","v":0},"","","",null,null,null,null,null,null,null,"","","","","","","","","","","","","","","","",0,0]
[null,null,null,null,null,null,null,null,null,null,null,null,null,null,null,null,0,null,null,null,0,null,null,null,0,null,null,null,0,null,null,null,0,null,null,null,null,null,null,0,0,0,null,null,null,0,null,null,null,0,null,null,null,0,null,null,null,0,null,null,null,0,null,null,null,0,null,null,null,0,"",0,null,null,null,0,null,null,null,0,"","","",null,null,null,null,null,null,null,"","","","","","","","","","","","","","","","",0,0]
[null,null,null,null,null,null,null,null,null,null,null,null,null,null,null,null,0,null,null,null,0,null,null,null,0,null,null,null,0,null,null,null,0,null,null,null,null,null,null,0,0,0,null,null,null,0,null,null,null,0,null,null,null,0,null,null,null,0,null,null,null,0,null,null,null,0,null,null,null,0,"",0,null,null,null,0,null,null,null,0,"","","",null,null,null,null,null,null,null,"","","","","","","","","","","","","","","","",0,0]
[null,null,null,null,null,null,null,null,null,null,null,null,null,null,null,null,0,null,null,null,0,null,null,null,0,null,null,null,0,null,null,null,0,null,null,null,null,null,null,0,0,0,null,null,null,0,null,null,null,0,null,null,null,0,null,null,null,0,null,null,null,0,null,null,null,0,null,null,null,0,"",0,null,null,null,0,null,null,null,0,"","","",null,null,null,null,null,null,null,"","","","","","","","","","","","","","","","",0,0]
[null,null,null,null,null,null,null,null,null,null,null,null,null,null,null,null,0,null,null,null,0,null,null,null,0,null,null,null,0,null,null,null,0,null,null,null,null,null,null,0,0,0,null,null,null,0,null,null,null,0,null,null,null,0,null,null,null,0,null,null,null,0,null,null,null,0,null,null,null,0,"",0,null,null,null,0,null,null,null,0,"","","",null,null,null,null,null,null,null,"","","","","","","","","","","","","","","","",0,0]
[null,null,null,null,null,null,null,null,null,null,null,null,null,null,null,null,0,null,null,null,0,null,null,null,0,null,null,null,0,null,null,null,0,null,null,null,null,null,null,0,0,0,null,null,null,0,null,null,null,0,null,null,null,0,null,null,null,0,null,null,null,0,null,null,null,0,null,null,null,0,"",0,null,null,null,0,null,null,null,0,"","","",null,null,null,null,null,null,null,"","","","","","","","","","","","","","","","",0,0]
[null,null,null,null,null,null,null,null,null,null,null,null,null,null,null,null,0,null,null,null,0,null,null,null,0,null,null,null,0,null,null,null,0,null,null,null,null,null,null,0,0,0,null,null,null,0,null,null,null,0,null,null,null,0,null,null,null,0,null,null,null,0,null,null,null,0,null,null,null,0,"",0,null,null,null,0,null,null,null,0,"","","",null,null,null,null,null,null,null,"","","","","","","","","","","","","","","","",0,0]
[null,null,null,null,null,null,null,null,null,null,null,null,null,null,null,null,0,null,null,null,0,null,null,null,0,null,null,null,0,null,null,null,0,null,null,null,null,null,null,0,0,0,null,null,null,0,null,null,null,0,null,null,null,0,null,null,null,0,null,null,null,0,null,null,null,0,null,null,null,0,"",0,null,null,null,0,null,null,null,0,"","","",null,null,null,null,null,null,null,"","","","","","","","","","","","","","","","",0,0]
[null,null,null,null,null,null,null,null,null,null,null,null,null,null,null,null,0,null,null,null,0,null,null,null,0,null,null,null,0,null,null,null,0,null,null,null,null,null,null,0,0,0,null,null,null,0,null,null,null,0,null,null,null,0,null,null,null,0,null,null,null,0,null,null,null,0,null,null,null,0,"",0,null,null,null,0,null,null,null,0,"","","",null,null,null,null,null,null,null,"","","","","","","","","","","","","","","","",0,0]
[null,null,null,null,null,null,null,null,null,null,null,null,null,null,null,null,0,null,null,null,0,null,null,null,0,null,null,null,0,null,null,null,0,null,null,null,null,null,null,0,0,0,null,null,null,0,null,null,null,0,null,null,null,0,null,null,null,0,null,null,null,0,null,null,null,0,null,null,null,0,"",0,null,null,null,0,null,null,null,0,"","","",null,null,null,null,null,null,null,"","","","","","","","","","","","","","","","",0,0]
[null,null,null,null,null,null,null,null,null,null,null,null,null,null,null,null,0,null,null,null,0,null,null,null,0,null,null,null,0,null,null,null,0,null,null,null,null,null,null,0,0,0,null,null,null,0,null,null,null,0,null,null,null,0,null,null,null,0,null,null,null,0,null,null,null,0,null,null,null,0,"",0,null,null,null,0,null,null,null,0,"","","",null,null,null,null,null,null,null,"","","","","","","","","","","","","","","","",0,0]
[null,null,null,null,null,null,null,null,null,null,null,null,null,null,null,null,0,null,null,null,0,null,null,null,0,null,null,null,0,null,null,null,0,null,null,null,null,null,null,0,0,0,null,null,null,0,null,null,null,0,null,null,null,0,null,null,null,0,null,null,null,0,null,null,null,0,null,null,null,0,"",0,null,null,null,0,null,null,null,0,"","","",null,null,null,null,null,null,null,"","","","","","","","","","","","","","","","",0,0]
[null,null,null,null,null,null,null,null,null,null,null,null,null,null,null,null,0,null,null,null,0,null,null,null,0,null,null,null,0,null,null,null,0,null,null,null,null,null,null,0,0,0,null,null,null,0,null,null,null,0,null,null,null,0,null,null,null,0,null,null,null,0,null,null,null,0,null,null,null,0,"",0,null,null,null,0,null,null,null,0,"","","",null,null,null,null,null,null,null,"","","","","","","","","","","","","","","","",0,0]
[null,null,null,null,null,null,null,null,null,null,null,null,null,null,null,null,0,null,null,null,0,null,null,null,0,null,null,null,0,null,null,null,0,null,null,null,null,null,null,0,0,0,null,null,null,0,null,null,null,0,null,null,null,0,null,null,null,0,null,null,null,0,null,null,null,0,null,null,null,0,"",0,null,null,null,0,null,null,null,0,"","","",null,null,null,null,null,null,null,"","","","","","","","","","","","","","","","",0,0]
[null,null,null,null,null,null,null,null,null,null,null,null,null,null,null,null,0,null,null,null,0,null,null,null,0,null,null,null,0,null,null,null,0,null,null,null,null,null,null,0,0,0,null,null,null,0,null,null,null,0,null,null,null,0,null,null,null,0,null,null,null,0,null,null,null,0,null,null,null,0,"",0,null,null,null,0,null,null,null,0,"","","",null,null,null,null,null,null,null,"","","","","","","","","","","","","","","","",0,0]
[null,null,null,null,null,null,null,null,null,null,null,null,null,null,null,null,0,null,null,null,0,null,null,null,0,null,null,null,0,null,null,null,0,null,null,null,null,null,null,0,0,0,null,null,null,0,null,null,null,0,null,null,null,0,null,null,null,0,null,null,null,0,null,null,null,0,null,null,null,0,"",0,null,null,null,0,null,null,null,0,"","","",null,null,null,null,null,null,null,"","","","","","","","","","","","","","","","",0,0]
[null,null,null,null,null,null,null,null,null,null,null,null,null,null,null,null,0,null,null,null,0,null,null,null,0,null,null,null,0,null,null,null,0,null,null,null,null,null,null,0,0,0,null,null,null,0,null,null,null,0,null,null,null,0,null,null,null,0,null,null,null,0,null,null,null,0,null,null,null,0,"",0,null,null,null,0,null,null,null,0,"","","",null,null,null,null,null,null,null,"","","","","","","","","","","","","","","","",0,0]
[null,null,null,null,null,null,null,null,null,null,null,null,null,null,null,null,0,null,null,null,0,null,null,null,0,null,null,null,0,null,null,null,0,null,null,null,null,null,null,0,0,0,null,null,null,0,null,null,null,0,null,null,null,0,null,null,null,0,null,null,null,0,null,null,null,0,null,null,null,0,"",0,null,null,null,0,null,null,null,0,"","","",null,null,null,null,null,null,null,"","","","","","","","","","","","","","","","",0,0]
[null,null,null,null,null,null,null,null,null,null,null,null,null,null,null,null,0,null,null,null,0,null,null,null,0,null,null,null,0,null,null,null,0,null,null,null,null,null,null,0,0,0,null,null,null,0,null,null,null,0,null,null,null,0,null,null,null,0,null,null,null,0,null,null,null,0,null,null,null,0,"",0,null,null,null,0,null,null,null,0,"","","",null,null,null,null,null,null,null,"","","","","","","","","","","","","","","","",0,0]
[null,null,null,null,null,null,null,null,null,null,null,null,null,null,null,null,0,null,null,null,0,null,null,null,0,null,null,null,0,null,null,null,0,null,null,null,null,null,null,0,0,0,null,null,null,0,null,null,null,0,null,null,null,0,null,null,null,0,null,null,null,0,null,null,null,0,null,null,null,0,"",0,null,null,null,0,null,null,null,0,"","","",null,null,null,null,null,null,null,"","","","","","","","","","","","","","","","",0,0]
[null,null,null,null,null,null,null,null,null,null,null,null,null,null,null,null,0,null,null,null,0,null,null,null,0,null,null,null,0,null,null,null,0,null,null,null,null,null,null,0,0,0,null,null,null,0,null,null,null,0,null,null,null,0,null,null,null,0,null,null,null,0,null,null,null,0,null,null,null,0,"",0,null,null,null,0,null,null,null,0,"","","",null,null,null,null,null,null,null,"","","","","","","","","","","","","","","","",0,0]
[null,null,null,null,null,null,null,null,null,null,null,null,null,null,null,null,0,null,null,null,0,null,null,null,0,null,null,null,0,null,null,null,0,null,null,null,null,null,null,0,0,0,null,null,null,0,null,null,null,0,null,null,null,0,null,null,null,0,null,null,null,0,null,null,null,0,null,null,null,0,"",0,null,null,null,0,null,null,null,0,"","","",null,null,null,null,null,null,null,"","","","","","","","","","","","","","","","",0,0]
[null,null,null,null,null,null,null,null,null,null,null,null,null,null,null,null,0,null,null,null,0,null,null,null,0,null,null,null,0,null,null,null,0,null,null,null,null,null,null,0,0,0,null,null,null,0,null,null,null,0,null,null,null,0,null,null,null,0,null,null,null,0,null,null,null,0,null,null,null,0,"",0,null,null,null,0,null,null,null,0,"","","",null,null,null,null,null,null,null,"","","","","","","","","","","","","","","","",0,0]
[null,null,null,null,null,null,null,null,null,null,null,null,null,null,null,null,0,null,null,null,0,null,null,null,0,null,null,null,0,null,null,null,0,null,null,null,null,null,null,0,0,0,null,null,null,0,null,null,null,0,null,null,null,0,null,null,null,0,null,null,null,0,null,null,null,0,null,null,null,0,"",0,null,null,null,0,null,null,null,0,"","","",null,null,null,null,null,null,null,"","","","","","","","","","","","","","","","",0,0]
[null,null,null,null,null,null,null,null,null,null,null,null,null,null,null,null,0,null,null,null,0,null,null,null,0,null,null,null,0,null,null,null,0,null,null,null,null,null,null,0,0,0,null,null,null,0,null,null,null,0,null,null,null,0,null,null,null,0,null,null,null,0,null,null,null,0,null,null,null,0,"",0,null,null,null,0,null,null,null,0,"","","",null,null,null,null,null,null,null,"","","","","","","","","","","","","","","","",0,0]
[null,null,null,null,null,null,null,null,null,null,null,null,null,null,null,null,0,null,null,null,0,null,null,null,0,null,null,null,0,null,null,null,0,null,null,null,null,null,null,0,0,0,null,null,null,0,null,null,null,0,null,null,null,0,null,null,null,0,null,null,null,0,null,null,null,0,null,null,null,0,"",0,null,null,null,0,null,null,null,0,"","","",null,null,null,null,null,null,null,"","","","","","","","","","","","","","","","",0,0]
[null,null,null,null,null,null,null,null,null,null,null,null,null,null,null,null,0,null,null,null,0,null,null,null,0,null,null,null,0,null,null,null,0,null,null,null,null,null,null,0,0,0,null,null,null,0,null,null,null,0,null,null,null,0,null,null,null,0,null,null,null,0,null,null,null,0,null,null,null,0,"",0,null,null,null,0,null,null,null,0,"","","",null,null,null,null,null,null,null,"","","","","","","","","","","","","","","","",0,0]
[null,null,null,null,null,null,null,null,null,null,null,null,null,null,null,null,0,null,null,null,0,null,null,null,0,null,null,null,0,null,null,null,0,null,null,null,null,null,null,0,0,0,null,null,null,0,null,null,null,0,null,null,null,0,null,null,null,0,null,null,null,0,null,null,null,0,null,null,null,0,"",0,null,null,null,0,null,null,null,0,"","","",null,null,null,null,null,null,null,"","","","","","","","","","","","","","","","",0,0]
[null,null,null,null,null,null,null,null,null,null,null,null,null,null,null,null,0,null,null,null,0,null,null,null,0,null,null,null,0,null,null,null,0,null,null,null,null,null,null,0,0,0,null,null,null,0,null,null,null,0,null,null,null,0,null,null,null,0,null,null,null,0,null,null,null,0,null,null,null,0,"",0,null,null,null,0,null,null,null,0,"","","",null,null,null,null,null,null,null,"","","","","","","","","","","","","","","","",0,0]
[null,null,null,null,null,null,null,null,null,null,null,null,null,null,null,null,0,null,null,null,0,null,null,null,0,null,null,null,0,null,null,null,0,null,null,null,null,null,null,0,0,0,null,null,null,0,null,null,null,0,null,null,null,0,null,null,null,0,null,null,null,0,null,null,null,0,null,null,null,0,"",0,null,null,null,0,null,null,null,0,"","","",null,null,null,null,null,null,null,"","","","","","","","","","","","","","","","",0,0]
[null,null,null,null,null,null,null,null,null,null,null,null,null,null,null,null,0,null,null,null,0,null,null,null,0,null,null,null,0,null,null,null,0,null,null,null,null,null,null,0,0,0,null,null,null,0,null,null,null,0,null,null,null,0,null,null,null,0,null,null,null,0,null,null,null,0,null,null,null,0,"",0,null,null,null,0,null,null,null,0,"","","",null,null,null,null,null,null,null,"","","","","","","","","","","","","","","","",0,0]
[null,null,null,null,null,null,null,null,null,null,null,null,null,null,null,null,0,null,null,null,0,null,null,null,0,null,null,null,0,null,null,null,0,null,null,null,null,null,null,0,0,0,null,null,null,0,null,null,null,0,null,null,null,0,null,null,null,0,null,null,null,0,null,null,null,0,null,null,null,0,"",0,null,null,null,0,null,null,null,0,"","","",null,null,null,null,null,null,null,"","","","","","","","","","","","","","","","",0,0]
[null,null,null,null,null,null,null,null,null,null,null,null,null,null,null,null,0,null,null,null,0,null,null,null,0,null,null,null,0,null,null,null,0,null,null,null,null,null,null,0,0,0,null,null,null,0,null,null,null,0,null,null,null,0,null,null,null,0,null,null,null,0,null,null,null,0,null,null,null,0,"",0,null,null,null,0,null,null,null,0,"","","",null,null,null,null,null,null,null,"","","","","","","","","","","","","","","","",0,0]
[null,null,null,null,null,null,null,null,null,null,null,null,null,null,null,null,0,null,null,null,0,null,null,null,0,null,null,null,0,null,null,null,0,null,null,null,null,null,null,0,0,0,null,null,null,0,null,null,null,0,null,null,null,0,null,null,null,0,null,null,null,0,null,null,null,0,null,null,null,0,"",0,null,null,null,0,null,null,null,0,"","","",null,null,null,null,null,null,null,"","","","","","","","","","","","","","","","",0,0]
[null,null,null,null,null,null,null,null,null,null,null,null,null,null,null,null,0,null,null,null,0,null,null,null,0,null,null,null,0,null,null,null,0,null,null,null,null,null,null,0,0,0,null,null,null,0,null,null,null,0,null,null,null,0,null,null,null,0,null,null,null,0,null,null,null,0,null,null,null,0,"",0,null,null,null,0,null,null,null,0,"","","",null,null,null,null,null,null,null,"","","","","","","","","","","","","","","","",0,0]
[null,null,null,null,null,null,null,null,null,null,null,null,null,null,null,null,0,null,null,null,0,null,null,null,0,null,null,null,0,null,null,null,0,null,null,null,null,null,null,0,0,0,null,null,null,0,null,null,null,0,null,null,null,0,null,null,null,0,null,null,null,0,null,null,null,0,null,null,null,0,"",0,null,null,null,0,null,null,null,0,"","","",null,null,null,null,null,null,null,"","","","","","","","","","","","","","","","",0,0]
[null,null,null,null,null,null,null,null,null,null,null,null,null,null,null,null,0,null,null,null,0,null,null,null,0,null,null,null,0,null,null,null,0,null,null,null,null,null,null,0,0,0,null,null,null,0,null,null,null,0,null,null,null,0,null,null,null,0,null,null,null,0,null,null,null,0,null,null,null,0,"",0,null,null,null,0,null,null,null,0,"","","",null,null,null,null,null,null,null,"","","","","","","","","","","","","","","","",0,0]
[null,null,null,null,null,null,null,null,null,null,null,null,null,null,null,null,0,null,null,null,0,null,null,null,0,null,null,null,0,null,null,null,0,null,null,null,null,null,null,0,0,0,null,null,null,0,null,null,null,0,null,null,null,0,null,null,null,0,null,null,null,0,null,null,null,0,null,null,null,0,"",0,null,null,null,0,null,null,null,0,"","","",null,null,null,null,null,null,null,"","","","","","","","","","","","","","","","",0,0]
[null,null,null,null,null,null,null,null,null,null,null,null,null,null,null,null,0,null,null,null,0,null,null,null,0,null,null,null,0,null,null,null,0,null,null,null,null,null,null,0,0,0,null,null,null,0,null,null,null,0,null,null,null,0,null,null,null,0,null,null,null,0,null,null,null,0,null,null,null,0,"",0,null,null,null,0,null,null,null,0,"","","",null,null,null,null,null,null,null,"","","","","","","","","","","","","","","","",0,0]
[null,null,null,null,null,null,null,null,null,null,null,null,null,null,null,null,0,null,null,null,0,null,null,null,0,null,null,null,0,null,null,null,0,null,null,null,null,null,null,0,0,0,null,null,null,0,null,null,null,0,null,null,null,0,null,null,null,0,null,null,null,0,null,null,null,0,null,null,null,0,"",0,null,null,null,0,null,null,null,0,"","","",null,null,null,null,null,null,null,"","","","","","","","","","","","","","","","",0,0]
[null,null,null,null,null,null,null,null,null,null,null,null,null,null,null,null,0,null,null,null,0,null,null,null,0,null,null,null,0,null,null,null,0,null,null,null,null,null,null,0,0,0,null,null,null,0,null,null,null,0,null,null,null,0,null,null,null,0,null,null,null,0,null,null,null,0,null,null,null,0,"",0,null,null,null,0,null,null,null,0,"","","",null,null,null,null,null,null,null,"","","","","","","","","","","","","","","","",0,0]
[null,null,null,null,null,null,null,null,null,null,null,null,null,null,null,null,0,null,null,null,0,null,null,null,0,null,null,null,0,null,null,null,0,null,null,null,null,null,null,0,0,0,null,null,null,0,null,null,null,0,null,null,null,0,null,null,null,0,null,null,null,0,null,null,null,0,null,null,null,0,"",0,null,null,null,0,null,null,null,0,"","","",null,null,null,null,null,null,null,"","","","","","","","","","","","","","","","",0,0]
[null,null,null,null,null,null,null,null,null,null,null,null,null,null,null,null,0,null,null,null,0,null,null,null,0,null,null,null,0,null,null,null,0,null,null,null,null,null,null,0,0,0,null,null,null,0,null,null,null,0,null,null,null,0,null,null,null,0,null,null,null,0,null,null,null,0,null,null,null,0,"",0,null,null,null,0,null,null,null,0,"","","",null,null,null,null,null,null,null,"","","","","","","","","","","","","","","","",0,0]
[null,null,null,null,null,null,null,null,null,null,null,null,null,null,null,null,0,null,null,null,0,null,null,null,0,null,null,null,0,null,null,null,0,null,null,null,null,null,null,0,0,0,null,null,null,0,null,null,null,0,null,null,null,0,null,null,null,0,null,null,null,0,null,null,null,0,null,null,null,0,"",0,null,null,null,0,null,null,null,0,"","","",null,null,null,null,null,null,null,"","","","","","","","","","","","","","","","",0,0]
[null,null,null,null,null,null,null,null,null,null,null,null,null,null,null,null,0,null,null,null,0,null,null,null,0,null,null,null,0,null,null,null,0,null,null,null,null,null,null,0,0,0,null,null,null,0,null,null,null,0,null,null,null,0,null,null,null,0,null,null,null,0,null,null,null,0,null,null,null,0,"",0,null,null,null,0,null,null,null,0,"","","",null,null,null,null,null,null,null,"","","","","","","","","","","","","","","","",0,0]
[null,null,null,null,null,null,null,null,null,null,null,null,null,null,null,null,0,null,null,null,0,null,null,null,0,null,null,null,0,null,null,null,0,null,null,null,null,null,null,0,0,0,null,null,null,0,null,null,null,0,null,null,null,0,null,null,null,0,null,null,null,0,null,null,null,0,null,null,null,0,"",0,null,null,null,0,null,null,null,0,"","","",null,null,null,null,null,null,null,"","","","","","","","","","","","","","","","",0,0]
[null,null,null,null,null,null,null,null,null,null,null,null,null,null,null,null,0,null,null,null,0,null,null,null,0,null,null,null,0,null,null,null,0,null,null,null,null,null,null,0,0,0,null,null,null,0,null,null,null,0,null,null,null,0,null,null,null,0,null,null,null,0,null,null,null,0,null,null,null,0,"",0,null,null,null,0,null,null,null,0,"","","",null,null,null,null,null,null,null,"","","","","","","","","","","","","","","","",0,0]
[null,null,null,null,null,null,null,null,null,null,null,null,null,null,null,null,0,null,null,null,0,null,null,null,0,null,null,null,0,null,null,null,0,null,null,null,null,null,null,0,0,0,null,null,null,0,null,null,null,0,null,null,null,0,null,null,null,0,null,null,null,0,null,null,null,0,null,null,null,0,"",0,null,null,null,0,null,null,null,0,"","","",null,null,null,null,null,null,null,"","","","","","","","","","","","","","","","",0,0]
[null,null,null,null,null,null,null,null,null,null,null,null,null,null,null,null,0,null,null,null,0,null,null,null,0,null,null,null,0,null,null,null,0,null,null,null,null,null,null,0,0,0,null,null,null,0,null,null,null,0,null,null,null,0,null,null,null,0,null,null,null,0,null,null,null,0,null,null,null,0,"",0,null,null,null,0,null,null,null,0,"","","",null,null,null,null,null,null,null,"","","","","","","","","","","","","","","","",0,0]
[null,null,null,null,null,null,null,null,null,null,null,null,null,null,null,null,0,null,null,null,0,null,null,null,0,null,null,null,0,null,null,null,0,null,null,null,null,null,null,0,0,0,null,null,null,0,null,null,null,0,null,null,null,0,null,null,null,0,null,null,null,0,null,null,null,0,null,null,null,0,"",0,null,null,null,0,null,null,null,0,"","","",null,null,null,null,null,null,null,"","","","","","","","","","","","","","","","",0,0]
[null,null,null,null,null,null,null,null,null,null,null,null,null,null,null,null,0,null,null,null,0,null,null,null,0,null,null,null,0,null,null,null,0,null,null,null,null,null,null,0,0,0,null,null,null,0,null,null,null,0,null,null,null,0,null,null,null,0,null,null,null,0,null,null,null,0,null,null,null,0,"",0,null,null,null,0,null,null,null,0,"","","",null,null,null,null,null,null,null,"","","","","","","","","","","","","","","","",0,0]
[null,null,null,null,null,null,null,null,null,null,null,null,null,null,null,null,0,null,null,null,0,null,null,null,0,null,null,null,0,null,null,null,0,null,null,null,null,null,null,0,0,0,null,null,null,0,null,null,null,0,null,null,null,0,null,null,null,0,null,null,null,0,null,null,null,0,null,null,null,0,"",0,null,null,null,0,null,null,null,0,"","","",null,null,null,null,null,null,null,"","","","","","","","","","","","","","","","",0,0]
[null,null,null,null,null,null,null,null,null,null,null,null,null,null,null,null,0,null,null,null,0,null,null,null,0,null,null,null,0,null,null,null,0,null,null,null,null,null,null,0,0,0,null,null,null,0,null,null,null,0,null,null,null,0,null,null,null,0,null,null,null,0,null,null,null,0,null,null,null,0,"",0,null,null,null,0,null,null,null,0,"","","",null,null,null,null,null,null,null,"","","","","","","","","","","","","","","","",0,0]
[null,null,null,null,null,null,null,null,null,null,null,null,null,null,null,null,0,null,null,null,0,null,null,null,0,null,null,null,0,null,null,null,0,null,null,null,null,null,null,0,0,0,null,null,null,0,null,null,null,0,null,null,null,0,null,null,null,0,null,null,null,0,null,null,null,0,null,null,null,0,"",0,null,null,null,0,null,null,null,0,"","","",null,null,null,null,null,null,null,"","","","","","","","","","","","","","","","",0,0]
[null,null,null,null,null,null,null,null,null,null,null,null,null,null,null,null,0,null,null,null,0,null,null,null,0,null,null,null,0,null,null,null,0,null,null,null,null,null,null,0,0,0,null,null,null,0,null,null,null,0,null,null,null,0,null,null,null,0,null,null,null,0,null,null,null,0,null,null,null,0,"",0,null,null,null,0,null,null,null,0,"","","",null,null,null,null,null,null,null,"","","","","","","","","","","","","","","","",0,0]
[null,null,null,null,null,null,null,null,null,null,null,null,null,null,null,null,0,null,null,null,0,null,null,null,0,null,null,null,0,null,null,null,0,null,null,null,null,null,null,0,0,0,null,null,null,0,null,null,null,0,null,null,null,0,null,null,null,0,null,null,null,0,null,null,null,0,null,null,null,0,"",0,null,null,null,0,null,null,null,0,"","","",null,null,null,null,null,null,null,"","","","","","","","","","","","","","","","",0,0]
[null,null,null,null,null,null,null,null,null,null,null,null,null,null,null,null,0,null,null,null,0,null,null,null,0,null,null,null,0,null,null,null,0,null,null,null,null,null,null,0,0,0,null,null,null,0,null,null,null,0,null,null,null,0,null,null,null,0,null,null,null,0,null,null,null,0,null,null,null,0,"",0,null,null,null,0,null,null,null,0,"","","",null,null,null,null,null,null,null,"","","","","","","","","","","","","","","","",0,0]
[null,null,null,null,null,null,null,null,null,null,null,null,null,null,null,null,0,null,null,null,0,null,null,null,0,null,null,null,0,null,null,null,0,null,null,null,null,null,null,0,0,0,null,null,null,0,null,null,null,0,null,null,null,0,null,null,null,0,null,null,null,0,null,null,null,0,null,null,null,0,"",0,null,null,null,0,null,null,null,0,"","","",null,null,null,null,null,null,null,"","","","","","","","","","","","","","","","",0,0]
[null,null,null,null,null,null,null,null,null,null,null,null,null,null,null,null,0,null,null,null,0,null,null,null,0,null,null,null,0,null,null,null,0,null,null,null,null,null,null,0,0,0,null,null,null,0,null,null,null,0,null,null,null,0,null,null,null,0,null,null,null,0,null,null,null,0,null,null,null,0,"",0,null,null,null,0,null,null,null,0,"","","",null,null,null,null,null,null,null,"","","","","","","","","","","","","","","","",0,0]
[null,null,null,null,null,null,null,null,null,null,null,null,null,null,null,null,0,null,null,null,0,null,null,null,0,null,null,null,0,null,null,null,0,null,null,null,null,null,null,0,0,0,null,null,null,0,null,null,null,0,null,null,null,0,null,null,null,0,null,null,null,0,null,null,null,0,null,null,null,0,"",0,null,null,null,0,null,null,null,0,"","","",null,null,null,null,null,null,null,"","","","","","","","","","","","","","","","",0,0]
[null,null,null,null,null,null,null,null,null,null,null,null,null,null,null,null,0,null,null,null,0,null,null,null,0,null,null,null,0,null,null,null,0,null,null,null,null,null,null,0,0,0,null,null,null,0,null,null,null,0,null,null,null,0,null,null,null,0,null,null,null,0,null,null,null,0,null,null,null,0,"",0,null,null,null,0,null,null,null,0,"","","",null,null,null,null,null,null,null,"","","","","","","","","","","","","","","","",0,0]
[null,null,null,null,null,null,null,null,null,null,null,null,null,null,null,null,0,null,null,null,0,null,null,null,0,null,null,null,0,null,null,null,0,null,null,null,null,null,null,0,0,0,null,null,null,0,null,null,null,0,null,null,null,0,null,null,null,0,null,null,null,0,null,null,null,0,null,null,null,0,"",0,null,null,null,0,null,null,null,0,"","","",null,null,null,null,null,null,null,"","","","","","","","","","","","","","","","",0,0]
[null,null,null,null,null,null,null,null,null,null,null,null,null,null,null,null,0,null,null,null,0,null,null,null,0,null,null,null,0,null,null,null,0,null,null,null,null,null,null,0,0,0,null,null,null,0,null,null,null,0,null,null,null,0,null,null,null,0,null,null,null,0,null,null,null,0,null,null,null,0,"",0,null,null,null,0,null,null,null,0,"","","",null,null,null,null,null,null,null,"","","","","","","","","","","","","","","","",0,0]
[null,null,null,null,null,null,null,null,null,null,null,null,null,null,null,null,{"$f":"IF(P522=\"غ\",\"غ\",SUM(N522,O522,P522))","v":0},null,null,null,{"$f":"IF(T522=\"غ\",\"غ\",SUM(R522,S522,T522))","v":0},null,null,null,{"$f":"IF(X522=\"غ\",\"غ\",SUM(V522,W522,X522))","v":0},null,null,null,{"$f":"IF(AB522=\"غ\",\"غ\",SUM(Z522,AA522,AB522))","v":0},null,null,null,{"$f":"IF(AF522=\"غ\",\"غ\",SUM(AD522,AE522,AF522))","v":0},null,null,null,null,null,null,{"$f":"IF(AL522=\"غ\",\"غ\",SUM(AH522,AJ522,AL522))","v":0},{"$f":"IF(AM522=\"غ\",\"غ\",SUM(AI522,AK522,AM522))","v":0},{"$f":"IF(OR(AN522=\"غ\",AO522=\"غ\"),\"غ\",SUM(AN522,AO522))","v":0},null,null,null,{"$f":"IF(AS522=\"غ\",\"غ\",SUM(AQ522,AR522,AS522))","v":0},null,null,null,{"$f":"IF(AW522=\"غ\",\"غ\",SUM(AU522,AV522,AW522))","v":0},null,null,null,{"$f":"IF(BA522=\"غ\",\"غ\",SUM(AY522,AZ522,BA522))","v":0},null,null,null,{"$f":"IF(BE522=\"غ\",\"غ\",SUM(BC522,BD522,BE522))","v":0},null,null,null,{"$f":"IF(BI522=\"غ\",\"غ\",SUM(BG522,BH522,BI522))","v":0},null,null,null,{"$f":"IF(BM522=\"غ\",\"غ\",SUM(BK522,BL522,BM522))","v":0},null,null,null,{"$f":"IF(BQ522=\"غ\",\"غ\",SUM(BO522,BP522,BQ522))","v":0},{"$f":"IF(C522=\"\",\"\",SUM(O522,S522,W522,AE522,AR522,AV522,AZ522,BD522,BH522,BL522,BP522,AA522,AJ522,AK522))","v":""},{"$f":"SUM(Q522,U522,Y522,AG522,AT522,AX522,BB522,BF522,BJ522,BN522,BR522,AC522,AP522)","v":0},null,null,null,{"$f":"IF(BW522=\"غ\",\"غ\",SUM(BU522,BV522,BW522))","v":0},null,null,null,0,{"$f":"IF(I522=\"\",\"\",IF(I522=\"بنات\",IF(CE522=0,\"ناجحة\",IF(DD522>2,\"راسبة\",\"دورثان\")),IF(I522=\"بنين\",IF(CE522=0,\"ناجح\",IF(DD522>2,\"راسب\",\"دورثان\")))))","v":""},{"$f":"IF(C522=\"\",\"\",IF(AND($L522=\"باقية\",$CC522=\"راسبة\"),\"وليس لها حق الاعادة\",IF(AND($L522<>\"باقية\",$CC522=\"راسبة\"),\"و  لها حق الاعادة\",IF(AND($L522=\"باقى\",$CC522=\"راسب\"),\"وليس له حق الاعادة\",IF(AND($L522<>\"باقى\",$CC522=\"راسب\"),\"و  له حق الاعادة\",IF($CC522=\"ناجحة\",\"و منقولة للصف الثانى\",IF($CC522=\"ناجح\",\"و منقول للصف الثانى\",IF($CC522=\"دورثان\",\"فى : \"&CONCATENATE($CM522,$CN522,$CO522,$CQ522,$CR522,$CS522,$CT522,$CU522,$CV522,$CW522,$CX522,$CY522,$CP522,$CZ522,$DA522,$DB522)))))))))","v":""},{"$f":"IF(C522=\"\",\"\",$DC522+$DD522)","v":""},null,null,null,null,null,null,null,{"$f":"IF(C522=\"\",\"\",IF(OR(P522<$P$9,P522=\"غ\",Q522<$Q$9),CM$5&\" - \",\"\"))","v":""},{"$f":"IF(C522=\"\",\"\",IF(OR(T522<$T$9,T522=\"غ\",U522<$U$9),CN$5&\" - \",\"\"))","v":""},{"$f":"IF(C522=\"\",\"\",IF(OR(X522<$X$9,X522=\"غ\",Y522<$Y$9),CO$5&\" - \",\"\"))","v":""},{"$f":"IF(C522=\"\",\"\",IF(OR(AB522<$AB$9,AB522=\"غ\",AC522<$AC$9),CP$5&\" - \",\"\"))","v":""},{"$f":"IF(C522=\"\",\"\",IF(OR(AF522<$AF$9,AF522=\"غ\",AG522<$AG$9),CQ$5&\" - \",\"\"))","v":""},{"$f":"IF(C522=\"\",\"\",IF(OR(AL522<$AL$9,AM522<$AM$9,AN522<$AN$9,AN522=\"غ\",AO522<$AO$9,AO522=\"غ\"),CR$5&\" - \",\"\"))","v":""},{"$f":"IF(C522=\"\",\"\",IF(OR(AS522<$AS$9,AS522=\"غ\",AT522<$AT$9),CS$5&\" - \",\"\"))","v":""},{"$f":"IF(C522=\"\",\"\",IF(OR(AW522<$AW$9,AW522=\"غ\",AX522<$AX$9),CT$5&\" - \",\"\"))","v":""},{"$f":"IF(C522=\"\",\"\",IF(OR(BA522<$BA$9,BA522=\"غ\",BB522<$BB$9),CU$5&\" - \",\"\"))","v":""},{"$f":"IF(C522=\"\",\"\",IF(OR(BE522<$BE$9,BE522=\"غ\",BF522<$BF$9),CV$5&\" - \",\"\"))","v":""},{"$f":"IF(C522=\"\",\"\",IF(OR(BI522<$BI$9,BI522=\"غ\",BJ522<$BJ$9),CW$5&\" - \",\"\"))","v":""},{"$f":"IF(C522=\"\",\"\",IF(OR(BM522<$BM$9,BM522=\"غ\",BN522<$BN$9),CX$5&\" - \",\"\"))","v":""},{"$f":"IF(C522=\"\",\"\",IF(OR(BQ522<$BQ$9,BQ522=\"غ\",BR522<$BR$9),CY$5&\" - \",\"\"))","v":""},{"$f":"IF(C522=\"\",\"\",IF(BT522<$BT$9,CZ$5&\" - \",\"\"))","v":""},{"$f":"IF(C522=\"\",\"\",IF(OR(BW522<$BW$9,BW522=\"غ\",BX522<$BX$9),DA$5,\"\"))","v":""},{"$f":"IF(C522=\"\",\"\",IF(OR(CA522<$CA$9,CA522=\"غ\",CB522<$CB$9),DB$5,\"\"))","v":""},{"$f":"COUNTIF($CZ522:$DB522,\"?*\")","v":0},{"$f":"COUNTIF($CM522:$CY522,\"?*\")","v":0}]
[null,null,null,null,null,null,null,null,null,null,null,null,null,null,null,null,0,null,null,null,0,null,null,null,0,null,null,null,0,null,null,null,0,null,null,null,null,null,null,0,0,0,null,null,null,0,null,null,null,0,null,null,null,0,null,null,null,0,null,null,null,0,null,null,null,0,null,null,null,0,"",0,null,null,null,0,null,null,null,{"$f":"IF(CA523=\"غ\",\"غ\",SUM(BY523,BZ523,CA523))","v":0},"","","",null,null,null,null,null,null,null,"","","","","","","","","","","","","","","","",0,0]
[null,null,null,null,null,null,null,null,null,null,null,null,null,null,null,null,0,null,null,null,0,null,null,null,0,null,null,null,0,null,null,null,0,null,null,null,null,null,null,0,0,0,null,null,null,0,null,null,null,0,null,null,null,0,null,null,null,0,null,null,null,0,null,null,null,0,null,null,null,0,"",0,null,null,null,0,null,null,null,0,"","","",null,null,null,null,null,null,null,"","","","","","","","","","","","","","","","",0,0]
[null,null,null,null,null,null,null,null,null,null,null,null,null,null,null,null,0,null,null,null,0,null,null,null,0,null,null,null,0,null,null,null,0,null,null,null,null,null,null,0,0,0,null,null,null,0,null,null,null,0,null,null,null,0,null,null,null,0,null,null,null,0,null,null,null,0,null,null,null,0,"",0,null,null,null,0,null,null,null,0,"","","",null,null,null,null,null,null,null,"","","","","","","","","","","","","","","","",0,0]
[null,null,null,null,null,null,null,null,null,null,null,null,null,null,null,null,0,null,null,null,0,null,null,null,0,null,null,null,0,null,null,null,0,null,null,null,null,null,null,0,0,0,null,null,null,0,null,null,null,0,null,null,null,0,null,null,null,0,null,null,null,0,null,null,null,0,null,null,null,0,"",0,null,null,null,0,null,null,null,0,"","","",null,null,null,null,null,null,null,"","","","","","","","","","","","","","","","",0,0]
[null,null,null,null,null,null,null,null,null,null,null,null,null,null,null,null,0,null,null,null,0,null,null,null,0,null,null,null,0,null,null,null,0,null,null,null,null,null,null,0,0,0,null,null,null,0,null,null,null,0,null,null,null,0,null,null,null,0,null,null,null,0,null,null,null,0,null,null,null,0,"",0,null,null,null,0,null,null,null,0,"","","",null,null,null,null,null,null,null,"","","","","","","","","","","","","","","","",0,0]
[null,null,null,null,null,null,null,null,null,null,null,null,null,null,null,null,0,null,null,null,0,null,null,null,0,null,null,null,0,null,null,null,0,null,null,null,null,null,null,0,0,0,null,null,null,0,null,null,null,0,null,null,null,0,null,null,null,0,null,null,null,0,null,null,null,0,null,null,null,0,"",0,null,null,null,0,null,null,null,0,"","","",null,null,null,null,null,null,null,"","","","","","","","","","","","","","","","",0,0]
[null,null,null,null,null,null,null,null,null,null,null,null,null,null,null,null,0,null,null,null,0,null,null,null,0,null,null,null,0,null,null,null,0,null,null,null,null,null,null,0,0,0,null,null,null,0,null,null,null,0,null,null,null,0,null,null,null,0,null,null,null,0,null,null,null,0,null,null,null,0,"",0,null,null,null,0,null,null,null,0,"","","",null,null,null,null,null,null,null,"","","","","","","","","","","","","","","","",0,0]
[null,null,null,null,null,null,null,null,null,null,null,null,null,null,null,null,0,null,null,null,0,null,null,null,0,null,null,null,0,null,null,null,0,null,null,null,null,null,null,0,0,0,null,null,null,0,null,null,null,0,null,null,null,0,null,null,null,0,null,null,null,0,null,null,null,0,null,null,null,0,"",0,null,null,null,0,null,null,null,0,"","","",null,null,null,null,null,null,null,"","","","","","","","","","","","","","","","",0,0]
[null,null,null,null,null,null,null,null,null,null,null,null,null,null,null,null,0,null,null,null,0,null,null,null,0,null,null,null,0,null,null,null,0,null,null,null,null,null,null,0,0,0,null,null,null,0,null,null,null,0,null,null,null,0,null,null,null,0,null,null,null,0,null,null,null,0,null,null,null,0,"",0,null,null,null,0,null,null,null,0,"","","",null,null,null,null,null,null,null,"","","","","","","","","","","","","","","","",0,0]
[null,null,null,null,null,null,null,null,null,null,null,null,null,null,null,null,0,null,null,null,0,null,null,null,0,null,null,null,0,null,null,null,0,null,null,null,null,null,null,0,0,0,null,null,null,0,null,null,null,0,null,null,null,0,null,null,null,0,null,null,null,0,null,null,null,0,null,null,null,0,"",0,null,null,null,0,null,null,null,0,"","","",null,null,null,null,null,null,null,"","","","","","","","","","","","","","","","",0,0]
[null,null,null,null,null,null,null,null,null,null,null,null,null,null,null,null,0,null,null,null,0,null,null,null,0,null,null,null,0,null,null,null,0,null,null,null,null,null,null,0,0,0,null,null,null,0,null,null,null,0,null,null,null,0,null,null,null,0,null,null,null,0,null,null,null,0,null,null,null,0,"",0,null,null,null,0,null,null,null,0,"","","",null,null,null,null,null,null,null,"","","","","","","","","","","","","","","","",0,0]
[null,null,null,null,null,null,null,null,null,null,null,null,null,null,null,null,0,null,null,null,0,null,null,null,0,null,null,null,0,null,null,null,0,null,null,null,null,null,null,0,0,0,null,null,null,0,null,null,null,0,null,null,null,0,null,null,null,0,null,null,null,0,null,null,null,0,null,null,null,0,"",0,null,null,null,0,null,null,null,0,"","","",null,null,null,null,null,null,null,"","","","","","","","","","","","","","","","",0,0]
[null,null,null,null,null,null,null,null,null,null,null,null,null,null,null,null,0,null,null,null,0,null,null,null,0,null,null,null,0,null,null,null,0,null,null,null,null,null,null,0,0,0,null,null,null,0,null,null,null,0,null,null,null,0,null,null,null,0,null,null,null,0,null,null,null,0,null,null,null,0,"",0,null,null,null,0,null,null,null,0,"","","",null,null,null,null,null,null,null,"","","","","","","","","","","","","","","","",0,0]
[null,null,null,null,null,null,null,null,null,null,null,null,null,null,null,null,0,null,null,null,0,null,null,null,0,null,null,null,0,null,null,null,0,null,null,null,null,null,null,0,0,0,null,null,null,0,null,null,null,0,null,null,null,0,null,null,null,0,null,null,null,0,null,null,null,0,null,null,null,0,"",0,null,null,null,0,null,null,null,0,"","","",null,null,null,null,null,null,null,"","","","","","","","","","","","","","","","",0,0]
[null,null,null,null,null,null,null,null,null,null,null,null,null,null,null,null,0,null,null,null,0,null,null,null,0,null,null,null,0,null,null,null,0,null,null,null,null,null,null,0,0,0,null,null,null,0,null,null,null,0,null,null,null,0,null,null,null,0,null,null,null,0,null,null,null,0,null,null,null,0,"",0,null,null,null,0,null,null,null,0,"","","",null,null,null,null,null,null,null,"","","","","","","","","","","","","","","","",0,0]
[null,null,null,null,null,null,null,null,null,null,null,null,null,null,null,null,0,null,null,null,0,null,null,null,0,null,null,null,0,null,null,null,0,null,null,null,null,null,null,0,0,0,null,null,null,0,null,null,null,0,null,null,null,0,null,null,null,0,null,null,null,0,null,null,null,0,null,null,null,0,"",0,null,null,null,0,null,null,null,0,"","","",null,null,null,null,null,null,null,"","","","","","","","","","","","","","","","",0,0]
[null,null,null,null,null,null,null,null,null,null,null,null,null,null,null,null,0,null,null,null,0,null,null,null,0,null,null,null,0,null,null,null,0,null,null,null,null,null,null,0,0,0,null,null,null,0,null,null,null,0,null,null,null,0,null,null,null,0,null,null,null,0,null,null,null,0,null,null,null,0,"",0,null,null,null,0,null,null,null,0,"","","",null,null,null,null,null,null,null,"","","","","","","","","","","","","","","","",0,0]
[null,null,null,null,null,null,null,null,null,null,null,null,null,null,null,null,0,null,null,null,0,null,null,null,0,null,null,null,0,null,null,null,0,null,null,null,null,null,null,0,0,0,null,null,null,0,null,null,null,0,null,null,null,0,null,null,null,0,null,null,null,0,null,null,null,0,null,null,null,0,"",0,null,null,null,0,null,null,null,0,"","","",null,null,null,null,null,null,null,"","","","","","","","","","","","","","","","",0,0]
[null,null,null,null,null,null,null,null,null,null,null,null,null,null,null,null,0,null,null,null,0,null,null,null,0,null,null,null,0,null,null,null,0,null,null,null,null,null,null,0,0,0,null,null,null,0,null,null,null,0,null,null,null,0,null,null,null,0,null,null,null,0,null,null,null,0,null,null,null,0,"",0,null,null,null,0,null,null,null,0,"","","",null,null,null,null,null,null,null,"","","","","","","","","","","","","","","","",0,0]
[null,null,null,null,null,null,null,null,null,null,null,null,null,null,null,null,0,null,null,null,0,null,null,null,0,null,null,null,0,null,null,null,0,null,null,null,null,null,null,0,0,0,null,null,null,0,null,null,null,0,null,null,null,0,null,null,null,0,null,null,null,0,null,null,null,0,null,null,null,0,"",0,null,null,null,0,null,null,null,0,"","","",null,null,null,null,null,null,null,"","","","","","","","","","","","","","","","",0,0]
[null,null,null,null,null,null,null,null,null,null,null,null,null,null,null,null,0,null,null,null,0,null,null,null,0,null,null,null,0,null,null,null,0,null,null,null,null,null,null,0,0,0,null,null,null,0,null,null,null,0,null,null,null,0,null,null,null,0,null,null,null,0,null,null,null,0,null,null,null,0,"",0,null,null,null,0,null,null,null,0,"","","",null,null,null,null,null,null,null,"","","","","","","","","","","","","","","","",0,0]
[null,null,null,null,null,null,null,null,null,null,null,null,null,null,null,null,0,null,null,null,0,null,null,null,0,null,null,null,0,null,null,null,0,null,null,null,null,null,null,0,0,0,null,null,null,0,null,null,null,0,null,null,null,0,null,null,null,0,null,null,null,0,null,null,null,0,null,null,null,0,"",0,null,null,null,0,null,null,null,0,"","","",null,null,null,null,null,null,null,"","","","","","","","","","","","","","","","",0,0]
[null,null,null,null,null,null,null,null,null,null,null,null,null,null,null,null,0,null,null,null,0,null,null,null,0,null,null,null,0,null,null,null,0,null,null,null,null,null,null,0,0,0,null,null,null,0,null,null,null,0,null,null,null,0,null,null,null,0,null,null,null,0,null,null,null,0,null,null,null,0,"",0,null,null,null,0,null,null,null,0,"","","",null,null,null,null,null,null,null,"","","","","","","","","","","","","","","","",0,0]
[null,null,null,null,null,null,null,null,null,null,null,null,null,null,null,null,0,null,null,null,0,null,null,null,0,null,null,null,0,null,null,null,0,null,null,null,null,null,null,0,0,0,null,null,null,0,null,null,null,0,null,null,null,0,null,null,null,0,null,null,null,0,null,null,null,0,null,null,null,0,"",0,null,null,null,0,null,null,null,0,"","","",null,null,null,null,null,null,null,"","","","","","","","","","","","","","","","",0,0]
[null,null,null,null,null,null,null,null,null,null,null,null,null,null,null,null,0,null,null,null,0,null,null,null,0,null,null,null,0,null,null,null,0,null,null,null,null,null,null,0,0,0,null,null,null,0,null,null,null,0,null,null,null,0,null,null,null,0,null,null,null,0,null,null,null,0,null,null,null,0,"",0,null,null,null,0,null,null,null,0,"","","",null,null,null,null,null,null,null,"","","","","","","","","","","","","","","","",0,0]
[null,null,null,null,null,null,null,null,null,null,null,null,null,null,null,null,0,null,null,null,0,null,null,null,0,null,null,null,0,null,null,null,0,null,null,null,null,null,null,0,0,0,null,null,null,0,null,null,null,0,null,null,null,0,null,null,null,0,null,null,null,0,null,null,null,0,null,null,null,0,"",0,null,null,null,0,null,null,null,0,"","","",null,null,null,null,null,null,null,"","","","","","","","","","","","","","","","",0,0]
[null,null,null,null,null,null,null,null,null,null,null,null,null,null,null,null,0,null,null,null,0,null,null,null,0,null,null,null,0,null,null,null,0,null,null,null,null,null,null,0,0,0,null,null,null,0,null,null,null,0,null,null,null,0,null,null,null,0,null,null,null,0,null,null,null,0,null,null,null,0,"",0,null,null,null,0,null,null,null,0,"","","",null,null,null,null,null,null,null,"","","","","","","","","","","","","","","","",0,0]
[null,null,null,null,null,null,null,null,null,null,null,null,null,null,null,null,0,null,null,null,0,null,null,null,0,null,null,null,0,null,null,null,0,null,null,null,null,null,null,0,0,0,null,null,null,0,null,null,null,0,null,null,null,0,null,null,null,0,null,null,null,0,null,null,null,0,null,null,null,0,"",0,null,null,null,0,null,null,null,0,"","","",null,null,null,null,null,null,null,"","","","","","","","","","","","","","","","",0,0]
[null,null,null,null,null,null,null,null,null,null,null,null,null,null,null,null,0,null,null,null,0,null,null,null,0,null,null,null,0,null,null,null,0,null,null,null,null,null,null,0,0,0,null,null,null,0,null,null,null,0,null,null,null,0,null,null,null,0,null,null,null,0,null,null,null,0,null,null,null,0,"",0,null,null,null,0,null,null,null,0,"","","",null,null,null,null,null,null,null,"","","","","","","","","","","","","","","","",0,0]
[null,null,null,null,null,null,null,null,null,null,null,null,null,null,null,null,0,null,null,null,0,null,null,null,0,null,null,null,0,null,null,null,0,null,null,null,null,null,null,0,0,0,null,null,null,0,null,null,null,0,null,null,null,0,null,null,null,0,null,null,null,0,null,null,null,0,null,null,null,0,"",0,null,null,null,0,null,null,null,0,"","","",null,null,null,null,null,null,null,"","","","","","","","","","","","","","","","",0,0]
[null,null,null,null,null,null,null,null,null,null,null,null,null,null,null,null,0,null,null,null,0,null,null,null,0,null,null,null,0,null,null,null,0,null,null,null,null,null,null,0,0,0,null,null,null,0,null,null,null,0,null,null,null,0,null,null,null,0,null,null,null,0,null,null,null,0,null,null,null,0,"",0,null,null,null,0,null,null,null,0,"","","",null,null,null,null,null,null,null,"","","","","","","","","","","","","","","","",0,0]
[null,null,null,null,null,null,null,null,null,null,null,null,null,null,null,null,0,null,null,null,0,null,null,null,0,null,null,null,0,null,null,null,0,null,null,null,null,null,null,0,0,0,null,null,null,0,null,null,null,0,null,null,null,0,null,null,null,0,null,null,null,0,null,null,null,0,null,null,null,0,"",0,null,null,null,0,null,null,null,0,"","","",null,null,null,null,null,null,null,"","","","","","","","","","","","","","","","",0,0]
[null,null,null,null,null,null,null,null,null,null,null,null,null,null,null,null,0,null,null,null,0,null,null,null,0,null,null,null,0,null,null,null,0,null,null,null,null,null,null,0,0,0,null,null,null,0,null,null,null,0,null,null,null,0,null,null,null,0,null,null,null,0,null,null,null,0,null,null,null,0,"",0,null,null,null,0,null,null,null,0,"","","",null,null,null,null,null,null,null,"","","","","","","","","","","","","","","","",0,0]
[null,null,null,null,null,null,null,null,null,null,null,null,null,null,null,null,0,null,null,null,0,null,null,null,0,null,null,null,0,null,null,null,0,null,null,null,null,null,null,0,0,0,null,null,null,0,null,null,null,0,null,null,null,0,null,null,null,0,null,null,null,0,null,null,null,0,null,null,null,0,"",0,null,null,null,0,null,null,null,0,"","","",null,null,null,null,null,null,null,"","","","","","","","","","","","","","","","",0,0]
[null,null,null,null,null,null,null,null,null,null,null,null,null,null,null,null,0,null,null,null,0,null,null,null,0,null,null,null,0,null,null,null,0,null,null,null,null,null,null,0,0,0,null,null,null,0,null,null,null,0,null,null,null,0,null,null,null,0,null,null,null,0,null,null,null,0,null,null,null,0,"",0,null,null,null,0,null,null,null,0,"","","",null,null,null,null,null,null,null,"","","","","","","","","","","","","","","","",0,0]
[null,null,null,null,null,null,null,null,null,null,null,null,null,null,null,null,0,null,null,null,0,null,null,null,0,null,null,null,0,null,null,null,0,null,null,null,null,null,null,0,0,0,null,null,null,0,null,null,null,0,null,null,null,0,null,null,null,0,null,null,null,0,null,null,null,0,null,null,null,0,"",0,null,null,null,0,null,null,null,0,"","","",null,null,null,null,null,null,null,"","","","","","","","","","","","","","","","",0,0]
[null,null,null,null,null,null,null,null,null,null,null,null,null,null,null,null,0,null,null,null,0,null,null,null,0,null,null,null,0,null,null,null,0,null,null,null,null,null,null,0,0,0,null,null,null,0,null,null,null,0,null,null,null,0,null,null,null,0,null,null,null,0,null,null,null,0,null,null,null,0,"",0,null,null,null,0,null,null,null,0,"","","",null,null,null,null,null,null,null,"","","","","","","","","","","","","","","","",0,0]
[null,null,null,null,null,null,null,null,null,null,null,null,null,null,null,null,0,null,null,null,0,null,null,null,0,null,null,null,0,null,null,null,0,null,null,null,null,null,null,0,0,0,null,null,null,0,null,null,null,0,null,null,null,0,null,null,null,0,null,null,null,0,null,null,null,0,null,null,null,0,"",0,null,null,null,0,null,null,null,0,"","","",null,null,null,null,null,null,null,"","","","","","","","","","","","","","","","",0,0]
[null,null,null,null,null,null,null,null,null,null,null,null,null,null,null,null,0,null,null,null,0,null,null,null,0,null,null,null,0,null,null,null,0,null,null,null,null,null,null,0,0,0,null,null,null,0,null,null,null,0,null,null,null,0,null,null,null,0,null,null,null,0,null,null,null,0,null,null,null,0,"",0,null,null,null,0,null,null,null,0,"","","",null,null,null,null,null,null,null,"","","","","","","","","","","","","","","","",0,0]
[null,null,null,null,null,null,null,null,null,null,null,null,null,null,null,null,0,null,null,null,0,null,null,null,0,null,null,null,0,null,null,null,0,null,null,null,null,null,null,0,0,0,null,null,null,0,null,null,null,0,null,null,null,0,null,null,null,0,null,null,null,0,null,null,null,0,null,null,null,0,"",0,null,null,null,0,null,null,null,0,"","","",null,null,null,null,null,null,null,"","","","","","","","","","","","","","","","",0,0]
[null,null,null,null,null,null,null,null,null,null,null,null,null,null,null,null,0,null,null,null,0,null,null,null,0,null,null,null,0,null,null,null,0,null,null,null,null,null,null,0,0,0,null,null,null,0,null,null,null,0,null,null,null,0,null,null,null,0,null,null,null,0,null,null,null,0,null,null,null,0,"",0,null,null,null,0,null,null,null,0,"","","",null,null,null,null,null,null,null,"","","","","","","","","","","","","","","","",0,0]
[null,null,null,null,null,null,null,null,null,null,null,null,null,null,null,null,0,null,null,null,0,null,null,null,0,null,null,null,0,null,null,null,0,null,null,null,null,null,null,0,0,0,null,null,null,0,null,null,null,0,null,null,null,0,null,null,null,0,null,null,null,0,null,null,null,0,null,null,null,0,"",0,null,null,null,0,null,null,null,0,"","","",null,null,null,null,null,null,null,"","","","","","","","","","","","","","","","",0,0]
[null,null,null,null,null,null,null,null,null,null,null,null,null,null,null,null,0,null,null,null,0,null,null,null,0,null,null,null,0,null,null,null,0,null,null,null,null,null,null,0,0,0,null,null,null,0,null,null,null,0,null,null,null,0,null,null,null,0,null,null,null,0,null,null,null,0,null,null,null,0,"",0,null,null,null,0,null,null,null,0,"","","",null,null,null,null,null,null,null,"","","","","","","","","","","","","","","","",0,0]
[null,null,null,null,null,null,null,null,null,null,null,null,null,null,null,null,0,null,null,null,0,null,null,null,0,null,null,null,0,null,null,null,0,null,null,null,null,null,null,0,0,0,null,null,null,0,null,null,null,0,null,null,null,0,null,null,null,0,null,null,null,0,null,null,null,0,null,null,null,0,"",0,null,null,null,0,null,null,null,0,"","","",null,null,null,null,null,null,null,"","","","","","","","","","","","","","","","",0,0]
[null,null,null,null,null,null,null,null,null,null,null,null,null,null,null,null,0,null,null,null,0,null,null,null,0,null,null,null,0,null,null,null,0,null,null,null,null,null,null,0,0,0,null,null,null,0,null,null,null,0,null,null,null,0,null,null,null,0,null,null,null,0,null,null,null,0,null,null,null,0,"",0,null,null,null,0,null,null,null,0,"","","",null,null,null,null,null,null,null,"","","","","","","","","","","","","","","","",0,0]
[null,null,null,null,null,null,null,null,null,null,null,null,null,null,null,null,0,null,null,null,0,null,null,null,0,null,null,null,0,null,null,null,0,null,null,null,null,null,null,0,0,0,null,null,null,0,null,null,null,0,null,null,null,0,null,null,null,0,null,null,null,0,null,null,null,0,null,null,null,0,"",0,null,null,null,0,null,null,null,0,"","","",null,null,null,null,null,null,null,"","","","","","","","","","","","","","","","",0,0]
[null,null,null,null,null,null,null,null,null,null,null,null,null,null,null,null,0,null,null,null,0,null,null,null,0,null,null,null,0,null,null,null,0,null,null,null,null,null,null,0,0,0,null,null,null,0,null,null,null,0,null,null,null,0,null,null,null,0,null,null,null,0,null,null,null,0,null,null,null,0,"",0,null,null,null,0,null,null,null,0,"","","",null,null,null,null,null,null,null,"","","","","","","","","","","","","","","","",0,0]
[null,null,null,null,null,null,null,null,null,null,null,null,null,null,null,null,0,null,null,null,0,null,null,null,0,null,null,null,0,null,null,null,0,null,null,null,null,null,null,0,0,0,null,null,null,0,null,null,null,0,null,null,null,0,null,null,null,0,null,null,null,0,null,null,null,0,null,null,null,0,"",0,null,null,null,0,null,null,null,0,"","","",null,null,null,null,null,null,null,"","","","","","","","","","","","","","","","",0,0]
[null,null,null,null,null,null,null,null,null,null,null,null,null,null,null,null,0,null,null,null,0,null,null,null,0,null,null,null,0,null,null,null,0,null,null,null,null,null,null,0,0,0,null,null,null,0,null,null,null,0,null,null,null,0,null,null,null,0,null,null,null,0,null,null,null,0,null,null,null,0,"",0,null,null,null,0,null,null,null,0,"","","",null,null,null,null,null,null,null,"","","","","","","","","","","","","","","","",0,0]
[null,null,null,null,null,null,null,null,null,null,null,null,null,null,null,null,0,null,null,null,0,null,null,null,0,null,null,null,0,null,null,null,0,null,null,null,null,null,null,0,0,0,null,null,null,0,null,null,null,0,null,null,null,0,null,null,null,0,null,null,null,0,null,null,null,0,null,null,null,0,"",0,null,null,null,0,null,null,null,0,"","","",null,null,null,null,null,null,null,"","","","","","","","","","","","","","","","",0,0]
[null,null,null,null,null,null,null,null,null,null,null,null,null,null,null,null,0,null,null,null,0,null,null,null,0,null,null,null,0,null,null,null,0,null,null,null,null,null,null,0,0,0,null,null,null,0,null,null,null,0,null,null,null,0,null,null,null,0,null,null,null,0,null,null,null,0,null,null,null,0,"",0,null,null,null,0,null,null,null,0,"","","",null,null,null,null,null,null,null,"","","","","","","","","","","","","","","","",0,0]
[null,null,null,null,null,null,null,null,null,null,null,null,null,null,null,null,0,null,null,null,0,null,null,null,0,null,null,null,0,null,null,null,0,null,null,null,null,null,null,0,0,0,null,null,null,0,null,null,null,0,null,null,null,0,null,null,null,0,null,null,null,0,null,null,null,0,null,null,null,0,"",0,null,null,null,0,null,null,null,0,"","","",null,null,null,null,null,null,null,"","","","","","","","","","","","","","","","",0,0]
[null,null,null,null,null,null,null,null,null,null,null,null,null,null,null,null,0,null,null,null,0,null,null,null,0,null,null,null,0,null,null,null,0,null,null,null,null,null,null,0,0,0,null,null,null,0,null,null,null,0,null,null,null,0,null,null,null,0,null,null,null,0,null,null,null,0,null,null,null,0,"",0,null,null,null,0,null,null,null,0,"","","",null,null,null,null,null,null,null,"","","","","","","","","","","","","","","","",0,0]
[null,null,null,null,null,null,null,null,null,null,null,null,null,null,null,null,0,null,null,null,0,null,null,null,0,null,null,null,0,null,null,null,0,null,null,null,null,null,null,0,0,0,null,null,null,0,null,null,null,0,null,null,null,0,null,null,null,0,null,null,null,0,null,null,null,0,null,null,null,0,"",0,null,null,null,0,null,null,null,0,"","","",null,null,null,null,null,null,null,"","","","","","","","","","","","","","","","",0,0]
[null,null,null,null,null,null,null,null,null,null,null,null,null,null,null,null,0,null,null,null,0,null,null,null,0,null,null,null,0,null,null,null,0,null,null,null,null,null,null,0,0,0,null,null,null,0,null,null,null,0,null,null,null,0,null,null,null,0,null,null,null,0,null,null,null,0,null,null,null,0,"",0,null,null,null,0,null,null,null,0,"","","",null,null,null,null,null,null,null,"","","","","","","","","","","","","","","","",0,0]
[null,null,null,null,null,null,null,null,null,null,null,null,null,null,null,null,0,null,null,null,0,null,null,null,0,null,null,null,0,null,null,null,0,null,null,null,null,null,null,0,0,0,null,null,null,0,null,null,null,0,null,null,null,0,null,null,null,0,null,null,null,0,null,null,null,0,null,null,null,0,"",0,null,null,null,0,null,null,null,0,"","","",null,null,null,null,null,null,null,"","","","","","","","","","","","","","","","",0,0]
[null,null,null,null,null,null,null,null,null,null,null,null,null,null,null,null,0,null,null,null,0,null,null,null,0,null,null,null,0,null,null,null,0,null,null,null,null,null,null,0,0,0,null,null,null,0,null,null,null,0,null,null,null,0,null,null,null,0,null,null,null,0,null,null,null,0,null,null,null,0,"",0,null,null,null,0,null,null,null,0,"","","",null,null,null,null,null,null,null,"","","","","","","","","","","","","","","","",0,0]
[null,null,null,null,null,null,null,null,null,null,null,null,null,null,null,null,0,null,null,null,0,null,null,null,0,null,null,null,0,null,null,null,0,null,null,null,null,null,null,0,0,0,null,null,null,0,null,null,null,0,null,null,null,0,null,null,null,0,null,null,null,0,null,null,null,0,null,null,null,0,"",0,null,null,null,0,null,null,null,0,"","","",null,null,null,null,null,null,null,"","","","","","","","","","","","","","","","",0,0]
[null,null,null,null,null,null,null,null,null,null,null,null,null,null,null,null,0,null,null,null,0,null,null,null,0,null,null,null,0,null,null,null,0,null,null,null,null,null,null,0,0,0,null,null,null,0,null,null,null,0,null,null,null,0,null,null,null,0,null,null,null,0,null,null,null,0,null,null,null,0,"",0,null,null,null,0,null,null,null,0,"","","",null,null,null,null,null,null,null,"","","","","","","","","","","","","","","","",0,0]
[null,null,null,null,null,null,null,null,null,null,null,null,null,null,null,null,0,null,null,null,0,null,null,null,0,null,null,null,0,null,null,null,0,null,null,null,null,null,null,0,0,0,null,null,null,0,null,null,null,0,null,null,null,0,null,null,null,0,null,null,null,0,null,null,null,0,null,null,null,0,"",0,null,null,null,0,null,null,null,0,"","","",null,null,null,null,null,null,null,"","","","","","","","","","","","","","","","",0,0]
[null,null,null,null,null,null,null,null,null,null,null,null,null,null,null,null,0,null,null,null,0,null,null,null,0,null,null,null,0,null,null,null,0,null,null,null,null,null,null,0,0,0,null,null,null,0,null,null,null,0,null,null,null,0,null,null,null,0,null,null,null,0,null,null,null,0,null,null,null,0,"",0,null,null,null,0,null,null,null,0,"","","",null,null,null,null,null,null,null,"","","","","","","","","","","","","","","","",0,0]
[null,null,null,null,null,null,null,null,null,null,null,null,null,null,null,null,0,null,null,null,0,null,null,null,0,null,null,null,0,null,null,null,0,null,null,null,null,null,null,0,0,0,null,null,null,0,null,null,null,0,null,null,null,0,null,null,null,0,null,null,null,0,null,null,null,0,null,null,null,0,"",0,null,null,null,0,null,null,null,0,"","","",null,null,null,null,null,null,null,"","","","","","","","","","","","","","","","",0,0]
[null,null,null,null,null,null,null,null,null,null,null,null,null,null,null,null,0,null,null,null,0,null,null,null,0,null,null,null,0,null,null,null,0,null,null,null,null,null,null,0,0,0,null,null,null,0,null,null,null,0,null,null,null,0,null,null,null,0,null,null,null,0,null,null,null,0,null,null,null,0,"",0,null,null,null,0,null,null,null,0,"","","",null,null,null,null,null,null,null,"","","","","","","","","","","","","","","","",0,0]
[null,null,null,null,null,null,null,null,null,null,null,null,null,null,null,null,{"$f":"IF(P586=\"غ\",\"غ\",SUM(N586,O586,P586))","v":0},null,null,null,{"$f":"IF(T586=\"غ\",\"غ\",SUM(R586,S586,T586))","v":0},null,null,null,{"$f":"IF(X586=\"غ\",\"غ\",SUM(V586,W586,X586))","v":0},null,null,null,{"$f":"IF(AB586=\"غ\",\"غ\",SUM(Z586,AA586,AB586))","v":0},null,null,null,{"$f":"IF(AF586=\"غ\",\"غ\",SUM(AD586,AE586,AF586))","v":0},null,null,null,null,null,null,{"$f":"IF(AL586=\"غ\",\"غ\",SUM(AH586,AJ586,AL586))","v":0},{"$f":"IF(AM586=\"غ\",\"غ\",SUM(AI586,AK586,AM586))","v":0},{"$f":"IF(OR(AN586=\"غ\",AO586=\"غ\"),\"غ\",SUM(AN586,AO586))","v":0},null,null,null,{"$f":"IF(AS586=\"غ\",\"غ\",SUM(AQ586,AR586,AS586))","v":0},null,null,null,{"$f":"IF(AW586=\"غ\",\"غ\",SUM(AU586,AV586,AW586))","v":0},null,null,null,{"$f":"IF(BA586=\"غ\",\"غ\",SUM(AY586,AZ586,BA586))","v":0},null,null,null,{"$f":"IF(BE586=\"غ\",\"غ\",SUM(BC586,BD586,BE586))","v":0},null,null,null,{"$f":"IF(BI586=\"غ\",\"غ\",SUM(BG586,BH586,BI586))","v":0},null,null,null,{"$f":"IF(BM586=\"غ\",\"غ\",SUM(BK586,BL586,BM586))","v":0},null,null,null,{"$f":"IF(BQ586=\"غ\",\"غ\",SUM(BO586,BP586,BQ586))","v":0},{"$f":"IF(C586=\"\",\"\",SUM(O586,S586,W586,AE586,AR586,AV586,AZ586,BD586,BH586,BL586,BP586,AA586,AJ586,AK586))","v":""},{"$f":"SUM(Q586,U586,Y586,AG586,AT586,AX586,BB586,BF586,BJ586,BN586,BR586,AC586,AP586)","v":0},null,null,null,{"$f":"IF(BW586=\"غ\",\"غ\",SUM(BU586,BV586,BW586))","v":0},null,null,null,0,{"$f":"IF(I586=\"\",\"\",IF(I586=\"بنات\",IF(CE586=0,\"ناجحة\",IF(DD586>2,\"راسبة\",\"دورثان\")),IF(I586=\"بنين\",IF(CE586=0,\"ناجح\",IF(DD586>2,\"راسب\",\"دورثان\")))))","v":""},{"$f":"IF(C586=\"\",\"\",IF(AND($L586=\"باقية\",$CC586=\"راسبة\"),\"وليس لها حق الاعادة\",IF(AND($L586<>\"باقية\",$CC586=\"راسبة\"),\"و  لها حق الاعادة\",IF(AND($L586=\"باقى\",$CC586=\"راسب\"),\"وليس له حق الاعادة\",IF(AND($L586<>\"باقى\",$CC586=\"راسب\"),\"و  له حق الاعادة\",IF($CC586=\"ناجحة\",\"و منقولة للصف الثانى\",IF($CC586=\"ناجح\",\"و منقول للصف الثانى\",IF($CC586=\"دورثان\",\"فى : \"&CONCATENATE($CM586,$CN586,$CO586,$CQ586,$CR586,$CS586,$CT586,$CU586,$CV586,$CW586,$CX586,$CY586,$CP586,$CZ586,$DA586,$DB586)))))))))","v":""},{"$f":"IF(C586=\"\",\"\",$DC586+$DD586)","v":""},null,null,null,null,null,null,null,{"$f":"IF(C586=\"\",\"\",IF(OR(P586<$P$9,P586=\"غ\",Q586<$Q$9),CM$5&\" - \",\"\"))","v":""},{"$f":"IF(C586=\"\",\"\",IF(OR(T586<$T$9,T586=\"غ\",U586<$U$9),CN$5&\" - \",\"\"))","v":""},{"$f":"IF(C586=\"\",\"\",IF(OR(X586<$X$9,X586=\"غ\",Y586<$Y$9),CO$5&\" - \",\"\"))","v":""},{"$f":"IF(C586=\"\",\"\",IF(OR(AB586<$AB$9,AB586=\"غ\",AC586<$AC$9),CP$5&\" - \",\"\"))","v":""},{"$f":"IF(C586=\"\",\"\",IF(OR(AF586<$AF$9,AF586=\"غ\",AG586<$AG$9),CQ$5&\" - \",\"\"))","v":""},{"$f":"IF(C586=\"\",\"\",IF(OR(AL586<$AL$9,AM586<$AM$9,AN586<$AN$9,AN586=\"غ\",AO586<$AO$9,AO586=\"غ\"),CR$5&\" - \",\"\"))","v":""},{"$f":"IF(C586=\"\",\"\",IF(OR(AS586<$AS$9,AS586=\"غ\",AT586<$AT$9),CS$5&\" - \",\"\"))","v":""},{"$f":"IF(C586=\"\",\"\",IF(OR(AW586<$AW$9,AW586=\"غ\",AX586<$AX$9),CT$5&\" - \",\"\"))","v":""},{"$f":"IF(C586=\"\",\"\",IF(OR(BA586<$BA$9,BA586=\"غ\",BB586<$BB$9),CU$5&\" - \",\"\"))","v":""},{"$f":"IF(C586=\"\",\"\",IF(OR(BE586<$BE$9,BE586=\"غ\",BF586<$BF$9),CV$5&\" - \",\"\"))","v":""},{"$f":"IF(C586=\"\",\"\",IF(OR(BI586<$BI$9,BI586=\"غ\",BJ586<$BJ$9),CW$5&\" - \",\"\"))","v":""},{"$f":"IF(C586=\"\",\"\",IF(OR(BM586<$BM$9,BM586=\"غ\",BN586<$BN$9),CX$5&\" - \",\"\"))","v":""},{"$f":"IF(C586=\"\",\"\",IF(OR(BQ586<$BQ$9,BQ586=\"غ\",BR586<$BR$9),CY$5&\" - \",\"\"))","v":""},{"$f":"IF(C586=\"\",\"\",IF(BT586<$BT$9,CZ$5&\" - \",\"\"))","v":""},{"$f":"IF(C586=\"\",\"\",IF(OR(BW586<$BW$9,BW586=\"غ\",BX586<$BX$9),DA$5,\"\"))","v":""},{"$f":"IF(C586=\"\",\"\",IF(OR(CA586<$CA$9,CA586=\"غ\",CB586<$CB$9),DB$5,\"\"))","v":""},{"$f":"COUNTIF($CZ586:$DB586,\"?*\")","v":0},{"$f":"COUNTIF($CM586:$CY586,\"?*\")","v":0}]
[null,null,null,null,null,null,null,null,null,null,null,null,null,null,null,null,0,null,null,null,0,null,null,null,0,null,null,null,0,null,null,null,0,null,null,null,null,null,null,0,0,0,null,null,null,0,null,null,null,0,null,null,null,0,null,null,null,0,null,null,null,0,null,null,null,0,null,null,null,0,"",0,null,null,null,0,null,null,null,{"$f":"IF(CA587=\"غ\",\"غ\",SUM(BY587,BZ587,CA587))","v":0},"","","",null,null,null,null,null,null,null,"","","","","","","","","","","","","","","","",0,0]
[null,null,null,null,null,null,null,null,null,null,null,null,null,null,null,null,0,null,null,null,0,null,null,null,0,null,null,null,0,null,null,null,0,null,null,null,null,null,null,0,0,0,null,null,null,0,null,null,null,0,null,null,null,0,null,null,null,0,null,null,null,0,null,null,null,0,null,null,null,0,"",0,null,null,null,0,null,null,null,0,"","","",null,null,null,null,null,null,null,"","","","","","","","","","","","","","","","",0,0]
[null,null,null,null,null,null,null,null,null,null,null,null,null,null,null,null,0,null,null,null,0,null,null,null,0,null,null,null,0,null,null,null,0,null,null,null,null,null,null,0,0,0,null,null,null,0,null,null,null,0,null,null,null,0,null,null,null,0,null,null,null,0,null,null,null,0,null,null,null,0,"",0,null,null,null,0,null,null,null,0,"","","",null,null,null,null,null,null,null,"","","","","","","","","","","","","","","","",0,0]
[null,null,null,null,null,null,null,null,null,null,null,null,null,null,null,null,0,null,null,null,0,null,null,null,0,null,null,null,0,null,null,null,0,null,null,null,null,null,null,0,0,0,null,null,null,0,null,null,null,0,null,null,null,0,null,null,null,0,null,null,null,0,null,null,null,0,null,null,null,0,"",0,null,null,null,0,null,null,null,0,"","","",null,null,null,null,null,null,null,"","","","","","","","","","","","","","","","",0,0]
[null,null,null,null,null,null,null,null,null,null,null,null,null,null,null,null,0,null,null,null,0,null,null,null,0,null,null,null,0,null,null,null,0,null,null,null,null,null,null,0,0,0,null,null,null,0,null,null,null,0,null,null,null,0,null,null,null,0,null,null,null,0,null,null,null,0,null,null,null,0,"",0,null,null,null,0,null,null,null,0,"","","",null,null,null,null,null,null,null,"","","","","","","","","","","","","","","","",0,0]
[null,null,null,null,null,null,null,null,null,null,null,null,null,null,null,null,0,null,null,null,0,null,null,null,0,null,null,null,0,null,null,null,0,null,null,null,null,null,null,0,0,0,null,null,null,0,null,null,null,0,null,null,null,0,null,null,null,0,null,null,null,0,null,null,null,0,null,null,null,0,"",0,null,null,null,0,null,null,null,0,"","","",null,null,null,null,null,null,null,"","","","","","","","","","","","","","","","",0,0]
[null,null,null,null,null,null,null,null,null,null,null,null,null,null,null,null,0,null,null,null,0,null,null,null,0,null,null,null,0,null,null,null,0,null,null,null,null,null,null,0,0,0,null,null,null,0,null,null,null,0,null,null,null,0,null,null,null,0,null,null,null,0,null,null,null,0,null,null,null,0,"",0,null,null,null,0,null,null,null,0,"","","",null,null,null,null,null,null,null,"","","","","","","","","","","","","","","","",0,0]
[null,null,null,null,null,null,null,null,null,null,null,null,null,null,null,null,0,null,null,null,0,null,null,null,0,null,null,null,0,null,null,null,0,null,null,null,null,null,null,0,0,0,null,null,null,0,null,null,null,0,null,null,null,0,null,null,null,0,null,null,null,0,null,null,null,0,null,null,null,0,"",0,null,null,null,0,null,null,null,0,"","","",null,null,null,null,null,null,null,"","","","","","","","","","","","","","","","",0,0]
[null,null,null,null,null,null,null,null,null,null,null,null,null,null,null,null,0,null,null,null,0,null,null,null,0,null,null,null,0,null,null,null,0,null,null,null,null,null,null,0,0,0,null,null,null,0,null,null,null,0,null,null,null,0,null,null,null,0,null,null,null,0,null,null,null,0,null,null,null,0,"",0,null,null,null,0,null,null,null,0,"","","",null,null,null,null,null,null,null,"","","","","","","","","","","","","","","","",0,0]
[null,null,null,null,null,null,null,null,null,null,null,null,null,null,null,null,0,null,null,null,0,null,null,null,0,null,null,null,0,null,null,null,0,null,null,null,null,null,null,0,0,0,null,null,null,0,null,null,null,0,null,null,null,0,null,null,null,0,null,null,null,0,null,null,null,0,null,null,null,0,"",0,null,null,null,0,null,null,null,0,"","","",null,null,null,null,null,null,null,"","","","","","","","","","","","","","","","",0,0]
[null,null,null,null,null,null,null,null,null,null,null,null,null,null,null,null,0,null,null,null,0,null,null,null,0,null,null,null,0,null,null,null,0,null,null,null,null,null,null,0,0,0,null,null,null,0,null,null,null,0,null,null,null,0,null,null,null,0,null,null,null,0,null,null,null,0,null,null,null,0,"",0,null,null,null,0,null,null,null,0,"","","",null,null,null,null,null,null,null,"","","","","","","","","","","","","","","","",0,0]
[null,null,null,null,null,null,null,null,null,null,null,null,null,null,null,null,0,null,null,null,0,null,null,null,0,null,null,null,0,null,null,null,0,null,null,null,null,null,null,0,0,0,null,null,null,0,null,null,null,0,null,null,null,0,null,null,null,0,null,null,null,0,null,null,null,0,null,null,null,0,"",0,null,null,null,0,null,null,null,0,"","","",null,null,null,null,null,null,null,"","","","","","","","","","","","","","","","",0,0]
[null,null,null,null,null,null,null,null,null,null,null,null,null,null,null,null,0,null,null,null,0,null,null,null,0,null,null,null,0,null,null,null,0,null,null,null,null,null,null,0,0,0,null,null,null,0,null,null,null,0,null,null,null,0,null,null,null,0,null,null,null,0,null,null,null,0,null,null,null,0,"",0,null,null,null,0,null,null,null,0,"","","",null,null,null,null,null,null,null,"","","","","","","","","","","","","","","","",0,0]
[null,null,null,null,null,null,null,null,null,null,null,null,null,null,null,null,0,null,null,null,0,null,null,null,0,null,null,null,0,null,null,null,0,null,null,null,null,null,null,0,0,0,null,null,null,0,null,null,null,0,null,null,null,0,null,null,null,0,null,null,null,0,null,null,null,0,null,null,null,0,"",0,null,null,null,0,null,null,null,0,"","","",null,null,null,null,null,null,null,"","","","","","","","","","","","","","","","",0,0]
[null,null,null,null,null,null,null,null,null,null,null,null,null,null,null,null,0,null,null,null,0,null,null,null,0,null,null,null,0,null,null,null,0,null,null,null,null,null,null,0,0,0,null,null,null,0,null,null,null,0,null,null,null,0,null,null,null,0,null,null,null,0,null,null,null,0,null,null,null,0,"",0,null,null,null,0,null,null,null,0,"","","",null,null,null,null,null,null,null,"","","","","","","","","","","","","","","","",0,0]
[null,null,null,null,null,null,null,null,null,null,null,null,null,null,null,null,0,null,null,null,0,null,null,null,0,null,null,null,0,null,null,null,0,null,null,null,null,null,null,0,0,0,null,null,null,0,null,null,null,0,null,null,null,0,null,null,null,0,null,null,null,0,null,null,null,0,null,null,null,0,"",0,null,null,null,0,null,null,null,0,"","","",null,null,null,null,null,null,null,"","","","","","","","","","","","","","","","",0,0]
[null,null,null,null,null,null,null,null,null,null,null,null,null,null,null,null,0,null,null,null,0,null,null,null,0,null,null,null,0,null,null,null,0,null,null,null,null,null,null,0,0,0,null,null,null,0,null,null,null,0,null,null,null,0,null,null,null,0,null,null,null,0,null,null,null,0,null,null,null,0,"",0,null,null,null,0,null,null,null,0,"","","",null,null,null,null,null,null,null,"","","","","","","","","","","","","","","","",0,0]
[null,null,null,null,null,null,null,null,null,null,null,null,null,null,null,null,0,null,null,null,0,null,null,null,0,null,null,null,0,null,null,null,0,null,null,null,null,null,null,0,0,0,null,null,null,0,null,null,null,0,null,null,null,0,null,null,null,0,null,null,null,0,null,null,null,0,null,null,null,0,"",0,null,null,null,0,null,null,null,0,"","","",null,null,null,null,null,null,null,"","","","","","","","","","","","","","","","",0,0]
[null,null,null,null,null,null,null,null,null,null,null,null,null,null,null,null,0,null,null,null,0,null,null,null,0,null,null,null,0,null,null,null,0,null,null,null,null,null,null,0,0,0,null,null,null,0,null,null,null,0,null,null,null,0,null,null,null,0,null,null,null,0,null,null,null,0,null,null,null,0,"",0,null,null,null,0,null,null,null,0,"","","",null,null,null,null,null,null,null,"","","","","","","","","","","","","","","","",0,0]
[null,null,null,null,null,null,null,null,null,null,null,null,null,null,null,null,0,null,null,null,0,null,null,null,0,null,null,null,0,null,null,null,0,null,null,null,null,null,null,0,0,0,null,null,null,0,null,null,null,0,null,null,null,0,null,null,null,0,null,null,null,0,null,null,null,0,null,null,null,0,"",0,null,null,null,0,null,null,null,0,"","","",null,null,null,null,null,null,null,"","","","","","","","","","","","","","","","",0,0]
[null,null,null,null,null,null,null,null,null,null,null,null,null,null,null,null,0,null,null,null,0,null,null,null,0,null,null,null,0,null,null,null,0,null,null,null,null,null,null,0,0,0,null,null,null,0,null,null,null,0,null,null,null,0,null,null,null,0,null,null,null,0,null,null,null,0,null,null,null,0,"",0,null,null,null,0,null,null,null,0,"","","",null,null,null,null,null,null,null,"","","","","","","","","","","","","","","","",0,0]
[null,null,null,null,null,null,null,null,null,null,null,null,null,null,null,null,0,null,null,null,0,null,null,null,0,null,null,null,0,null,null,null,0,null,null,null,null,null,null,0,0,0,null,null,null,0,null,null,null,0,null,null,null,0,null,null,null,0,null,null,null,0,null,null,null,0,null,null,null,0,"",0,null,null,null,0,null,null,null,0,"","","",null,null,null,null,null,null,null,"","","","","","","","","","","","","","","","",0,0]
[null,null,null,null,null,null,null,null,null,null,null,null,null,null,null,null,0,null,null,null,0,null,null,null,0,null,null,null,0,null,null,null,0,null,null,null,null,null,null,0,0,0,null,null,null,0,null,null,null,0,null,null,null,0,null,null,null,0,null,null,null,0,null,null,null,0,null,null,null,0,"",0,null,null,null,0,null,null,null,0,"","","",null,null,null,null,null,null,null,"","","","","","","","","","","","","","","","",0,0]
[null,null,null,null,null,null,null,null,null,null,null,null,null,null,null,null,0,null,null,null,0,null,null,null,0,null,null,null,0,null,null,null,0,null,null,null,null,null,null,0,0,0,null,null,null,0,null,null,null,0,null,null,null,0,null,null,null,0,null,null,null,0,null,null,null,0,null,null,null,0,"",0,null,null,null,0,null,null,null,0,"","","",null,null,null,null,null,null,null,"","","","","","","","","","","","","","","","",0,0]
[null,null,null,null,null,null,null,null,null,null,null,null,null,null,null,null,0,null,null,null,0,null,null,null,0,null,null,null,0,null,null,null,0,null,null,null,null,null,null,0,0,0,null,null,null,0,null,null,null,0,null,null,null,0,null,null,null,0,null,null,null,0,null,null,null,0,null,null,null,0,"",0,null,null,null,0,null,null,null,0,"","","",null,null,null,null,null,null,null,"","","","","","","","","","","","","","","","",0,0]
[null,null,null,null,null,null,null,null,null,null,null,null,null,null,null,null,0,null,null,null,0,null,null,null,0,null,null,null,0,null,null,null,0,null,null,null,null,null,null,0,0,0,null,null,null,0,null,null,null,0,null,null,null,0,null,null,null,0,null,null,null,0,null,null,null,0,null,null,null,0,"",0,null,null,null,0,null,null,null,0,"","","",null,null,null,null,null,null,null,"","","","","","","","","","","","","","","","",0,0]
[null,null,null,null,null,null,null,null,null,null,null,null,null,null,null,null,0,null,null,null,0,null,null,null,0,null,null,null,0,null,null,null,0,null,null,null,null,null,null,0,0,0,null,null,null,0,null,null,null,0,null,null,null,0,null,null,null,0,null,null,null,0,null,null,null,0,null,null,null,0,"",0,null,null,null,0,null,null,null,0,"","","",null,null,null,null,null,null,null,"","","","","","","","","","","","","","","","",0,0]
[null,null,null,null,null,null,null,null,null,null,null,null,null,null,null,null,0,null,null,null,0,null,null,null,0,null,null,null,0,null,null,null,0,null,null,null,null,null,null,0,0,0,null,null,null,0,null,null,null,0,null,null,null,0,null,null,null,0,null,null,null,0,null,null,null,0,null,null,null,0,"",0,null,null,null,0,null,null,null,0,"","","",null,null,null,null,null,null,null,"","","","","","","","","","","","","","","","",0,0]
[null,null,null,null,null,null,null,null,null,null,null,null,null,null,null,null,0,null,null,null,0,null,null,null,0,null,null,null,0,null,null,null,0,null,null,null,null,null,null,0,0,0,null,null,null,0,null,null,null,0,null,null,null,0,null,null,null,0,null,null,null,0,null,null,null,0,null,null,null,0,"",0,null,null,null,0,null,null,null,0,"","","",null,null,null,null,null,null,null,"","","","","","","","","","","","","","","","",0,0]
[null,null,null,null,null,null,null,null,null,null,null,null,null,null,null,null,0,null,null,null,0,null,null,null,0,null,null,null,0,null,null,null,0,null,null,null,null,null,null,0,0,0,null,null,null,0,null,null,null,0,null,null,null,0,null,null,null,0,null,null,null,0,null,null,null,0,null,null,null,0,"",0,null,null,null,0,null,null,null,0,"","","",null,null,null,null,null,null,null,"","","","","","","","","","","","","","","","",0,0]
[null,null,null,null,null,null,null,null,null,null,null,null,null,null,null,null,0,null,null,null,0,null,null,null,0,null,null,null,0,null,null,null,0,null,null,null,null,null,null,0,0,0,null,null,null,0,null,null,null,0,null,null,null,0,null,null,null,0,null,null,null,0,null,null,null,0,null,null,null,0,"",0,null,null,null,0,null,null,null,0,"","","",null,null,null,null,null,null,null,"","","","","","","","","","","","","","","","",0,0]
[null,null,null,null,null,null,null,null,null,null,null,null,null,null,null,null,0,null,null,null,0,null,null,null,0,null,null,null,0,null,null,null,0,null,null,null,null,null,null,0,0,0,null,null,null,0,null,null,null,0,null,null,null,0,null,null,null,0,null,null,null,0,null,null,null,0,null,null,null,0,"",0,null,null,null,0,null,null,null,0,"","","",null,null,null,null,null,null,null,"","","","","","","","","","","","","","","","",0,0]
[null,null,null,null,null,null,null,null,null,null,null,null,null,null,null,null,0,null,null,null,0,null,null,null,0,null,null,null,0,null,null,null,0,null,null,null,null,null,null,0,0,0,null,null,null,0,null,null,null,0,null,null,null,0,null,null,null,0,null,null,null,0,null,null,null,0,null,null,null,0,"",0,null,null,null,0,null,null,null,0,"","","",null,null,null,null,null,null,null,"","","","","","","","","","","","","","","","",0,0]
[null,null,null,null,null,null,null,null,null,null,null,null,null,null,null,null,0,null,null,null,0,null,null,null,0,null,null,null,0,null,null,null,0,null,null,null,null,null,null,0,0,0,null,null,null,0,null,null,null,0,null,null,null,0,null,null,null,0,null,null,null,0,null,null,null,0,null,null,null,0,"",0,null,null,null,0,null,null,null,0,"","","",null,null,null,null,null,null,null,"","","","","","","","","","","","","","","","",0,0]
[null,null,null,null,null,null,null,null,null,null,null,null,null,null,null,null,0,null,null,null,0,null,null,null,0,null,null,null,0,null,null,null,0,null,null,null,null,null,null,0,0,0,null,null,null,0,null,null,null,0,null,null,null,0,null,null,null,0,null,null,null,0,null,null,null,0,null,null,null,0,"",0,null,null,null,0,null,null,null,0,"","","",null,null,null,null,null,null,null,"","","","","","","","","","","","","","","","",0,0]
[null,null,null,null,null,null,null,null,null,null,null,null,null,null,null,null,0,null,null,null,0,null,null,null,0,null,null,null,0,null,null,null,0,null,null,null,null,null,null,0,0,0,null,null,null,0,null,null,null,0,null,null,null,0,null,null,null,0,null,null,null,0,null,null,null,0,null,null,null,0,"",0,null,null,null,0,null,null,null,0,"","","",null,null,null,null,null,null,null,"","","","","","","","","","","","","","","","",0,0]
[null,null,null,null,null,null,null,null,null,null,null,null,null,null,null,null,0,null,null,null,0,null,null,null,0,null,null,null,0,null,null,null,0,null,null,null,null,null,null,0,0,0,null,null,null,0,null,null,null,0,null,null,null,0,null,null,null,0,null,null,null,0,null,null,null,0,null,null,null,0,"",0,null,null,null,0,null,null,null,0,"","","",null,null,null,null,null,null,null,"","","","","","","","","","","","","","","","",0,0]
[null,null,null,null,null,null,null,null,null,null,null,null,null,null,null,null,0,null,null,null,0,null,null,null,0,null,null,null,0,null,null,null,0,null,null,null,null,null,null,0,0,0,null,null,null,0,null,null,null,0,null,null,null,0,null,null,null,0,null,null,null,0,null,null,null,0,null,null,null,0,"",0,null,null,null,0,null,null,null,0,"","","",null,null,null,null,null,null,null,"","","","","","","","","","","","","","","","",0,0]
[null,null,null,null,null,null,null,null,null,null,null,null,null,null,null,null,0,null,null,null,0,null,null,null,0,null,null,null,0,null,null,null,0,null,null,null,null,null,null,0,0,0,null,null,null,0,null,null,null,0,null,null,null,0,null,null,null,0,null,null,null,0,null,null,null,0,null,null,null,0,"",0,null,null,null,0,null,null,null,0,"","","",null,null,null,null,null,null,null,"","","","","","","","","","","","","","","","",0,0]
[null,null,null,null,null,null,null,null,null,null,null,null,null,null,null,null,0,null,null,null,0,null,null,null,0,null,null,null,0,null,null,null,0,null,null,null,null,null,null,0,0,0,null,null,null,0,null,null,null,0,null,null,null,0,null,null,null,0,null,null,null,0,null,null,null,0,null,null,null,0,"",0,null,null,null,0,null,null,null,0,"","","",null,null,null,null,null,null,null,"","","","","","","","","","","","","","","","",0,0]
[null,null,null,null,null,null,null,null,null,null,null,null,null,null,null,null,{"$f":"IF(P627=\"غ\",\"غ\",SUM(N627,O627,P627))","v":0},null,null,null,{"$f":"IF(T627=\"غ\",\"غ\",SUM(R627,S627,T627))","v":0},null,null,null,{"$f":"IF(X627=\"غ\",\"غ\",SUM(V627,W627,X627))","v":0},null,null,null,{"$f":"IF(AB627=\"غ\",\"غ\",SUM(Z627,AA627,AB627))","v":0},null,null,null,{"$f":"IF(AF627=\"غ\",\"غ\",SUM(AD627,AE627,AF627))","v":0},null,null,null,null,null,null,{"$f":"IF(AL627=\"غ\",\"غ\",SUM(AH627,AJ627,AL627))","v":0},{"$f":"IF(AM627=\"غ\",\"غ\",SUM(AI627,AK627,AM627))","v":0},{"$f":"IF(OR(AN627=\"غ\",AO627=\"غ\"),\"غ\",SUM(AN627,AO627))","v":0},null,null,null,{"$f":"IF(AS627=\"غ\",\"غ\",SUM(AQ627,AR627,AS627))","v":0},null,null,null,{"$f":"IF(AW627=\"غ\",\"غ\",SUM(AU627,AV627,AW627))","v":0},null,null,null,{"$f":"IF(BA627=\"غ\",\"غ\",SUM(AY627,AZ627,BA627))","v":0},null,null,null,{"$f":"IF(BE627=\"غ\",\"غ\",SUM(BC627,BD627,BE627))","v":0},null,null,null,{"$f":"IF(BI627=\"غ\",\"غ\",SUM(BG627,BH627,BI627))","v":0},null,null,null,{"$f":"IF(BM627=\"غ\",\"غ\",SUM(BK627,BL627,BM627))","v":0},null,null,null,{"$f":"IF(BQ627=\"غ\",\"غ\",SUM(BO627,BP627,BQ627))","v":0},"",0,null,null,null,{"$f":"IF(BW627=\"غ\",\"غ\",SUM(BU627,BV627,BW627))","v":0},null,null,null,{"$f":"IF(CA627=\"غ\",\"غ\",SUM(BY627,BZ627,CA627))","v":0},"","","",null,null,null,null,null,null,null,"","","","","","","","","","","","","","","","",{"$f":"COUNTIF($CZ627:$DB627,\"?*\")","v":0},0]
[null,null,null,null,null,null,null,null,null,null,null,null,null,null,null,null,0,null,null,null,0,null,null,null,0,null,null,null,0,null,null,null,0,null,null,null,null,null,null,0,0,0,null,null,null,0,null,null,null,0,null,null,null,0,null,null,null,0,null,null,null,0,null,null,null,0,null,null,null,0,"",0,null,null,null,0,null,null,7,7,"","","",null,null,null,null,null,null,null,"","","","","","","","","","","","","","","","",0,0]
[null,null,null,null,null,null,null,null,null,null,null,null,null,null,null,null,0,null,null,null,0,null,null,null,0,null,null,null,0,null,null,null,0,null,null,null,null,null,null,0,0,0,null,null,null,0,null,null,null,0,null,null,null,0,null,null,null,0,null,null,null,0,null,null,null,0,null,null,null,0,"",0,null,null,null,0,null,null,null,0,"","","",null,null,null,null,null,null,null,"","","","","","","","","","","","","","","","",0,0]
[null,null,null,null,null,null,null,null,null,null,null,null,null,null,null,null,0,null,null,null,0,null,null,null,0,null,null,null,0,null,null,null,0,null,null,null,null,null,null,0,0,0,null,null,null,0,null,null,null,0,null,null,null,0,null,null,null,0,null,null,null,0,null,null,null,0,null,null,null,0,"",0,null,null,null,0,null,null,null,0,"","","",null,null,null,null,null,null,null,"","","","","","","","","","","","","","","","",0,0]
[null,null,null,null,null,null,null,null,null,null,null,null,null,null,null,null,0,null,null,null,0,null,null,null,0,null,null,null,0,null,null,null,0,null,null,null,null,null,null,0,0,0,null,null,null,0,null,null,null,0,null,null,null,0,null,null,null,0,null,null,null,0,null,null,null,0,null,null,null,0,"",0,null,null,null,0,null,null,null,0,"","","",null,null,null,null,null,null,null,"","","","","","","","","","","","","","","","",0,0]
[null,null,null,null,null,null,null,null,null,null,null,null,null,null,null,null,0,null,null,null,0,null,null,null,0,null,null,null,0,null,null,null,0,null,null,null,null,null,null,0,0,0,null,null,null,0,null,null,null,0,null,null,null,0,null,null,null,0,null,null,null,0,null,null,null,0,null,null,null,0,"",0,null,null,null,0,null,null,null,0,"","","",null,null,null,null,null,null,null,"","","","","","","","","","","","","","","","",0,0]
[null,null,null,null,null,null,null,null,null,null,null,null,null,null,null,null,0,null,null,null,0,null,null,null,0,null,null,null,0,null,null,null,0,null,null,null,null,null,null,0,0,0,null,null,null,0,null,null,null,0,null,null,null,0,null,null,null,0,null,null,null,0,null,null,null,0,null,null,null,0,"",0,null,null,null,0,null,null,null,0,"","","",null,null,null,null,null,null,null,"","","","","","","","","","","","","","","","",0,0]
[null,null,null,null,null,null,null,null,null,null,null,null,null,null,null,null,0,null,null,null,0,null,null,null,0,null,null,null,0,null,null,null,0,null,null,null,null,null,null,0,0,0,null,null,null,0,null,null,null,0,null,null,null,0,null,null,null,0,null,null,null,0,null,null,null,0,null,null,null,0,"",0,null,null,null,0,null,null,null,0,"","","",null,null,null,null,null,null,null,"","","","","","","","","","","","","","","","",0,0]
[null,null,null,null,null,null,null,null,null,null,null,null,null,null,null,null,0,null,null,null,0,null,null,null,0,null,null,null,0,null,null,null,0,null,null,null,null,null,null,0,0,0,null,null,null,0,null,null,null,0,null,null,null,0,null,null,null,0,null,null,null,0,null,null,null,0,null,null,null,0,"",0,null,null,null,0,null,null,null,0,"","","",null,null,null,null,null,null,null,"","","","","","","","","","","","","","","","",0,0]
[null,null,null,null,null,null,null,null,null,null,null,null,null,null,null,null,0,null,null,null,0,null,null,null,0,null,null,null,0,null,null,null,0,null,null,null,null,null,null,0,0,0,null,null,null,0,null,null,null,0,null,null,null,0,null,null,null,0,null,null,null,0,null,null,null,0,null,null,null,0,"",0,null,null,null,0,null,null,null,0,"","","",null,null,null,null,null,null,null,"","","","","","","","","","","","","","","","",0,0]
[null,null,null,null,null,null,null,null,null,null,null,null,null,null,null,null,0,null,null,null,0,null,null,null,0,null,null,null,0,null,null,null,0,null,null,null,null,null,null,0,0,0,null,null,null,0,null,null,null,0,null,null,null,0,null,null,null,0,null,null,null,0,null,null,null,0,null,null,null,0,"",0,null,null,null,0,null,null,null,0,"","","",null,null,null,null,null,null,null,"","","","","","","","","","","","","","","","",0,0]
[null,null,null,null,null,null,null,null,null,null,null,null,null,null,null,null,0,null,null,null,0,null,null,null,0,null,null,null,0,null,null,null,0,null,null,null,null,null,null,0,0,0,null,null,null,0,null,null,null,0,null,null,null,0,null,null,null,0,null,null,null,0,null,null,null,0,null,null,null,0,"",0,null,null,null,0,null,null,null,0,"","","",null,null,null,null,null,null,null,"","","","","","","","","","","","","","","","",0,0]
[null,null,null,null,null,null,null,null,null,null,null,null,null,null,null,null,0,null,null,null,0,null,null,null,0,null,null,null,0,null,null,null,0,null,null,null,null,null,null,0,0,0,null,null,null,0,null,null,null,0,null,null,null,0,null,null,null,0,null,null,null,0,null,null,null,0,null,null,null,0,"",0,null,null,null,0,null,null,null,0,"","","",null,null,null,null,null,null,null,"","","","","","","","","","","","","","","","",0,0]
[null,null,null,null,null,null,null,null,null,null,null,null,null,null,null,null,0,null,null,null,0,null,null,null,0,null,null,null,0,null,null,null,0,null,null,null,null,null,null,0,0,0,null,null,null,0,null,null,null,0,null,null,null,0,null,null,null,0,null,null,null,0,null,null,null,0,null,null,null,0,"",0,null,null,null,0,null,null,null,0,"","","",null,null,null,null,null,null,null,"","","","","","","","","","","","","","","","",0,0]
[null,null,null,null,null,null,null,null,null,null,null,null,null,null,null,null,0,null,null,null,0,null,null,null,0,null,null,null,0,null,null,null,0,null,null,null,null,null,null,0,0,0,null,null,null,0,null,null,null,0,null,null,null,0,null,null,null,0,null,null,null,0,null,null,null,0,null,null,null,0,"",0,null,null,null,0,null,null,null,0,"","","",null,null,null,null,null,null,null,"","","","","","","","","","","","","","","","",0,0]
[null,null,null,null,null,null,null,null,null,null,null,null,null,null,null,null,0,null,null,null,0,null,null,null,0,null,null,null,0,null,null,null,0,null,null,null,null,null,null,0,0,0,null,null,null,0,null,null,null,0,null,null,null,0,null,null,null,0,null,null,null,0,null,null,null,0,null,null,null,0,"",0,null,null,null,0,null,null,null,0,"","","",null,null,null,null,null,null,null,"","","","","","","","","","","","","","","","",0,0]
[null,null,null,null,null,null,null,null,null,null,null,null,null,null,null,null,0,null,null,null,0,null,null,null,0,null,null,null,0,null,null,null,0,null,null,null,null,null,null,0,0,0,null,null,null,0,null,null,null,0,null,null,null,0,null,null,null,0,null,null,null,0,null,null,null,0,null,null,null,0,"",0,null,null,null,0,null,null,null,0,"","","",null,null,null,null,null,null,null,"","","","","","","","","","","","","","","","",0,0]
[null,null,null,null,null,null,null,null,null,null,null,null,null,null,null,null,0,null,null,null,0,null,null,null,0,null,null,null,0,null,null,null,0,null,null,null,null,null,null,0,0,0,null,null,null,0,null,null,null,0,null,null,null,0,null,null,null,0,null,null,null,0,null,null,null,0,null,null,null,0,"",0,null,null,null,0,null,null,null,0,"","","",null,null,null,null,null,null,null,"","","","","","","","","","","","","","","","",0,0]
[null,null,null,null,null,null,null,null,null,null,null,null,null,null,null,null,0,null,null,null,0,null,null,null,0,null,null,null,0,null,null,null,0,null,null,null,null,null,null,0,0,0,null,null,null,0,null,null,null,0,null,null,null,0,null,null,null,0,null,null,null,0,null,null,null,0,null,null,null,0,"",0,null,null,null,0,null,null,null,0,"","","",null,null,null,null,null,null,null,"","","","","","","","","","","","","","","","",0,0]
[null,null,null,null,null,null,null,null,null,null,null,null,null,null,null,null,0,null,null,null,0,null,null,null,0,null,null,null,0,null,null,null,0,null,null,null,null,null,null,0,0,0,null,null,null,0,null,null,null,0,null,null,null,0,null,null,null,0,null,null,null,0,null,null,null,0,null,null,null,0,"",0,null,null,null,0,null,null,null,0,"","","",null,null,null,null,null,null,null,"","","","","","","","","","","","","","","","",0,0]
[null,null,null,null,null,null,null,null,null,null,null,null,null,null,null,null,0,null,null,null,0,null,null,null,0,null,null,null,0,null,null,null,0,null,null,null,null,null,null,0,0,0,null,null,null,0,null,null,null,0,null,null,null,0,null,null,null,0,null,null,null,0,null,null,null,0,null,null,null,0,"",0,null,null,null,0,null,null,null,0,"","","",null,null,null,null,null,null,null,"","","","","","","","","","","","","","","","",0,0]
[null,null,null,null,null,null,null,null,null,null,null,null,null,null,null,null,0,null,null,null,0,null,null,null,0,null,null,null,0,null,null,null,0,null,null,null,null,null,null,0,0,0,null,null,null,0,null,null,null,0,null,null,null,0,null,null,null,0,null,null,null,0,null,null,null,0,null,null,null,0,"",0,null,null,null,0,null,null,null,0,"","","",null,null,null,null,null,null,null,"","","","","","","","","","","","","","","","",0,0]
[null,null,null,null,null,null,null,null,null,null,null,null,null,null,null,null,0,null,null,null,0,null,null,null,0,null,null,null,0,null,null,null,0,null,null,null,null,null,null,0,0,0,null,null,null,0,null,null,null,0,null,null,null,0,null,null,null,0,null,null,null,0,null,null,null,0,null,null,null,0,"",0,null,null,null,0,null,null,null,0,"","","",null,null,null,null,null,null,null,"","","","","","","","","","","","","","","","",0,0]
[null,null,null,null,null,null,null,null,null,null,null,null,null,null,null,null,{"$f":"IF(P650=\"غ\",\"غ\",SUM(N650,O650,P650))","v":0},null,null,null,{"$f":"IF(T650=\"غ\",\"غ\",SUM(R650,S650,T650))","v":0},null,null,null,{"$f":"IF(X650=\"غ\",\"غ\",SUM(V650,W650,X650))","v":0},null,null,null,{"$f":"IF(AB650=\"غ\",\"غ\",SUM(Z650,AA650,AB650))","v":0},null,null,null,{"$f":"IF(AF650=\"غ\",\"غ\",SUM(AD650,AE650,AF650))","v":0},null,null,null,null,null,null,0,0,0,null,null,null,{"$f":"IF(AS650=\"غ\",\"غ\",SUM(AQ650,AR650,AS650))","v":0},null,null,null,{"$f":"IF(AW650=\"غ\",\"غ\",SUM(AU650,AV650,AW650))","v":0},null,null,null,{"$f":"IF(BA650=\"غ\",\"غ\",SUM(AY650,AZ650,BA650))","v":0},null,null,null,{"$f":"IF(BE650=\"غ\",\"غ\",SUM(BC650,BD650,BE650))","v":0},null,null,null,{"$f":"IF(BI650=\"غ\",\"غ\",SUM(BG650,BH650,BI650))","v":0},null,null,null,{"$f":"IF(BM650=\"غ\",\"غ\",SUM(BK650,BL650,BM650))","v":0},null,null,null,{"$f":"IF(BQ650=\"غ\",\"غ\",SUM(BO650,BP650,BQ650))","v":0},{"$f":"IF(C650=\"\",\"\",SUM(O650,S650,W650,AE650,AR650,AV650,AZ650,BD650,BH650,BL650,BP650,AA650,AJ650,AK650))","v":""},{"$f":"SUM(Q650,U650,Y650,AG650,AT650,AX650,BB650,BF650,BJ650,BN650,BR650,AC650,AP650)","v":0},null,null,null,{"$f":"IF(BW650=\"غ\",\"غ\",SUM(BU650,BV650,BW650))","v":0},null,null,null,{"$f":"IF(CA650=\"غ\",\"غ\",SUM(BY650,BZ650,CA650))","v":0},{"$f":"IF(I650=\"\",\"\",IF(I650=\"بنات\",IF(CE650=0,\"ناجحة\",IF(DD650>2,\"راسبة\",\"دورثان\")),IF(I650=\"بنين\",IF(CE650=0,\"ناجح\",IF(DD650>2,\"راسب\",\"دورثان\")))))","v":""},{"$f":"IF(C650=\"\",\"\",IF(AND($L650=\"باقية\",$CC650=\"راسبة\"),\"وليس لها حق الاعادة\",IF(AND($L650<>\"باقية\",$CC650=\"راسبة\"),\"و  لها حق الاعادة\",IF(AND($L650=\"باقى\",$CC650=\"راسب\"),\"وليس له حق الاعادة\",IF(AND($L650<>\"باقى\",$CC650=\"راسب\"),\"و  له حق الاعادة\",IF($CC650=\"ناجحة\",\"و منقولة للصف الثانى\",IF($CC650=\"ناجح\",\"و منقول للصف الثانى\",IF($CC650=\"دورثان\",\"فى : \"&CONCATENATE($CM650,$CN650,$CO650,$CQ650,$CR650,$CS650,$CT650,$CU650,$CV650,$CW650,$CX650,$CY650,$CP650,$CZ650,$DA650,$DB650)))))))))","v":""},{"$f":"IF(C650=\"\",\"\",$DC650+$DD650)","v":""},null,null,null,null,null,null,null,{"$f":"IF(C650=\"\",\"\",IF(OR(P650<$P$9,P650=\"غ\",Q650<$Q$9),CM$5&\" - \",\"\"))","v":""},{"$f":"IF(C650=\"\",\"\",IF(OR(T650<$T$9,T650=\"غ\",U650<$U$9),CN$5&\" - \",\"\"))","v":""},{"$f":"IF(C650=\"\",\"\",IF(OR(X650<$X$9,X650=\"غ\",Y650<$Y$9),CO$5&\" - \",\"\"))","v":""},{"$f":"IF(C650=\"\",\"\",IF(OR(AB650<$AB$9,AB650=\"غ\",AC650<$AC$9),CP$5&\" - \",\"\"))","v":""},{"$f":"IF(C650=\"\",\"\",IF(OR(AF650<$AF$9,AF650=\"غ\",AG650<$AG$9),CQ$5&\" - \",\"\"))","v":""},{"$f":"IF(C650=\"\",\"\",IF(OR(AL650<$AL$9,AM650<$AM$9,AN650<$AN$9,AN650=\"غ\",AO650<$AO$9,AO650=\"غ\"),CR$5&\" - \",\"\"))","v":""},{"$f":"IF(C650=\"\",\"\",IF(OR(AS650<$AS$9,AS650=\"غ\",AT650<$AT$9),CS$5&\" - \",\"\"))","v":""},{"$f":"IF(C650=\"\",\"\",IF(OR(AW650<$AW$9,AW650=\"غ\",AX650<$AX$9),CT$5&\" - \",\"\"))","v":""},{"$f":"IF(C650=\"\",\"\",IF(OR(BA650<$BA$9,BA650=\"غ\",BB650<$BB$9),CU$5&\" - \",\"\"))","v":""},{"$f":"IF(C650=\"\",\"\",IF(OR(BE650<$BE$9,BE650=\"غ\",BF650<$BF$9),CV$5&\" - \",\"\"))","v":""},{"$f":"IF(C650=\"\",\"\",IF(OR(BI650<$BI$9,BI650=\"غ\",BJ650<$BJ$9),CW$5&\" - \",\"\"))","v":""},{"$f":"IF(C650=\"\",\"\",IF(OR(BM650<$BM$9,BM650=\"غ\",BN650<$BN$9),CX$5&\" - \",\"\"))","v":""},{"$f":"IF(C650=\"\",\"\",IF(OR(BQ650<$BQ$9,BQ650=\"غ\",BR650<$BR$9),CY$5&\" - \",\"\"))","v":""},{"$f":"IF(C650=\"\",\"\",IF(BT650<$BT$9,CZ$5&\" - \",\"\"))","v":""},{"$f":"IF(C650=\"\",\"\",IF(OR(BW650<$BW$9,BW650=\"غ\",BX650<$BX$9),DA$5,\"\"))","v":""},{"$f":"IF(C650=\"\",\"\",IF(OR(CA650<$CA$9,CA650=\"غ\",CB650<$CB$9),DB$5,\"\"))","v":""},{"$f":"COUNTIF($CZ650:$DB650,\"?*\")","v":0},{"$f":"COUNTIF($CM650:$CY650,\"?*\")","v":0}]
[null,null,null,null,null,null,null,null,null,null,null,null,null,null,null,null,0,null,null,null,0,null,null,null,0,null,null,null,0,null,null,null,0,null,null,null,null,null,null,{"$f":"IF(AL651=\"غ\",\"غ\",SUM(AH651,AJ651,AL651))","v":0},{"$f":"IF(AM651=\"غ\",\"غ\",SUM(AI651,AK651,AM651))","v":0},{"$f":"IF(OR(AN651=\"غ\",AO651=\"غ\"),\"غ\",SUM(AN651,AO651))","v":0},null,null,null,0,null,null,null,0,null,null,null,0,null,null,null,0,null,null,null,0,null,null,null,0,null,null,null,0,"",0,null,null,null,0,null,null,null,0,"","","",null,null,null,null,null,null,null,"","","","","","","","","","","","","","","","",0,0]
[null,null,null,null,null,null,null,null,null,null,null,null,null,null,null,null,0,null,null,null,0,null,null,null,0,null,null,null,0,null,null,null,0,null,null,null,null,null,null,0,0,0,null,null,null,0,null,null,null,0,null,null,null,0,null,null,null,0,null,null,null,0,null,null,null,0,null,null,null,0,"",0,null,null,null,0,null,null,null,0,"","","",null,null,null,null,null,null,null,"","","","","","","","","","","","","","","","",0,0]
[null,null,null,null,null,null,null,null,null,null,null,null,null,null,null,null,0,null,null,null,0,null,null,null,0,null,null,null,0,null,null,null,0,null,null,null,null,null,null,0,0,0,null,null,null,0,null,null,null,0,null,null,null,0,null,null,null,0,null,null,null,0,null,null,null,0,null,null,null,0,"",0,null,null,null,0,null,null,null,0,"","","",null,null,null,null,null,null,null,"","","","","","","","","","","","","","","","",0,0]
[null,null,null,null,null,null,null,null,null,null,null,null,null,null,null,null,0,null,null,null,0,null,null,null,0,null,null,null,0,null,null,null,0,null,null,null,null,null,null,0,0,0,null,null,null,0,null,null,null,0,null,null,null,0,null,null,null,0,null,null,null,0,null,null,null,0,null,null,null,0,"",0,null,null,null,0,null,null,null,0,"","","",null,null,null,null,null,null,null,"","","","","","","","","","","","","","","","",0,0]
[null,null,null,null,null,null,null,null,null,null,null,null,null,null,null,null,0,null,null,null,0,null,null,null,0,null,null,null,0,null,null,null,0,null,null,null,null,null,null,0,0,0,null,null,null,0,null,null,null,0,null,null,null,0,null,null,null,0,null,null,null,0,null,null,null,0,null,null,null,0,"",0,null,null,null,0,null,null,null,0,"","","",null,null,null,null,null,null,null,"","","","","","","","","","","","","","","","",0,0]
[null,null,null,null,null,null,null,null,null,null,null,null,null,null,null,null,0,null,null,null,0,null,null,null,0,null,null,null,0,null,null,null,0,null,null,null,null,null,null,0,0,0,null,null,null,0,null,null,null,0,null,null,null,0,null,null,null,0,null,null,null,0,null,null,null,0,null,null,null,0,"",0,null,null,null,0,null,null,null,0,"","","",null,null,null,null,null,null,null,"","","","","","","","","","","","","","","","",0,0]
[null,null,null,null,null,null,null,null,null,null,null,null,null,null,null,null,0,null,null,null,0,null,null,null,0,null,null,null,0,null,null,null,0,null,null,null,null,null,null,0,0,0,null,null,null,0,null,null,null,0,null,null,null,0,null,null,null,0,null,null,null,0,null,null,null,0,null,null,null,0,"",0,null,null,null,0,null,null,null,0,"","","",null,null,null,null,null,null,null,"","","","","","","","","","","","","","","","",0,0]
[null,null,null,null,null,null,null,null,null,null,null,null,null,null,null,null,0,null,null,null,0,null,null,null,0,null,null,null,0,null,null,null,0,null,null,null,null,null,null,0,0,0,null,null,null,0,null,null,null,0,null,null,null,0,null,null,null,0,null,null,null,0,null,null,null,0,null,null,null,0,"",0,null,null,null,0,null,null,null,0,"","","",null,null,null,null,null,null,null,"","","","","","","","","","","","","","","","",0,0]
[null,null,null,null,null,null,null,null,null,null,null,null,null,null,null,null,0,null,null,null,0,null,null,null,0,null,null,null,0,null,null,null,0,null,null,null,null,null,null,0,0,0,null,null,null,0,null,null,null,0,null,null,null,0,null,null,null,0,null,null,null,0,null,null,null,0,null,null,null,0,"",0,null,null,null,0,null,null,null,0,"","","",null,null,null,null,null,null,null,"","","","","","","","","","","","","","","","",0,0]
[null,null,null,null,null,null,null,null,null,null,null,null,null,null,null,null,0,null,null,null,0,null,null,null,0,null,null,null,0,null,null,null,0,null,null,null,null,null,null,0,0,0,null,null,null,0,null,null,null,0,null,null,null,0,null,null,null,0,null,null,null,0,null,null,null,0,null,null,null,0,"",0,null,null,null,0,null,null,null,0,"","","",null,null,null,null,null,null,null,"","","","","","","","","","","","","","","","",0,0]
[null,null,null,null,null,null,null,null,null,null,null,null,null,null,null,null,0,null,null,null,0,null,null,null,0,null,null,null,0,null,null,null,0,null,null,null,null,null,null,0,0,0,null,null,null,0,null,null,null,0,null,null,null,0,null,null,null,0,null,null,null,0,null,null,null,0,null,null,null,0,"",0,null,null,null,0,null,null,null,0,"","","",null,null,null,null,null,null,null,"","","","","","","","","","","","","","","","",0,0]
[null,null,null,null,null,null,null,null,null,null,null,null,null,null,null,null,0,null,null,null,0,null,null,null,0,null,null,null,0,null,null,null,0,null,null,null,null,null,null,0,0,0,null,null,null,0,null,null,null,0,null,null,null,0,null,null,null,0,null,null,null,0,null,null,null,0,null,null,null,0,"",0,null,null,null,0,null,null,null,0,"","","",null,null,null,null,null,null,null,"","","","","","","","","","","","","","","","",0,0]
[null,null,null,null,null,null,null,null,null,null,null,null,null,null,null,null,0,null,null,null,0,null,null,null,0,null,null,null,0,null,null,null,0,null,null,null,null,null,null,0,0,0,null,null,null,0,null,null,null,0,null,null,null,0,null,null,null,0,null,null,null,0,null,null,null,0,null,null,null,0,"",0,null,null,null,0,null,null,null,0,"","","",null,null,null,null,null,null,null,"","","","","","","","","","","","","","","","",0,0]
[null,null,null,null,null,null,null,null,null,null,null,null,null,null,null,null,0,null,null,null,0,null,null,null,0,null,null,null,0,null,null,null,0,null,null,null,null,null,null,0,0,0,null,null,null,0,null,null,null,0,null,null,null,0,null,null,null,0,null,null,null,0,null,null,null,0,null,null,null,0,"",0,null,null,null,0,null,null,null,0,"","","",null,null,null,null,null,null,null,"","","","","","","","","","","","","","","","",0,0]
[null,null,null,null,null,null,null,null,null,null,null,null,null,null,null,null,0,null,null,null,0,null,null,null,0,null,null,null,0,null,null,null,0,null,null,null,null,null,null,0,0,0,null,null,null,0,null,null,null,0,null,null,null,0,null,null,null,0,null,null,null,0,null,null,null,0,null,null,null,0,"",0,null,null,null,0,null,null,null,0,"","","",null,null,null,null,null,null,null,"","","","","","","","","","","","","","","","",0,0]
[null,null,null,null,null,null,null,null,null,null,null,null,null,null,null,null,0,null,null,null,0,null,null,null,0,null,null,null,0,null,null,null,0,null,null,null,null,null,null,0,0,0,null,null,null,0,null,null,null,0,null,null,null,0,null,null,null,0,null,null,null,0,null,null,null,0,null,null,null,0,"",0,null,null,null,0,null,null,null,0,"","","",null,null,null,null,null,null,null,"","","","","","","","","","","","","","","","",0,0]
[null,null,null,null,null,null,null,null,null,null,null,null,null,null,null,null,0,null,null,null,0,null,null,null,0,null,null,null,0,null,null,null,0,null,null,null,null,null,null,0,0,0,null,null,null,0,null,null,null,0,null,null,null,0,null,null,null,0,null,null,null,0,null,null,null,0,null,null,null,0,"",0,null,null,null,0,null,null,null,0,"","","",null,null,null,null,null,null,null,"","","","","","","","","","","","","","","","",0,0]
[null,null,null,null,null,null,null,null,null,null,null,null,null,null,null,null,0,null,null,null,0,null,null,null,0,null,null,null,0,null,null,null,0,null,null,null,null,null,null,0,0,0,null,null,null,0,null,null,null,0,null,null,null,0,null,null,null,0,null,null,null,0,null,null,null,0,null,null,null,0,"",0,null,null,null,0,null,null,null,0,"","","",null,null,null,null,null,null,null,"","","","","","","","","","","","","","","","",0,0]
[null,null,null,null,null,null,null,null,null,null,null,null,null,null,null,null,0,null,null,null,0,null,null,null,0,null,null,null,0,null,null,null,0,null,null,null,null,null,null,0,0,0,null,null,null,0,null,null,null,0,null,null,null,0,null,null,null,0,null,null,null,0,null,null,null,0,null,null,null,0,"",0,null,null,null,0,null,null,null,0,"","","",null,null,null,null,null,null,null,"","","","","","","","","","","","","","","","",0,0]
[null,null,null,null,null,null,null,null,null,null,null,null,null,null,null,null,0,null,null,null,0,null,null,null,0,null,null,null,0,null,null,null,0,null,null,null,null,null,null,0,0,0,null,null,null,0,null,null,null,0,null,null,null,0,null,null,null,0,null,null,null,0,null,null,null,0,null,null,null,0,"",0,null,null,null,0,null,null,null,0,"","","",null,null,null,null,null,null,null,"","","","","","","","","","","","","","","","",0,0]
[null,null,null,null,null,null,null,null,null,null,null,null,null,null,null,null,0,null,null,null,0,null,null,null,0,null,null,null,0,null,null,null,0,null,null,null,null,null,null,0,0,0,null,null,null,0,null,null,null,0,null,null,null,0,null,null,null,0,null,null,null,0,null,null,null,0,null,null,null,0,"",0,null,null,null,0,null,null,null,0,"","","",null,null,null,null,null,null,null,"","","","","","","","","","","","","","","","",0,0]
[null,null,null,null,null,null,null,null,null,null,null,null,null,null,null,null,0,null,null,null,0,null,null,null,0,null,null,null,0,null,null,null,0,null,null,null,null,null,null,0,0,0,null,null,null,0,null,null,null,0,null,null,null,0,null,null,null,0,null,null,null,0,null,null,null,0,null,null,null,0,"",0,null,null,null,0,null,null,null,0,"","","",null,null,null,null,null,null,null,"","","","","","","","","","","","","","","","",0,0]
[null,null,null,null,null,null,null,null,null,null,null,null,null,null,null,null,0,null,null,null,0,null,null,null,0,null,null,null,0,null,null,null,0,null,null,null,null,null,null,0,0,0,null,null,null,0,null,null,null,0,null,null,null,0,null,null,null,0,null,null,null,0,null,null,null,0,null,null,null,0,"",0,null,null,null,0,null,null,null,0,"","","",null,null,null,null,null,null,null,"","","","","","","","","","","","","","","","",0,0]
[null,null,null,null,null,null,null,null,null,null,null,null,null,null,null,null,0,null,null,null,0,null,null,null,0,null,null,null,0,null,null,null,0,null,null,null,null,null,null,0,0,0,null,null,null,0,null,null,null,0,null,null,null,0,null,null,null,0,null,null,null,0,null,null,null,0,null,null,null,0,"",0,null,null,null,0,null,null,null,0,"","","",null,null,null,null,null,null,null,"","","","","","","","","","","","","","","","",0,0]
[null,null,null,null,null,null,null,null,null,null,null,null,null,null,null,null,0,null,null,null,0,null,null,null,0,null,null,null,0,null,null,null,0,null,null,null,null,null,null,0,0,0,null,null,null,0,null,null,null,0,null,null,null,0,null,null,null,0,null,null,null,0,null,null,null,0,null,null,null,0,"",0,null,null,null,0,null,null,null,0,"","","",null,null,null,null,null,null,null,"","","","","","","","","","","","","","","","",0,0]
[null,null,null,null,null,null,null,null,null,null,null,null,null,null,null,null,0,null,null,null,0,null,null,null,0,null,null,null,0,null,null,null,0,null,null,null,null,null,null,0,0,0,null,null,null,0,null,null,null,0,null,null,null,0,null,null,null,0,null,null,null,0,null,null,null,0,null,null,null,0,"",0,null,null,null,0,null,null,null,0,"","","",null,null,null,null,null,null,null,"","","","","","","","","","","","","","","","",0,0]
[null,null,null,null,null,null,null,null,null,null,null,null,null,null,null,null,0,null,null,null,0,null,null,null,0,null,null,null,0,null,null,null,0,null,null,null,null,null,null,0,0,0,null,null,null,0,null,null,null,0,null,null,null,0,null,null,null,0,null,null,null,0,null,null,null,0,null,null,null,0,"",0,null,null,null,0,null,null,null,0,"","","",null,null,null,null,null,null,null,"","","","","","","","","","","","","","","","",0,0]
[null,null,null,null,null,null,null,null,null,null,null,null,null,null,null,null,0,null,null,null,0,null,null,null,0,null,null,null,0,null,null,null,0,null,null,null,null,null,null,0,0,0,null,null,null,0,null,null,null,0,null,null,null,0,null,null,null,0,null,null,null,0,null,null,null,0,null,null,null,0,"",0,null,null,null,0,null,null,null,0,"","","",null,null,null,null,null,null,null,"","","","","","","","","","","","","","","","",0,0]
[null,null,null,null,null,null,null,null,null,null,null,null,null,null,null,null,0,null,null,null,0,null,null,null,0,null,null,null,0,null,null,null,0,null,null,null,null,null,null,0,0,0,null,null,null,0,null,null,null,0,null,null,null,0,null,null,null,0,null,null,null,0,null,null,null,0,null,null,null,0,"",0,null,null,null,0,null,null,null,0,"","","",null,null,null,null,null,null,null,"","","","","","","","","","","","","","","","",0,0]
[null,null,null,null,null,null,null,null,null,null,null,null,null,null,null,null,0,null,null,null,0,null,null,null,0,null,null,null,0,null,null,null,0,null,null,null,null,null,null,0,0,0,null,null,null,0,null,null,null,0,null,null,null,0,null,null,null,0,null,null,null,0,null,null,null,0,null,null,null,0,"",0,null,null,null,0,null,null,null,0,"","","",null,null,null,null,null,null,null,"","","","","","","","","","","","","","","","",0,0]
[null,null,null,null,null,null,null,null,null,null,null,null,null,null,null,null,0,null,null,null,0,null,null,null,0,null,null,null,0,null,null,null,0,null,null,null,null,null,null,0,0,0,null,null,null,0,null,null,null,0,null,null,null,0,null,null,null,0,null,null,null,0,null,null,null,0,null,null,null,0,"",0,null,null,null,0,null,null,null,0,"","","",null,null,null,null,null,null,null,"","","","","","","","","","","","","","","","",0,0]
[null,null,null,null,null,null,null,null,null,null,null,null,null,null,null,null,0,null,null,null,0,null,null,null,0,null,null,null,0,null,null,null,0,null,null,null,null,null,null,0,0,0,null,null,null,0,null,null,null,0,null,null,null,0,null,null,null,0,null,null,null,0,null,null,null,0,null,null,null,0,"",0,null,null,null,0,null,null,null,0,"","","",null,null,null,null,null,null,null,"","","","","","","","","","","","","","","","",0,0]
[null,null,null,null,null,null,null,null,null,null,null,null,null,null,null,null,0,null,null,null,0,null,null,null,0,null,null,null,0,null,null,null,0,null,null,null,null,null,null,0,0,0,null,null,null,0,null,null,null,0,null,null,null,0,null,null,null,0,null,null,null,0,null,null,null,0,null,null,null,0,"",0,null,null,null,0,null,null,null,0,"","","",null,null,null,null,null,null,null,"","","","","","","","","","","","","","","","",0,0]
[null,null,null,null,null,null,null,null,null,null,null,null,null,null,null,null,0,null,null,null,0,null,null,null,0,null,null,null,0,null,null,null,0,null,null,null,null,null,null,0,0,0,null,null,null,0,null,null,null,0,null,null,null,0,null,null,null,0,null,null,null,0,null,null,null,0,null,null,null,0,"",0,null,null,null,0,null,null,null,0,"","","",null,null,null,null,null,null,null,"","","","","","","","","","","","","","","","",0,0]
[null,null,null,null,null,null,null,null,null,null,null,null,null,null,null,null,0,null,null,null,0,null,null,null,0,null,null,null,0,null,null,null,0,null,null,null,null,null,null,0,0,0,null,null,null,0,null,null,null,0,null,null,null,0,null,null,null,0,null,null,null,0,null,null,null,0,null,null,null,0,"",0,null,null,null,0,null,null,null,0,"","","",null,null,null,null,null,null,null,"","","","","","","","","","","","","","","","",0,0]
[null,null,null,null,null,null,null,null,null,null,null,null,null,null,null,null,0,null,null,null,0,null,null,null,0,null,null,null,0,null,null,null,0,null,null,null,null,null,null,0,0,0,null,null,null,0,null,null,null,0,null,null,null,0,null,null,null,0,null,null,null,0,null,null,null,0,null,null,null,0,"",0,null,null,null,0,null,null,null,0,"","","",null,null,null,null,null,null,null,"","","","","","","","","","","","","","","","",0,0]
[null,null,null,null,null,null,null,null,null,null,null,null,null,null,null,null,0,null,null,null,0,null,null,null,0,null,null,null,0,null,null,null,0,null,null,null,null,null,null,0,0,0,null,null,null,0,null,null,null,0,null,null,null,0,null,null,null,0,null,null,null,0,null,null,null,0,null,null,null,0,"",0,null,null,null,0,null,null,null,0,"","","",null,null,null,null,null,null,null,"","","","","","","","","","","","","","","","",0,0]
[null,null,null,null,null,null,null,null,null,null,null,null,null,null,null,null,0,null,null,null,0,null,null,null,0,null,null,null,0,null,null,null,0,null,null,null,null,null,null,0,0,0,null,null,null,0,null,null,null,0,null,null,null,0,null,null,null,0,null,null,null,0,null,null,null,0,null,null,null,0,"",0,null,null,null,0,null,null,null,0,"","","",null,null,null,null,null,null,null,"","","","","","","","","","","","","","","","",0,0]
[null,null,null,null,null,null,null,null,null,null,null,null,null,null,null,null,0,null,null,null,0,null,null,null,0,null,null,null,0,null,null,null,0,null,null,null,null,null,null,0,0,0,null,null,null,0,null,null,null,0,null,null,null,0,null,null,null,0,null,null,null,0,null,null,null,0,null,null,null,0,"",0,null,null,null,0,null,null,null,0,"","","",null,null,null,null,null,null,null,"","","","","","","","","","","","","","","","",0,0]
[null,null,null,null,null,null,null,null,null,null,null,null,null,null,null,null,0,null,null,null,0,null,null,null,0,null,null,null,0,null,null,null,0,null,null,null,null,null,null,0,0,0,null,null,null,0,null,null,null,0,null,null,null,0,null,null,null,0,null,null,null,0,null,null,null,0,null,null,null,0,"",0,null,null,null,0,null,null,null,0,"","","",null,null,null,null,null,null,null,"","","","","","","","","","","","","","","","",0,0]
[null,null,null,null,null,null,null,null,null,null,null,null,null,null,null,null,0,null,null,null,0,null,null,null,0,null,null,null,0,null,null,null,0,null,null,null,null,null,null,0,0,0,null,null,null,0,null,null,null,0,null,null,null,0,null,null,null,0,null,null,null,0,null,null,null,0,null,null,null,0,"",0,null,null,null,0,null,null,null,0,"","","",null,null,null,null,null,null,null,"","","","","","","","","","","","","","","","",0,0]
[null,null,null,null,null,null,null,null,null,null,null,null,null,null,null,null,0,null,null,null,0,null,null,null,0,null,null,null,0,null,null,null,0,null,null,null,null,null,null,0,0,0,null,null,null,0,null,null,null,0,null,null,null,0,null,null,null,0,null,null,null,0,null,null,null,0,null,null,null,0,"",0,null,null,null,0,null,null,null,0,"","","",null,null,null,null,null,null,null,"","","","","","","","","","","","","","","","",0,0]
[null,null,null,null,null,null,null,null,null,null,null,null,null,null,null,null,0,null,null,null,0,null,null,null,0,null,null,null,0,null,null,null,0,null,null,null,null,null,null,0,0,0,null,null,null,0,null,null,null,0,null,null,null,0,null,null,null,0,null,null,null,0,null,null,null,0,null,null,null,0,"",0,null,null,null,0,null,null,null,0,"","","",null,null,null,null,null,null,null,"","","","","","","","","","","","","","","","",0,0]
[null,null,null,null,null,null,null,null,null,null,null,null,null,null,null,null,0,null,null,null,0,null,null,null,0,null,null,null,0,null,null,null,0,null,null,null,null,null,null,0,0,0,null,null,null,0,null,null,null,0,null,null,null,0,null,null,null,0,null,null,null,0,null,null,null,0,null,null,null,0,"",0,null,null,null,0,null,null,null,0,"","","",null,null,null,null,null,null,null,"","","","","","","","","","","","","","","","",0,0]
[null,null,null,null,null,null,null,null,null,null,null,null,null,null,null,null,0,null,null,null,0,null,null,null,0,null,null,null,0,null,null,null,0,null,null,null,null,null,null,0,0,0,null,null,null,0,null,null,null,0,null,null,null,0,null,null,null,0,null,null,null,0,null,null,null,0,null,null,null,0,"",0,null,null,null,0,null,null,null,0,"","","",null,null,null,null,null,null,null,"","","","","","","","","","","","","","","","",0,0]
[null,null,null,null,null,null,null,null,null,null,null,null,null,null,null,null,0,null,null,null,0,null,null,null,0,null,null,null,0,null,null,null,0,null,null,null,null,null,null,0,0,0,null,null,null,0,null,null,null,0,null,null,null,0,null,null,null,0,null,null,null,0,null,null,null,0,null,null,null,0,"",0,null,null,null,0,null,null,null,0,"","","",null,null,null,null,null,null,null,"","","","","","","","","","","","","","","","",0,0]
[null,null,null,null,null,null,null,null,null,null,null,null,null,null,null,null,0,null,null,null,0,null,null,null,0,null,null,null,0,null,null,null,0,null,null,null,null,null,null,0,0,0,null,null,null,0,null,null,null,0,null,null,null,0,null,null,null,0,null,null,null,0,null,null,null,0,null,null,null,0,"",0,null,null,null,0,null,null,null,0,"","","",null,null,null,null,null,null,null,"","","","","","","","","","","","","","","","",0,0]
[null,null,null,null,null,null,null,null,null,null,null,null,null,null,null,null,0,null,null,null,0,null,null,null,0,null,null,null,0,null,null,null,0,null,null,null,null,null,null,0,0,0,null,null,null,0,null,null,null,0,null,null,null,0,null,null,null,0,null,null,null,0,null,null,null,0,null,null,null,0,"",0,null,null,null,0,null,null,null,0,"","","",null,null,null,null,null,null,null,"","","","","","","","","","","","","","","","",0,0]
[null,null,null,null,null,null,null,null,null,null,null,null,null,null,null,null,0,null,null,null,0,null,null,null,0,null,null,null,0,null,null,null,0,null,null,null,null,null,null,0,0,0,null,null,null,0,null,null,null,0,null,null,null,0,null,null,null,0,null,null,null,0,null,null,null,0,null,null,null,0,"",0,null,null,null,0,null,null,null,0,"","","",null,null,null,null,null,null,null,"","","","","","","","","","","","","","","","",0,0]
[null,null,null,null,null,null,null,null,null,null,null,null,null,null,null,null,0,null,null,null,0,null,null,null,0,null,null,null,0,null,null,null,0,null,null,null,null,null,null,0,0,0,null,null,null,0,null,null,null,0,null,null,null,0,null,null,null,0,null,null,null,0,null,null,null,0,null,null,null,0,"",0,null,null,null,0,null,null,null,0,"","","",null,null,null,null,null,null,null,"","","","","","","","","","","","","","","","",0,0]
[null,null,null,null,null,null,null,null,null,null,null,null,null,null,null,null,0,null,null,null,0,null,null,null,0,null,null,null,0,null,null,null,0,null,null,null,null,null,null,0,0,0,null,null,null,0,null,null,null,0,null,null,null,0,null,null,null,0,null,null,null,0,null,null,null,0,null,null,null,0,"",0,null,null,null,0,null,null,null,0,"","","",null,null,null,null,null,null,null,"","","","","","","","","","","","","","","","",0,0]
[null,null,null,null,null,null,null,null,null,null,null,null,null,null,null,null,0,null,null,null,0,null,null,null,0,null,null,null,0,null,null,null,0,null,null,null,null,null,null,0,0,0,null,null,null,0,null,null,null,0,null,null,null,0,null,null,null,0,null,null,null,0,null,null,null,0,null,null,null,0,"",0,null,null,null,0,null,null,null,0,"","","",null,null,null,null,null,null,null,"","","","","","","","","","","","","","","","",0,0]

{"sheet":"شيت دور ثانى","index":9,"n_rows":9,"n_cols":85,"rows_kept":9,"cut":false,"hidden":false,"merged":[[4,29,4,32],[4,33,4,41],[5,29,6,29],[5,30,6,30],[5,31,6,31],[5,32,6,32],[5,35,5,36],[5,37,5,38],[4,70,6,70],[4,54,4,57],[4,58,4,61],[4,62,4,65],[5,48,6,48],[5,49,6,49],[5,50,6,50],[5,64,6,64],[4,66,4,69],[4,50,4,53],[5,61,6,61],[5,65,6,65],[5,55,6,55],[5,56,6,56],[5,57,6,57],[5,58,6,58],[1,46,1,51],[1,52,1,57],[5,69,6,69],[5,66,6,66],[5,67,6,67],[5,53,6,53],[5,60,6,60],[5,63,6,63],[5,59,6,59],[5,51,6,51],[5,52,6,52],[5,54,6,54],[4,84,8,84],[5,75,6,75],[4,71,6,71],[4,72,4,75],[4,82,8,82],[5,76,6,76],[5,77,6,77],[5,78,6,78],[5,79,6,79],[4,81,8,81],[4,76,4,79],[4,80,8,80],[5,72,6,72],[5,73,6,73],[5,74,6,74],[5,28,6,28],[5,47,6,47],[5,25,6,25],[5,45,6,45],[5,46,6,46],[5,26,6,26],[5,27,6,27],[5,42,6,42],[5,33,5,34],[5,43,6,43],[5,44,6,44],[5,40,6,40],[5,41,6,41],[4,17,4,20],[4,21,4,24],[4,46,4,49],[4,42,4,45],[5,68,6,68],[5,17,6,17],[5,18,6,18],[5,19,6,19],[5,20,6,20],[5,21,6,21],[5,22,6,22],[5,39,6,39],[5,23,6,23],[5,24,6,24],[4,25,4,28],[5,62,6,62],[4,13,4,16],[5,13,6,13],[5,14,6,14],[5,15,6,15],[5,16,6,16],[4,0,8,0],[4,12,6,12],[4,1,4,11],[5,1,8,1],[5,2,8,2],[5,3,8,3],[5,4,8,4],[5,7,8,7],[5,8,8,8],[5,9,8,9],[5,10,8,10],[5,11,8,11],[5,5,8,5],[5,6,7,6]]}
[null,null,"الدور الثانى",null,null,null,null,null,null,null,null,null,null,null,{"$f":"الرئيسية!$B$2&\"\"&الرئيسية!$C$2","v":"ادارة  …...................."},null,null,null,null,null,null,null,null,null,null,null,null,null,null,null,null,null,null,null,null,null,null,null,null,null,null,null,null,null,null,null,"شيت كنترول الصف الاول  -  الدور الثانى",null,null,null,null,null,null,null,null,null,null,null,null,null,null,null,null,null,null,null,null,null,null,null,null,null,null,null,null,null,"الدور الثانى"]
[null,null,null,null,null,null,null,null,null,null,null,null,null,null,{"$f":"الرئيسية!$B$3&\" \"&الرئيسية!$C$3","v":"مدرسة …...................."},null,null,null,null,null,null,null,null,null,null,null,null,null,null,null,null,null,null,null,null,null,null,null,null,null,null,null,null,null,null,null,"للعام الدراسى ",null,null,null,null,null,{"$f":"الرئيسية!$K$2","v":" 2019 / 2020"},null,null,null,null,null,null,null,null,null,null,null,null,null,null,null,null,null,null,null,null,null,null,null,null,null,null,null,null,"قم بتسجيل درجات الملحق اعلى درجة كل مادة  من مواد الرسوب على حدة لكل طالب"]
[]
[]
["مسلسل","بيانات أساسية",null,null,null,null,null,null,null,null,null,null,"سرى","لغة عربية",null,null,null,"لغة انجليزية",null,null,null,"لغة فرنسية",null,null,null,"جغرافيا",null,null,null,"رياضة عامة",null,null,null,"حاسب آلى",null,null,null,null,null,null,null,null,"اقتصاد",null,null,null,"سكرتارية عربية",null,null,null,"سكرتارية اجنبية",null,null,null,"ادارة اعمال",null,null,null,"محاسبة مالية",null,null,null,"تسويق",null,null,null,"قانون تجارى",null,null,null,"مجموع نصف العام","مجموع كلى","تربية قومية",null,null,null,"تربية دينية",null,null,null,"النتيجة","مواد الرسوب","عدد المواد",null,"نتيجة الدور الثانى"]
[null,"جلوس","اسم الطالب","الفصل","الرقم القومى","تاريخ ميلاد الطالب"," سن الطالب في","الديانة","النوع","الفئة","الفترة","الحــــالة",null,"اعمال السنة","نصف العام","آخر العام","المجموع","اعمال السنة","نصف العام","آخر العام","المجموع","اعمال السنة","نصف العام","آخر العام","المجموع","اعمال السنة","نصف العام","آخر العام","المجموع","اعمال السنة","نصف العام","آخر العام","المجموع","اعمال السنة",null,"نصف العام",null,"آخر العام",null,"مج تحريرى"," مج عملى","مج حاسب","اعمال السنة","نصف العام","آخر العام","المجموع","اعمال السنة","نصف العام","آخر العام","المجموع","اعمال السنة","نصف العام","آخر العام","المجموع","اعمال السنة","نصف العام","آخر العام","المجموع","اعمال السنة","نصف العام","آخر العام","المجموع","اعمال السنة","نصف العام","آخر العام","المجموع","اعمال السنة","نصف العام","آخر العام","المجموع",null,null,"اعمال السنة","نصف العام","آخر العام","المجموع","اعمال السنة","نصف العام","آخر العام","المجموع"]
[null,null,null,null,null,null,null,null,null,null,null,null,null,null,null,null,null,null,null,null,null,null,null,null,null,null,null,null,null,null,null,null,null,"تحريرى","عملى","تحريرى","عملى","تحريرى","عملى"]
[null,null,null,null,null,null,null,null,null,null,null,null,"عظمى",10,20,20,50,10,20,20,50,6,12,12,30,8,16,16,40,6,12,12,30,6,4,12,8,12,8,30,20,50,10,20,20,50,10,20,20,50,10,20,20,50,10,20,20,50,10,20,20,50,10,20,20,50,10,20,20,50,240,600,4,8,8,20,4,8,8,20]
[null,null,null,null,null,null,{"$f":"الرئيسية!$E$9","v":"2021-10-01"},null,null,null,null,null,"صغرى",0,0,5,25,0,0,5,25,0,0,3,9,0,0,4,20,0,0,3,15,0,0,0,0,3,2,15,10,25,0,0,5,25,0,0,5,20,0,0,5,25,0,0,5,25,0,0,5,25,0,0,5,25,0,0,5,25,0,300,0,0,2,10,0,0,2,10]

{"sheet":"شيت الناجحين","index":10,"n_rows":9,"n_cols":82,"rows_kept":9,"cut":false,"hidden":false,"merged":[[5,9,8,9],[5,10,8,10],[5,11,8,11],[4,29,4,32],[4,33,4,41],[5,29,6,29],[5,30,6,30],[5,31,6,31],[5,32,6,32],[5,35,5,36],[5,37,5,38],[5,33,5,34],[5,40,6,40],[5,41,6,41],[4,17,4,20],[4,21,4,24],[1,46,1,51],[1,52,1,57],[4,42,4,45],[4,54,4,57],[5,57,6,57],[5,42,6,42],[5,55,6,55],[5,56,6,56],[5,52,6,52],[5,48,6,48],[5,46,6,46],[5,69,6,69],[5,72,6,72],[5,73,6,73],[5,74,6,74],[4,70,6,70],[4,66,4,69],[5,67,6,67],[5,66,6,66],[5,68,6,68],[4,58,4,61],[5,59,6,59],[5,61,6,61],[5,43,6,43],[5,44,6,44],[5,53,6,53],[5,45,6,45],[5,54,6,54],[5,47,6,47],[4,46,4,49],[5,49,6,49],[5,50,6,50],[4,50,4,53],[5,60,6,60],[5,51,6,51],[5,58,6,58],[5,22,6,22],[5,39,6,39],[5,23,6,23],[5,24,6,24],[5,17,6,17],[5,18,6,18],[5,19,6,19],[5,20,6,20],[5,21,6,21],[5,25,6,25],[5,26,6,26],[5,27,6,27],[5,28,6,28],[4,25,4,28],[4,81,8,81],[4,62,4,65],[4,80,8,80],[5,76,6,76],[5,77,6,77],[5,78,6,78],[5,79,6,79],[4,76,4,79],[5,62,6,62],[5,63,6,63],[5,64,6,64],[5,65,6,65],[5,75,6,75],[4,71,6,71],[4,72,4,75],[5,5,8,5],[5,6,7,6],[4,0,8,0],[4,12,6,12],[4,13,4,16],[5,13,6,13],[5,14,6,14],[5,15,6,15],[5,16,6,16],[4,1,4,11],[5,1,8,1],[5,2,8,2],[5,3,8,3],[5,4,8,4],[5,7,8,7],[5,8,8,8]]}
[null,null,"الناجحين",null,null,null,null,null,null,null,null,null,null,null,{"$f":"الرئيسية!$B$2&\"\"&الرئيسية!$C$2","v":"ادارة  …...................."},null,null,null,null,null,null,null,null,null,null,null,null,null,null,null,null,null,null,null,"الناجحين",null,null,null,null,null,null,null,"الناجحين",null,null,null,"شيت كنترول الصف الاول  -  الناجحين"]
[null,null,null,null,null,null,null,null,null,null,null,null,null,null,{"$f":"الرئيسية!$B$3&\" \"&الرئيسية!$C$3","v":"مدرسة …...................."},null,null,null,null,null,null,null,null,null,null,null,null,null,null,null,null,null,null,null,null,null,null,null,null,null,null,null,null,null,null,null,"للعام الدراسى ",null,null,null,null,null,{"$f":"الرئيسية!$K$2","v":" 2019 / 2020"}]
[]
[]
["مسلسل","بيانات أساسية",null,null,null,null,null,null,null,null,null,null,"سرى","لغة عربية",null,null,null,"لغة انجليزية",null,null,null,"لغة فرنسية",null,null,null,"جغرافيا",null,null,null,"رياضة عامة",null,null,null,"حاسب آلى",null,null,null,null,null,null,null,null,"اقتصاد",null,null,null,"سكرتارية عربية",null,null,null,"سكرتارية اجنبية",null,null,null,"ادارة اعمال",null,null,null,"محاسبة مالية",null,null,null,"تسويق",null,null,null,"قانون تجارى",null,null,null,"مجموع نصف العام","مجموع كلى","تربية قومية",null,null,null,"تربية دينية",null,null,null,"النتيجة","الترتيب"]
[null,"جلوس","اسم الطالب","الفصل","الرقم القومى","تاريخ ميلاد الطالب"," سن الطالب في","الديانة","النوع","الفئة","الفترة","الحــــالة",null,"اعمال السنة","نصف العام","آخر العام","المجموع","اعمال السنة","نصف العام","آخر العام","المجموع","اعمال السنة","نصف العام","آخر العام","المجموع","اعمال السنة","نصف العام","آخر العام","المجموع","اعمال السنة","نصف العام","آخر العام","المجموع","اعمال السنة",null,"نصف العام",null,"آخر العام",null,"مج تحريرى"," مج عملى","مج حاسب","اعمال السنة","نصف العام","آخر العام","المجموع","اعمال السنة","نصف العام","آخر العام","المجموع","اعمال السنة","نصف العام","آخر العام","المجموع","اعمال السنة","نصف العام","آخر العام","المجموع","اعمال السنة","نصف العام","آخر العام","المجموع","اعمال السنة","نصف العام","آخر العام","المجموع","اعمال السنة","نصف العام","آخر العام","المجموع",null,null,"اعمال السنة","نصف العام","آخر العام","المجموع","اعمال السنة","نصف العام","آخر العام","المجموع"]
[null,null,null,null,null,null,null,null,null,null,null,null,null,null,null,null,null,null,null,null,null,null,null,null,null,null,null,null,null,null,null,null,null,"تحريرى","عملى","تحريرى","عملى","تحريرى","عملى"]
[null,null,null,null,null,null,null,null,null,null,null,null,"عظمى",10,20,20,50,10,20,20,50,6,12,12,30,8,16,16,40,6,12,12,30,6,4,12,8,12,8,30,20,50,10,20,20,50,10,20,20,50,10,20,20,50,10,20,20,50,10,20,20,50,10,20,20,50,10,20,20,50,240,600,4,8,8,20,4,8,8,20]
[null,null,null,null,null,null,{"$f":"الرئيسية!$E$9","v":"2021-10-01"},null,null,null,null,null,"صغرى",0,0,5,25,0,0,5,25,0,0,3,9,0,0,4,20,0,0,3,15,0,0,0,0,3,2,15,10,25,0,0,5,25,0,0,5,20,0,0,5,25,0,0,5,25,0,0,5,25,0,0,5,25,0,0,5,25,0,300,0,0,2,10,0,0,2,10]

{"sheet":"مساعد","index":11,"n_rows":9,"n_cols":27,"rows_kept":9,"cut":false,"hidden":false,"merged":[[4,1,8,1],[4,2,8,2],[4,3,8,3],[4,4,8,4],[4,5,8,5],[4,8,7,8],[4,9,7,9],[4,10,7,10],[4,7,7,7],[4,6,8,6],[4,11,7,11],[4,24,8,24],[4,21,7,21],[4,22,7,22],[4,23,7,23],[6,26,8,26],[4,25,5,26],[4,12,7,12],[4,13,7,13],[4,14,7,14],[4,15,7,15],[4,16,7,16],[4,17,7,17],[4,18,7,18],[4,19,7,19],[4,20,7,20],[6,25,8,25]]}
[null,null,null,null,null,null,null,null,null,null,null,null,null,null,null,null,null,null,null,null,null,null,null,null,1,2,3]
[null,null,null,null,null,null,null,null,"شيت مساعد دور ثانى",null,null,null,null,null,null,null,null,null,null,null,null,null,null,null,"قبل بداية امتحان الدور الثانى",null,"بعد الانتهاء من الامتحان و التصحيح و الرصد"]
[null,null,null,null,null,null,null,null,null,null,null,null,null,null,null,null,null,null,null,null,null,null,null,null,"و لا يستخدم بعد تعديل الدرجات مرة أخرى",null,"اعرف النتيجة أولا ثم رحل الى شيت الملاحق"]
[]
[null,"مسلسل","رقم الجلوس","اسم الطالب","الفصل","النوع","الحالة","رقم السرى","لغة عربية","لغة انجليزية","لغة فرنسية","جغرافيا","رياضة عامة","حاسب ألى","اقتصاد","سكرتارية عربية","سكرتارية اجنبية","ادارة اعمال","محاسبة مالية","تسويق","قانون تجارى","مجموع","تربية دينية","تربية وطنية","موادرسوب الدور الأول","الجزء الخاص بامتحان الدور الثانى"]
[]
[null,null,null,null,null,null,null,null,null,null,null,null,null,null,null,null,null,null,null,null,null,null,null,null,null,"النتيجة","وضع الطالب بعد النتيجة"]
[]
[null,null,null,null,null,null,null,"الصغرى",25,25,9,20,15,25,25,25,25,25,25,25,25,300,10,10]

{"sheet":"شهادات نصف العام","index":12,"n_rows":31,"n_cols":28,"rows_kept":31,"cut":false,"hidden":false,"merged":[[25,21,25,22],[30,7,30,9],[22,21,22,22],[5,21,5,22],[0,27,1,27],[10,7,10,9],[15,21,15,22],[20,7,20,9]]}
[null,null,null,null,null,null,null,{"$f":"\"مدرسة \"&\" \" &الرئيسية!$C$3","v":"مدرسة  …...................."},null,null,null,null,null,null,null,null,null,null,null,null,null,"ورقة رقم :",null,null,1,null,null,"الورقة \nالحالية"]
[null,null,null,null,null,null,null,null,null,null,null,null,null,null,null,null,null,null,null,null,null,"الى ورقة :",null,null,1]
[null,null,null,null,null,null,null,"شهادات نصف العام",null,null,null,null,{"$f":"الرئيسية!$K$2","v":" 2019 / 2020"},null,null,null,null,null,null,null,null,null,null,null,null,null,null,{"$f":"$Y$1","v":1}]
[]
[null,null,null,null,null,{"$f":"\"مدرسة \" &\" \" &الرئيسية!$C$3","v":"مدرسة  …...................."},null,null,null,null,null,null,"شهادة درجات نصف العام",null,null,null,null,{"$f":"الرئيسية!$K$2","v":" 2019 / 2020"}]
[null,null,null,null,null,"الاسم /",null,null,null,null,null,null,null,null,"الفصل  /",null,null,null,null,"رقم الجلوس /"]
[null,"الشهادة الأولى",null,null,null,"المادة","لغة عربية","لغة انجليزية","لغة فرنسية","جغرافيا","رياضة عامة","حاسب ألى","حاسب ألى","اقتصاد","سكرتارية عربية","سكرتارية اجنبية","ادارة اعمال","محاسبة مالية","تسويق","قانون تجارى","مجموع","تربية دينية","تربية وطنية"]
[null,null,null,null,null,"العظمى",20,20,12,16,12,12,8,20,20,20,20,20,20,20,240,8,8]
[null,null,null,null,null,"الدرجة"]
[]
[null,null,null,null,null,"كنترول الصف الأول",null,null,null,null,null,null,null,null,null,null,null,null,null,null,"إدارة المدرسة"]
[]
[]
[]
[null,null,null,null,null,{"$f":"\"مدرسة \" &\" \" &الرئيسية!$C$3","v":"مدرسة  …...................."},null,null,null,null,null,null,"شهادة درجات نصف العام",null,null,null,null,{"$f":"الرئيسية!$K$2","v":" 2019 / 2020"}]
[null,null,null,null,null,"الاسم /",null,null,null,null,null,null,null,null,"الفصل  /",null,null,null,null,"رقم الجلوس /"]
[null,"الشهادة الثانية",null,null,null,"المادة","لغة عربية","لغة انجليزية","لغة فرنسية","جغرافيا","رياضة عامة","حاسب ألى","حاسب ألى","اقتصاد","سكرتارية عربية","سكرتارية اجنبية","ادارة اعمال","محاسبة مالية","تسويق","قانون تجارى","مجموع","تربية دينية","تربية وطنية"]
[null,null,null,null,null,"العظمى",20,20,12,16,12,12,8,20,20,20,20,20,20,20,240,8,8]
[null,null,null,null,null,"الدرجة"]
[]
[null,null,null,null,null,"كنترول الصف الأول",null,null,null,null,null,null,null,null,null,null,null,null,null,null,"إدارة المدرسة"]
[]
[]
[]
[null,null,null,null,null,{"$f":"\"مدرسة \" &\" \" &الرئيسية!$C$3","v":"مدرسة  …...................."},null,null,null,null,null,null,"شهادة درجات نصف العام",null,null,null,null,{"$f":"الرئيسية!$K$2","v":" 2019 / 2020"}]
[null,null,null,null,null,"الاسم /",null,null,null,null,null,null,null,null,"الفصل  /",null,null,null,null,"رقم الجلوس /"]
[null,"الشهادة الثالثة",null,null,null,"المادة","لغة عربية","لغة انجليزية","لغة فرنسية","جغرافيا","رياضة عامة","حاسب ألى","حاسب ألى","اقتصاد","سكرتارية عربية","سكرتارية اجنبية","ادارة اعمال","محاسبة مالية","تسويق","قانون تجارى","مجموع","تربية دينية","تربية وطنية"]
[null,null,null,null,null,"العظمى",20,20,12,16,12,12,8,20,20,20,20,20,20,20,240,8,8]
[null,null,null,null,null,"الدرجة"]
[]
[null,null,null,null,null,"كنترول الصف الأول",null,null,null,null,null,null,null,null,null,null,null,null,null,null,"إدارة المدرسة"]

{"sheet":"شهادات آخر العام","index":13,"n_rows":32,"n_cols":25,"rows_kept":32,"cut":false,"hidden":false,"merged":[[5,20,5,21],[15,20,15,21],[25,20,25,21],[1,24,5,28],[31,7,31,9],[10,6,10,7],[10,8,10,21],[20,6,20,7],[20,8,20,21],[30,6,30,7],[30,8,30,21],[11,7,11,9],[21,7,21,9]]}
[null,null,null,null,null,null,null,null,null,"شهادات درجـــات امتحان آخر العام",null,null,null,null,null,null,null,null,"ورقة رقم :",null,null,1]
[null,null,null,null,null,null,null,null,null,null,"للعام الدراسى",null,null,{"$f":"الرئيسية!$K$2","v":" 2019 / 2020"},null,null,null,null,"الى ورقة رقم :",null,null,null,null,null,"ملحوظة هامة :\nحالة وجود اسم مادة لها دور ثانى رغم حصولها على درجة النجاح هذا يعنى انها\nناجحة في مجموع المادة ولكنها لم تحصل على ربع الدرجة في امتحان آخر العام لذا يستوجب وضع الدائرة بهذا الزر مع ذكر السبب يدويا"]
[]
[]
[null,null,null,null,null,{"$f":"\"مدرسة\" & \" \" & الرئيسية!$C$3","v":"مدرسة …...................."},null,null,null,null,null,null," شهادة  نتيجة آخر العام",null,null,null,{"$f":"الرئيسية!$K$2","v":" 2019 / 2020"}]
[null,null,null,null,null,"الاسم /",null,null,null,null,null,null,null,null,"الفصل /",null,null,null,"جلوس /"]
[null,"الشهادة الأولى",null,null,null,"المادة","لغة عربية","لغة انجليزية","لغة فرنسية","جغرافيا","رياضة عامة","حاسب ألى","اقتصاد","سكرتارية عربية","سكرتارية اجنبية","ادارة اعمال","محاسبة مالية","تسويق","قانون تجارى","مجموع","تربية دينية","تربية وطنية"]
[null,null,null,null,null,"العظمى",50,50,30,40,30,50,50,50,50,50,50,50,50,600,20,20]
[null,null,null,null,null,"الصغرى",25,25,9,20,15,25,25,25,25,25,25,25,25,300,10,10]
[null,null,null,null,null,"الدرجة"]
[null,null,null,null,null,"النتيجـــة"]
[null,null,null,null,null,"كنترول الصف الأول",null,null,null,null,null,null,null,null,null,null,null,null,null,"إدارة المدرسة"]
[]
[]
[null,null,null,null,null,{"$f":"\"مدرسة\" & \" \" & الرئيسية!$C$3","v":"مدرسة …...................."},null,null,null,null,null,null," شهادة  نتيجة آخر العام",null,null,null,{"$f":"الرئيسية!$K$2","v":" 2019 / 2020"}]
[null,null,null,null,null,"الاسم /",null,null,null,null,null,null,null,null,"الفصل /",null,null,null,"جلوس /"]
[null,"الشهادة الثانية",null,null,null,"المادة","لغة عربية","لغة انجليزية","لغة فرنسية","جغرافيا","رياضة عامة","حاسب ألى","اقتصاد","سكرتارية عربية","سكرتارية اجنبية","ادارة اعمال","محاسبة مالية","تسويق","قانون تجارى","مجموع","تربية دينية","تربية وطنية"]
[null,null,null,null,null,"العظمى",50,50,30,40,30,50,50,50,50,50,50,50,50,600,20,20]
[null,null,null,null,null,"الصغرى",25,25,9,20,15,25,25,25,25,25,25,25,25,300,10,10]
[null,null,null,null,null,"الدرجة"]
[null,null,null,null,null,"النتيجـــة"]
[null,null,null,null,null,"كنترول الصف الأول",null,null,null,null,null,null,null,null,null,null,null,null,null,"إدارة المدرسة"]
[]
[]
[null,null,null,null,null,{"$f":"\"مدرسة\" & \" \" & الرئيسية!$C$3","v":"مدرسة …...................."},null,null,null,null,null,null," شهادة  نتيجة آخر العام",null,null,null,{"$f":"الرئيسية!$K$2","v":" 2019 / 2020"}]
[null,null,null,null,null,"الاسم /",null,null,null,null,null,null,null,null,"الفصل /",null,null,null,"جلوس /"]
[null,"الشهادة الثالثة",null,null,null,"المادة","لغة عربية","لغة انجليزية","لغة فرنسية","جغرافيا","رياضة عامة","حاسب ألى","اقتصاد","سكرتارية عربية","سكرتارية اجنبية","ادارة اعمال","محاسبة مالية","تسويق","قانون تجارى","مجموع","تربية دينية","تربية وطنية",8]
[null,null,null,null,null,"العظمى",50,50,30,40,30,50,50,50,50,50,50,50,50,600,20,20]
[null,null,null,null,null,"الصغرى",25,25,9,20,15,25,25,25,25,25,25,25,25,300,10,10]
[null,null,null,null,null,"الدرجة"]
[null,null,null,null,null,"النتيجـــة"]
[null,null,null,null,null,"كنترول الصف الأول",null,null,null,null,null,null,null,null,null,null,null,null,null,"إدارة المدرسة"]

{"sheet":"شهادات الدور الثانى","index":14,"n_rows":32,"n_cols":23,"rows_kept":32,"cut":false,"hidden":false,"merged":[[5,20,5,21],[15,20,15,21],[25,20,25,21]]}
[null,null,null,null,null,null,null,null,null,"شهادات درجـــات امتحان الدور الثانى",null,null,null,null,null,null,null,null,"ورقة رقم :",null,null,1]
[null,null,null,null,null,null,null,null,null,null,"للعام الدراسى",null,null,{"$f":"الرئيسية!$K$2","v":" 2019 / 2020"},null,null,null,null,"الى ورقة رقم :"]
[]
[]
[null,null,null,null,null,{"$f":"\"مدرسة\" & \" \" & الرئيسية!$C$3","v":"مدرسة …...................."},null,null,null,null,null," شهادة  نتيجة الدور الثانى",null,null,null,null,{"$f":"الرئيسية!$K$2","v":" 2019 / 2020"}]
[null,null,null,null,null,"الاسم /",null,null,null,null,null,null,null,null,"الفصل /",null,null,null,"جلوس /"]
[null,"الشهادة الأولى",null,null,null,"المادة","لغة عربية","لغة انجليزية","لغة فرنسية","جغرافيا","رياضة عامة","حاسب ألى","اقتصاد","سكرتارية عربية","سكرتارية اجنبية","ادارة اعمال","محاسبة مالية","تسويق","قانون تجارى","مجموع","تربية دينية","تربية وطنية"]
[null,null,null,null,null,"العظمى",50,50,30,40,30,50,50,50,50,50,50,50,50,600,20,20]
[null,null,null,null,null,"الصغرى",25,25,9,20,15,25,25,25,25,25,25,25,25,300,10,10]
[null,null,null,null,null,"الدرجة"]
[null,null,null,null,null,"النتيجـــة"]
[null,null,null,null,null,"كنترول الصف الأول",null,null,null,null,null,null,null,null,null,null,null,null,null,"إدارة المدرسة"]
[]
[]
[null,null,null,null,null,{"$f":"\"مدرسة\" & \" \" & الرئيسية!$C$3","v":"مدرسة …...................."},null,null,null,null,null," شهادة  نتيجة الدور الثانى",null,null,null,null,{"$f":"الرئيسية!$K$2","v":" 2019 / 2020"}]
[null,null,null,null,null,"الاسم /",null,null,null,null,null,null,null,null,"الفصل /",null,null,null,"جلوس /"]
[null,"الشهادة الثانية",null,null,null,"المادة","لغة عربية","لغة انجليزية","لغة فرنسية","جغرافيا","رياضة عامة","حاسب ألى","اقتصاد","سكرتارية عربية","سكرتارية اجنبية","ادارة اعمال","محاسبة مالية","تسويق","قانون تجارى","مجموع","تربية دينية","تربية وطنية"]
[null,null,null,null,null,"العظمى",50,50,30,40,30,50,50,50,50,50,50,50,50,600,20,20]
[null,null,null,null,null,"الصغرى",25,25,9,20,15,25,25,25,25,25,25,25,25,300,10,10]
[null,null,null,null,null,"الدرجة"]
[null,null,null,null,null,"النتيجـــة"]
[null,null,null,null,null,"كنترول الصف الأول",null,null,null,null,null,null,null,null,null,null,null,null,null,"إدارة المدرسة"]
[]
[]
[null,null,null,null,null,{"$f":"\"مدرسة\" & \" \" & الرئيسية!$C$3","v":"مدرسة …...................."},null,null,null,null,null," شهادة  نتيجة الدور الثانى",null,null,null,null,{"$f":"الرئيسية!$K$2","v":" 2019 / 2020"}]
[null,null,null,null,null,"الاسم /",null,null,null,null,null,null,null,null,"الفصل /",null,null,null,"جلوس /"]
[null,"الشهادة الثالثة",null,null,null,"المادة","لغة عربية","لغة انجليزية","لغة فرنسية","جغرافيا","رياضة عامة","حاسب ألى","اقتصاد","سكرتارية عربية","سكرتارية اجنبية","ادارة اعمال","محاسبة مالية","تسويق","قانون تجارى","مجموع","تربية دينية","تربية وطنية",8]
[null,null,null,null,null,"العظمى",50,50,30,40,30,50,50,50,50,50,50,50,50,600,20,20]
[null,null,null,null,null,"الصغرى",25,25,9,20,15,25,25,25,25,25,25,25,25,300,10,10]
[null,null,null,null,null,"الدرجة"]
[null,null,null,null,null,"النتيجـــة"]
[null,null,null,null,null,"كنترول الصف الأول",null,null,null,null,null,null,null,null,null,null,null,null,null,"إدارة المدرسة"]

{"sheet":"كشف الملاحق","index":15,"n_rows":40,"n_cols":10,"rows_kept":40,"cut":false,"hidden":false,"merged":[[1,8,1,9]]}
[null,null,null,{"$f":"\"مدرسة \"&\" \" &الرئيسية!$C$3","v":"مدرسة  …...................."},null,null,null,"كشف الملاحق"]
[null,null,null,"كنترول الصف الاول",null,null,null,"للعام الدراسى",{"$f":"الرئيسية!$K$2","v":" 2019 / 2020"}]
[null,null,null,"كشف رقم :",null,1,null,"موعد امتحان الدور الثانى فى0000 / 00000 /  00000"]
[null,null,null,"م","جلوس","اسم الطالبة","الفصل","مواد الرسوب","العدد","التوقيع بالعلم"]
[]
[]
[]
[]
[]
[]
[]
[]
[]
[]
[]
[]
[]
[]
[]
[]
[]
[]
[]
[]
[]
[]
[]
[]
[]
[]
[]
[]
[]
[]
[]
[]
[]
[]
[]
[null,null,null,"كنترول الصف الاول",null,null,null,null,"ادارة المدرسة"]

{"sheet":"كشف الراسبين","index":16,"n_rows":31,"n_cols":9,"rows_kept":31,"cut":false,"hidden":false,"merged":[[28,4,29,4],[28,5,29,5],[28,6,29,6],[24,4,25,4],[24,5,25,5],[24,6,25,6],[26,4,27,4],[26,5,27,5],[26,6,27,6],[20,4,21,4],[20,5,21,5],[20,6,21,6],[22,4,23,4],[22,5,23,5],[22,6,23,6],[26,3,27,3],[10,4,11,4],[10,5,11,5],[10,6,11,6],[12,4,13,4],[12,5,13,5],[12,6,13,6],[14,4,15,4],[14,5,15,5],[14,6,15,6],[16,4,17,4],[16,5,17,5],[16,6,17,6],[18,4,19,4],[18,5,19,5],[18,6,19,6],[16,3,17,3],[18,3,19,3],[20,3,21,3],[22,3,23,3],[24,3,25,3],[6,5,7,5],[6,6,7,6],[8,4,9,4],[8,5,9,5],[8,6,9,6],[22,7,23,7],[24,7,25,7],[26,7,27,7],[28,7,29,7],[4,3,5,3],[6,3,7,3],[8,3,9,3],[10,3,11,3],[12,3,13,3],[14,3,15,3],[4,7,5,7],[28,3,29,3],[4,4,5,4],[4,5,5,5],[4,6,5,6],[6,4,7,4],[26,8,27,8],[28,8,29,8],[6,7,7,7],[8,7,9,7],[10,7,11,7],[12,7,13,7],[14,7,15,7],[16,7,17,7],[18,7,19,7],[20,7,21,7],[14,8,15,8],[16,8,17,8],[18,8,19,8],[20,8,21,8],[22,8,23,8],[24,8,25,8],[4,8,5,8],[6,8,7,8],[8,8,9,8],[10,8,11,8],[12,8,13,8]]}
[null,null,null,{"$f":"\"ادارة \"&\" \" &الرئيسية!$C$2","v":"ادارة  …...................."},null,null,null,"كشف الطلبة الراسبين"]
[null,null,null,{"$f":" \"مدرسة \"&\" \" &الرئيسية!$C$3","v":"مدرسة  …...................."},null,null,null,{"$f":"\"للعام الدراسى\"&\" \"&الرئيسية!$K$2","v":"للعام الدراسى  2019 / 2020"}]
[null,null,null,"كشف رقم :",null,1]
[null,null,null,"م","جلوس","اسم الطالبة","النتيجة","مـــــواد الرســـــــــوب","توقيع الطالب بالعلم"]
[]
[]
[]
[]
[]
[]
[]
[]
[]
[]
[]
[]
[]
[]
[]
[]
[]
[]
[]
[]
[]
[]
[]
[]
[]
[]
[null,null,null,"كنترول الصف الاول",null,null,null,"كنترول الصف الاول"]

{"sheet":"باقون","index":17,"n_rows":35,"n_cols":9,"rows_kept":35,"cut":false,"hidden":false,"merged":[[8,7,8,8],[3,7,3,8],[4,7,4,8],[5,7,5,8],[6,7,6,8],[7,7,7,8],[20,7,20,8],[9,7,9,8],[10,7,10,8],[11,7,11,8],[12,7,12,8],[13,7,13,8],[14,7,14,8],[15,7,15,8],[16,7,16,8],[17,7,17,8],[18,7,18,8],[19,7,19,8],[32,7,32,8],[33,7,33,8],[21,7,21,8],[22,7,22,8],[23,7,23,8],[29,7,29,8],[30,7,30,8],[31,7,31,8]]}
[null,null,null,{"$f":"\"ادارة \"&\" \" &الرئيسية!$C$2","v":"ادارة  …...................."},null,null,"كشوف الراسبون فى امتحان الدور الثانى"]
[null,null,null,{"$f":"\"مدرسة \"&\" \" &الرئيسية!$C$3","v":"مدرسة  …...................."},null,null,"للعام الدراسى :",{"$f":"الرئيسية!$K$2","v":" 2019 / 2020"}]
[null,null,null,"كنترول الصف الاول",null,null,null,"كشف رقم :",2]
[null,null,null,"م","جلوس","اسم الطالبة","الموقف من الدراسة","توقيع الطالب بالعلم"]
[]
[]
[]
[]
[]
[]
[]
[]
[]
[]
[]
[]
[]
[]
[]
[]
[]
[]
[]
[]
[]
[]
[]
[]
[]
[]
[]
[]
[]
[]
[null,null,null,"كنترول الصف الاول",null,null,null,"ادارة المدرسة"]

{"sheet":"النسبة","index":18,"n_rows":49,"n_cols":16,"rows_kept":49,"cut":false,"hidden":false,"merged":[[3,15,7,15],[3,12,7,12],[3,13,7,13],[3,14,7,14],[3,5,7,5],[3,6,7,6],[3,7,7,7],[3,8,7,8],[3,9,7,9],[3,11,7,11]]}
[null,null,null,null,null,null,{"$f":"\"ادارة\"&\" \"&الرئيسية!$C$2","v":"ادارة …...................."},null,null,"العام الدراسى ",null,null,null,{"$f":"الرئيسية!$K$2","v":" 2019 / 2020"}]
[null,null,null,null,null,null,{"$f":"\"مدرسة\" &\" \"&الرئيسية!$C$3","v":"مدرسة …...................."},null,null,null,null,null,null,"كشف رقم :",2]
[null,null,null,null,null,null,null,"كشف بأسماء الحاصلين على مجموع 75 % فأكثر"]
[null,null,null,null,null,"مسلسل","جلوس","اسم الطالبة","المجموع","النسبة",null,"مسلسل","جلوس","اسم الطالبة","المجموع","النسبة"]
["المجموع المطلوب الحصول على نسبته"]
[]
[null,400]
[]
[null,"العدد"]
[null,49]
[]
[]
[]
[]
[]
[]
[]
[]
[]
[]
[]
[]
[]
[]
[]
[]
[]
[]
[]
[]
[]
[]
[]
[]
[]
[]
[]
[]
[]
[]
[]
[]
[]
[]
[]
[]
[]
[]
[null,null,null,null,null,null,"كنترول الصف الاول",null,null,null,null,null,null,"ادارة المدرسة "]

{"sheet":"اوائل المدرسة","index":19,"n_rows":21,"n_cols":12,"rows_kept":21,"cut":false,"hidden":false,"merged":[[2,6,2,7],[4,11,4,12],[2,11,3,12],[3,3,4,3],[3,4,4,4],[3,5,4,5],[3,6,4,6],[3,7,4,7],[3,8,4,9]]}
[null,null,null,"بسم الله الرحمن الرحيم",null,null,null,{"$f":"\"مدرسة\" &\" \"&الرئيسية!$C$3","v":"مدرسة …...................."}]
[null,null,null,{"$f":"\"ادارة\"&\" \"&الرئيسية!$C$2","v":"ادارة …...................."},null,null,null,"كنترول الصف الاول"]
[null,null,null,null,null,"العشرة الاوائل نصف العام",{"$f":"الرئيسية!$K$2","v":" 2019 / 2020"},null,null,null,null,"اختر الفترة"]
[null,null,null,"م","جلوس","الاسم","الفصل","المجموع","الترتيب"]
[null,null,null,null,null,null,null,null,null,null,null,"نصف العام"]
[]
[]
[]
[]
[]
[]
[]
[]
[]
[]
[]
[]
[]
[]
[]
[null,null,null,"مع تحيات / كنترول الصف الأول",null,null,null,null,null,"إدارة المدرســـة"]

{"sheet":"رصد","index":20,"n_rows":7,"n_cols":21,"rows_kept":7,"cut":false,"hidden":false,"merged":[[0,10,0,11]]}
[null,null,null,"الصف الاول التجارى",null,null,"  متابعة رصد درجات ",null,null,null,"اعمال السنة",null,null,null,null," العام الدراسى",null,{"$f":"الرئيسية!$K$2","v":" 2019 / 2020"}]
[]
[null,null,null,"المـــــــــادة","لغة عربية","لغة انجليزية","لغة فرنسية","جغرافيا","رياضة عامة","حاسب ألى تحريرى","حاسب ألى عملى","اقتصاد","سكرتارية عربية","سكرتارية اجنبية","ادارة اعمال","محاسبة مالية","تسويق","قانون تجارى","تربية دينية","تربية وطنية","اختر نوع الرصد من الخلية  K1"]
[null,null,null,"المرصود من الدرجـــــات"]
[null,null,null,{"$f":"\"الغياب في\"&\" \"&K1","v":"الغياب في اعمال السنة"}]
[null,null,null,"المتبقى من الرصد"]
[null,null,null,"الاجمــــــــــــــالى"]

{"sheet":"جودة","index":21,"n_rows":16,"n_cols":23,"rows_kept":16,"cut":false,"hidden":false,"merged":[[8,3,8,6],[9,3,9,6],[4,1,4,2],[6,1,9,2],[10,1,14,2],[10,3,10,6],[11,3,11,6],[12,3,12,6],[13,3,13,6],[14,3,14,6],[1,13,1,16],[4,3,4,6],[5,3,5,6],[6,3,6,6],[7,3,7,6]]}
[null,"مديرية التربية والتعليم ",null,null,null,null,null,"النسب والبيانات المتعلقة ببيانات الجودة للصف الاول"]
[null,{"$f":"\"ادارة\"&\" \"&الرئيسية!$C$2","v":"ادارة …...................."},null,null,null,null,null,null,null,"للعام الدراسى ",null,null,null,{"$f":"الرئيسية!$K$2","v":" 2019 / 2020"}]
[null,{"$f":"\"مدرسة \"&\" \" &الرئيسية!$C$3","v":"مدرسة  …...................."}]
[]
[null,"الفترة",null,"                        المواد \nالبيان            ",null,null,null,"لغة عربية","لغة انجليزية","لغة فرنسية","جغرافيا","رياضة عامة","حاسب ألى تحريرى","حاسب ألى عملى","اقتصاد","سكرتارية عربية","سكرتارية اجنبية","ادارة اعمال","محاسبة مالية","تسويق","قانون تجارى","تربية دينية","تربية وطنية"]
[null,null,null,"عدد الطلاب الحاضرين فى المادة"]
[null,"نصف العام",null,"عدد الطلاب الحاصلين 50% فأكثر بنصف العام"]
[null,null,null,"نسبة الحاصلين على 50% فاكثر"]
[null,null,null,"عدد الطلاب الحاصلين 65% فأكثر بنصف العام"]
[null,null,null,"نسبة الحاصلين على 65% فاكثر"]
[null,"آخر العام",null,"عدد الطلاب الحاضرين فى المادة"]
[null,null,null,"عدد الطلاب الناجحين ( ربع الدرجة )"]
[null,null,null,"النسبة المئوية للحاصلين على ربع الدرجة"]
[null,null,null,"عدد الحاصلين على 65% فاكثر فى كل مادة"]
[null,null,null,"نسبة الحاصلين على 65% فاكثر فى كل مادة"]
[null,"كنترول الصف الاول",null,null,null,null,null,null,null,null,null,null,null,null,null,null,null,null,null,"مسئول الجودة"]

{"sheet":"العملى","index":22,"n_rows":39,"n_cols":19,"rows_kept":39,"cut":false,"hidden":false,"merged":[[2,8,2,10],[3,11,7,11],[3,12,7,12],[3,13,7,13],[3,5,7,5],[3,6,7,6],[3,7,7,7],[3,8,7,8],[3,10,7,10]]}
[null,null,null,null,null,null,{"$f":"\"ادارة\"&\" \"&الرئيسية!$C$2","v":"ادارة …...................."},null,"العام الدراسى ",null,null,null,{"$f":"الرئيسية!$K$2","v":" 2019 / 2020"},null,"اضغط لتنشيط قائمة الفصول",null,null,null,"فصول"]
[null,null,null,null,null,null,{"$f":"\"مدرسة \"&\" \" &الرئيسية!$C$3","v":"مدرسة  …...................."},null,null,null,null,null,"فصل:","2/1",null,null,null,null,"1/1"]
[null,null,null,null,null,null,"درجات امتحان العملى لمادة الحاسب الآلى - ",null,"آخر العام",null,null,null,null,null,null,null,null,null,"2/1"]
[null,null,null,null,null,"مسلسل","جلوس","اسم الطالبة","الدرجة",null,"مسلسل","جلوس","اسم الطالبة","الدرجة",null,null,null,null,"3/1"]
[null,null,null,null,null,null,null,null,null,null,null,null,null,null,null,null,null,null,"7/1"]
[null,null,null,null,null,null,null,null,null,null,null,null,null,null,null,null,null,null,"6/1"]
[null,null,null,null,null,null,null,null,null,null,null,null,null,null,null,null,null,null,"4/1"]
[null,null,null,null,null,null,null,null,null,null,null,null,null,null,null,null,null,null,"5/1"]
[null,null,null,null,null,null,null,null,null,null,null,null,null,null,null,null,null,null,"8/1"]
[null,null,null,null,null,null,null,null,null,null,null,null,null,null,null,null,null,null,""]
[null,null,null,null,null,null,null,null,null,null,null,null,null,null,null,null,null,null,""]
[null,null,null,null,null,null,null,null,null,null,null,null,null,null,null,null,null,null,""]
[null,null,null,null,null,null,null,null,null,null,null,null,null,null,null,null,null,null,""]
[null,null,null,null,null,null,null,null,null,null,null,null,null,null,null,null,null,null,""]
[null,null,null,null,null,null,null,null,null,null,null,null,null,null,null,null,null,null,""]
[null,null,null,null,null,null,null,null,null,null,null,null,null,null,null,null,null,null,""]
[null,null,null,null,null,null,null,null,null,null,null,null,null,null,null,null,null,null,""]
[null,null,null,null,null,null,null,null,null,null,null,null,null,null,null,null,null,null,""]
[null,null,null,null,null,null,null,null,null,null,null,null,null,null,null,null,null,null,""]
[null,null,null,null,null,null,null,null,null,null,null,null,null,null,null,null,null,null,""]
[]
[]
[]
[]
[]
[]
[]
[]
[]
[]
[]
[]
[]
[]
[]
[]
[]
[]
[null,null,null,null,null,null,"كنترول الصف الاول",null,null,null,null,null,"توقيع الممتحن /"]

{"sheet":"النهائية","index":23,"n_rows":40,"n_cols":34,"rows_kept":40,"cut":false,"hidden":false,"merged":[[4,11,8,11],[2,3,2,4],[3,3,3,4],[4,3,8,3],[4,4,8,4],[4,5,8,5],[4,6,8,6],[1,6,1,9],[0,6,0,9],[4,8,8,8],[4,9,8,9],[4,10,8,10]]}
[null,null,null,null,{"$f":"\"ادارة\"&\" \"&الرئيسية!$C$2","v":"ادارة …...................."},null,"  الصف الاول",null,null,null,"الحاصلون على الدرجة النهائية فى المادة ",null,null,null,null,null,null,null,"لغة عربية","لغة انجليزية","لغة فرنسية","جغرافيا","رياضة عامة","حاسب آلى تحريرى","حاسب آلى عملى","اقتصاد","سكرتارية عربية","سكرتارية اجنبية","ادارة اعمال","محاسبة مالية","تسويق","قانون تجارى","تربية دينية","تربية وطنية"]
[null,null,null,null,{"$f":"\"مدرسة \"&\" \" &الرئيسية!$C$3","v":"مدرسة  …...................."},null,{"$f":"الرئيسية!$K$2","v":" 2019 / 2020"},null,null,null,"كشف رقم:",1]
[null,null,null,"المادة :",null,"سكرتارية اجنبية"]
[null,null,null,"امتحان :",null,"نصف العام "]
[null,null,null,"مسلسل","جلوس","اسم الطالبة","الفصل",null,"مسلسل","جلوس","اسم الطالبة","الفصل"]
[]
[]
[]
[]
[]
[]
[]
[]
[]
[]
[]
[]
[]
[]
[]
[]
[]
[]
[]
[]
[]
[]
[]
[]
[]
[]
[]
[]
[]
[]
[]
[]
[]
[]
[null,null,null,null,"كنترول الصف الاول",null,"رئيس الكنترول",null,null,null,"ادارة المدرسة"]

{"sheet":"سرى","index":24,"n_rows":18,"n_cols":21,"rows_kept":18,"cut":false,"hidden":false,"merged":[[4,17,4,20],[4,12,4,15],[3,12,3,20],[2,3,2,8],[1,3,1,8],[4,3,5,3],[4,4,4,5],[4,6,4,7],[4,8,4,9]]}
[]
[null,null,null,"توزيع الارقام السرية لجميع ارقام الجلوس"]
[null,null,null,"الرجا ملء جميع البيانات ( يدويا ) قبل الضغط على زر الترحيل"]
[null,null,null," يصلح في حالة السرى التنازلى",null,null,"ملحوظة هامة : ابتعد عن الخلايا الملونة",null,null,null,null,null,"بيانات يستعان بها عند التوزيع"]
["متابعة ما تم توزيعه",null,null,"المجموعة","ارقام الجلوس",null,"ارقام السرى",null,"تطابق التوزيع",null,null,null,"صباحى",null,null,null,null,"مسائى"]
["الموزع حتى الآن : -",null,{"$f":"SUM($I$7:$I$18)","v":0},null,"من","الى","من","الى","عدد الجلوس","عدد السرى",null,"م","الشريحة","عدد الشريحة","اول رقم جلوس","آخر رقم جلوس",null,"النوع","عدد الشريحة","اول رقم جلوس","آخر رقم جلوس"]
[null,null,null,1,null,null,null,null,{"$f":"IF(OR(E7=\"\",F7=\"\"),\"\",F7-E7+1)","v":""},{"$f":"IF(OR(G7=\"\",H7=\"\"),\"\",IF(G7<H7,H7-G7+1,IF(G7>H7,G7-H7+1,\"\")))","v":""},null,1,"بنات -  دمج",null,null,null,null,"بنات -  دمج"]
[null,null,null,2,null,null,null,null,{"$f":"IF(OR(E8=\"\",F8=\"\"),\"\",F8-E8+1)","v":""},{"$f":"IF(OR(G8=\"\",H8=\"\"),\"\",IF(G8<H8,H8-G8+1,IF(G8>H8,G8-H8+1,\"\")))","v":""},null,2,"بنين -  دمج",null,null,null,null,"بنين -  دمج"]
[null,null,null,3,null,null,null,null,"","",null,3]
[null,null,null,4,null,null,null,null,"","",null,4]
[null,null,null,5,null,null,null,null,"","",null,null,null,{"$f":"SUM(N7:N10)","v":0},null,null,null,null,{"$f":"SUM(S7:S10)","v":0}]
[null,null,null,6,null,null,null,null,"",""]
[null,null,null,7,null,null,null,null,"",""]
[null,null,null,8,null,null,null,null,"",""]
[null,null,null,9,null,null,null,null,"",""]
[null,null,null,10,null,null,null,null,"",""]
[null,null,null,11,null,null,null,null,"",""]
[null,null,null,12,null,null,null,null,"",""]

{"sheet":"احصائيات","index":25,"n_rows":20,"n_cols":11,"rows_kept":20,"cut":false,"hidden":false,"merged":[]}
[null,null,null,null,{"$f":"\"ادارة\"&\" \"&الرئيسية!$C$2","v":"ادارة …...................."},null,null,"احصائيات المواد",null,null,"آخر العام فقط"]
[null,null,null,null,{"$f":"\"مدرسة \"&\" \" &الرئيسية!$C$3","v":"مدرسة  …...................."},null,null,"الصف الاول"]
[null,null,null,null,null,{"$f":"الرئيسية!$J$2&الرئيسية!$K$2","v":"       للعام الدراسى : 2019 / 2020"},null,null,null,"العدد :",320]
[null,null,null,null,"م","اســـــم المــــادة","حاضـــــرون","غائبـــــون","نجحـــــــون","راســـــبون","النسبة المئوية"]
[null,null,null,null,1,"لغة عربية"]
[null,null,null,null,2,"لغة انجليزية"]
[null,null,null,null,3,"لغة فرنسية"]
[null,null,null,null,4,"جغرافيا"]
[null,null,null,null,5,"رياضة عامة"]
[null,null,null,null,6,"حاسب ألى"]
[null,null,null,null,7,"اقتصاد"]
[null,null,null,null,8,"سكرتارية عربية"]
[null,null,null,null,9,"سكرتارية اجنبية"]
[null,null,null,null,10,"ادارة اعمال"]
[null,null,null,null,11,"محاسبة مالية"]
[null,null,null,null,12,"تسويق"]
[null,null,null,null,13,"قانون تجارى"]
[null,null,null,null,14]
[null,null,null,null,15]
[null,null,null,null,"كنترول الصف الاول",null,null,null,null,"إدارة المدرسة"]